Workbook

Sheet DifferentialExpression
A1: Gene | B1: Published Annotation Description | C1: Diamond BLAST to Uniprot-- 50% query, 50% id minimum | D1: Uniq-EVvsPBS | E1: Uniq-EVvsPBS - LFC | F1: Uniq-EVvsLPS | G1: Uniq-EVvsLPS - LFC | H1: Uniq-LPSvsPBS | I1: Uniq-LPSvsPBS - LFC | J1: EV.1_S7_L002 | K1: EV.2_S8_L002 | L1: EV.3_S9_L002 | M1: LPS.1_S4_L002 | N1: LPS.2_S5_L002 | O1: LPS.3_S6_L002 | P1: PBS.1_S1_L002 | Q1: PBS.2_S2_L002 | R1: PBS.3_S3_L002 | S1: Mult-EVvsPBS | T1: Mult-EVvsPBS - LFC | U1: Mult-EVvsLPS | V1: Mult-EVvsLPS - LFC | W1: Mult-LPSvsPBS | X1: Mult-LPSvsPBS - LFC | Y1: EV.1_S7_L0022 | Z1: EV.2_S8_L0023 | AA1: EV.3_S9_L0024 | AB1: LPS.1_S4_L0025 | AC1: LPS.2_S5_L0026 | AD1: LPS.3_S6_L0027 | AE1: PBS.1_S1_L0028 | AF1: PBS.2_S2_L0029 | AG1: PBS.3_S3_L00210 | AH1: MultNMore-EVvsPBS | AI1: MultNMore-EVvsPBS - LFC | AJ1: MultNMore-EVvsLPS | AK1: MultNMore-EVvsLPS - LFC | AL1: MultNMore-LPSvsPBS | AM1: MultNMore-LPSvsPBS -LFC | AN1: EV.1_S7_L00211 | AO1: EV.2_S8_L00212 | AP1: EV.3_S9_L00213 | AQ1: LPS.1_S4_L00214 | AR1: LPS.2_S5_L00215 | AS1: LPS.3_S6_L00216 | AT1: PBS.1_S1_L00217 | AU1: PBS.2_S2_L00218 | AV1: PBS.3_S3_L00219
A2: AAEL027453 | B2: unspecified product | C2: P08879.3 RecName: Full=Nucleoside diphosphate kinase; Short=NDK; Short=NDP kinase; AltName: Full=Abnormal wing disks protein; AltName: Full=Killer of prune protein [Drosophila melanogaster] | D2: NA | E2: NA | F2: NA | G2: NA | H2: NA | I2: NA | J2: 0 | K2: 0 | L2: 0 | M2: 0 | N2: 0 | O2: 0 | P2: 0 | Q2: 0 | R2: 0 | S2: NA | T2: NA | U2: NA | V2: NA | W2: NA | X2: NA | Y2: =VLOOKUP(A2,[1]FullMultExpressionTableReads2Ge!$A$2:$P$26450,8,FALSE) -> 0 | Z2: =VLOOKUP(A2,[1]FullMultExpressionTableReads2Ge!$A$2:$P$26450,9,FALSE) -> 0 | AA2: =VLOOKUP(A2,[1]FullMultExpressionTableReads2Ge!$A$2:$P$26450,10,FALSE) -> 0 | AB2: =VLOOKUP(A2,[1]FullMultExpressionTableReads2Ge!$A$2:$P$26450,11,FALSE) -> 0 | AC2: =VLOOKUP(A2,[1]FullMultExpressionTableReads2Ge!$A$2:$P$26450,12,FALSE) -> 0 | AD2: =VLOOKUP(A2,[1]FullMultExpressionTableReads2Ge!$A$2:$P$26450,13,FALSE) -> 0 | AE2: =VLOOKUP(A2,[1]FullMultExpressionTableReads2Ge!$A$2:$P$26450,14,FALSE) -> 0 | AF2: =VLOOKUP(A2,[1]FullMultExpressionTableReads2Ge!$A$2:$P$26450,15,FALSE) -> 0 | AG2: =VLOOKUP(A2,[1]FullMultExpressionTableReads2Ge!$A$2:$P$26450,16,FALSE) -> 0 | AH2: 0.04887093228 | AI2: -0.2415059202 | AJ2: 0.6123398851 | AK2: -0.1966881664 | AL2: 0.83406329 | AM2: NA | AN2: 4243.50737 | AO2: 4259.841206 | AP2: 4139.302009 | AQ2: 3396.668954 | AR2: 3978.889346 | AS2: 3714.953594 | AT2: 3733.850901 | AU2: 3627.94362 | AV2: 3325.599623
A3: AAEL001860 | B3: unspecified product | D3: NA | E3: NA | F3: NA | G3: NA | H3: NA | I3: NA | J3: 0 | K3: 0 | L3: 0 | M3: 0 | N3: 0 | O3: 0 | P3: 0 | Q3: 0 | R3: 0 | S3: NA | T3: NA | U3: NA | V3: NA | W3: NA | X3: NA | Y3: =VLOOKUP(A3,[1]FullMultExpressionTableReads2Ge!$A$2:$P$26450,8,FALSE) -> 0 | Z3: =VLOOKUP(A3,[1]FullMultExpressionTableReads2Ge!$A$2:$P$26450,9,FALSE) -> 0 | AA3: =VLOOKUP(A3,[1]FullMultExpressionTableReads2Ge!$A$2:$P$26450,10,FALSE) -> 0 | AB3: =VLOOKUP(A3,[1]FullMultExpressionTableReads2Ge!$A$2:$P$26450,11,FALSE) -> 0 | AC3: =VLOOKUP(A3,[1]FullMultExpressionTableReads2Ge!$A$2:$P$26450,12,FALSE) -> 0 | AD3: =VLOOKUP(A3,[1]FullMultExpressionTableReads2Ge!$A$2:$P$26450,13,FALSE) -> 0 | AE3: =VLOOKUP(A3,[1]FullMultExpressionTableReads2Ge!$A$2:$P$26450,14,FALSE) -> 0 | AF3: =VLOOKUP(A3,[1]FullMultExpressionTableReads2Ge!$A$2:$P$26450,15,FALSE) -> 0 | AG3: =VLOOKUP(A3,[1]FullMultExpressionTableReads2Ge!$A$2:$P$26450,16,FALSE) -> 0 | AH3: 0.2114804426 | AI3: -0.1636979089 | AJ3: 0.7801945665 | AK3: -0.1739831822 | AL3: 0.988159182 | AM3: 0.2974053301 | AN3: 2566.454361 | AO3: 2413.730504 | AP3: 2581.055452 | AQ3: 2138.426328 | AR3: 2217.406938 | AS3: 2382.880029 | AT3: 2300.115107 | AU3: 2241.341897 | AV3: 2207.118595
A4: AAEL008887 | B4: cytochrome c oxidase%2C-subunit VIb | C4: Q4R374.3 RecName: Full=Cytochrome c oxidase subunit 6B1; AltName: Full=Cytochrome c oxidase subunit VIb isoform 1; Short=COX VIb-1 [Macaca fascicularis] | D4: NA | E4: NA | F4: NA | G4: NA | H4: NA | I4: NA | J4: 0 | K4: 0 | L4: 0 | M4: 0 | N4: 0 | O4: 0 | P4: 0 | Q4: 0 | R4: 0 | S4: NA | T4: NA | U4: NA | V4: NA | W4: NA | X4: NA | Y4: =VLOOKUP(A4,[1]FullMultExpressionTableReads2Ge!$A$2:$P$26450,8,FALSE) -> 0 | Z4: =VLOOKUP(A4,[1]FullMultExpressionTableReads2Ge!$A$2:$P$26450,9,FALSE) -> 0 | AA4: =VLOOKUP(A4,[1]FullMultExpressionTableReads2Ge!$A$2:$P$26450,10,FALSE) -> 0 | AB4: =VLOOKUP(A4,[1]FullMultExpressionTableReads2Ge!$A$2:$P$26450,11,FALSE) -> 0 | AC4: =VLOOKUP(A4,[1]FullMultExpressionTableReads2Ge!$A$2:$P$26450,12,FALSE) -> 0 | AD4: =VLOOKUP(A4,[1]FullMultExpressionTableReads2Ge!$A$2:$P$26450,13,FALSE) -> 0 | AE4: =VLOOKUP(A4,[1]FullMultExpressionTableReads2Ge!$A$2:$P$26450,14,FALSE) -> 0 | AF4: =VLOOKUP(A4,[1]FullMultExpressionTableReads2Ge!$A$2:$P$26450,15,FALSE) -> 0 | AG4: =VLOOKUP(A4,[1]FullMultExpressionTableReads2Ge!$A$2:$P$26450,16,FALSE) -> 0 | AH4: 0.1041237881 | AI4: -0.261071066 | AJ4: 0.4742065571 | AK4: -0.2908476207 | AL4: 0.9735098819 | AM4: -0.1105668335 | AN4: 3374.092565 | AO4: 3212.921951 | AP4: 3042.716735 | AQ4: 2322.08286 | AR4: 2982.465799 | AS4: 2610.307223 | AT4: 2725.829193 | AU4: 2846.347471 | AV4: 2461.436787
A5: AAEL002597 | B5: unspecified product | D5: NA | E5: NA | F5: NA | G5: NA | H5: NA | I5: NA | J5: 0 | K5: 0 | L5: 0 | M5: 0 | N5: 0 | O5: 0 | P5: 0 | Q5: 0 | R5: 0 | S5: NA | T5: NA | U5: NA | V5: NA | W5: NA | X5: NA | Y5: =VLOOKUP(A5,[1]FullMultExpressionTableReads2Ge!$A$2:$P$26450,8,FALSE) -> 0 | Z5: =VLOOKUP(A5,[1]FullMultExpressionTableReads2Ge!$A$2:$P$26450,9,FALSE) -> 0 | AA5: =VLOOKUP(A5,[1]FullMultExpressionTableReads2Ge!$A$2:$P$26450,10,FALSE) -> 0 | AB5: =VLOOKUP(A5,[1]FullMultExpressionTableReads2Ge!$A$2:$P$26450,11,FALSE) -> 0 | AC5: =VLOOKUP(A5,[1]FullMultExpressionTableReads2Ge!$A$2:$P$26450,12,FALSE) -> 0 | AD5: =VLOOKUP(A5,[1]FullMultExpressionTableReads2Ge!$A$2:$P$26450,13,FALSE) -> 0 | AE5: =VLOOKUP(A5,[1]FullMultExpressionTableReads2Ge!$A$2:$P$26450,14,FALSE) -> 0 | AF5: =VLOOKUP(A5,[1]FullMultExpressionTableReads2Ge!$A$2:$P$26450,15,FALSE) -> 0 | AG5: =VLOOKUP(A5,[1]FullMultExpressionTableReads2Ge!$A$2:$P$26450,16,FALSE) -> 0 | AH5: 0.09552363486 | AI5: -0.2181809725 | AJ5: 0.8052518971 | AK5: -0.1491006883 | AL5: 0.6963249137 | AM5: 0.2974053301 | AN5: 9447.277487 | AO5: 9677.54064 | AP5: 9840.204046 | AQ5: 8256.72879 | AR5: 8740.335723 | AS5: 9262.32058 | AT5: 8968.324282 | AU5: 7977.923254 | AV5: 7948.741043
A6: AAEL028178 | B6: unspecified product | C6: P55828.1 RecName: Full=40S ribosomal protein S20 [Drosophila melanogaster] | D6: NA | E6: NA | F6: NA | G6: NA | H6: NA | I6: NA | J6: 0 | K6: 0 | L6: 0 | M6: 0 | N6: 0 | O6: 0 | P6: 0 | Q6: 0 | R6: 0 | S6: NA | T6: NA | U6: NA | V6: NA | W6: NA | X6: NA | Y6: =VLOOKUP(A6,[1]FullMultExpressionTableReads2Ge!$A$2:$P$26450,8,FALSE) -> 0 | Z6: =VLOOKUP(A6,[1]FullMultExpressionTableReads2Ge!$A$2:$P$26450,9,FALSE) -> 0 | AA6: =VLOOKUP(A6,[1]FullMultExpressionTableReads2Ge!$A$2:$P$26450,10,FALSE) -> 0 | AB6: =VLOOKUP(A6,[1]FullMultExpressionTableReads2Ge!$A$2:$P$26450,11,FALSE) -> 0 | AC6: =VLOOKUP(A6,[1]FullMultExpressionTableReads2Ge!$A$2:$P$26450,12,FALSE) -> 0 | AD6: =VLOOKUP(A6,[1]FullMultExpressionTableReads2Ge!$A$2:$P$26450,13,FALSE) -> 0 | AE6: =VLOOKUP(A6,[1]FullMultExpressionTableReads2Ge!$A$2:$P$26450,14,FALSE) -> 0 | AF6: =VLOOKUP(A6,[1]FullMultExpressionTableReads2Ge!$A$2:$P$26450,15,FALSE) -> 0 | AG6: =VLOOKUP(A6,[1]FullMultExpressionTableReads2Ge!$A$2:$P$26450,16,FALSE) -> 0 | AH6: 0.2350438721 | AI6: -0.2270717286 | AJ6: 0.3455484596 | AK6: -0.3214064524 | AL6: 0.8151987151 | AM6: NA | AN6: 42782.11284 | AO6: 45057.37981 | AP6: 38574.98596 | AQ6: 29977.04445 | AR6: 38360.8484 | AS6: 33354.75076 | AT6: 38795.85187 | AU6: 36573.05721 | AV6: 32637.0688
A7: AAEL006509 | B7: ATP synthase subunit [Source:UniProtKB/TrEMBL%3BAcc:Q1HR38] | C7: Q28852.3 RecName: Full=ATP synthase subunit g, mitochondrial; Short=ATPase subunit g; AltName: Full=ATP synthase membrane subunit g [Bos taurus] | D7: NA | E7: NA | F7: NA | G7: NA | H7: NA | I7: NA | J7: 0 | K7: 0 | L7: 0 | M7: 0 | N7: 0 | O7: 0 | P7: 0 | Q7: 0 | R7: 0 | S7: NA | T7: NA | U7: NA | V7: NA | W7: NA | X7: NA | Y7: =VLOOKUP(A7,[1]FullMultExpressionTableReads2Ge!$A$2:$P$26450,8,FALSE) -> 0 | Z7: =VLOOKUP(A7,[1]FullMultExpressionTableReads2Ge!$A$2:$P$26450,9,FALSE) -> 0 | AA7: =VLOOKUP(A7,[1]FullMultExpressionTableReads2Ge!$A$2:$P$26450,10,FALSE) -> 0 | AB7: =VLOOKUP(A7,[1]FullMultExpressionTableReads2Ge!$A$2:$P$26450,11,FALSE) -> 0 | AC7: =VLOOKUP(A7,[1]FullMultExpressionTableReads2Ge!$A$2:$P$26450,12,FALSE) -> 0 | AD7: =VLOOKUP(A7,[1]FullMultExpressionTableReads2Ge!$A$2:$P$26450,13,FALSE) -> 0 | AE7: =VLOOKUP(A7,[1]FullMultExpressionTableReads2Ge!$A$2:$P$26450,14,FALSE) -> 0 | AF7: =VLOOKUP(A7,[1]FullMultExpressionTableReads2Ge!$A$2:$P$26450,15,FALSE) -> 0 | AG7: =VLOOKUP(A7,[1]FullMultExpressionTableReads2Ge!$A$2:$P$26450,16,FALSE) -> 0 | AH7: 0.2377966333 | AI7: -0.1828286577 | AJ7: 0.5390397544 | AK7: -0.2097547734 | AL7: 0.9718488792 | AM7: 0.2974053301 | AN7: 8831.328441 | AO7: 8666.164941 | AP7: 8323.316975 | AQ7: 6909.588586 | AR7: 8114.290099 | AS7: 7423.409268 | AT7: 7811.57806 | AU7: 7993.596974 | AV7: 6939.253526
A8: AAEL002639 | C8: P49630.1 RecName: Full=60S ribosomal protein L36; AltName: Full=Protein minute(1)1B [Drosophila melanogaster] | D8: NA | E8: NA | F8: NA | G8: NA | H8: NA | I8: NA | J8: 0 | K8: 0 | L8: 0 | M8: 0 | N8: 0 | O8: 0 | P8: 0 | Q8: 0 | R8: 0 | S8: NA | T8: NA | U8: NA | V8: NA | W8: NA | X8: NA | Y8: =VLOOKUP(A8,[1]FullMultExpressionTableReads2Ge!$A$2:$P$26450,8,FALSE) -> 0 | Z8: =VLOOKUP(A8,[1]FullMultExpressionTableReads2Ge!$A$2:$P$26450,9,FALSE) -> 0 | AA8: =VLOOKUP(A8,[1]FullMultExpressionTableReads2Ge!$A$2:$P$26450,10,FALSE) -> 0 | AB8: =VLOOKUP(A8,[1]FullMultExpressionTableReads2Ge!$A$2:$P$26450,11,FALSE) -> 0 | AC8: =VLOOKUP(A8,[1]FullMultExpressionTableReads2Ge!$A$2:$P$26450,12,FALSE) -> 0 | AD8: =VLOOKUP(A8,[1]FullMultExpressionTableReads2Ge!$A$2:$P$26450,13,FALSE) -> 0 | AE8: =VLOOKUP(A8,[1]FullMultExpressionTableReads2Ge!$A$2:$P$26450,14,FALSE) -> 0 | AF8: =VLOOKUP(A8,[1]FullMultExpressionTableReads2Ge!$A$2:$P$26450,15,FALSE) -> 0 | AG8: =VLOOKUP(A8,[1]FullMultExpressionTableReads2Ge!$A$2:$P$26450,16,FALSE) -> 0 | AH8: 0.25557733 | AI8: -0.2295409307 | AJ8: 0.4395491696 | AK8: -0.3183738516 | AL8: 0.8488084608 | AM8: 0.2974053301 | AN8: 92378.72981 | AO8: 98217.61307 | AP8: 84022.35344 | AQ8: 65119.91731 | AR8: 85802.27471 | AS8: 70450.44679 | AT8: 81774.08889 | AU8: 82997.56963 | AV8: 69461.30497
A9: AAEL013571 | B9: synaptobrevin | C9: Q63666.2 RecName: Full=Vesicle-associated membrane protein 1; Short=VAMP-1; AltName: Full=Synaptobrevin-1 [Rattus norvegicus] | D9: NA | E9: NA | F9: NA | G9: NA | H9: NA | I9: NA | J9: 0 | K9: 0 | L9: 0 | M9: 0 | N9: 0 | O9: 0 | P9: 0 | Q9: 0 | R9: 0 | S9: NA | T9: NA | U9: NA | V9: NA | W9: NA | X9: NA | Y9: =VLOOKUP(A9,[1]FullMultExpressionTableReads2Ge!$A$2:$P$26450,8,FALSE) -> 0 | Z9: =VLOOKUP(A9,[1]FullMultExpressionTableReads2Ge!$A$2:$P$26450,9,FALSE) -> 0 | AA9: =VLOOKUP(A9,[1]FullMultExpressionTableReads2Ge!$A$2:$P$26450,10,FALSE) -> 0 | AB9: =VLOOKUP(A9,[1]FullMultExpressionTableReads2Ge!$A$2:$P$26450,11,FALSE) -> 0 | AC9: =VLOOKUP(A9,[1]FullMultExpressionTableReads2Ge!$A$2:$P$26450,12,FALSE) -> 0 | AD9: =VLOOKUP(A9,[1]FullMultExpressionTableReads2Ge!$A$2:$P$26450,13,FALSE) -> 0 | AE9: =VLOOKUP(A9,[1]FullMultExpressionTableReads2Ge!$A$2:$P$26450,14,FALSE) -> 0 | AF9: =VLOOKUP(A9,[1]FullMultExpressionTableReads2Ge!$A$2:$P$26450,15,FALSE) -> 0 | AG9: =VLOOKUP(A9,[1]FullMultExpressionTableReads2Ge!$A$2:$P$26450,16,FALSE) -> 0 | AH9: 0.506974782 | AI9: -0.08002288006 | AJ9: 0.6123398851 | AK9: -0.1504091835 | AL9: 0.7117400933 | AM9: 2.032880399 | AN9: 7019.820477 | AO9: 6716.654806 | AP9: 6623.106779 | AQ9: 6152.493838 | AR9: 6162.272066 | AS9: 6131.251496 | AT9: 6653.258033 | AU9: 6434.584335 | AV9: 6171.108782
A10: AAEL019998 | B10: unspecified product | C10: A5WUX7.1 RecName: Full=Mitochondrial translation release factor in rescue; Flags: Precursor [Danio rerio] | D10: NA | E10: NA | F10: NA | G10: NA | H10: NA | I10: NA | J10: 0 | K10: 0 | L10: 0 | M10: 0 | N10: 0 | O10: 0 | P10: 0 | Q10: 0 | R10: 0 | S10: NA | T10: NA | U10: NA | V10: NA | W10: NA | X10: NA | Y10: =VLOOKUP(A10,[1]FullMultExpressionTableReads2Ge!$A$2:$P$26450,8,FALSE) -> 0 | Z10: =VLOOKUP(A10,[1]FullMultExpressionTableReads2Ge!$A$2:$P$26450,9,FALSE) -> 0 | AA10: =VLOOKUP(A10,[1]FullMultExpressionTableReads2Ge!$A$2:$P$26450,10,FALSE) -> 0 | AB10: =VLOOKUP(A10,[1]FullMultExpressionTableReads2Ge!$A$2:$P$26450,11,FALSE) -> 0 | AC10: =VLOOKUP(A10,[1]FullMultExpressionTableReads2Ge!$A$2:$P$26450,12,FALSE) -> 0 | AD10: =VLOOKUP(A10,[1]FullMultExpressionTableReads2Ge!$A$2:$P$26450,13,FALSE) -> 0 | AE10: =VLOOKUP(A10,[1]FullMultExpressionTableReads2Ge!$A$2:$P$26450,14,FALSE) -> 0 | AF10: =VLOOKUP(A10,[1]FullMultExpressionTableReads2Ge!$A$2:$P$26450,15,FALSE) -> 0 | AG10: =VLOOKUP(A10,[1]FullMultExpressionTableReads2Ge!$A$2:$P$26450,16,FALSE) -> 0 | AH10: 0.3134461992 | AI10: -0.1639133485 | AJ10: 0.9285371815 | AK10: -0.1532581104 | AL10: 0.9368055115 | AM10: -0.5092246538 | AN10: 2411.10438 | AO10: 2608.681517 | AP10: 2521.810784 | AQ10: 2177.502186 | AR10: 2427.384974 | AS10: 2211.14929 | AT10: 2304.049618 | AU10: 2335.384214 | AV10: 2086.447208
A11: AAEL004715 | B11: b-cell translocation protein | C11: P78543.1 RecName: Full=Protein BTG2; AltName: Full=BTG family member 2; AltName: Full=NGF-inducible anti-proliferative protein PC3 [Homo sapiens] | D11: NA | E11: NA | F11: NA | G11: NA | H11: NA | I11: NA | J11: 0 | K11: 0 | L11: 0 | M11: 0 | N11: 0 | O11: 0 | P11: 0 | Q11: 0 | R11: 0 | S11: NA | T11: NA | U11: NA | V11: NA | W11: NA | X11: NA | Y11: =VLOOKUP(A11,[1]FullMultExpressionTableReads2Ge!$A$2:$P$26450,8,FALSE) -> 0 | Z11: =VLOOKUP(A11,[1]FullMultExpressionTableReads2Ge!$A$2:$P$26450,9,FALSE) -> 0 | AA11: =VLOOKUP(A11,[1]FullMultExpressionTableReads2Ge!$A$2:$P$26450,10,FALSE) -> 0 | AB11: =VLOOKUP(A11,[1]FullMultExpressionTableReads2Ge!$A$2:$P$26450,11,FALSE) -> 0 | AC11: =VLOOKUP(A11,[1]FullMultExpressionTableReads2Ge!$A$2:$P$26450,12,FALSE) -> 0 | AD11: =VLOOKUP(A11,[1]FullMultExpressionTableReads2Ge!$A$2:$P$26450,13,FALSE) -> 0 | AE11: =VLOOKUP(A11,[1]FullMultExpressionTableReads2Ge!$A$2:$P$26450,14,FALSE) -> 0 | AF11: =VLOOKUP(A11,[1]FullMultExpressionTableReads2Ge!$A$2:$P$26450,15,FALSE) -> 0 | AG11: =VLOOKUP(A11,[1]FullMultExpressionTableReads2Ge!$A$2:$P$26450,16,FALSE) -> 0 | AH11: 0.07567551882 | AI11: 0.5928084065 | AJ11: 0.6123398851 | AK11: 0.2041789872 | AL11: 0.2990474972 | AM11: 0.2974053301 | AN11: 12212.68884 | AO11: 13158.65487 | AP11: 10972.55969 | AQ11: 14126.89955 | AR11: 14476.81899 | AS11: 13485.04019 | AT11: 13920.29978 | AU11: 17111.5221 | AV11: 23817.67721
A12: AAEL007842 | B12: unspecified product | C12: B4LC58.1 RecName: Full=Protein wntless [Drosophila virilis] | D12: NA | E12: NA | F12: NA | G12: NA | H12: NA | I12: NA | J12: 0 | K12: 0 | L12: 0 | M12: 0 | N12: 0 | O12: 0 | P12: 0 | Q12: 0 | R12: 0 | S12: NA | T12: NA | U12: NA | V12: NA | W12: NA | X12: NA | Y12: =VLOOKUP(A12,[1]FullMultExpressionTableReads2Ge!$A$2:$P$26450,8,FALSE) -> 0 | Z12: =VLOOKUP(A12,[1]FullMultExpressionTableReads2Ge!$A$2:$P$26450,9,FALSE) -> 0 | AA12: =VLOOKUP(A12,[1]FullMultExpressionTableReads2Ge!$A$2:$P$26450,10,FALSE) -> 0 | AB12: =VLOOKUP(A12,[1]FullMultExpressionTableReads2Ge!$A$2:$P$26450,11,FALSE) -> 0 | AC12: =VLOOKUP(A12,[1]FullMultExpressionTableReads2Ge!$A$2:$P$26450,12,FALSE) -> 0 | AD12: =VLOOKUP(A12,[1]FullMultExpressionTableReads2Ge!$A$2:$P$26450,13,FALSE) -> 0 | AE12: =VLOOKUP(A12,[1]FullMultExpressionTableReads2Ge!$A$2:$P$26450,14,FALSE) -> 0 | AF12: =VLOOKUP(A12,[1]FullMultExpressionTableReads2Ge!$A$2:$P$26450,15,FALSE) -> 0 | AG12: =VLOOKUP(A12,[1]FullMultExpressionTableReads2Ge!$A$2:$P$26450,16,FALSE) -> 0 | AH12: 0.329539043 | AI12: -0.1578343994 | AJ12: 0.9974604955 | AK12: -0.1127550493 | AL12: 0.806504846 | AM12: -0.09368386138 | AN12: 2840.815146 | AO12: 2933.958899 | AP12: 3074.015805 | AQ12: 2707.956958 | AR12: 2642.223612 | AS12: 2874.865387 | AT12: 2811.601532 | AU12: 2626.915398 | AV12: 2486.090081
A13: AAEL005890 | B13: unspecified product | C13: P22978.1 RecName: Full=Rhodanese domain-containing protein CG4456; AltName: Full=Heat shock protein 67B2 [Drosophila melanogaster] | D13: NA | E13: NA | F13: NA | G13: NA | H13: NA | I13: NA | J13: 0 | K13: 0 | L13: 0 | M13: 0 | N13: 0 | O13: 0 | P13: 0 | Q13: 0 | R13: 0 | S13: NA | T13: NA | U13: NA | V13: NA | W13: NA | X13: NA | Y13: =VLOOKUP(A13,[1]FullMultExpressionTableReads2Ge!$A$2:$P$26450,8,FALSE) -> 0 | Z13: =VLOOKUP(A13,[1]FullMultExpressionTableReads2Ge!$A$2:$P$26450,9,FALSE) -> 0 | AA13: =VLOOKUP(A13,[1]FullMultExpressionTableReads2Ge!$A$2:$P$26450,10,FALSE) -> 0 | AB13: =VLOOKUP(A13,[1]FullMultExpressionTableReads2Ge!$A$2:$P$26450,11,FALSE) -> 0 | AC13: =VLOOKUP(A13,[1]FullMultExpressionTableReads2Ge!$A$2:$P$26450,12,FALSE) -> 0 | AD13: =VLOOKUP(A13,[1]FullMultExpressionTableReads2Ge!$A$2:$P$26450,13,FALSE) -> 0 | AE13: =VLOOKUP(A13,[1]FullMultExpressionTableReads2Ge!$A$2:$P$26450,14,FALSE) -> 0 | AF13: =VLOOKUP(A13,[1]FullMultExpressionTableReads2Ge!$A$2:$P$26450,15,FALSE) -> 0 | AG13: =VLOOKUP(A13,[1]FullMultExpressionTableReads2Ge!$A$2:$P$26450,16,FALSE) -> 0 | AH13: 0.2682027868 | AI13: -0.2403364863 | AJ13: 0.9477804035 | AK13: -0.1385404825 | AL13: 0.69127632 | AM13: 0.2974053301 | AN13: 2613.695291 | AO13: 2607.60444 | AP13: 2589.998043 | AQ13: 2258.584591 | AR13: 2365.16926 | AS13: 2510.053603 | AT13: 2439.396795 | AU13: 2243.431726 | AV13: 1922.956942
A14: AAEL011698 | B14: mRNA (guanine-7-)methyltransferase | C14: Q9VJQ4.2 RecName: Full=mRNA cap guanine-N7 methyltransferase; AltName: Full=mRNA (guanine-N(7))-methyltransferase [Drosophila melanogaster] | D14: NA | E14: NA | F14: NA | G14: NA | H14: NA | I14: NA | J14: 0 | K14: 0 | L14: 0 | M14: 0 | N14: 0 | O14: 0 | P14: 0 | Q14: 0 | R14: 0 | S14: 0.4458744836 | T14: -0.1042396468 | U14: 0.638927051 | V14: -0.1325853686 | W14: 0.9611025733 | X14: 0.01291845976 | Y14: =VLOOKUP(A14,[1]FullMultExpressionTableReads2Ge!$A$2:$P$26450,8,FALSE) -> 2341.804928 | Z14: =VLOOKUP(A14,[1]FullMultExpressionTableReads2Ge!$A$2:$P$26450,9,FALSE) -> 2515.244389 | AA14: =VLOOKUP(A14,[1]FullMultExpressionTableReads2Ge!$A$2:$P$26450,10,FALSE) -> 2425.959095 | AB14: =VLOOKUP(A14,[1]FullMultExpressionTableReads2Ge!$A$2:$P$26450,11,FALSE) -> 2091.184794 | AC14: =VLOOKUP(A14,[1]FullMultExpressionTableReads2Ge!$A$2:$P$26450,12,FALSE) -> 2231.466249 | AD14: =VLOOKUP(A14,[1]FullMultExpressionTableReads2Ge!$A$2:$P$26450,13,FALSE) -> 2357.752469 | AE14: =VLOOKUP(A14,[1]FullMultExpressionTableReads2Ge!$A$2:$P$26450,14,FALSE) -> 2290.272193 | AF14: =VLOOKUP(A14,[1]FullMultExpressionTableReads2Ge!$A$2:$P$26450,15,FALSE) -> 2277.498382 | AG14: =VLOOKUP(A14,[1]FullMultExpressionTableReads2Ge!$A$2:$P$26450,16,FALSE) -> 2202.501347 | AH14: 0.4376156843 | AI14: -0.1013428835 | AJ14: 0.9974604955 | AK14: -0.1332468049 | AL14: 0.9492075852 | AM14: NA | AN14: 2340.242986 | AO14: 2517.129936 | AP14: 2423.442278 | AQ14: 2084.697023 | AR14: 2230.044505 | AS14: 2356.88835 | AT14: 2289.098477 | AU14: 2283.138482 | AV14: 2211.011221
A15: AAEL029052 | B15: unspecified product | C15: D2WKD9.2 RecName: Full=Farnesol dehydrogenase; AltName: Full=NADP(+)-dependent farnesol dehydrogenase 1; Short=AaSDR-1 [Aedes aegypti] | D15: NA | E15: NA | F15: NA | G15: NA | H15: NA | I15: NA | J15: 0 | K15: 0 | L15: 0 | M15: 0 | N15: 0 | O15: 0 | P15: 0 | Q15: 0 | R15: 0 | S15: NA | T15: NA | U15: NA | V15: NA | W15: NA | X15: NA | Y15: =VLOOKUP(A15,[1]FullMultExpressionTableReads2Ge!$A$2:$P$26450,8,FALSE) -> 0 | Z15: =VLOOKUP(A15,[1]FullMultExpressionTableReads2Ge!$A$2:$P$26450,9,FALSE) -> 0 | AA15: =VLOOKUP(A15,[1]FullMultExpressionTableReads2Ge!$A$2:$P$26450,10,FALSE) -> 0 | AB15: =VLOOKUP(A15,[1]FullMultExpressionTableReads2Ge!$A$2:$P$26450,11,FALSE) -> 0 | AC15: =VLOOKUP(A15,[1]FullMultExpressionTableReads2Ge!$A$2:$P$26450,12,FALSE) -> 0 | AD15: =VLOOKUP(A15,[1]FullMultExpressionTableReads2Ge!$A$2:$P$26450,13,FALSE) -> 0 | AE15: =VLOOKUP(A15,[1]FullMultExpressionTableReads2Ge!$A$2:$P$26450,14,FALSE) -> 0 | AF15: =VLOOKUP(A15,[1]FullMultExpressionTableReads2Ge!$A$2:$P$26450,15,FALSE) -> 0 | AG15: =VLOOKUP(A15,[1]FullMultExpressionTableReads2Ge!$A$2:$P$26450,16,FALSE) -> 0 | AH15: 0.5891313063 | AI15: -0.09116267862 | AJ15: 0.589141374 | AK15: -0.1793518457 | AL15: 0.717801519 | AM15: 1.046341302 | AN15: 4026.380789 | AO15: 4051.965263 | AP15: 4389.694569 | AQ15: 3601.817209 | AR15: 3661.978052 | AS15: 3804.067923 | AT15: 4199.696999 | AU15: 3729.30034 | AV15: 3770.656459
A16: AAEL005027 | C16: P08570.2 RecName: Full=60S acidic ribosomal protein P1; AltName: Full=Acidic ribosomal protein RPA2; AltName: Full=RP21C [Drosophila melanogaster] | D16: NA | E16: NA | F16: NA | G16: NA | H16: NA | I16: NA | J16: 0 | K16: 0 | L16: 0 | M16: 0 | N16: 0 | O16: 0 | P16: 0 | Q16: 0 | R16: 0 | S16: NA | T16: NA | U16: NA | V16: NA | W16: NA | X16: NA | Y16: =VLOOKUP(A16,[1]FullMultExpressionTableReads2Ge!$A$2:$P$26450,8,FALSE) -> 0 | Z16: =VLOOKUP(A16,[1]FullMultExpressionTableReads2Ge!$A$2:$P$26450,9,FALSE) -> 0 | AA16: =VLOOKUP(A16,[1]FullMultExpressionTableReads2Ge!$A$2:$P$26450,10,FALSE) -> 0 | AB16: =VLOOKUP(A16,[1]FullMultExpressionTableReads2Ge!$A$2:$P$26450,11,FALSE) -> 0 | AC16: =VLOOKUP(A16,[1]FullMultExpressionTableReads2Ge!$A$2:$P$26450,12,FALSE) -> 0 | AD16: =VLOOKUP(A16,[1]FullMultExpressionTableReads2Ge!$A$2:$P$26450,13,FALSE) -> 0 | AE16: =VLOOKUP(A16,[1]FullMultExpressionTableReads2Ge!$A$2:$P$26450,14,FALSE) -> 0 | AF16: =VLOOKUP(A16,[1]FullMultExpressionTableReads2Ge!$A$2:$P$26450,15,FALSE) -> 0 | AG16: =VLOOKUP(A16,[1]FullMultExpressionTableReads2Ge!$A$2:$P$26450,16,FALSE) -> 0 | AH16: 0.3732908945 | AI16: -0.2219661542 | AJ16: 0.6873882961 | AK16: -0.2712387732 | AL16: 0.943769605 | AM16: 0.2974053301 | AN16: 112858.5814 | AO16: 118314.8007 | AP16: 98064.45764 | AQ16: 83437.70264 | AR16: 107441.6778 | AS16: 83333.03699 | AT16: 101373.4618 | AU16: 101689.0027 | AV16: 79214.92665
A17: AAEL027050 | B17: Putative 52k active chromatin boundary protein [Source:UniProtKB/TrEMBL%3BAcc:A0A0P6IYK3] | C17: P26686.4 RecName: Full=Serine-arginine protein 55; Short=SRP55; AltName: Full=52 kDa bracketing protein; AltName: Full=B52 protein; AltName: Full=Protein enhancer of deformed [Drosophila melanogaster] | D17: NA | E17: NA | F17: NA | G17: NA | H17: NA | I17: NA | J17: 0 | K17: 0 | L17: 0 | M17: 0 | N17: 0 | O17: 0 | P17: 0 | Q17: 0 | R17: 0 | S17: NA | T17: NA | U17: NA | V17: NA | W17: NA | X17: NA | Y17: =VLOOKUP(A17,[1]FullMultExpressionTableReads2Ge!$A$2:$P$26450,8,FALSE) -> 0 | Z17: =VLOOKUP(A17,[1]FullMultExpressionTableReads2Ge!$A$2:$P$26450,9,FALSE) -> 0 | AA17: =VLOOKUP(A17,[1]FullMultExpressionTableReads2Ge!$A$2:$P$26450,10,FALSE) -> 0 | AB17: =VLOOKUP(A17,[1]FullMultExpressionTableReads2Ge!$A$2:$P$26450,11,FALSE) -> 0 | AC17: =VLOOKUP(A17,[1]FullMultExpressionTableReads2Ge!$A$2:$P$26450,12,FALSE) -> 0 | AD17: =VLOOKUP(A17,[1]FullMultExpressionTableReads2Ge!$A$2:$P$26450,13,FALSE) -> 0 | AE17: =VLOOKUP(A17,[1]FullMultExpressionTableReads2Ge!$A$2:$P$26450,14,FALSE) -> 0 | AF17: =VLOOKUP(A17,[1]FullMultExpressionTableReads2Ge!$A$2:$P$26450,15,FALSE) -> 0 | AG17: =VLOOKUP(A17,[1]FullMultExpressionTableReads2Ge!$A$2:$P$26450,16,FALSE) -> 0 | AH17: 0.3964407601 | AI17: -0.1399652963 | AJ17: 0.9120121633 | AK17: -0.1802261191 | AL17: 0.9401791073 | AM17: NA | AN17: 17776.21681 | AO17: 18439.56547 | AP17: 16455.48606 | AQ17: 14391.63849 | AR17: 17270.69341 | AS17: 15067.74781 | AT17: 16457.27244 | AU17: 16726.99351 | AV17: 14616.80833
A18: AAEL021617 | B18: unspecified product | C18: Q99N89.1 RecName: Full=39S ribosomal protein L43, mitochondrial; Short=L43mt; Short=MRP-L43; AltName: Full=Mitochondrial ribosomal protein bMRP36a; Flags: Precursor [Mus musculus] | D18: NA | E18: NA | F18: NA | G18: NA | H18: NA | I18: NA | J18: 0 | K18: 0 | L18: 0 | M18: 0 | N18: 0 | O18: 0 | P18: 0 | Q18: 0 | R18: 0 | S18: 0.3132710618 | T18: -0.1771353935 | U18: 0.6534890886 | V18: -0.139718987 | W18: 0.8618368155 | X18: -0.05276955207 | Y18: =VLOOKUP(A18,[1]FullMultExpressionTableReads2Ge!$A$2:$P$26450,8,FALSE) -> 6097.787201 | Z18: =VLOOKUP(A18,[1]FullMultExpressionTableReads2Ge!$A$2:$P$26450,9,FALSE) -> 6134.611048 | AA18: =VLOOKUP(A18,[1]FullMultExpressionTableReads2Ge!$A$2:$P$26450,10,FALSE) -> 5634.088581 | AB18: =VLOOKUP(A18,[1]FullMultExpressionTableReads2Ge!$A$2:$P$26450,11,FALSE) -> 5008.456177 | AC18: =VLOOKUP(A18,[1]FullMultExpressionTableReads2Ge!$A$2:$P$26450,12,FALSE) -> 5967.761742 | AD18: =VLOOKUP(A18,[1]FullMultExpressionTableReads2Ge!$A$2:$P$26450,13,FALSE) -> 5337.237852 | AE18: =VLOOKUP(A18,[1]FullMultExpressionTableReads2Ge!$A$2:$P$26450,14,FALSE) -> 5428.472593 | AF18: =VLOOKUP(A18,[1]FullMultExpressionTableReads2Ge!$A$2:$P$26450,15,FALSE) -> 5559.683406 | AG18: =VLOOKUP(A18,[1]FullMultExpressionTableReads2Ge!$A$2:$P$26450,16,FALSE) -> 4808.514391 | AH18: 0.2989545118 | AI18: -0.1708758035 | AJ18: 0.9974604955 | AK18: -0.1384295298 | AL18: 0.8841827254 | AM18: -0.5092246538 | AN18: 6105.890181 | AO18: 6161.959933 | AP18: 5652.835609 | AQ18: 5012.455682 | AR18: 5995.067334 | AS18: 5360.783859 | AT18: 5459.527408 | AU18: 5584.023821 | AV18: 4872.269444
A19: AAEL010716 | B19: preprotein translocase secy subunit (sec61) | C19: Q2KHX4.3 RecName: Full=Protein transport protein Sec61 subunit alpha isoform 2; Short=Sec61 alpha-2 [Bos taurus] | D19: NA | E19: NA | F19: NA | G19: NA | H19: NA | I19: NA | J19: 0 | K19: 0 | L19: 0 | M19: 0 | N19: 0 | O19: 0 | P19: 0 | Q19: 0 | R19: 0 | S19: NA | T19: NA | U19: NA | V19: NA | W19: NA | X19: NA | Y19: =VLOOKUP(A19,[1]FullMultExpressionTableReads2Ge!$A$2:$P$26450,8,FALSE) -> 0 | Z19: =VLOOKUP(A19,[1]FullMultExpressionTableReads2Ge!$A$2:$P$26450,9,FALSE) -> 0 | AA19: =VLOOKUP(A19,[1]FullMultExpressionTableReads2Ge!$A$2:$P$26450,10,FALSE) -> 0 | AB19: =VLOOKUP(A19,[1]FullMultExpressionTableReads2Ge!$A$2:$P$26450,11,FALSE) -> 0 | AC19: =VLOOKUP(A19,[1]FullMultExpressionTableReads2Ge!$A$2:$P$26450,12,FALSE) -> 0 | AD19: =VLOOKUP(A19,[1]FullMultExpressionTableReads2Ge!$A$2:$P$26450,13,FALSE) -> 0 | AE19: =VLOOKUP(A19,[1]FullMultExpressionTableReads2Ge!$A$2:$P$26450,14,FALSE) -> 0 | AF19: =VLOOKUP(A19,[1]FullMultExpressionTableReads2Ge!$A$2:$P$26450,15,FALSE) -> 0 | AG19: =VLOOKUP(A19,[1]FullMultExpressionTableReads2Ge!$A$2:$P$26450,16,FALSE) -> 0 | AH19: 0.4973867235 | AI19: -0.113877948 | AJ19: 0.9398317906 | AK19: -0.1377100263 | AL19: 0.9773063582 | AM19: NA | AN19: 7344.14763 | AO19: 7834.66117 | AP19: 7213.317813 | AQ19: 6513.945524 | AR19: 7205.357399 | AS19: 6741.127686 | AT19: 7171.826578 | AU19: 7230.809289 | AV19: 6285.29246
A20: AAEL007644 | C20: Q64264.2 RecName: Full=5-hydroxytryptamine receptor 1A; Short=5-HT-1A; Short=5-HT1A; AltName: Full=Serotonin receptor 1A [Mus musculus] | D20: NA | E20: NA | F20: NA | G20: NA | H20: NA | I20: NA | J20: 0 | K20: 0 | L20: 0 | M20: 0 | N20: 0 | O20: 0 | P20: 0 | Q20: 0 | R20: 0 | S20: NA | T20: NA | U20: NA | V20: NA | W20: NA | X20: NA | Y20: =VLOOKUP(A20,[1]FullMultExpressionTableReads2Ge!$A$2:$P$26450,8,FALSE) -> 0 | Z20: =VLOOKUP(A20,[1]FullMultExpressionTableReads2Ge!$A$2:$P$26450,9,FALSE) -> 0 | AA20: =VLOOKUP(A20,[1]FullMultExpressionTableReads2Ge!$A$2:$P$26450,10,FALSE) -> 0 | AB20: =VLOOKUP(A20,[1]FullMultExpressionTableReads2Ge!$A$2:$P$26450,11,FALSE) -> 0 | AC20: =VLOOKUP(A20,[1]FullMultExpressionTableReads2Ge!$A$2:$P$26450,12,FALSE) -> 0 | AD20: =VLOOKUP(A20,[1]FullMultExpressionTableReads2Ge!$A$2:$P$26450,13,FALSE) -> 0 | AE20: =VLOOKUP(A20,[1]FullMultExpressionTableReads2Ge!$A$2:$P$26450,14,FALSE) -> 0 | AF20: =VLOOKUP(A20,[1]FullMultExpressionTableReads2Ge!$A$2:$P$26450,15,FALSE) -> 0 | AG20: =VLOOKUP(A20,[1]FullMultExpressionTableReads2Ge!$A$2:$P$26450,16,FALSE) -> 0 | AH20: 0.4561364801 | AI20: -0.1095731404 | AJ20: 0.9974604955 | AK20: -0.09314843467 | AL20: 0.8943004664 | AM20: 0.2974053301 | AN20: 9539.942388 | AO20: 9247.786749 | AP20: 9908.391306 | AQ20: 8743.223222 | AR20: 9047.525812 | AS20: 9256.750934 | AT20: 9501.057066 | AU20: 8699.959269 | AV20: 8392.500337
A21: AAEL007669 | B21: oxidoreductase | C21: D2WKD9.2 RecName: Full=Farnesol dehydrogenase; AltName: Full=NADP(+)-dependent farnesol dehydrogenase 1; Short=AaSDR-1 [Aedes aegypti] | D21: NA | E21: NA | F21: NA | G21: NA | H21: NA | I21: NA | J21: 0 | K21: 0 | L21: 0 | M21: 0 | N21: 0 | O21: 0 | P21: 0 | Q21: 0 | R21: 0 | S21: NA | T21: NA | U21: NA | V21: NA | W21: NA | X21: NA | Y21: =VLOOKUP(A21,[1]FullMultExpressionTableReads2Ge!$A$2:$P$26450,8,FALSE) -> 0 | Z21: =VLOOKUP(A21,[1]FullMultExpressionTableReads2Ge!$A$2:$P$26450,9,FALSE) -> 0 | AA21: =VLOOKUP(A21,[1]FullMultExpressionTableReads2Ge!$A$2:$P$26450,10,FALSE) -> 0 | AB21: =VLOOKUP(A21,[1]FullMultExpressionTableReads2Ge!$A$2:$P$26450,11,FALSE) -> 0 | AC21: =VLOOKUP(A21,[1]FullMultExpressionTableReads2Ge!$A$2:$P$26450,12,FALSE) -> 0 | AD21: =VLOOKUP(A21,[1]FullMultExpressionTableReads2Ge!$A$2:$P$26450,13,FALSE) -> 0 | AE21: =VLOOKUP(A21,[1]FullMultExpressionTableReads2Ge!$A$2:$P$26450,14,FALSE) -> 0 | AF21: =VLOOKUP(A21,[1]FullMultExpressionTableReads2Ge!$A$2:$P$26450,15,FALSE) -> 0 | AG21: =VLOOKUP(A21,[1]FullMultExpressionTableReads2Ge!$A$2:$P$26450,16,FALSE) -> 0 | AH21: 0.671130515 | AI21: -0.07093295786 | AJ21: 0.589141374 | AK21: -0.1643692863 | AL21: 0.6708387599 | AM21: 0.2974053301 | AN21: 10457.5066 | AO21: 10740.61606 | AP21: 11389.50801 | AQ21: 9586.284858 | AR21: 9623.021168 | AS21: 10023.50547 | AT21: 11159.05998 | AU21: 9939.228028 | AV21: 9923.599657
A22: AAEL018217 | B22: unspecified product | D22: NA | E22: NA | F22: NA | G22: NA | H22: NA | I22: NA | J22: 0 | K22: 0 | L22: 0 | M22: 0 | N22: 0 | O22: 0 | P22: 0 | Q22: 0 | R22: 0 | S22: NA | T22: NA | U22: NA | V22: NA | W22: NA | X22: NA | Y22: =VLOOKUP(A22,[1]FullMultExpressionTableReads2Ge!$A$2:$P$26450,8,FALSE) -> 0 | Z22: =VLOOKUP(A22,[1]FullMultExpressionTableReads2Ge!$A$2:$P$26450,9,FALSE) -> 0 | AA22: =VLOOKUP(A22,[1]FullMultExpressionTableReads2Ge!$A$2:$P$26450,10,FALSE) -> 0 | AB22: =VLOOKUP(A22,[1]FullMultExpressionTableReads2Ge!$A$2:$P$26450,11,FALSE) -> 0 | AC22: =VLOOKUP(A22,[1]FullMultExpressionTableReads2Ge!$A$2:$P$26450,12,FALSE) -> 0 | AD22: =VLOOKUP(A22,[1]FullMultExpressionTableReads2Ge!$A$2:$P$26450,13,FALSE) -> 0 | AE22: =VLOOKUP(A22,[1]FullMultExpressionTableReads2Ge!$A$2:$P$26450,14,FALSE) -> 0 | AF22: =VLOOKUP(A22,[1]FullMultExpressionTableReads2Ge!$A$2:$P$26450,15,FALSE) -> 0 | AG22: =VLOOKUP(A22,[1]FullMultExpressionTableReads2Ge!$A$2:$P$26450,16,FALSE) -> 0 | AH22: 0.2719691764 | AI22: 0.218269536 | AJ22: 0.9974604955 | AK22: 0.07021037659 | AL22: 0.5926605426 | AM22: -0.5092246538 | AN22: 2626.414003 | AO22: 2602.219052 | AP22: 2462.566115 | AQ22: 2835.930392 | AR22: 2737.491424 | AS22: 2547.184573 | AT22: 2710.878051 | AU22: 2921.581325 | AV22: 3326.897165
A23: AAEL019868 | B23: unspecified product | C23: D8VNS8.1 RecName: Full=Ryncolin-2; Flags: Precursor [Cerberus rynchops] | D23: NA | E23: NA | F23: NA | G23: NA | H23: NA | I23: NA | J23: 0 | K23: 0 | L23: 0 | M23: 0 | N23: 0 | O23: 0 | P23: 0 | Q23: 0 | R23: 0 | S23: NA | T23: NA | U23: NA | V23: NA | W23: NA | X23: NA | Y23: =VLOOKUP(A23,[1]FullMultExpressionTableReads2Ge!$A$2:$P$26450,8,FALSE) -> 0 | Z23: =VLOOKUP(A23,[1]FullMultExpressionTableReads2Ge!$A$2:$P$26450,9,FALSE) -> 0 | AA23: =VLOOKUP(A23,[1]FullMultExpressionTableReads2Ge!$A$2:$P$26450,10,FALSE) -> 0 | AB23: =VLOOKUP(A23,[1]FullMultExpressionTableReads2Ge!$A$2:$P$26450,11,FALSE) -> 0 | AC23: =VLOOKUP(A23,[1]FullMultExpressionTableReads2Ge!$A$2:$P$26450,12,FALSE) -> 0 | AD23: =VLOOKUP(A23,[1]FullMultExpressionTableReads2Ge!$A$2:$P$26450,13,FALSE) -> 0 | AE23: =VLOOKUP(A23,[1]FullMultExpressionTableReads2Ge!$A$2:$P$26450,14,FALSE) -> 0 | AF23: =VLOOKUP(A23,[1]FullMultExpressionTableReads2Ge!$A$2:$P$26450,15,FALSE) -> 0 | AG23: =VLOOKUP(A23,[1]FullMultExpressionTableReads2Ge!$A$2:$P$26450,16,FALSE) -> 0 | AH23: 0.09429795477 | AI23: -0.4751386728 | AJ23: 0.9974604955 | AK23: -0.09092652117 | AL23: 0.1144528619 | AM23: -0.5092246538 | AN23: 3935.532847 | AO23: 4679.9014 | AP23: 5136.400953 | AQ23: 4668.588131 | AR23: 3937.088163 | AS23: 4372.171771 | AT23: 3722.83427 | AU23: 3468.071681 | AV23: 2697.589394
A24: AAEL019442 | B24: unspecified product | C24: E9Q942.1 RecName: Full=Small integral membrane protein 13 [Mus musculus] | D24: NA | E24: NA | F24: NA | G24: NA | H24: NA | I24: NA | J24: 0 | K24: 0 | L24: 0 | M24: 0 | N24: 0 | O24: 0 | P24: 0 | Q24: 0 | R24: 0 | S24: NA | T24: NA | U24: NA | V24: NA | W24: NA | X24: NA | Y24: =VLOOKUP(A24,[1]FullMultExpressionTableReads2Ge!$A$2:$P$26450,8,FALSE) -> 0 | Z24: =VLOOKUP(A24,[1]FullMultExpressionTableReads2Ge!$A$2:$P$26450,9,FALSE) -> 0 | AA24: =VLOOKUP(A24,[1]FullMultExpressionTableReads2Ge!$A$2:$P$26450,10,FALSE) -> 0 | AB24: =VLOOKUP(A24,[1]FullMultExpressionTableReads2Ge!$A$2:$P$26450,11,FALSE) -> 0 | AC24: =VLOOKUP(A24,[1]FullMultExpressionTableReads2Ge!$A$2:$P$26450,12,FALSE) -> 0 | AD24: =VLOOKUP(A24,[1]FullMultExpressionTableReads2Ge!$A$2:$P$26450,13,FALSE) -> 0 | AE24: =VLOOKUP(A24,[1]FullMultExpressionTableReads2Ge!$A$2:$P$26450,14,FALSE) -> 0 | AF24: =VLOOKUP(A24,[1]FullMultExpressionTableReads2Ge!$A$2:$P$26450,15,FALSE) -> 0 | AG24: =VLOOKUP(A24,[1]FullMultExpressionTableReads2Ge!$A$2:$P$26450,16,FALSE) -> 0 | AH24: 0.368537759 | AI24: -0.1513927559 | AJ24: 0.9974604955 | AK24: -0.0688233931 | AL24: 0.6647154124 | AM24: -0.5092246538 | AN24: 7701.180042 | AO24: 7878.821345 | AP24: 7450.296486 | AQ24: 7263.225101 | AR24: 7650.588604 | AS24: 7161.635926 | AT24: 7204.87647 | AU24: 7306.043143 | AV24: 6220.415371
A25: AAEL019791 | B25: unspecified product | C25: Q8R331.1 RecName: Full=Zinc finger HIT domain-containing protein 1 [Mus musculus] | D25: NA | E25: NA | F25: NA | G25: NA | H25: NA | I25: NA | J25: 0 | K25: 0 | L25: 0 | M25: 0 | N25: 0 | O25: 0 | P25: 0 | Q25: 0 | R25: 0 | S25: NA | T25: NA | U25: NA | V25: NA | W25: NA | X25: NA | Y25: =VLOOKUP(A25,[1]FullMultExpressionTableReads2Ge!$A$2:$P$26450,8,FALSE) -> 0 | Z25: =VLOOKUP(A25,[1]FullMultExpressionTableReads2Ge!$A$2:$P$26450,9,FALSE) -> 0 | AA25: =VLOOKUP(A25,[1]FullMultExpressionTableReads2Ge!$A$2:$P$26450,10,FALSE) -> 0 | AB25: =VLOOKUP(A25,[1]FullMultExpressionTableReads2Ge!$A$2:$P$26450,11,FALSE) -> 0 | AC25: =VLOOKUP(A25,[1]FullMultExpressionTableReads2Ge!$A$2:$P$26450,12,FALSE) -> 0 | AD25: =VLOOKUP(A25,[1]FullMultExpressionTableReads2Ge!$A$2:$P$26450,13,FALSE) -> 0 | AE25: =VLOOKUP(A25,[1]FullMultExpressionTableReads2Ge!$A$2:$P$26450,14,FALSE) -> 0 | AF25: =VLOOKUP(A25,[1]FullMultExpressionTableReads2Ge!$A$2:$P$26450,15,FALSE) -> 0 | AG25: =VLOOKUP(A25,[1]FullMultExpressionTableReads2Ge!$A$2:$P$26450,16,FALSE) -> 0 | AH25: 0.3720260578 | AI25: -0.1658688694 | AJ25: 0.9974604955 | AK25: -0.06884243039 | AL25: 0.6322226407 | AM25: -0.5092246538 | AN25: 2287.551179 | AO25: 2203.700406 | AP25: 2173.049718 | AQ25: 2113.02702 | AR25: 2153.246983 | AS25: 2123.89151 | AT25: 2072.700374 | AU25: 2086.69453 | AV25: 1776.334719
A26: AAEL013533 | B26: unspecified product | C26: O95478.1 RecName: Full=Ribosome biogenesis protein NSA2 homolog; AltName: Full=Hairy cell leukemia protein 1; AltName: Full=TGF-beta-inducible nuclear protein 1 [Homo sapiens] | D26: NA | E26: NA | F26: NA | G26: NA | H26: NA | I26: NA | J26: 0 | K26: 0 | L26: 0 | M26: 0 | N26: 0 | O26: 0 | P26: 0 | Q26: 0 | R26: 0 | S26: NA | T26: NA | U26: NA | V26: NA | W26: NA | X26: NA | Y26: =VLOOKUP(A26,[1]FullMultExpressionTableReads2Ge!$A$2:$P$26450,8,FALSE) -> 0 | Z26: =VLOOKUP(A26,[1]FullMultExpressionTableReads2Ge!$A$2:$P$26450,9,FALSE) -> 0 | AA26: =VLOOKUP(A26,[1]FullMultExpressionTableReads2Ge!$A$2:$P$26450,10,FALSE) -> 0 | AB26: =VLOOKUP(A26,[1]FullMultExpressionTableReads2Ge!$A$2:$P$26450,11,FALSE) -> 0 | AC26: =VLOOKUP(A26,[1]FullMultExpressionTableReads2Ge!$A$2:$P$26450,12,FALSE) -> 0 | AD26: =VLOOKUP(A26,[1]FullMultExpressionTableReads2Ge!$A$2:$P$26450,13,FALSE) -> 0 | AE26: =VLOOKUP(A26,[1]FullMultExpressionTableReads2Ge!$A$2:$P$26450,14,FALSE) -> 0 | AF26: =VLOOKUP(A26,[1]FullMultExpressionTableReads2Ge!$A$2:$P$26450,15,FALSE) -> 0 | AG26: =VLOOKUP(A26,[1]FullMultExpressionTableReads2Ge!$A$2:$P$26450,16,FALSE) -> 0 | AH26: 0.5183269787 | AI26: -0.1597726845 | AJ26: 0.9974604955 | AK26: -0.1836140366 | AL26: 0.9851655965 | AM26: 2.032880399 | AN26: 105850.5711 | AO26: 116580.706 | AP26: 96149.62525 | AQ26: 88438.43556 | AR26: 107573.8862 | AS26: 85931.27665 | AT26: 100457.5076 | AU26: 103644.0379 | AV26: 81079.49421
A27: AAEL014331 | B27: protein phosphatase 2c | C27: Q28DF4.1 RecName: Full=Protein phosphatase 1H [Xenopus tropicalis] | D27: NA | E27: NA | F27: NA | G27: NA | H27: NA | I27: NA | J27: 0 | K27: 0 | L27: 0 | M27: 0 | N27: 0 | O27: 0 | P27: 0 | Q27: 0 | R27: 0 | S27: NA | T27: NA | U27: NA | V27: NA | W27: NA | X27: NA | Y27: =VLOOKUP(A27,[1]FullMultExpressionTableReads2Ge!$A$2:$P$26450,8,FALSE) -> 0 | Z27: =VLOOKUP(A27,[1]FullMultExpressionTableReads2Ge!$A$2:$P$26450,9,FALSE) -> 0 | AA27: =VLOOKUP(A27,[1]FullMultExpressionTableReads2Ge!$A$2:$P$26450,10,FALSE) -> 0 | AB27: =VLOOKUP(A27,[1]FullMultExpressionTableReads2Ge!$A$2:$P$26450,11,FALSE) -> 0 | AC27: =VLOOKUP(A27,[1]FullMultExpressionTableReads2Ge!$A$2:$P$26450,12,FALSE) -> 0 | AD27: =VLOOKUP(A27,[1]FullMultExpressionTableReads2Ge!$A$2:$P$26450,13,FALSE) -> 0 | AE27: =VLOOKUP(A27,[1]FullMultExpressionTableReads2Ge!$A$2:$P$26450,14,FALSE) -> 0 | AF27: =VLOOKUP(A27,[1]FullMultExpressionTableReads2Ge!$A$2:$P$26450,15,FALSE) -> 0 | AG27: =VLOOKUP(A27,[1]FullMultExpressionTableReads2Ge!$A$2:$P$26450,16,FALSE) -> 0 | AH27: 0.7140089265 | AI27: -0.06387877903 | AJ27: 0.9255543739 | AK27: -0.1360759416 | AL27: 0.8181613432 | AM27: 2.032880399 | AN27: 4494.24769 | AO27: 4784.37791 | AP27: 4524.951264 | AQ27: 4057.050954 | AR27: 4400.789658 | AS27: 4168.879708 | AT27: 4630.132498 | AU27: 4529.704952 | AV27: 4039.247611
A28: AAEL013536 | B28: ubiquitin (ribosomal protein L40) | D28: NA | E28: NA | F28: NA | G28: NA | H28: NA | I28: NA | J28: 0 | K28: 0 | L28: 0 | M28: 0 | N28: 0 | O28: 0 | P28: 0 | Q28: 0 | R28: 0 | S28: NA | T28: NA | U28: NA | V28: NA | W28: NA | X28: NA | Y28: =VLOOKUP(A28,[1]FullMultExpressionTableReads2Ge!$A$2:$P$26450,8,FALSE) -> 0 | Z28: =VLOOKUP(A28,[1]FullMultExpressionTableReads2Ge!$A$2:$P$26450,9,FALSE) -> 0 | AA28: =VLOOKUP(A28,[1]FullMultExpressionTableReads2Ge!$A$2:$P$26450,10,FALSE) -> 0 | AB28: =VLOOKUP(A28,[1]FullMultExpressionTableReads2Ge!$A$2:$P$26450,11,FALSE) -> 0 | AC28: =VLOOKUP(A28,[1]FullMultExpressionTableReads2Ge!$A$2:$P$26450,12,FALSE) -> 0 | AD28: =VLOOKUP(A28,[1]FullMultExpressionTableReads2Ge!$A$2:$P$26450,13,FALSE) -> 0 | AE28: =VLOOKUP(A28,[1]FullMultExpressionTableReads2Ge!$A$2:$P$26450,14,FALSE) -> 0 | AF28: =VLOOKUP(A28,[1]FullMultExpressionTableReads2Ge!$A$2:$P$26450,15,FALSE) -> 0 | AG28: =VLOOKUP(A28,[1]FullMultExpressionTableReads2Ge!$A$2:$P$26450,16,FALSE) -> 0 | AH28: 0.5183269787 | AI28: -0.1597726845 | AJ28: 0.9974604955 | AK28: -0.1836140366 | AL28: 0.9851655965 | AM28: 2.032880399 | AN28: 105850.5711 | AO28: 116580.706 | AP28: 96149.62525 | AQ28: 88438.43556 | AR28: 107573.8862 | AS28: 85931.27665 | AT28: 100457.5076 | AU28: 103644.0379 | AV28: 81079.49421
A29: AAEL019825 | B29: unspecified product | C29: Q9VYQ8.1 RecName: Full=Ubiquitin carboxyl-terminal hydrolase 7; AltName: Full=Ubiquitin thioesterase 7; AltName: Full=Ubiquitin-specific-processing protease 7; Short=Deubiquitinating enzyme 7 [Drosophila melanogaster] | D29: NA | E29: NA | F29: NA | G29: NA | H29: NA | I29: NA | J29: 0 | K29: 0 | L29: 0 | M29: 0 | N29: 0 | O29: 0 | P29: 0 | Q29: 0 | R29: 0 | S29: NA | T29: NA | U29: NA | V29: NA | W29: NA | X29: NA | Y29: =VLOOKUP(A29,[1]FullMultExpressionTableReads2Ge!$A$2:$P$26450,8,FALSE) -> 0 | Z29: =VLOOKUP(A29,[1]FullMultExpressionTableReads2Ge!$A$2:$P$26450,9,FALSE) -> 0 | AA29: =VLOOKUP(A29,[1]FullMultExpressionTableReads2Ge!$A$2:$P$26450,10,FALSE) -> 0 | AB29: =VLOOKUP(A29,[1]FullMultExpressionTableReads2Ge!$A$2:$P$26450,11,FALSE) -> 0 | AC29: =VLOOKUP(A29,[1]FullMultExpressionTableReads2Ge!$A$2:$P$26450,12,FALSE) -> 0 | AD29: =VLOOKUP(A29,[1]FullMultExpressionTableReads2Ge!$A$2:$P$26450,13,FALSE) -> 0 | AE29: =VLOOKUP(A29,[1]FullMultExpressionTableReads2Ge!$A$2:$P$26450,14,FALSE) -> 0 | AF29: =VLOOKUP(A29,[1]FullMultExpressionTableReads2Ge!$A$2:$P$26450,15,FALSE) -> 0 | AG29: =VLOOKUP(A29,[1]FullMultExpressionTableReads2Ge!$A$2:$P$26450,16,FALSE) -> 0 | AH29: 0.5052213579 | AI29: 0.06805244882 | AJ29: 0.9974604955 | AK29: 0.02703879085 | AL29: 0.863026605 | AM29: -0.5092246538 | AN29: 9542.667826 | AO29: 9819.71486 | AP29: 9446.730023 | AQ29: 9876.423103 | AR29: 9811.612551 | AS29: 9822.998233 | AT29: 9897.655771 | AU29: 9856.679772 | AV29: 10462.0795
A30: AAEL000241 | B30: unspecified product | C30: Q9VTL1.2 RecName: Full=PCI domain-containing protein 2 homolog; AltName: Full=CSN12-like protein [Drosophila melanogaster] | D30: NA | E30: NA | F30: NA | G30: NA | H30: NA | I30: NA | J30: 0 | K30: 0 | L30: 0 | M30: 0 | N30: 0 | O30: 0 | P30: 0 | Q30: 0 | R30: 0 | S30: NA | T30: NA | U30: NA | V30: NA | W30: NA | X30: NA | Y30: =VLOOKUP(A30,[1]FullMultExpressionTableReads2Ge!$A$2:$P$26450,8,FALSE) -> 0 | Z30: =VLOOKUP(A30,[1]FullMultExpressionTableReads2Ge!$A$2:$P$26450,9,FALSE) -> 0 | AA30: =VLOOKUP(A30,[1]FullMultExpressionTableReads2Ge!$A$2:$P$26450,10,FALSE) -> 0 | AB30: =VLOOKUP(A30,[1]FullMultExpressionTableReads2Ge!$A$2:$P$26450,11,FALSE) -> 0 | AC30: =VLOOKUP(A30,[1]FullMultExpressionTableReads2Ge!$A$2:$P$26450,12,FALSE) -> 0 | AD30: =VLOOKUP(A30,[1]FullMultExpressionTableReads2Ge!$A$2:$P$26450,13,FALSE) -> 0 | AE30: =VLOOKUP(A30,[1]FullMultExpressionTableReads2Ge!$A$2:$P$26450,14,FALSE) -> 0 | AF30: =VLOOKUP(A30,[1]FullMultExpressionTableReads2Ge!$A$2:$P$26450,15,FALSE) -> 0 | AG30: =VLOOKUP(A30,[1]FullMultExpressionTableReads2Ge!$A$2:$P$26450,16,FALSE) -> 0 | AH30: 0.6439539934 | AI30: -0.06733890761 | AJ30: 0.9974604955 | AK30: -0.1002389238 | AL30: 0.9498285246 | AN30: 2372.039765 | AO30: 2483.740536 | AP30: 2453.623524 | AQ30: 2216.578044 | AR30: 2429.329215 | AS30: 2208.364468 | AT30: 2418.937338 | AU30: 2330.159641 | AV30: 2220.094013
A31: AAEL011314 | B31: Epoxide hydrolase [Source:UniProtKB/TrEMBL%3BAcc:Q16QD6] | C31: Q8MZR6.3 RecName: Full=Juvenile hormone epoxide hydrolase 1; AltName: Full=CfEH1; AltName: Full=Juvenile hormone epoxide hydrolase I; Short=JHEH I; AltName: Full=Juvenile hormone-specific epoxide hydrolase I [Ctenocephalides felis] | D31: NA | E31: NA | F31: NA | G31: NA | H31: NA | I31: NA | J31: 0 | K31: 0 | L31: 0 | M31: 0 | N31: 0 | O31: 0 | P31: 0 | Q31: 0 | R31: 0 | S31: NA | T31: NA | U31: NA | V31: NA | W31: NA | X31: NA | Y31: =VLOOKUP(A31,[1]FullMultExpressionTableReads2Ge!$A$2:$P$26450,8,FALSE) -> 0 | Z31: =VLOOKUP(A31,[1]FullMultExpressionTableReads2Ge!$A$2:$P$26450,9,FALSE) -> 0 | AA31: =VLOOKUP(A31,[1]FullMultExpressionTableReads2Ge!$A$2:$P$26450,10,FALSE) -> 0 | AB31: =VLOOKUP(A31,[1]FullMultExpressionTableReads2Ge!$A$2:$P$26450,11,FALSE) -> 0 | AC31: =VLOOKUP(A31,[1]FullMultExpressionTableReads2Ge!$A$2:$P$26450,12,FALSE) -> 0 | AD31: =VLOOKUP(A31,[1]FullMultExpressionTableReads2Ge!$A$2:$P$26450,13,FALSE) -> 0 | AE31: =VLOOKUP(A31,[1]FullMultExpressionTableReads2Ge!$A$2:$P$26450,14,FALSE) -> 0 | AF31: =VLOOKUP(A31,[1]FullMultExpressionTableReads2Ge!$A$2:$P$26450,15,FALSE) -> 0 | AG31: =VLOOKUP(A31,[1]FullMultExpressionTableReads2Ge!$A$2:$P$26450,16,FALSE) -> 0 | AH31: 0.5263185853 | AI31: -0.1519479999 | AJ31: 0.9974604955 | AK31: -0.1217436503 | AL31: 0.9058225842 | AM31: NA | AN31: 30324.13456 | AO31: 34213.36432 | AP31: 29678.22531 | AQ31: 28636.74252 | AR31: 30482.78359 | AS31: 27919.70496 | AT31: 29256.2366 | AU31: 31400.72976 | AV31: 24139.46757
A32: AAEL019643 | B32: unspecified product | D32: NA | E32: NA | F32: NA | G32: NA | H32: NA | I32: NA | J32: 0 | K32: 0 | L32: 0 | M32: 0 | N32: 0 | O32: 0 | P32: 0 | Q32: 0 | R32: 0 | S32: NA | T32: NA | U32: NA | V32: NA | W32: NA | X32: NA | Y32: =VLOOKUP(A32,[1]FullMultExpressionTableReads2Ge!$A$2:$P$26450,8,FALSE) -> 0 | Z32: =VLOOKUP(A32,[1]FullMultExpressionTableReads2Ge!$A$2:$P$26450,9,FALSE) -> 0 | AA32: =VLOOKUP(A32,[1]FullMultExpressionTableReads2Ge!$A$2:$P$26450,10,FALSE) -> 0 | AB32: =VLOOKUP(A32,[1]FullMultExpressionTableReads2Ge!$A$2:$P$26450,11,FALSE) -> 0 | AC32: =VLOOKUP(A32,[1]FullMultExpressionTableReads2Ge!$A$2:$P$26450,12,FALSE) -> 0 | AD32: =VLOOKUP(A32,[1]FullMultExpressionTableReads2Ge!$A$2:$P$26450,13,FALSE) -> 0 | AE32: =VLOOKUP(A32,[1]FullMultExpressionTableReads2Ge!$A$2:$P$26450,14,FALSE) -> 0 | AF32: =VLOOKUP(A32,[1]FullMultExpressionTableReads2Ge!$A$2:$P$26450,15,FALSE) -> 0 | AG32: =VLOOKUP(A32,[1]FullMultExpressionTableReads2Ge!$A$2:$P$26450,16,FALSE) -> 0 | AH32: 0.2875603954 | AI32: -0.1340368976 | AJ32: 0.9974604955 | AK32: -0.03726316553 | AL32: 0.5069118185 | AM32: -0.5092246538 | AN32: 2331.158191 | AO32: 2303.868606 | AP32: 2397.732328 | AQ32: 2230.254594 | AR32: 2407.942563 | AS32: 2251.993358 | AT32: 2188.374996 | AU32: 2133.715689 | AV32: 2082.554583
A33: AAEL019642 | B33: unspecified product | D33: NA | E33: NA | F33: NA | G33: NA | H33: NA | I33: NA | J33: 0 | K33: 0 | L33: 0 | M33: 0 | N33: 0 | O33: 0 | P33: 0 | Q33: 0 | R33: 0 | S33: NA | T33: NA | U33: NA | V33: NA | W33: NA | X33: NA | Y33: =VLOOKUP(A33,[1]FullMultExpressionTableReads2Ge!$A$2:$P$26450,8,FALSE) -> 0 | Z33: =VLOOKUP(A33,[1]FullMultExpressionTableReads2Ge!$A$2:$P$26450,9,FALSE) -> 0 | AA33: =VLOOKUP(A33,[1]FullMultExpressionTableReads2Ge!$A$2:$P$26450,10,FALSE) -> 0 | AB33: =VLOOKUP(A33,[1]FullMultExpressionTableReads2Ge!$A$2:$P$26450,11,FALSE) -> 0 | AC33: =VLOOKUP(A33,[1]FullMultExpressionTableReads2Ge!$A$2:$P$26450,12,FALSE) -> 0 | AD33: =VLOOKUP(A33,[1]FullMultExpressionTableReads2Ge!$A$2:$P$26450,13,FALSE) -> 0 | AE33: =VLOOKUP(A33,[1]FullMultExpressionTableReads2Ge!$A$2:$P$26450,14,FALSE) -> 0 | AF33: =VLOOKUP(A33,[1]FullMultExpressionTableReads2Ge!$A$2:$P$26450,15,FALSE) -> 0 | AG33: =VLOOKUP(A33,[1]FullMultExpressionTableReads2Ge!$A$2:$P$26450,16,FALSE) -> 0 | AH33: 0.2875603954 | AI33: -0.1340368976 | AJ33: 0.9974604955 | AK33: -0.03726316553 | AL33: 0.5069118185 | AM33: -0.5092246538 | AN33: 2331.158191 | AO33: 2303.868606 | AP33: 2397.732328 | AQ33: 2230.254594 | AR33: 2407.942563 | AS33: 2251.993358 | AT33: 2188.374996 | AU33: 2133.715689 | AV33: 2082.554583
A34: AAEL009534 | B34: dimethyladenosine transferase | C34: Q2LZ79.2 RecName: Full=Dimethyladenosine transferase 1, mitochondrial; AltName: Full=Mitochondrial 12S rRNA dimethylase 1; AltName: Full=Mitochondrial transcription factor B1; AltName: Full=S-adenosylmethionine-6-N', N'-adenosyl(rRNA) dimethyltransferase 1; Flags: Precursor [Drosophila pseudoobscura pseudoobscura] | D34: 0.9784124372 | E34: 1.758199165 | F34: NA | G34: NA | H34: NA | I34: 1.84887367 | J34: 0 | K34: 0 | L34: 0 | M34: 0 | N34: 0 | O34: 0 | P34: 0.7786614854 | Q34: 1.053869957 | R34: 0 | S34: NA | T34: 1.720235332 | U34: NA | V34: NA | W34: NA | X34: 1.816476281 | Y34: =VLOOKUP(A34,[1]FullMultExpressionTableReads2Ge!$A$2:$P$26450,8,FALSE) -> 0 | Z34: =VLOOKUP(A34,[1]FullMultExpressionTableReads2Ge!$A$2:$P$26450,9,FALSE) -> 0 | AA34: =VLOOKUP(A34,[1]FullMultExpressionTableReads2Ge!$A$2:$P$26450,10,FALSE) -> 0 | AB34: =VLOOKUP(A34,[1]FullMultExpressionTableReads2Ge!$A$2:$P$26450,11,FALSE) -> 0 | AC34: =VLOOKUP(A34,[1]FullMultExpressionTableReads2Ge!$A$2:$P$26450,12,FALSE) -> 0 | AD34: =VLOOKUP(A34,[1]FullMultExpressionTableReads2Ge!$A$2:$P$26450,13,FALSE) -> 0 | AE34: =VLOOKUP(A34,[1]FullMultExpressionTableReads2Ge!$A$2:$P$26450,14,FALSE) -> 0.7873056698 | AF34: =VLOOKUP(A34,[1]FullMultExpressionTableReads2Ge!$A$2:$P$26450,15,FALSE) -> 1.04328831 | AG34: =VLOOKUP(A34,[1]FullMultExpressionTableReads2Ge!$A$2:$P$26450,16,FALSE) -> 0 | AH34: 0.5460334375 | AI34: -0.09262076133 | AJ34: 0.9974604955 | AK34: -0.06072690822 | AL34: 0.8275497438 | AM34: 0.01036190053 | AN34: 2990.71425 | AO34: 2978.119073 | AP34: 3232.746802 | AQ34: 2904.313144 | AR34: 2913.445241 | AS34: 3050.309223 | AT34: 3027.212733 | AU34: 2815.000032 | AV34: 2781.929611
A35: AAEL009526 | B35: unspecified product | C35: P0DKM0.1 RecName: Full=Cytochrome c oxidase assembly factor 3, mitochondrial; AltName: Full=Coiled-coil domain-containing protein 56 homolog [Drosophila melanogaster] | D35: NA | E35: NA | F35: NA | G35: NA | H35: NA | I35: NA | J35: 0 | K35: 0 | L35: 0 | M35: 0 | N35: 0 | O35: 0 | P35: 0 | Q35: 0 | R35: 0 | S35: NA | T35: NA | U35: NA | V35: NA | W35: NA | X35: NA | Y35: =VLOOKUP(A35,[1]FullMultExpressionTableReads2Ge!$A$2:$P$26450,8,FALSE) -> 0 | Z35: =VLOOKUP(A35,[1]FullMultExpressionTableReads2Ge!$A$2:$P$26450,9,FALSE) -> 0 | AA35: =VLOOKUP(A35,[1]FullMultExpressionTableReads2Ge!$A$2:$P$26450,10,FALSE) -> 0 | AB35: =VLOOKUP(A35,[1]FullMultExpressionTableReads2Ge!$A$2:$P$26450,11,FALSE) -> 0 | AC35: =VLOOKUP(A35,[1]FullMultExpressionTableReads2Ge!$A$2:$P$26450,12,FALSE) -> 0 | AD35: =VLOOKUP(A35,[1]FullMultExpressionTableReads2Ge!$A$2:$P$26450,13,FALSE) -> 0 | AE35: =VLOOKUP(A35,[1]FullMultExpressionTableReads2Ge!$A$2:$P$26450,14,FALSE) -> 0 | AF35: =VLOOKUP(A35,[1]FullMultExpressionTableReads2Ge!$A$2:$P$26450,15,FALSE) -> 0 | AG35: =VLOOKUP(A35,[1]FullMultExpressionTableReads2Ge!$A$2:$P$26450,16,FALSE) -> 0 | AH35: 0.544243844 | AI35: -0.09292921488 | AJ35: 0.9974604955 | AK35: -0.06072690822 | AL35: 0.8257602975 | AM35: 0.01036190053 | AN35: 2990.71425 | AO35: 2978.119073 | AP35: 3232.746802 | AQ35: 2904.313144 | AR35: 2913.445241 | AS35: 3050.309223 | AT35: 3026.42583 | AU35: 2813.955118 | AV35: 2781.929611
A36: AAEL001416 | B36: unspecified product | C36: Q7JRE4.1 RecName: Full=Inner nuclear membrane protein Man1; AltName: Full=LEM domain-containing protein Man1 [Drosophila melanogaster] | D36: NA | E36: NA | F36: NA | G36: NA | H36: NA | I36: NA | J36: 0 | K36: 0 | L36: 0 | M36: 0 | N36: 0 | O36: 0 | P36: 0 | Q36: 0 | R36: 0 | S36: NA | T36: NA | U36: NA | V36: NA | W36: NA | X36: NA | Y36: =VLOOKUP(A36,[1]FullMultExpressionTableReads2Ge!$A$2:$P$26450,8,FALSE) -> 0 | Z36: =VLOOKUP(A36,[1]FullMultExpressionTableReads2Ge!$A$2:$P$26450,9,FALSE) -> 0 | AA36: =VLOOKUP(A36,[1]FullMultExpressionTableReads2Ge!$A$2:$P$26450,10,FALSE) -> 0 | AB36: =VLOOKUP(A36,[1]FullMultExpressionTableReads2Ge!$A$2:$P$26450,11,FALSE) -> 0 | AC36: =VLOOKUP(A36,[1]FullMultExpressionTableReads2Ge!$A$2:$P$26450,12,FALSE) -> 0 | AD36: =VLOOKUP(A36,[1]FullMultExpressionTableReads2Ge!$A$2:$P$26450,13,FALSE) -> 0 | AE36: =VLOOKUP(A36,[1]FullMultExpressionTableReads2Ge!$A$2:$P$26450,14,FALSE) -> 0 | AF36: =VLOOKUP(A36,[1]FullMultExpressionTableReads2Ge!$A$2:$P$26450,15,FALSE) -> 0 | AG36: =VLOOKUP(A36,[1]FullMultExpressionTableReads2Ge!$A$2:$P$26450,16,FALSE) -> 0 | AH36: 0.8208032087 | AI36: -0.03029783094 | AJ36: 0.9974604955 | AK36: -0.103750023 | AL36: 0.7239732831 | AM36: 0.2974053301 | AN36: 4379.779283 | AO36: 4542.03549 | AP36: 4600.963291 | AQ36: 4047.28199 | AR36: 4281.218833 | AS36: 4321.116686 | AT36: 4376.749992 | AU36: 4555.827818 | AV36: 4307.838763
A37: AAEL011381 | B37: NADH-ubiquinone oxidoreductase fe-s protein 2 (ndufs2) | C37: Q641Y2.1 RecName: Full=NADH dehydrogenase [ubiquinone] iron-sulfur protein 2, mitochondrial; AltName: Full=Complex I-49kD; Short=CI-49kD; AltName: Full=NADH-ubiquinone oxidoreductase 49 kDa subunit; Flags: Precursor [Rattus norvegicus] | D37: NA | E37: NA | F37: NA | G37: NA | H37: NA | I37: NA | J37: 0 | K37: 0 | L37: 0 | M37: 0 | N37: 0 | O37: 0 | P37: 0 | Q37: 0 | R37: 0 | S37: NA | T37: NA | U37: NA | V37: NA | W37: NA | X37: NA | Y37: =VLOOKUP(A37,[1]FullMultExpressionTableReads2Ge!$A$2:$P$26450,8,FALSE) -> 0 | Z37: =VLOOKUP(A37,[1]FullMultExpressionTableReads2Ge!$A$2:$P$26450,9,FALSE) -> 0 | AA37: =VLOOKUP(A37,[1]FullMultExpressionTableReads2Ge!$A$2:$P$26450,10,FALSE) -> 0 | AB37: =VLOOKUP(A37,[1]FullMultExpressionTableReads2Ge!$A$2:$P$26450,11,FALSE) -> 0 | AC37: =VLOOKUP(A37,[1]FullMultExpressionTableReads2Ge!$A$2:$P$26450,12,FALSE) -> 0 | AD37: =VLOOKUP(A37,[1]FullMultExpressionTableReads2Ge!$A$2:$P$26450,13,FALSE) -> 0 | AE37: =VLOOKUP(A37,[1]FullMultExpressionTableReads2Ge!$A$2:$P$26450,14,FALSE) -> 0 | AF37: =VLOOKUP(A37,[1]FullMultExpressionTableReads2Ge!$A$2:$P$26450,15,FALSE) -> 0 | AG37: =VLOOKUP(A37,[1]FullMultExpressionTableReads2Ge!$A$2:$P$26450,16,FALSE) -> 0 | AH37: 0.5062019756 | AI37: -0.1330909797 | AJ37: 0.9974604955 | AK37: -0.08453688944 | AL37: 0.8472787361 | AM37: NA | AN37: 7768.407519 | AO37: 8000.531094 | AP37: 7382.109227 | AQ37: 6974.063752 | AR37: 7880.981171 | AS37: 7094.800179 | AT37: 7392.946094 | AU37: 7542.193851 | AV37: 6171.108782
A38: AAEL005288 | B38: unspecified product | C38: Q7XLY8.2 RecName: Full=E3 ubiquitin-protein ligase Os04g0590900; AltName: Full=RING-H2 finger protein Os04g0590900; AltName: Full=RING-type E3 ubiquitin transferase Os04g0590900 [Oryza sativa Japonica Group] | D38: NA | E38: NA | F38: NA | G38: NA | H38: NA | I38: NA | J38: 0 | K38: 0 | L38: 0 | M38: 0 | N38: 0 | O38: 0 | P38: 0 | Q38: 0 | R38: 0 | S38: NA | T38: NA | U38: NA | V38: NA | W38: NA | X38: NA | Y38: =VLOOKUP(A38,[1]FullMultExpressionTableReads2Ge!$A$2:$P$26450,8,FALSE) -> 0 | Z38: =VLOOKUP(A38,[1]FullMultExpressionTableReads2Ge!$A$2:$P$26450,9,FALSE) -> 0 | AA38: =VLOOKUP(A38,[1]FullMultExpressionTableReads2Ge!$A$2:$P$26450,10,FALSE) -> 0 | AB38: =VLOOKUP(A38,[1]FullMultExpressionTableReads2Ge!$A$2:$P$26450,11,FALSE) -> 0 | AC38: =VLOOKUP(A38,[1]FullMultExpressionTableReads2Ge!$A$2:$P$26450,12,FALSE) -> 0 | AD38: =VLOOKUP(A38,[1]FullMultExpressionTableReads2Ge!$A$2:$P$26450,13,FALSE) -> 0 | AE38: =VLOOKUP(A38,[1]FullMultExpressionTableReads2Ge!$A$2:$P$26450,14,FALSE) -> 0 | AF38: =VLOOKUP(A38,[1]FullMultExpressionTableReads2Ge!$A$2:$P$26450,15,FALSE) -> 0 | AG38: =VLOOKUP(A38,[1]FullMultExpressionTableReads2Ge!$A$2:$P$26450,16,FALSE) -> 0 | AH38: 0.4663063438 | AI38: -0.1206679703 | AJ38: 0.9974604955 | AK38: -0.0474697887 | AL38: 0.667482885 | AM38: 0.2974053301 | AN38: 3062.484124 | AO38: 2842.407318 | AP38: 2962.233412 | AQ38: 2855.468321 | AR38: 2826.926513 | AS38: 2946.342505 | AT38: 2916.259524 | AU38: 2688.565361 | AV38: 2545.777004
A39: AAEL022573 | B39: unspecified product | C39: Q867Z4.1 RecName: Full=Longitudinals lacking protein, isoforms F/I/K/T [Drosophila melanogaster] | D39: NA | E39: NA | F39: NA | G39: NA | H39: NA | I39: NA | J39: 0 | K39: 0 | L39: 0 | M39: 0 | N39: 0 | O39: 0 | P39: 0 | Q39: 0 | R39: 0 | S39: NA | T39: NA | U39: NA | V39: NA | W39: NA | X39: NA | Y39: =VLOOKUP(A39,[1]FullMultExpressionTableReads2Ge!$A$2:$P$26450,8,FALSE) -> 0 | Z39: =VLOOKUP(A39,[1]FullMultExpressionTableReads2Ge!$A$2:$P$26450,9,FALSE) -> 0 | AA39: =VLOOKUP(A39,[1]FullMultExpressionTableReads2Ge!$A$2:$P$26450,10,FALSE) -> 0 | AB39: =VLOOKUP(A39,[1]FullMultExpressionTableReads2Ge!$A$2:$P$26450,11,FALSE) -> 0 | AC39: =VLOOKUP(A39,[1]FullMultExpressionTableReads2Ge!$A$2:$P$26450,12,FALSE) -> 0 | AD39: =VLOOKUP(A39,[1]FullMultExpressionTableReads2Ge!$A$2:$P$26450,13,FALSE) -> 0 | AE39: =VLOOKUP(A39,[1]FullMultExpressionTableReads2Ge!$A$2:$P$26450,14,FALSE) -> 0 | AF39: =VLOOKUP(A39,[1]FullMultExpressionTableReads2Ge!$A$2:$P$26450,15,FALSE) -> 0 | AG39: =VLOOKUP(A39,[1]FullMultExpressionTableReads2Ge!$A$2:$P$26450,16,FALSE) -> 0 | AH39: 0.9202886667 | AI39: 0.01664595767 | AJ39: 0.9974604955 | AK39: 0.1359656938 | AL39: 0.3948599351 | AM39: -0.5092246538 | AN39: 2104.946816 | AO39: 2014.13478 | AP39: 2007.611776 | AQ39: 2370.927683 | AR39: 2160.051827 | AS39: 2239.925793 | AT39: 2115.193092 | AU39: 2023.999652 | AV39: 2059.19883
A40: AAEL017302 | B40: unspecified product | C40: D2WKD9.2 RecName: Full=Farnesol dehydrogenase; AltName: Full=NADP(+)-dependent farnesol dehydrogenase 1; Short=AaSDR-1 [Aedes aegypti] | D40: NA | E40: NA | F40: NA | G40: NA | H40: NA | I40: NA | J40: 0 | K40: 0 | L40: 0 | M40: 0 | N40: 0 | O40: 0 | P40: 0 | Q40: 0 | R40: 0 | S40: NA | T40: NA | U40: NA | V40: NA | W40: NA | X40: NA | Y40: =VLOOKUP(A40,[1]FullMultExpressionTableReads2Ge!$A$2:$P$26450,8,FALSE) -> 0 | Z40: =VLOOKUP(A40,[1]FullMultExpressionTableReads2Ge!$A$2:$P$26450,9,FALSE) -> 0 | AA40: =VLOOKUP(A40,[1]FullMultExpressionTableReads2Ge!$A$2:$P$26450,10,FALSE) -> 0 | AB40: =VLOOKUP(A40,[1]FullMultExpressionTableReads2Ge!$A$2:$P$26450,11,FALSE) -> 0 | AC40: =VLOOKUP(A40,[1]FullMultExpressionTableReads2Ge!$A$2:$P$26450,12,FALSE) -> 0 | AD40: =VLOOKUP(A40,[1]FullMultExpressionTableReads2Ge!$A$2:$P$26450,13,FALSE) -> 0 | AE40: =VLOOKUP(A40,[1]FullMultExpressionTableReads2Ge!$A$2:$P$26450,14,FALSE) -> 0 | AF40: =VLOOKUP(A40,[1]FullMultExpressionTableReads2Ge!$A$2:$P$26450,15,FALSE) -> 0 | AG40: =VLOOKUP(A40,[1]FullMultExpressionTableReads2Ge!$A$2:$P$26450,16,FALSE) -> 0 | AH40: 0.7233315125 | AI40: -0.0623869063 | AJ40: 0.9974604955 | AK40: -0.08944278044 | AL40: 0.9644054488 | AM40: -0.5092246538 | AN40: 26946.40807 | AO40: 26245.14555 | AP40: 28832.0326 | AQ40: 26036.24417 | AR40: 25034.048 | AS40: 26443.74888 | AT40: 28492.94147 | AU40: 25263.9461 | AV40: 24803.80897
A41: AAEL025660 | B41: unspecified product | C41: Q9U4L6.2 RecName: Full=Mitochondrial import receptor subunit TOM40 homolog 1; Short=dtom40; AltName: Full=Male sterile protein 15; AltName: Full=Translocase of outer membrane 40 kDa subunit homolog 1 [Drosophila melanogaster] | D41: NA | E41: NA | F41: NA | G41: NA | H41: NA | I41: NA | J41: 0 | K41: 0 | L41: 0 | M41: 0 | N41: 0 | O41: 0 | P41: 0 | Q41: 0 | R41: 0 | S41: 0.6243196622 | T41: -0.1489176815 | U41: 0.789400076 | V41: -0.1195799274 | W41: 0.9156673495 | X41: -0.04433317057 | Y41: =VLOOKUP(A41,[1]FullMultExpressionTableReads2Ge!$A$2:$P$26450,8,FALSE) -> 4006.987384 | Z41: =VLOOKUP(A41,[1]FullMultExpressionTableReads2Ge!$A$2:$P$26450,9,FALSE) -> 4294.76633 | AA41: =VLOOKUP(A41,[1]FullMultExpressionTableReads2Ge!$A$2:$P$26450,10,FALSE) -> 3571.799553 | AB41: =VLOOKUP(A41,[1]FullMultExpressionTableReads2Ge!$A$2:$P$26450,11,FALSE) -> 3452.316789 | AC41: =VLOOKUP(A41,[1]FullMultExpressionTableReads2Ge!$A$2:$P$26450,12,FALSE) -> 4039.790467 | AD41: =VLOOKUP(A41,[1]FullMultExpressionTableReads2Ge!$A$2:$P$26450,13,FALSE) -> 3500.848858 | AE41: =VLOOKUP(A41,[1]FullMultExpressionTableReads2Ge!$A$2:$P$26450,14,FALSE) -> 3685.37784 | AF41: =VLOOKUP(A41,[1]FullMultExpressionTableReads2Ge!$A$2:$P$26450,15,FALSE) -> 3997.880806 | AG41: =VLOOKUP(A41,[1]FullMultExpressionTableReads2Ge!$A$2:$P$26450,16,FALSE) -> 3021.164502 | AH41: 0.5873631878 | AI41: -0.1461528422 | AJ41: 0.9974604955 | AK41: -0.1200277514 | AL41: 0.9289588215 | AM41: NA | AN41: 4002.760324 | AO41: 4294.307683 | AP41: 3568.093981 | AQ41: 3441.606191 | AR41: 4037.216578 | AS41: 3496.809142 | AT41: 3683.489161 | AU41: 4004.112889 | AV41: 3031.057636
A42: AAEL019789 | B42: 40S ribosomal protein S3a [Source:UniProtKB/Swiss-Prot%3BAcc:Q1HRR3] | C42: Q1HRR3.1 RecName: Full=40S ribosomal protein S3a [Aedes aegypti] | D42: NA | E42: NA | F42: NA | G42: NA | H42: NA | I42: NA | J42: 0 | K42: 0 | L42: 0 | M42: 0 | N42: 0 | O42: 0 | P42: 0 | Q42: 0 | R42: 0 | S42: NA | T42: NA | U42: NA | V42: NA | W42: NA | X42: NA | Y42: =VLOOKUP(A42,[1]FullMultExpressionTableReads2Ge!$A$2:$P$26450,8,FALSE) -> 0 | Z42: =VLOOKUP(A42,[1]FullMultExpressionTableReads2Ge!$A$2:$P$26450,9,FALSE) -> 0 | AA42: =VLOOKUP(A42,[1]FullMultExpressionTableReads2Ge!$A$2:$P$26450,10,FALSE) -> 0 | AB42: =VLOOKUP(A42,[1]FullMultExpressionTableReads2Ge!$A$2:$P$26450,11,FALSE) -> 0 | AC42: =VLOOKUP(A42,[1]FullMultExpressionTableReads2Ge!$A$2:$P$26450,12,FALSE) -> 0 | AD42: =VLOOKUP(A42,[1]FullMultExpressionTableReads2Ge!$A$2:$P$26450,13,FALSE) -> 0 | AE42: =VLOOKUP(A42,[1]FullMultExpressionTableReads2Ge!$A$2:$P$26450,14,FALSE) -> 0 | AF42: =VLOOKUP(A42,[1]FullMultExpressionTableReads2Ge!$A$2:$P$26450,15,FALSE) -> 0 | AG42: =VLOOKUP(A42,[1]FullMultExpressionTableReads2Ge!$A$2:$P$26450,16,FALSE) -> 0 | AH42: 0.5412320338 | AI42: -0.1265977006 | AJ42: 0.9974604955 | AK42: -0.09646208905 | AL42: 0.9025517894 | AM42: -0.5092246538 | AN42: 101984.9912 | AO42: 110987.443 | AP42: 96533.03885 | AQ42: 93319.01022 | AR42: 107204.4804 | AS42: 90464.03986 | AT42: 97421.63898 | AU42: 102647.1894 | AV42: 83450.10307
A43: AAEL020753 | B43: unspecified product | C43: Q95P51.1 RecName: Full=Ornithine decarboxylase antizyme; Short=ODC-Az [Aedes aegypti] | D43: NA | E43: NA | F43: NA | G43: NA | H43: NA | I43: NA | J43: 0 | K43: 0 | L43: 0 | M43: 0 | N43: 0 | O43: 0 | P43: 0 | Q43: 0 | R43: 0 | S43: NA | T43: NA | U43: NA | V43: NA | W43: NA | X43: NA | Y43: =VLOOKUP(A43,[1]FullMultExpressionTableReads2Ge!$A$2:$P$26450,8,FALSE) -> 0 | Z43: =VLOOKUP(A43,[1]FullMultExpressionTableReads2Ge!$A$2:$P$26450,9,FALSE) -> 0 | AA43: =VLOOKUP(A43,[1]FullMultExpressionTableReads2Ge!$A$2:$P$26450,10,FALSE) -> 0 | AB43: =VLOOKUP(A43,[1]FullMultExpressionTableReads2Ge!$A$2:$P$26450,11,FALSE) -> 0 | AC43: =VLOOKUP(A43,[1]FullMultExpressionTableReads2Ge!$A$2:$P$26450,12,FALSE) -> 0 | AD43: =VLOOKUP(A43,[1]FullMultExpressionTableReads2Ge!$A$2:$P$26450,13,FALSE) -> 0 | AE43: =VLOOKUP(A43,[1]FullMultExpressionTableReads2Ge!$A$2:$P$26450,14,FALSE) -> 0 | AF43: =VLOOKUP(A43,[1]FullMultExpressionTableReads2Ge!$A$2:$P$26450,15,FALSE) -> 0 | AG43: =VLOOKUP(A43,[1]FullMultExpressionTableReads2Ge!$A$2:$P$26450,16,FALSE) -> 0 | AH43: 0.6590365358 | AI43: -0.0980885215 | AJ43: 0.9974604955 | AK43: -0.1417710896 | AL43: 0.9470111117 | AM43: -0.5092246538 | AN43: 27347.95598 | AO43: 29279.27265 | AP43: 26449.94981 | AQ43: 22878.91484 | AR43: 28738.79935 | AS43: 24075.72124 | AT43: 27693.44884 | AU43: 27530.36594 | AV43: 22390.38123
A44: AAEL007158 | B44: nnp-1 protein (novel nuclear protein 1) (nop52) | D44: NA | E44: NA | F44: NA | G44: NA | H44: NA | I44: NA | J44: 0 | K44: 0 | L44: 0 | M44: 0 | N44: 0 | O44: 0 | P44: 0 | Q44: 0 | R44: 0 | S44: NA | T44: NA | U44: NA | V44: NA | W44: NA | X44: NA | Y44: =VLOOKUP(A44,[1]FullMultExpressionTableReads2Ge!$A$2:$P$26450,8,FALSE) -> 0 | Z44: =VLOOKUP(A44,[1]FullMultExpressionTableReads2Ge!$A$2:$P$26450,9,FALSE) -> 0 | AA44: =VLOOKUP(A44,[1]FullMultExpressionTableReads2Ge!$A$2:$P$26450,10,FALSE) -> 0 | AB44: =VLOOKUP(A44,[1]FullMultExpressionTableReads2Ge!$A$2:$P$26450,11,FALSE) -> 0 | AC44: =VLOOKUP(A44,[1]FullMultExpressionTableReads2Ge!$A$2:$P$26450,12,FALSE) -> 0 | AD44: =VLOOKUP(A44,[1]FullMultExpressionTableReads2Ge!$A$2:$P$26450,13,FALSE) -> 0 | AE44: =VLOOKUP(A44,[1]FullMultExpressionTableReads2Ge!$A$2:$P$26450,14,FALSE) -> 0 | AF44: =VLOOKUP(A44,[1]FullMultExpressionTableReads2Ge!$A$2:$P$26450,15,FALSE) -> 0 | AG44: =VLOOKUP(A44,[1]FullMultExpressionTableReads2Ge!$A$2:$P$26450,16,FALSE) -> 0 | AH44: 0.7001576648 | AI44: 0.07167823277 | AJ44: 0.9974604955 | AK44: 0.07599922424 | AL44: 0.9533836716 | AM44: 0.2974053301 | AN44: 2036.810859 | AO44: 2254.323045 | AP44: 2098.155515 | AQ44: 2307.429413 | AR44: 2362.252898 | AS44: 2099.756379 | AT44: 2178.145267 | AU44: 2395.989263 | AV44: 2139.646422
A45: AAEL026297 | B45: unspecified product | C45: P08953.1 RecName: Full=Protein toll; Flags: Precursor [Drosophila melanogaster] | D45: NA | E45: NA | F45: NA | G45: NA | H45: NA | I45: NA | J45: 0 | K45: 0 | L45: 0 | M45: 0 | N45: 0 | O45: 0 | P45: 0 | Q45: 0 | R45: 0 | S45: NA | T45: NA | U45: NA | V45: NA | W45: NA | X45: NA | Y45: =VLOOKUP(A45,[1]FullMultExpressionTableReads2Ge!$A$2:$P$26450,8,FALSE) -> 0 | Z45: =VLOOKUP(A45,[1]FullMultExpressionTableReads2Ge!$A$2:$P$26450,9,FALSE) -> 0 | AA45: =VLOOKUP(A45,[1]FullMultExpressionTableReads2Ge!$A$2:$P$26450,10,FALSE) -> 0 | AB45: =VLOOKUP(A45,[1]FullMultExpressionTableReads2Ge!$A$2:$P$26450,11,FALSE) -> 0 | AC45: =VLOOKUP(A45,[1]FullMultExpressionTableReads2Ge!$A$2:$P$26450,12,FALSE) -> 0 | AD45: =VLOOKUP(A45,[1]FullMultExpressionTableReads2Ge!$A$2:$P$26450,13,FALSE) -> 0 | AE45: =VLOOKUP(A45,[1]FullMultExpressionTableReads2Ge!$A$2:$P$26450,14,FALSE) -> 0 | AF45: =VLOOKUP(A45,[1]FullMultExpressionTableReads2Ge!$A$2:$P$26450,15,FALSE) -> 0 | AG45: =VLOOKUP(A45,[1]FullMultExpressionTableReads2Ge!$A$2:$P$26450,16,FALSE) -> 0 | AH45: 0.9446610689 | AI45: -0.009424973278 | AJ45: 0.9489827121 | AK45: -0.1159623992 | AL45: 0.4744331063 | AM45: NA | AN45: 6814.504129 | AO45: 6988.078316 | AP45: 6748.303059 | AQ45: 6156.401424 | AR45: 6539.454833 | AS45: 6368.889707 | AT45: 6782.309993 | AU45: 6618.489311 | AV45: 7026.188826
A46: AAEL004335 | B46: secreted ferritin G subunit precursor%2C putative | D46: NA | E46: NA | F46: NA | G46: NA | H46: NA | I46: NA | J46: 0 | K46: 0 | L46: 0 | M46: 0 | N46: 0 | O46: 0 | P46: 0 | Q46: 0 | R46: 0 | S46: NA | T46: NA | U46: NA | V46: NA | W46: NA | X46: NA | Y46: =VLOOKUP(A46,[1]FullMultExpressionTableReads2Ge!$A$2:$P$26450,8,FALSE) -> 0 | Z46: =VLOOKUP(A46,[1]FullMultExpressionTableReads2Ge!$A$2:$P$26450,9,FALSE) -> 0 | AA46: =VLOOKUP(A46,[1]FullMultExpressionTableReads2Ge!$A$2:$P$26450,10,FALSE) -> 0 | AB46: =VLOOKUP(A46,[1]FullMultExpressionTableReads2Ge!$A$2:$P$26450,11,FALSE) -> 0 | AC46: =VLOOKUP(A46,[1]FullMultExpressionTableReads2Ge!$A$2:$P$26450,12,FALSE) -> 0 | AD46: =VLOOKUP(A46,[1]FullMultExpressionTableReads2Ge!$A$2:$P$26450,13,FALSE) -> 0 | AE46: =VLOOKUP(A46,[1]FullMultExpressionTableReads2Ge!$A$2:$P$26450,14,FALSE) -> 0 | AF46: =VLOOKUP(A46,[1]FullMultExpressionTableReads2Ge!$A$2:$P$26450,15,FALSE) -> 0 | AG46: =VLOOKUP(A46,[1]FullMultExpressionTableReads2Ge!$A$2:$P$26450,16,FALSE) -> 0 | AH46: 0.4373738878 | AI46: -0.1924508414 | AJ46: 0.9974604955 | AK46: -0.03924243523 | AL46: 0.5484347524 | AM46: 0.2974053301 | AN46: 6519.248317 | AO46: 5745.130971 | AP46: 5876.400394 | AQ46: 6133.932806 | AR46: 5954.238272 | AS46: 5667.114365 | AT46: 6191.346447 | AU46: 4793.02344 | AV46: 4887.839946
A47: AAEL028021 | B47: unspecified product | D47: NA | E47: NA | F47: NA | G47: NA | H47: NA | I47: NA | J47: 0 | K47: 0 | L47: 0 | M47: 0 | N47: 0 | O47: 0 | P47: 0 | Q47: 0 | R47: 0 | S47: NA | T47: NA | U47: NA | V47: NA | W47: NA | X47: NA | Y47: =VLOOKUP(A47,[1]FullMultExpressionTableReads2Ge!$A$2:$P$26450,8,FALSE) -> 0 | Z47: =VLOOKUP(A47,[1]FullMultExpressionTableReads2Ge!$A$2:$P$26450,9,FALSE) -> 0 | AA47: =VLOOKUP(A47,[1]FullMultExpressionTableReads2Ge!$A$2:$P$26450,10,FALSE) -> 0 | AB47: =VLOOKUP(A47,[1]FullMultExpressionTableReads2Ge!$A$2:$P$26450,11,FALSE) -> 0 | AC47: =VLOOKUP(A47,[1]FullMultExpressionTableReads2Ge!$A$2:$P$26450,12,FALSE) -> 0 | AD47: =VLOOKUP(A47,[1]FullMultExpressionTableReads2Ge!$A$2:$P$26450,13,FALSE) -> 0 | AE47: =VLOOKUP(A47,[1]FullMultExpressionTableReads2Ge!$A$2:$P$26450,14,FALSE) -> 0 | AF47: =VLOOKUP(A47,[1]FullMultExpressionTableReads2Ge!$A$2:$P$26450,15,FALSE) -> 0 | AG47: =VLOOKUP(A47,[1]FullMultExpressionTableReads2Ge!$A$2:$P$26450,16,FALSE) -> 0 | AH47: 0.6065478766 | AI47: -0.1404527839 | AJ47: 0.9974604955 | AK47: -0.09986893279 | AL47: 0.9063892854 | AM47: NA | AN47: 15522.27937 | AO47: 17125.53102 | AP47: 13968.32782 | AQ47: 13741.02546 | AR47: 16689.36533 | AS47: 13291.03087 | AT47: 14784.31838 | AU47: 15702.97717 | AV47: 11799.84509
A48: AAEL008073 | B48: unspecified product | C48: Q6AXS5.2 RecName: Full=Plasminogen activator inhibitor 1 RNA-binding protein; AltName: Full=PAI1 RNA-binding protein 1; Short=PAI-RBP1; AltName: Full=RDA288; AltName: Full=SERPINE1 mRNA-binding protein 1 [Rattus norvegicus] | D48: NA | E48: NA | F48: NA | G48: NA | H48: NA | I48: NA | J48: 0 | K48: 0 | L48: 0 | M48: 0 | N48: 0 | O48: 0 | P48: 0 | Q48: 0 | R48: 0 | S48: NA | T48: NA | U48: NA | V48: NA | W48: NA | X48: NA | Y48: =VLOOKUP(A48,[1]FullMultExpressionTableReads2Ge!$A$2:$P$26450,8,FALSE) -> 0 | Z48: =VLOOKUP(A48,[1]FullMultExpressionTableReads2Ge!$A$2:$P$26450,9,FALSE) -> 0 | AA48: =VLOOKUP(A48,[1]FullMultExpressionTableReads2Ge!$A$2:$P$26450,10,FALSE) -> 0 | AB48: =VLOOKUP(A48,[1]FullMultExpressionTableReads2Ge!$A$2:$P$26450,11,FALSE) -> 0 | AC48: =VLOOKUP(A48,[1]FullMultExpressionTableReads2Ge!$A$2:$P$26450,12,FALSE) -> 0 | AD48: =VLOOKUP(A48,[1]FullMultExpressionTableReads2Ge!$A$2:$P$26450,13,FALSE) -> 0 | AE48: =VLOOKUP(A48,[1]FullMultExpressionTableReads2Ge!$A$2:$P$26450,14,FALSE) -> 0 | AF48: =VLOOKUP(A48,[1]FullMultExpressionTableReads2Ge!$A$2:$P$26450,15,FALSE) -> 0 | AG48: =VLOOKUP(A48,[1]FullMultExpressionTableReads2Ge!$A$2:$P$26450,16,FALSE) -> 0 | AH48: 0.9629052016 | AI48: 0.01200239448 | AJ48: 0.850872226 | AK48: 0.1494062225 | AL48: 0.5453782771 | AM48: -0.09368386138 | AN48: 18624.73659 | AO48: 19268.91509 | AP48: 18241.7687 | AQ48: 22279.10042 | AR48: 20718.80494 | AS48: 19595.86966 | AT48: 19435.69724 | AU48: 20630.7946 | AV48: 16537.17019
A49: AAEL027179 | B49: unspecified product | D49: NA | E49: NA | F49: NA | G49: NA | H49: NA | I49: NA | J49: 0 | K49: 0 | L49: 0 | M49: 0 | N49: 0 | O49: 0 | P49: 0 | Q49: 0 | R49: 0 | S49: NA | T49: NA | U49: NA | V49: NA | W49: NA | X49: NA | Y49: =VLOOKUP(A49,[1]FullMultExpressionTableReads2Ge!$A$2:$P$26450,8,FALSE) -> 0 | Z49: =VLOOKUP(A49,[1]FullMultExpressionTableReads2Ge!$A$2:$P$26450,9,FALSE) -> 0 | AA49: =VLOOKUP(A49,[1]FullMultExpressionTableReads2Ge!$A$2:$P$26450,10,FALSE) -> 0 | AB49: =VLOOKUP(A49,[1]FullMultExpressionTableReads2Ge!$A$2:$P$26450,11,FALSE) -> 0 | AC49: =VLOOKUP(A49,[1]FullMultExpressionTableReads2Ge!$A$2:$P$26450,12,FALSE) -> 0 | AD49: =VLOOKUP(A49,[1]FullMultExpressionTableReads2Ge!$A$2:$P$26450,13,FALSE) -> 0 | AE49: =VLOOKUP(A49,[1]FullMultExpressionTableReads2Ge!$A$2:$P$26450,14,FALSE) -> 0 | AF49: =VLOOKUP(A49,[1]FullMultExpressionTableReads2Ge!$A$2:$P$26450,15,FALSE) -> 0 | AG49: =VLOOKUP(A49,[1]FullMultExpressionTableReads2Ge!$A$2:$P$26450,16,FALSE) -> 0 | AH49: 0.79237521 | AI49: -0.09301122521 | AJ49: 0.9974604955 | AK49: -0.1580534521 | AL49: 0.9290486267 | AM49: NA | AN49: 2809.018366 | AO49: 2902.723653 | AP49: 2626.886233 | AQ49: 2605.38283 | AR49: 2683.052674 | AS49: 2226.001679 | AT49: 2910.751208 | AU49: 2877.694911 | AV49: 2024.165202
A50: AAEL001032 | B50: unspecified product | D50: NA | E50: NA | F50: NA | G50: NA | H50: NA | I50: NA | J50: 0 | K50: 0 | L50: 0 | M50: 0 | N50: 0 | O50: 0 | P50: 0 | Q50: 0 | R50: 0 | S50: NA | T50: NA | U50: NA | V50: NA | W50: NA | X50: NA | Y50: =VLOOKUP(A50,[1]FullMultExpressionTableReads2Ge!$A$2:$P$26450,8,FALSE) -> 0 | Z50: =VLOOKUP(A50,[1]FullMultExpressionTableReads2Ge!$A$2:$P$26450,9,FALSE) -> 0 | AA50: =VLOOKUP(A50,[1]FullMultExpressionTableReads2Ge!$A$2:$P$26450,10,FALSE) -> 0 | AB50: =VLOOKUP(A50,[1]FullMultExpressionTableReads2Ge!$A$2:$P$26450,11,FALSE) -> 0 | AC50: =VLOOKUP(A50,[1]FullMultExpressionTableReads2Ge!$A$2:$P$26450,12,FALSE) -> 0 | AD50: =VLOOKUP(A50,[1]FullMultExpressionTableReads2Ge!$A$2:$P$26450,13,FALSE) -> 0 | AE50: =VLOOKUP(A50,[1]FullMultExpressionTableReads2Ge!$A$2:$P$26450,14,FALSE) -> 0 | AF50: =VLOOKUP(A50,[1]FullMultExpressionTableReads2Ge!$A$2:$P$26450,15,FALSE) -> 0 | AG50: =VLOOKUP(A50,[1]FullMultExpressionTableReads2Ge!$A$2:$P$26450,16,FALSE) -> 0 | AH50: 0.8302220947 | AI50: -0.03822740466 | AJ50: 0.9974604955 | AK50: -0.0971451106 | AL50: 0.866026826 | AN50: 6134.961522 | AO50: 6568.018122 | AP50: 5899.874697 | AQ50: 5483.31977 | AR50: 6267.261084 | AS50: 5732.093564 | AT50: 6074.09802 | AU50: 6349.94625 | AV50: 5691.018318
A51: AAEL021795 | B51: unspecified product | D51: NA | E51: NA | F51: NA | G51: NA | H51: NA | I51: NA | J51: 0 | K51: 0 | L51: 0 | M51: 0 | N51: 0 | O51: 0 | P51: 0 | Q51: 0 | R51: 0 | S51: NA | T51: NA | U51: NA | V51: NA | W51: NA | X51: NA | Y51: =VLOOKUP(A51,[1]FullMultExpressionTableReads2Ge!$A$2:$P$26450,8,FALSE) -> 0 | Z51: =VLOOKUP(A51,[1]FullMultExpressionTableReads2Ge!$A$2:$P$26450,9,FALSE) -> 0 | AA51: =VLOOKUP(A51,[1]FullMultExpressionTableReads2Ge!$A$2:$P$26450,10,FALSE) -> 0 | AB51: =VLOOKUP(A51,[1]FullMultExpressionTableReads2Ge!$A$2:$P$26450,11,FALSE) -> 0 | AC51: =VLOOKUP(A51,[1]FullMultExpressionTableReads2Ge!$A$2:$P$26450,12,FALSE) -> 0 | AD51: =VLOOKUP(A51,[1]FullMultExpressionTableReads2Ge!$A$2:$P$26450,13,FALSE) -> 0 | AE51: =VLOOKUP(A51,[1]FullMultExpressionTableReads2Ge!$A$2:$P$26450,14,FALSE) -> 0 | AF51: =VLOOKUP(A51,[1]FullMultExpressionTableReads2Ge!$A$2:$P$26450,15,FALSE) -> 0 | AG51: =VLOOKUP(A51,[1]FullMultExpressionTableReads2Ge!$A$2:$P$26450,16,FALSE) -> 0 | AH51: 0.4136985458 | AI51: -0.1528408459 | AJ51: 0.9974604955 | AK51: -0.02978362896 | AL51: 0.4840023576 | AM51: -0.5092246538 | AN51: 19405.12041 | AO51: 18677.59958 | AP51: 22544.273 | AQ51: 18754.45803 | AR51: 19031.2037 | AS51: 21930.47942 | AT51: 18210.49053 | AU51: 17210.78899 | AV51: 19133.55133
A52: AAEL015305 | B52: sulfotransferase (sult) | C52: A0A173GP47.1 RecName: Full=Luciferin sulfotransferase [Photinus pyralis] | D52: NA | E52: NA | F52: NA | G52: NA | H52: NA | I52: NA | J52: 0 | K52: 0 | L52: 0 | M52: 0 | N52: 0 | O52: 0 | P52: 0 | Q52: 0 | R52: 0 | S52: NA | T52: NA | U52: NA | V52: NA | W52: NA | X52: NA | Y52: =VLOOKUP(A52,[1]FullMultExpressionTableReads2Ge!$A$2:$P$26450,8,FALSE) -> 0 | Z52: =VLOOKUP(A52,[1]FullMultExpressionTableReads2Ge!$A$2:$P$26450,9,FALSE) -> 0 | AA52: =VLOOKUP(A52,[1]FullMultExpressionTableReads2Ge!$A$2:$P$26450,10,FALSE) -> 0 | AB52: =VLOOKUP(A52,[1]FullMultExpressionTableReads2Ge!$A$2:$P$26450,11,FALSE) -> 0 | AC52: =VLOOKUP(A52,[1]FullMultExpressionTableReads2Ge!$A$2:$P$26450,12,FALSE) -> 0 | AD52: =VLOOKUP(A52,[1]FullMultExpressionTableReads2Ge!$A$2:$P$26450,13,FALSE) -> 0 | AE52: =VLOOKUP(A52,[1]FullMultExpressionTableReads2Ge!$A$2:$P$26450,14,FALSE) -> 0 | AF52: =VLOOKUP(A52,[1]FullMultExpressionTableReads2Ge!$A$2:$P$26450,15,FALSE) -> 0 | AG52: =VLOOKUP(A52,[1]FullMultExpressionTableReads2Ge!$A$2:$P$26450,16,FALSE) -> 0 | AH52: 0.8844094023 | AI52: -0.02380069823 | AJ52: 0.8124543792 | AK52: 0.1631679546 | AL52: 0.1639843905 | AM52: 2.032880399 | AN52: 3170.593175 | AO52: 3049.206183 | AP52: 3252.867633 | AQ52: 3775.704777 | AR52: 3350.899481 | AS52: 3538.581484 | AT52: 3235.741814 | AU52: 2997.860094 | AV52: 3081.661766
A53: AAEL004809 | B53: unspecified product | D53: NA | E53: NA | F53: NA | G53: NA | H53: NA | I53: NA | J53: 0 | K53: 0 | L53: 0 | M53: 0 | N53: 0 | O53: 0 | P53: 0 | Q53: 0 | R53: 0 | S53: NA | T53: NA | U53: NA | V53: NA | W53: NA | X53: NA | Y53: =VLOOKUP(A53,[1]FullMultExpressionTableReads2Ge!$A$2:$P$26450,8,FALSE) -> 0 | Z53: =VLOOKUP(A53,[1]FullMultExpressionTableReads2Ge!$A$2:$P$26450,9,FALSE) -> 0 | AA53: =VLOOKUP(A53,[1]FullMultExpressionTableReads2Ge!$A$2:$P$26450,10,FALSE) -> 0 | AB53: =VLOOKUP(A53,[1]FullMultExpressionTableReads2Ge!$A$2:$P$26450,11,FALSE) -> 0 | AC53: =VLOOKUP(A53,[1]FullMultExpressionTableReads2Ge!$A$2:$P$26450,12,FALSE) -> 0 | AD53: =VLOOKUP(A53,[1]FullMultExpressionTableReads2Ge!$A$2:$P$26450,13,FALSE) -> 0 | AE53: =VLOOKUP(A53,[1]FullMultExpressionTableReads2Ge!$A$2:$P$26450,14,FALSE) -> 0 | AF53: =VLOOKUP(A53,[1]FullMultExpressionTableReads2Ge!$A$2:$P$26450,15,FALSE) -> 0 | AG53: =VLOOKUP(A53,[1]FullMultExpressionTableReads2Ge!$A$2:$P$26450,16,FALSE) -> 0 | AH53: 0.3315442296 | AI53: -0.3069941702 | AJ53: 0.999895509 | AK53: -0.000100687916 | AL53: 0.3369361508 | AM53: 0.2974053301 | AN53: 3875.573205 | AO53: 3913.022276 | AP53: 3392.595624 | AQ53: 3974.014756 | AR53: 3942.920887 | AS53: 3325.078404 | AT53: 3559.945517 | AU53: 3084.588009 | AV53: 2387.476905
A54: AAEL011397 | B54: unspecified product | D54: NA | E54: NA | F54: NA | G54: NA | H54: NA | I54: NA | J54: 0 | K54: 0 | L54: 0 | M54: 0 | N54: 0 | O54: 0 | P54: 0 | Q54: 0 | R54: 0 | S54: NA | T54: NA | U54: NA | V54: NA | W54: NA | X54: NA | Y54: =VLOOKUP(A54,[1]FullMultExpressionTableReads2Ge!$A$2:$P$26450,8,FALSE) -> 0 | Z54: =VLOOKUP(A54,[1]FullMultExpressionTableReads2Ge!$A$2:$P$26450,9,FALSE) -> 0 | AA54: =VLOOKUP(A54,[1]FullMultExpressionTableReads2Ge!$A$2:$P$26450,10,FALSE) -> 0 | AB54: =VLOOKUP(A54,[1]FullMultExpressionTableReads2Ge!$A$2:$P$26450,11,FALSE) -> 0 | AC54: =VLOOKUP(A54,[1]FullMultExpressionTableReads2Ge!$A$2:$P$26450,12,FALSE) -> 0 | AD54: =VLOOKUP(A54,[1]FullMultExpressionTableReads2Ge!$A$2:$P$26450,13,FALSE) -> 0 | AE54: =VLOOKUP(A54,[1]FullMultExpressionTableReads2Ge!$A$2:$P$26450,14,FALSE) -> 0 | AF54: =VLOOKUP(A54,[1]FullMultExpressionTableReads2Ge!$A$2:$P$26450,15,FALSE) -> 0 | AG54: =VLOOKUP(A54,[1]FullMultExpressionTableReads2Ge!$A$2:$P$26450,16,FALSE) -> 0 | AH54: 0.3642030712 | AI54: -0.1782153436 | AJ54: 0.9974604955 | AK54: -0.004432357268 | AL54: 0.400936923 | AM54: NA | AN54: 2255.7544 | AO54: 2374.955716 | AP54: 2183.110133 | AQ54: 2263.469073 | AR54: 2405.998322 | AS54: 2160.094206 | AT54: 2178.145267 | AU54: 2031.314055 | AV54: 1806.17818
A55: AAEL024975 | B55: unspecified product | C55: Q6AX23.1 RecName: Full=Sulfhydryl oxidase 2; AltName: Full=Quiescin Q6-like protein 1; Flags: Precursor [Xenopus laevis] | D55: NA | E55: NA | F55: NA | G55: NA | H55: NA | I55: NA | J55: 0 | K55: 0 | L55: 0 | M55: 0 | N55: 0 | O55: 0 | P55: 0 | Q55: 0 | R55: 0 | S55: NA | T55: NA | U55: NA | V55: NA | W55: NA | X55: NA | Y55: =VLOOKUP(A55,[1]FullMultExpressionTableReads2Ge!$A$2:$P$26450,8,FALSE) -> 0 | Z55: =VLOOKUP(A55,[1]FullMultExpressionTableReads2Ge!$A$2:$P$26450,9,FALSE) -> 0 | AA55: =VLOOKUP(A55,[1]FullMultExpressionTableReads2Ge!$A$2:$P$26450,10,FALSE) -> 0 | AB55: =VLOOKUP(A55,[1]FullMultExpressionTableReads2Ge!$A$2:$P$26450,11,FALSE) -> 0 | AC55: =VLOOKUP(A55,[1]FullMultExpressionTableReads2Ge!$A$2:$P$26450,12,FALSE) -> 0 | AD55: =VLOOKUP(A55,[1]FullMultExpressionTableReads2Ge!$A$2:$P$26450,13,FALSE) -> 0 | AE55: =VLOOKUP(A55,[1]FullMultExpressionTableReads2Ge!$A$2:$P$26450,14,FALSE) -> 0 | AF55: =VLOOKUP(A55,[1]FullMultExpressionTableReads2Ge!$A$2:$P$26450,15,FALSE) -> 0 | AG55: =VLOOKUP(A55,[1]FullMultExpressionTableReads2Ge!$A$2:$P$26450,16,FALSE) -> 0 | AH55: 0.5543343502 | AI55: -0.07909474972 | AJ55: 0.9974604955 | AK55: -0.01921407574 | AL55: 0.6250587457 | AM55: NA | AN55: 3365.007771 | AO55: 3314.167229 | AP55: 3602.746523 | AQ55: 3357.593096 | AR55: 3319.791624 | AS55: 3521.872547 | AT55: 3314.432033 | AU55: 3238.19046 | AV55: 3177.679859
A56: AAEL006520 | B56: unspecified product | D56: NA | E56: NA | F56: NA | G56: NA | H56: NA | I56: NA | J56: 0 | K56: 0 | L56: 0 | M56: 0 | N56: 0 | O56: 0 | P56: 0 | Q56: 0 | R56: 0 | S56: NA | T56: NA | U56: NA | V56: NA | W56: NA | X56: NA | Y56: =VLOOKUP(A56,[1]FullMultExpressionTableReads2Ge!$A$2:$P$26450,8,FALSE) -> 0 | Z56: =VLOOKUP(A56,[1]FullMultExpressionTableReads2Ge!$A$2:$P$26450,9,FALSE) -> 0 | AA56: =VLOOKUP(A56,[1]FullMultExpressionTableReads2Ge!$A$2:$P$26450,10,FALSE) -> 0 | AB56: =VLOOKUP(A56,[1]FullMultExpressionTableReads2Ge!$A$2:$P$26450,11,FALSE) -> 0 | AC56: =VLOOKUP(A56,[1]FullMultExpressionTableReads2Ge!$A$2:$P$26450,12,FALSE) -> 0 | AD56: =VLOOKUP(A56,[1]FullMultExpressionTableReads2Ge!$A$2:$P$26450,13,FALSE) -> 0 | AE56: =VLOOKUP(A56,[1]FullMultExpressionTableReads2Ge!$A$2:$P$26450,14,FALSE) -> 0 | AF56: =VLOOKUP(A56,[1]FullMultExpressionTableReads2Ge!$A$2:$P$26450,15,FALSE) -> 0 | AG56: =VLOOKUP(A56,[1]FullMultExpressionTableReads2Ge!$A$2:$P$26450,16,FALSE) -> 0 | AH56: 0.5714034818 | AI56: -0.132908591 | AJ56: 0.9974604955 | AK56: -0.04158312725 | AL56: 0.7420394811 | AM56: 0.2974053301 | AN56: 7419.551422 | AO56: 7765.728215 | AP56: 7183.136567 | AQ56: 7319.885095 | AR56: 7686.557064 | AS56: 6842.30958 | AT56: 7425.209084 | AU56: 7225.584716 | AV56: 5742.91999
A57: AAEL011813 | B57: Uncharacterized protein (Fragment) [Source:UniProtKB/TrEMBL%3BAcc:Q1HQY8] | C57: Q5M7J9.1 RecName: Full=ER membrane protein complex subunit 2; AltName: Full=Tetratricopeptide repeat protein 35; Short=TPR repeat protein 35 [Xenopus tropicalis] | D57: NA | E57: NA | F57: NA | G57: NA | H57: NA | I57: NA | J57: 0 | K57: 0 | L57: 0 | M57: 0 | N57: 0 | O57: 0 | P57: 0 | Q57: 0 | R57: 0 | S57: NA | T57: NA | U57: NA | V57: NA | W57: NA | X57: NA | Y57: =VLOOKUP(A57,[1]FullMultExpressionTableReads2Ge!$A$2:$P$26450,8,FALSE) -> 0 | Z57: =VLOOKUP(A57,[1]FullMultExpressionTableReads2Ge!$A$2:$P$26450,9,FALSE) -> 0 | AA57: =VLOOKUP(A57,[1]FullMultExpressionTableReads2Ge!$A$2:$P$26450,10,FALSE) -> 0 | AB57: =VLOOKUP(A57,[1]FullMultExpressionTableReads2Ge!$A$2:$P$26450,11,FALSE) -> 0 | AC57: =VLOOKUP(A57,[1]FullMultExpressionTableReads2Ge!$A$2:$P$26450,12,FALSE) -> 0 | AD57: =VLOOKUP(A57,[1]FullMultExpressionTableReads2Ge!$A$2:$P$26450,13,FALSE) -> 0 | AE57: =VLOOKUP(A57,[1]FullMultExpressionTableReads2Ge!$A$2:$P$26450,14,FALSE) -> 0 | AF57: =VLOOKUP(A57,[1]FullMultExpressionTableReads2Ge!$A$2:$P$26450,15,FALSE) -> 0 | AG57: =VLOOKUP(A57,[1]FullMultExpressionTableReads2Ge!$A$2:$P$26450,16,FALSE) -> 0 | AH57: 0.3403724785 | AI57: -0.1606223316 | AJ57: 0.9974604955 | AK57: 0.004347906626 | AL57: 0.3201780152 | AM57: NA | AN57: 4321.6366 | AO57: 4318.003386 | AP57: 4599.845467 | AQ57: 4579.690555 | AR57: 4198.588587 | AS57: 4571.750737 | AT57: 4298.059773 | AU57: 3786.770645 | AV57: 3753.788416
A58: AAEL017042 | B58: unspecified product | D58: NA | E58: NA | F58: NA | G58: NA | H58: NA | I58: NA | J58: 0 | K58: 0 | L58: 0 | M58: 0 | N58: 0 | O58: 0 | P58: 0 | Q58: 0 | R58: 0 | S58: NA | T58: NA | U58: NA | V58: NA | W58: NA | X58: NA | Y58: =VLOOKUP(A58,[1]FullMultExpressionTableReads2Ge!$A$2:$P$26450,8,FALSE) -> 0 | Z58: =VLOOKUP(A58,[1]FullMultExpressionTableReads2Ge!$A$2:$P$26450,9,FALSE) -> 0 | AA58: =VLOOKUP(A58,[1]FullMultExpressionTableReads2Ge!$A$2:$P$26450,10,FALSE) -> 0 | AB58: =VLOOKUP(A58,[1]FullMultExpressionTableReads2Ge!$A$2:$P$26450,11,FALSE) -> 0 | AC58: =VLOOKUP(A58,[1]FullMultExpressionTableReads2Ge!$A$2:$P$26450,12,FALSE) -> 0 | AD58: =VLOOKUP(A58,[1]FullMultExpressionTableReads2Ge!$A$2:$P$26450,13,FALSE) -> 0 | AE58: =VLOOKUP(A58,[1]FullMultExpressionTableReads2Ge!$A$2:$P$26450,14,FALSE) -> 0 | AF58: =VLOOKUP(A58,[1]FullMultExpressionTableReads2Ge!$A$2:$P$26450,15,FALSE) -> 0 | AG58: =VLOOKUP(A58,[1]FullMultExpressionTableReads2Ge!$A$2:$P$26450,16,FALSE) -> 0 | AH58: 0.544243844 | AI58: -0.1343473163 | AJ58: 0.9974604955 | AK58: -0.02405810357 | AL58: 0.6532674488 | AM58: -0.5092246538 | AN58: 3919.180217 | AO58: 3808.545766 | AP58: 3838.607372 | AQ58: 3913.447176 | AR58: 3705.723476 | AS58: 3818.920311 | AT58: 3956.544221 | AU58: 3504.643693 | AV58: 3069.98389
A59: AAEL019485 | B59: unspecified product | C59: Q9VXF1.4 RecName: Full=Serine/threonine-protein phosphatase 2B catalytic subunit 3; AltName: Full=Calmodulin-dependent calcineurin A3 subunit [Drosophila melanogaster] | D59: NA | E59: NA | F59: NA | G59: NA | H59: NA | I59: NA | J59: 0 | K59: 0 | L59: 0 | M59: 0 | N59: 0 | O59: 0 | P59: 0 | Q59: 0 | R59: 0 | S59: NA | T59: NA | U59: NA | V59: NA | W59: NA | X59: NA | Y59: =VLOOKUP(A59,[1]FullMultExpressionTableReads2Ge!$A$2:$P$26450,8,FALSE) -> 0 | Z59: =VLOOKUP(A59,[1]FullMultExpressionTableReads2Ge!$A$2:$P$26450,9,FALSE) -> 0 | AA59: =VLOOKUP(A59,[1]FullMultExpressionTableReads2Ge!$A$2:$P$26450,10,FALSE) -> 0 | AB59: =VLOOKUP(A59,[1]FullMultExpressionTableReads2Ge!$A$2:$P$26450,11,FALSE) -> 0 | AC59: =VLOOKUP(A59,[1]FullMultExpressionTableReads2Ge!$A$2:$P$26450,12,FALSE) -> 0 | AD59: =VLOOKUP(A59,[1]FullMultExpressionTableReads2Ge!$A$2:$P$26450,13,FALSE) -> 0 | AE59: =VLOOKUP(A59,[1]FullMultExpressionTableReads2Ge!$A$2:$P$26450,14,FALSE) -> 0 | AF59: =VLOOKUP(A59,[1]FullMultExpressionTableReads2Ge!$A$2:$P$26450,15,FALSE) -> 0 | AG59: =VLOOKUP(A59,[1]FullMultExpressionTableReads2Ge!$A$2:$P$26450,16,FALSE) -> 0 | AH59: 0.5529859366 | AI59: 0.1286519348 | AJ59: 0.9974604955 | AK59: 0.00741479614 | AL59: 0.6847652125 | AM59: -0.5092246538 | AN59: 2599.15962 | AO59: 2687.308169 | AP59: 2364.19761 | AQ59: 2548.722836 | AR59: 2724.853857 | AS59: 2458.998518 | AT59: 2555.85832 | AU59: 2697.969593 | AV59: 3120.58802
A60: AAEL001085 | B60: unspecified product | C60: Q63ZK1.1 RecName: Full=Mitochondrial intermembrane space import and assembly protein 40-B; AltName: Full=Coiled-coil-helix-coiled-coil-helix domain-containing protein 4-B [Xenopus laevis] | D60: NA | E60: NA | F60: NA | G60: NA | H60: NA | I60: NA | J60: 0 | K60: 0 | L60: 0 | M60: 0 | N60: 0 | O60: 0 | P60: 0 | Q60: 0 | R60: 0 | S60: NA | T60: NA | U60: NA | V60: NA | W60: NA | X60: NA | Y60: =VLOOKUP(A60,[1]FullMultExpressionTableReads2Ge!$A$2:$P$26450,8,FALSE) -> 0 | Z60: =VLOOKUP(A60,[1]FullMultExpressionTableReads2Ge!$A$2:$P$26450,9,FALSE) -> 0 | AA60: =VLOOKUP(A60,[1]FullMultExpressionTableReads2Ge!$A$2:$P$26450,10,FALSE) -> 0 | AB60: =VLOOKUP(A60,[1]FullMultExpressionTableReads2Ge!$A$2:$P$26450,11,FALSE) -> 0 | AC60: =VLOOKUP(A60,[1]FullMultExpressionTableReads2Ge!$A$2:$P$26450,12,FALSE) -> 0 | AD60: =VLOOKUP(A60,[1]FullMultExpressionTableReads2Ge!$A$2:$P$26450,13,FALSE) -> 0 | AE60: =VLOOKUP(A60,[1]FullMultExpressionTableReads2Ge!$A$2:$P$26450,14,FALSE) -> 0 | AF60: =VLOOKUP(A60,[1]FullMultExpressionTableReads2Ge!$A$2:$P$26450,15,FALSE) -> 0 | AG60: =VLOOKUP(A60,[1]FullMultExpressionTableReads2Ge!$A$2:$P$26450,16,FALSE) -> 0 | AH60: 0.2364664272 | AI60: -0.1948985212 | AJ60: 0.9974604955 | AK60: 0.02012821827 | AL60: 0.06591035279 | AN60: 2565.545882 | AO60: 2526.823633 | AP60: 2897.399624 | AQ60: 2580.960419 | AR60: 2689.857518 | AS60: 2873.008839 | AT60: 2303.262716 | AU60: 2320.755409 | AV60: 2357.633444
A61: AAEL001089 | B61: unspecified product | D61: NA | E61: NA | F61: NA | G61: NA | H61: NA | I61: NA | J61: 0 | K61: 0 | L61: 0 | M61: 0 | N61: 0 | O61: 0 | P61: 0 | Q61: 0 | R61: 0 | S61: NA | T61: NA | U61: NA | V61: NA | W61: NA | X61: NA | Y61: =VLOOKUP(A61,[1]FullMultExpressionTableReads2Ge!$A$2:$P$26450,8,FALSE) -> 0 | Z61: =VLOOKUP(A61,[1]FullMultExpressionTableReads2Ge!$A$2:$P$26450,9,FALSE) -> 0 | AA61: =VLOOKUP(A61,[1]FullMultExpressionTableReads2Ge!$A$2:$P$26450,10,FALSE) -> 0 | AB61: =VLOOKUP(A61,[1]FullMultExpressionTableReads2Ge!$A$2:$P$26450,11,FALSE) -> 0 | AC61: =VLOOKUP(A61,[1]FullMultExpressionTableReads2Ge!$A$2:$P$26450,12,FALSE) -> 0 | AD61: =VLOOKUP(A61,[1]FullMultExpressionTableReads2Ge!$A$2:$P$26450,13,FALSE) -> 0 | AE61: =VLOOKUP(A61,[1]FullMultExpressionTableReads2Ge!$A$2:$P$26450,14,FALSE) -> 0 | AF61: =VLOOKUP(A61,[1]FullMultExpressionTableReads2Ge!$A$2:$P$26450,15,FALSE) -> 0 | AG61: =VLOOKUP(A61,[1]FullMultExpressionTableReads2Ge!$A$2:$P$26450,16,FALSE) -> 0 | AH61: 0.2364664272 | AI61: -0.1948985212 | AJ61: 0.9974604955 | AK61: 0.02012821827 | AL61: 0.06591035279 | AN61: 2565.545882 | AO61: 2526.823633 | AP61: 2897.399624 | AQ61: 2580.960419 | AR61: 2689.857518 | AS61: 2873.008839 | AT61: 2303.262716 | AU61: 2320.755409 | AV61: 2357.633444
A62: AAEL001557 | B62: mucolipin | D62: NA | E62: NA | F62: NA | G62: NA | H62: NA | I62: NA | J62: 0 | K62: 0 | L62: 0 | M62: 0 | N62: 0 | O62: 0 | P62: 0 | Q62: 0 | R62: 0 | S62: NA | T62: NA | U62: NA | V62: NA | W62: NA | X62: NA | Y62: =VLOOKUP(A62,[1]FullMultExpressionTableReads2Ge!$A$2:$P$26450,8,FALSE) -> 0 | Z62: =VLOOKUP(A62,[1]FullMultExpressionTableReads2Ge!$A$2:$P$26450,9,FALSE) -> 0 | AA62: =VLOOKUP(A62,[1]FullMultExpressionTableReads2Ge!$A$2:$P$26450,10,FALSE) -> 0 | AB62: =VLOOKUP(A62,[1]FullMultExpressionTableReads2Ge!$A$2:$P$26450,11,FALSE) -> 0 | AC62: =VLOOKUP(A62,[1]FullMultExpressionTableReads2Ge!$A$2:$P$26450,12,FALSE) -> 0 | AD62: =VLOOKUP(A62,[1]FullMultExpressionTableReads2Ge!$A$2:$P$26450,13,FALSE) -> 0 | AE62: =VLOOKUP(A62,[1]FullMultExpressionTableReads2Ge!$A$2:$P$26450,14,FALSE) -> 0 | AF62: =VLOOKUP(A62,[1]FullMultExpressionTableReads2Ge!$A$2:$P$26450,15,FALSE) -> 0 | AG62: =VLOOKUP(A62,[1]FullMultExpressionTableReads2Ge!$A$2:$P$26450,16,FALSE) -> 0 | AH62: 0.8646337408 | AI62: -0.03030999845 | AJ62: 0.9974604955 | AK62: -0.05931019751 | AL62: 0.9547557553 | AM62: 0.2974053301 | AN62: 2109.489213 | AO62: 2111.071748 | AP62: 2255.768689 | AQ62: 2005.568411 | AR62: 2131.860331 | AS62: 2109.967396 | AT62: 2201.752333 | AU62: 2090.874189 | AV62: 2043.628329
A63: AAEL024802 | B63: unspecified product | C63: P29844.2 RecName: Full=Endoplasmic reticulum chaperone BiP; AltName: Full=78 kDa glucose-regulated protein homolog; Short=GRP-78 homolog; AltName: Full=Binding-immunoglobulin protein homolog; Short=BiP; AltName: Full=Heat shock 70 kDa protein cognate 3; AltName: Full=Heat shock protein cognate 72; Flags: Precursor [Drosophila melanogaster] | D63: NA | E63: NA | F63: NA | G63: NA | H63: NA | I63: NA | J63: 0 | K63: 0 | L63: 0 | M63: 0 | N63: 0 | O63: 0 | P63: 0 | Q63: 0 | R63: 0 | S63: NA | T63: NA | U63: NA | V63: NA | W63: NA | X63: NA | Y63: =VLOOKUP(A63,[1]FullMultExpressionTableReads2Ge!$A$2:$P$26450,8,FALSE) -> 0 | Z63: =VLOOKUP(A63,[1]FullMultExpressionTableReads2Ge!$A$2:$P$26450,9,FALSE) -> 0 | AA63: =VLOOKUP(A63,[1]FullMultExpressionTableReads2Ge!$A$2:$P$26450,10,FALSE) -> 0 | AB63: =VLOOKUP(A63,[1]FullMultExpressionTableReads2Ge!$A$2:$P$26450,11,FALSE) -> 0 | AC63: =VLOOKUP(A63,[1]FullMultExpressionTableReads2Ge!$A$2:$P$26450,12,FALSE) -> 0 | AD63: =VLOOKUP(A63,[1]FullMultExpressionTableReads2Ge!$A$2:$P$26450,13,FALSE) -> 0 | AE63: =VLOOKUP(A63,[1]FullMultExpressionTableReads2Ge!$A$2:$P$26450,14,FALSE) -> 0 | AF63: =VLOOKUP(A63,[1]FullMultExpressionTableReads2Ge!$A$2:$P$26450,15,FALSE) -> 0 | AG63: =VLOOKUP(A63,[1]FullMultExpressionTableReads2Ge!$A$2:$P$26450,16,FALSE) -> 0 | AH63: 0.9469895342 | AI63: -0.02088668108 | AJ63: 0.9974604955 | AK63: -0.1497620109 | AL63: 0.6708863847 | AM63: NA | AN63: 5542.632941 | AO63: 5298.143841 | AP63: 6373.832043 | AQ63: 4880.574661 | AR63: 5161.960036 | AS63: 5558.506277 | AT63: 5153.422455 | AU63: 5415.792564 | AV63: 6411.154015
A64: AAEL014158 | B64: unspecified product | C64: O77475.1 RecName: Full=Ceramide phosphoethanolamine synthase; Short=CPE synthase [Drosophila melanogaster] | D64: NA | E64: NA | F64: NA | G64: NA | H64: NA | I64: NA | J64: 0 | K64: 0 | L64: 0 | M64: 0 | N64: 0 | O64: 0 | P64: 0 | Q64: 0 | R64: 0 | S64: NA | T64: NA | U64: NA | V64: NA | W64: NA | X64: NA | Y64: =VLOOKUP(A64,[1]FullMultExpressionTableReads2Ge!$A$2:$P$26450,8,FALSE) -> 0 | Z64: =VLOOKUP(A64,[1]FullMultExpressionTableReads2Ge!$A$2:$P$26450,9,FALSE) -> 0 | AA64: =VLOOKUP(A64,[1]FullMultExpressionTableReads2Ge!$A$2:$P$26450,10,FALSE) -> 0 | AB64: =VLOOKUP(A64,[1]FullMultExpressionTableReads2Ge!$A$2:$P$26450,11,FALSE) -> 0 | AC64: =VLOOKUP(A64,[1]FullMultExpressionTableReads2Ge!$A$2:$P$26450,12,FALSE) -> 0 | AD64: =VLOOKUP(A64,[1]FullMultExpressionTableReads2Ge!$A$2:$P$26450,13,FALSE) -> 0 | AE64: =VLOOKUP(A64,[1]FullMultExpressionTableReads2Ge!$A$2:$P$26450,14,FALSE) -> 0 | AF64: =VLOOKUP(A64,[1]FullMultExpressionTableReads2Ge!$A$2:$P$26450,15,FALSE) -> 0 | AG64: =VLOOKUP(A64,[1]FullMultExpressionTableReads2Ge!$A$2:$P$26450,16,FALSE) -> 0 | AH64: 0.5821936132 | AI64: -0.05704987703 | AJ64: 0.9974604955 | AK64: -0.01038737178 | AL64: 0.6532674488 | AM64: 2.032880399 | AN64: 5747.04081 | AO64: 5648.194003 | AP64: 5773.560593 | AQ64: 5764.665948 | AR64: 5626.633652 | AS64: 5746.945952 | AT64: 5538.217627 | AU64: 5623.730577 | AV64: 5339.384491
A65: AAEL008562 | B65: unspecified product | D65: NA | E65: NA | F65: NA | G65: NA | H65: NA | I65: NA | J65: 0 | K65: 0 | L65: 0 | M65: 0 | N65: 0 | O65: 0 | P65: 0 | Q65: 0 | R65: 0 | S65: NA | T65: NA | U65: NA | V65: NA | W65: NA | X65: NA | Y65: =VLOOKUP(A65,[1]FullMultExpressionTableReads2Ge!$A$2:$P$26450,8,FALSE) -> 0 | Z65: =VLOOKUP(A65,[1]FullMultExpressionTableReads2Ge!$A$2:$P$26450,9,FALSE) -> 0 | AA65: =VLOOKUP(A65,[1]FullMultExpressionTableReads2Ge!$A$2:$P$26450,10,FALSE) -> 0 | AB65: =VLOOKUP(A65,[1]FullMultExpressionTableReads2Ge!$A$2:$P$26450,11,FALSE) -> 0 | AC65: =VLOOKUP(A65,[1]FullMultExpressionTableReads2Ge!$A$2:$P$26450,12,FALSE) -> 0 | AD65: =VLOOKUP(A65,[1]FullMultExpressionTableReads2Ge!$A$2:$P$26450,13,FALSE) -> 0 | AE65: =VLOOKUP(A65,[1]FullMultExpressionTableReads2Ge!$A$2:$P$26450,14,FALSE) -> 0 | AF65: =VLOOKUP(A65,[1]FullMultExpressionTableReads2Ge!$A$2:$P$26450,15,FALSE) -> 0 | AG65: =VLOOKUP(A65,[1]FullMultExpressionTableReads2Ge!$A$2:$P$26450,16,FALSE) -> 0 | AH65: 0.4026693603 | AI65: -0.09669383274 | AJ65: 0.9997159742 | AK65: -0.0006617552223 | AL65: 0.3582362016 | AM65: -0.1094113696 | AN65: 6042.296622 | AO65: 6244.894895 | AP65: 6522.502625 | AQ65: 6288.282445 | AR65: 6104.916955 | AS65: 6506.274298 | AT65: 5967.866224 | AU65: 5895.408383 | AV65: 5723.456863
A66: AAEL004071 | B66: nitrogen fixation protein nifu | C66: Q9H1K1.2 RecName: Full=Iron-sulfur cluster assembly enzyme ISCU, mitochondrial; AltName: Full=NifU-like N-terminal domain-containing protein; AltName: Full=NifU-like protein; Flags: Precursor [Homo sapiens] | D66: NA | E66: NA | F66: NA | G66: NA | H66: NA | I66: NA | J66: 0 | K66: 0 | L66: 0 | M66: 0 | N66: 0 | O66: 0 | P66: 0 | Q66: 0 | R66: 0 | S66: NA | T66: NA | U66: NA | V66: NA | W66: NA | X66: NA | Y66: =VLOOKUP(A66,[1]FullMultExpressionTableReads2Ge!$A$2:$P$26450,8,FALSE) -> 0 | Z66: =VLOOKUP(A66,[1]FullMultExpressionTableReads2Ge!$A$2:$P$26450,9,FALSE) -> 0 | AA66: =VLOOKUP(A66,[1]FullMultExpressionTableReads2Ge!$A$2:$P$26450,10,FALSE) -> 0 | AB66: =VLOOKUP(A66,[1]FullMultExpressionTableReads2Ge!$A$2:$P$26450,11,FALSE) -> 0 | AC66: =VLOOKUP(A66,[1]FullMultExpressionTableReads2Ge!$A$2:$P$26450,12,FALSE) -> 0 | AD66: =VLOOKUP(A66,[1]FullMultExpressionTableReads2Ge!$A$2:$P$26450,13,FALSE) -> 0 | AE66: =VLOOKUP(A66,[1]FullMultExpressionTableReads2Ge!$A$2:$P$26450,14,FALSE) -> 0 | AF66: =VLOOKUP(A66,[1]FullMultExpressionTableReads2Ge!$A$2:$P$26450,15,FALSE) -> 0 | AG66: =VLOOKUP(A66,[1]FullMultExpressionTableReads2Ge!$A$2:$P$26450,16,FALSE) -> 0 | AH66: 0.502531728 | AI66: -0.1179903237 | AJ66: 0.9974604955 | AK66: -0.02178981243 | AL66: 0.6102905198 | AM66: 0.2974053301 | AN66: 2880.78824 | AO66: 2725.005879 | AP66: 3169.030838 | AQ66: 2835.930392 | AR66: 2693.746 | AS66: 3159.845586 | AT66: 2762.813596 | AU66: 2569.445093 | AV66: 2754.681233
A67: AAEL011248 | C67: Q9VAS7.1 RecName: Full=Innexin inx3; Short=Innexin-3 [Drosophila melanogaster] | D67: NA | E67: NA | F67: NA | G67: NA | H67: NA | I67: NA | J67: 0 | K67: 0 | L67: 0 | M67: 0 | N67: 0 | O67: 0 | P67: 0 | Q67: 0 | R67: 0 | S67: NA | T67: NA | U67: NA | V67: NA | W67: NA | X67: NA | Y67: =VLOOKUP(A67,[1]FullMultExpressionTableReads2Ge!$A$2:$P$26450,8,FALSE) -> 0 | Z67: =VLOOKUP(A67,[1]FullMultExpressionTableReads2Ge!$A$2:$P$26450,9,FALSE) -> 0 | AA67: =VLOOKUP(A67,[1]FullMultExpressionTableReads2Ge!$A$2:$P$26450,10,FALSE) -> 0 | AB67: =VLOOKUP(A67,[1]FullMultExpressionTableReads2Ge!$A$2:$P$26450,11,FALSE) -> 0 | AC67: =VLOOKUP(A67,[1]FullMultExpressionTableReads2Ge!$A$2:$P$26450,12,FALSE) -> 0 | AD67: =VLOOKUP(A67,[1]FullMultExpressionTableReads2Ge!$A$2:$P$26450,13,FALSE) -> 0 | AE67: =VLOOKUP(A67,[1]FullMultExpressionTableReads2Ge!$A$2:$P$26450,14,FALSE) -> 0 | AF67: =VLOOKUP(A67,[1]FullMultExpressionTableReads2Ge!$A$2:$P$26450,15,FALSE) -> 0 | AG67: =VLOOKUP(A67,[1]FullMultExpressionTableReads2Ge!$A$2:$P$26450,16,FALSE) -> 0 | AH67: 0.6333537825 | AI67: -0.1068836314 | AJ67: 0.9974604955 | AK67: -0.04520717924 | AL67: 0.7841849918 | AM67: NA | AN67: 28317.30352 | AO67: 26297.92235 | AP67: 32147.49837 | AQ67: 27174.32853 | AR67: 26388.2119 | AS67: 30993.22104 | AT67: 27466.03411 | AU67: 24209.62723 | AV67: 28926.09926
A68: AAEL005477 | B68: amidase | C68: Q6GMR7.1 RecName: Full=Fatty-acid amide hydrolase 2; AltName: Full=Amidase domain-containing protein; AltName: Full=Anandamide amidohydrolase 2; AltName: Full=Oleamide hydrolase 2 [Homo sapiens] | D68: NA | E68: NA | F68: NA | G68: NA | H68: NA | I68: NA | J68: 0 | K68: 0 | L68: 0 | M68: 0 | N68: 0 | O68: 0 | P68: 0 | Q68: 0 | R68: 0 | S68: NA | T68: NA | U68: NA | V68: NA | W68: NA | X68: NA | Y68: =VLOOKUP(A68,[1]FullMultExpressionTableReads2Ge!$A$2:$P$26450,8,FALSE) -> 0 | Z68: =VLOOKUP(A68,[1]FullMultExpressionTableReads2Ge!$A$2:$P$26450,9,FALSE) -> 0 | AA68: =VLOOKUP(A68,[1]FullMultExpressionTableReads2Ge!$A$2:$P$26450,10,FALSE) -> 0 | AB68: =VLOOKUP(A68,[1]FullMultExpressionTableReads2Ge!$A$2:$P$26450,11,FALSE) -> 0 | AC68: =VLOOKUP(A68,[1]FullMultExpressionTableReads2Ge!$A$2:$P$26450,12,FALSE) -> 0 | AD68: =VLOOKUP(A68,[1]FullMultExpressionTableReads2Ge!$A$2:$P$26450,13,FALSE) -> 0 | AE68: =VLOOKUP(A68,[1]FullMultExpressionTableReads2Ge!$A$2:$P$26450,14,FALSE) -> 0 | AF68: =VLOOKUP(A68,[1]FullMultExpressionTableReads2Ge!$A$2:$P$26450,15,FALSE) -> 0 | AG68: =VLOOKUP(A68,[1]FullMultExpressionTableReads2Ge!$A$2:$P$26450,16,FALSE) -> 0 | AH68: 0.9584612627 | AI68: 0.0101024564 | AJ68: 0.9974604955 | AK68: -0.142941249 | AL68: 0.4744331063 | AM68: 0.2974053301 | AN68: 3692.060362 | AO68: 3771.925133 | AP68: 4005.163137 | AQ68: 3225.712076 | AR68: 3493.8012 | AS68: 3721.451514 | AT68: 3872.345687 | AU68: 3631.078364 | AV68: 4050.925487
A69: AAEL014256 | B69: ATP-dependent RNA helicase | C69: Q9H6R0.2 RecName: Full=ATP-dependent RNA helicase DHX33; AltName: Full=DEAH box protein 33 [Homo sapiens] | D69: NA | E69: NA | F69: NA | G69: NA | H69: NA | I69: NA | J69: 0 | K69: 0 | L69: 0 | M69: 0 | N69: 0 | O69: 0 | P69: 0 | Q69: 0 | R69: 0 | S69: NA | T69: NA | U69: NA | V69: NA | W69: NA | X69: NA | Y69: =VLOOKUP(A69,[1]FullMultExpressionTableReads2Ge!$A$2:$P$26450,8,FALSE) -> 0 | Z69: =VLOOKUP(A69,[1]FullMultExpressionTableReads2Ge!$A$2:$P$26450,9,FALSE) -> 0 | AA69: =VLOOKUP(A69,[1]FullMultExpressionTableReads2Ge!$A$2:$P$26450,10,FALSE) -> 0 | AB69: =VLOOKUP(A69,[1]FullMultExpressionTableReads2Ge!$A$2:$P$26450,11,FALSE) -> 0 | AC69: =VLOOKUP(A69,[1]FullMultExpressionTableReads2Ge!$A$2:$P$26450,12,FALSE) -> 0 | AD69: =VLOOKUP(A69,[1]FullMultExpressionTableReads2Ge!$A$2:$P$26450,13,FALSE) -> 0 | AE69: =VLOOKUP(A69,[1]FullMultExpressionTableReads2Ge!$A$2:$P$26450,14,FALSE) -> 0 | AF69: =VLOOKUP(A69,[1]FullMultExpressionTableReads2Ge!$A$2:$P$26450,15,FALSE) -> 0 | AG69: =VLOOKUP(A69,[1]FullMultExpressionTableReads2Ge!$A$2:$P$26450,16,FALSE) -> 0 | AH69: 0.8421561006 | AI69: -0.04684905945 | AJ69: 0.9974604955 | AK69: -0.09180739376 | AL69: 0.9373837635 | AM69: 2.032880399 | AN69: 2193.06932 | AO69: 2370.647407 | AP69: 2023.261311 | AQ69: 1994.82255 | AR69: 2306.842028 | AS69: 1912.244978 | AT69: 2167.915539 | AU69: 2240.296982 | AV69: 1965.775821
A70: AAEL018671 | C70: B0FWD2.1 RecName: Full=NADH-ubiquinone oxidoreductase chain 3; AltName: Full=NADH dehydrogenase subunit 3 [Aedes aegypti] | D70: NA | E70: NA | F70: NA | G70: NA | H70: NA | I70: NA | J70: 0 | K70: 0 | L70: 0 | M70: 0 | N70: 0 | O70: 0 | P70: 0 | Q70: 0 | R70: 0 | S70: 0.2532720037 | T70: -0.4298336024 | U70: 0.8818191308 | V70: 0.07856032703 | W70: 0.06934231535 | X70: -0.5234406422 | Y70: =VLOOKUP(A70,[1]FullMultExpressionTableReads2Ge!$A$2:$P$26450,8,FALSE) -> 3019.336839 | Z70: =VLOOKUP(A70,[1]FullMultExpressionTableReads2Ge!$A$2:$P$26450,9,FALSE) -> 3021.524845 | AA70: =VLOOKUP(A70,[1]FullMultExpressionTableReads2Ge!$A$2:$P$26450,10,FALSE) -> 2430.435034 | AB70: =VLOOKUP(A70,[1]FullMultExpressionTableReads2Ge!$A$2:$P$26450,11,FALSE) -> 2885.91341 | AC70: =VLOOKUP(A70,[1]FullMultExpressionTableReads2Ge!$A$2:$P$26450,12,FALSE) -> 3148.760352 | AD70: =VLOOKUP(A70,[1]FullMultExpressionTableReads2Ge!$A$2:$P$26450,13,FALSE) -> 2965.545183 | AE70: =VLOOKUP(A70,[1]FullMultExpressionTableReads2Ge!$A$2:$P$26450,14,FALSE) -> 2444.584105 | AF70: =VLOOKUP(A70,[1]FullMultExpressionTableReads2Ge!$A$2:$P$26450,15,FALSE) -> 2239.940003 | AG70: =VLOOKUP(A70,[1]FullMultExpressionTableReads2Ge!$A$2:$P$26450,16,FALSE) -> 1598.527108 | AH70: 0.2287273193 | AI70: -0.4272434956 | AJ70: 0.9974604955 | AK70: 0.07809182661 | AL70: 0.06591035279 | AM70: -0.5092246538 | AN70: 3016.151674 | AO70: 3021.20217 | AP70: 2427.913574 | AQ70: 2876.960043 | AR70: 3146.754169 | AS70: 2962.123168 | AT70: 2443.331306 | AU70: 2243.431726 | AV70: 1603.76166
A71: AAEL024343 | B71: unspecified product | C71: Q28F51.1 RecName: Full=TAR DNA-binding protein 43; Short=TDP-43 [Xenopus tropicalis] | D71: NA | E71: NA | F71: NA | G71: NA | H71: NA | I71: NA | J71: 0 | K71: 0 | L71: 0 | M71: 0 | N71: 0 | O71: 0 | P71: 0 | Q71: 0 | R71: 0 | S71: NA | T71: NA | U71: NA | V71: NA | W71: NA | X71: NA | Y71: =VLOOKUP(A71,[1]FullMultExpressionTableReads2Ge!$A$2:$P$26450,8,FALSE) -> 0 | Z71: =VLOOKUP(A71,[1]FullMultExpressionTableReads2Ge!$A$2:$P$26450,9,FALSE) -> 0 | AA71: =VLOOKUP(A71,[1]FullMultExpressionTableReads2Ge!$A$2:$P$26450,10,FALSE) -> 0 | AB71: =VLOOKUP(A71,[1]FullMultExpressionTableReads2Ge!$A$2:$P$26450,11,FALSE) -> 0 | AC71: =VLOOKUP(A71,[1]FullMultExpressionTableReads2Ge!$A$2:$P$26450,12,FALSE) -> 0 | AD71: =VLOOKUP(A71,[1]FullMultExpressionTableReads2Ge!$A$2:$P$26450,13,FALSE) -> 0 | AE71: =VLOOKUP(A71,[1]FullMultExpressionTableReads2Ge!$A$2:$P$26450,14,FALSE) -> 0 | AF71: =VLOOKUP(A71,[1]FullMultExpressionTableReads2Ge!$A$2:$P$26450,15,FALSE) -> 0 | AG71: =VLOOKUP(A71,[1]FullMultExpressionTableReads2Ge!$A$2:$P$26450,16,FALSE) -> 0 | AH71: 0.4017224003 | AI71: 0.08143557794 | AJ71: 0.9974604955 | AK71: -0.01904175773 | AL71: 0.4640952747 | AM71: NA | AN71: 11741.18802 | AO71: 12061.11298 | AP71: 11293.37515 | AQ71: 11574.26913 | AR71: 11976.52498 | AS71: 11270.17781 | AT71: 12167.08169 | AU71: 12546.29005 | AV71: 12433.04549
A72: AAEL015064 | B72: Small ubiquitin-related modifier [Source:UniProtKB/TrEMBL%3BAcc:Q16EQ3] | D72: NA | E72: NA | F72: NA | G72: NA | H72: NA | I72: NA | J72: 0 | K72: 0 | L72: 0 | M72: 0 | N72: 0 | O72: 0 | P72: 0 | Q72: 0 | R72: 0 | S72: NA | T72: NA | U72: NA | V72: NA | W72: NA | X72: NA | Y72: =VLOOKUP(A72,[1]FullMultExpressionTableReads2Ge!$A$2:$P$26450,8,FALSE) -> 0 | Z72: =VLOOKUP(A72,[1]FullMultExpressionTableReads2Ge!$A$2:$P$26450,9,FALSE) -> 0 | AA72: =VLOOKUP(A72,[1]FullMultExpressionTableReads2Ge!$A$2:$P$26450,10,FALSE) -> 0 | AB72: =VLOOKUP(A72,[1]FullMultExpressionTableReads2Ge!$A$2:$P$26450,11,FALSE) -> 0 | AC72: =VLOOKUP(A72,[1]FullMultExpressionTableReads2Ge!$A$2:$P$26450,12,FALSE) -> 0 | AD72: =VLOOKUP(A72,[1]FullMultExpressionTableReads2Ge!$A$2:$P$26450,13,FALSE) -> 0 | AE72: =VLOOKUP(A72,[1]FullMultExpressionTableReads2Ge!$A$2:$P$26450,14,FALSE) -> 0 | AF72: =VLOOKUP(A72,[1]FullMultExpressionTableReads2Ge!$A$2:$P$26450,15,FALSE) -> 0 | AG72: =VLOOKUP(A72,[1]FullMultExpressionTableReads2Ge!$A$2:$P$26450,16,FALSE) -> 0 | AH72: 0.3421886024 | AI72: -0.1835187445 | AJ72: 0.9974604955 | AK72: 0.02739786678 | AL72: 0.2465864495 | AM72: 2.032880399 | AN72: 14295.83215 | AO72: 14458.68732 | AP72: 14174.00742 | AQ72: 14630.97812 | AR72: 15064.95192 | AS72: 14290.78225 | AT72: 13865.21662 | AU72: 12849.31529 | AV72: 11081.00694
A73: AAEL003723 | C73: P48816.1 RecName: Full=Lysozyme; AltName: Full=1,4-beta-N-acetylmuramidase; Flags: Precursor [Bombyx mori] | D73: NA | E73: NA | F73: NA | G73: NA | H73: NA | I73: NA | J73: 0 | K73: 0 | L73: 0 | M73: 0 | N73: 0 | O73: 0 | P73: 0 | Q73: 0 | R73: 0 | S73: NA | T73: NA | U73: NA | V73: NA | W73: NA | X73: NA | Y73: =VLOOKUP(A73,[1]FullMultExpressionTableReads2Ge!$A$2:$P$26450,8,FALSE) -> 0 | Z73: =VLOOKUP(A73,[1]FullMultExpressionTableReads2Ge!$A$2:$P$26450,9,FALSE) -> 0 | AA73: =VLOOKUP(A73,[1]FullMultExpressionTableReads2Ge!$A$2:$P$26450,10,FALSE) -> 0 | AB73: =VLOOKUP(A73,[1]FullMultExpressionTableReads2Ge!$A$2:$P$26450,11,FALSE) -> 0 | AC73: =VLOOKUP(A73,[1]FullMultExpressionTableReads2Ge!$A$2:$P$26450,12,FALSE) -> 0 | AD73: =VLOOKUP(A73,[1]FullMultExpressionTableReads2Ge!$A$2:$P$26450,13,FALSE) -> 0 | AE73: =VLOOKUP(A73,[1]FullMultExpressionTableReads2Ge!$A$2:$P$26450,14,FALSE) -> 0 | AF73: =VLOOKUP(A73,[1]FullMultExpressionTableReads2Ge!$A$2:$P$26450,15,FALSE) -> 0 | AG73: =VLOOKUP(A73,[1]FullMultExpressionTableReads2Ge!$A$2:$P$26450,16,FALSE) -> 0 | AH73: 0.5674554245 | AI73: -0.1671435796 | AJ73: 0.9974604955 | AK73: -0.01982899022 | AL73: 0.6680296534 | AM73: 0.2974053301 | AN73: 10153.166 | AO73: 11571.04275 | AP73: 11102.22726 | AQ73: 11896.64496 | AR73: 10796.37065 | AS73: 9854.559558 | AT73: 10857.67645 | AU73: 10642.45558 | AV73: 7729.456479
A74: AAEL004067 | B74: mitochondrial benzodiazepine receptor%2C putative | C74: P16257.1 RecName: Full=Translocator protein; AltName: Full=Mitochondrial benzodiazepine receptor; AltName: Full=PKBS; AltName: Full=Peripheral-type benzodiazepine receptor; Short=PBR [Rattus norvegicus] | D74: NA | E74: NA | F74: NA | G74: NA | H74: NA | I74: NA | J74: 0 | K74: 0 | L74: 0 | M74: 0 | N74: 0 | O74: 0 | P74: 0 | Q74: 0 | R74: 0 | S74: NA | T74: NA | U74: NA | V74: NA | W74: NA | X74: NA | Y74: =VLOOKUP(A74,[1]FullMultExpressionTableReads2Ge!$A$2:$P$26450,8,FALSE) -> 0 | Z74: =VLOOKUP(A74,[1]FullMultExpressionTableReads2Ge!$A$2:$P$26450,9,FALSE) -> 0 | AA74: =VLOOKUP(A74,[1]FullMultExpressionTableReads2Ge!$A$2:$P$26450,10,FALSE) -> 0 | AB74: =VLOOKUP(A74,[1]FullMultExpressionTableReads2Ge!$A$2:$P$26450,11,FALSE) -> 0 | AC74: =VLOOKUP(A74,[1]FullMultExpressionTableReads2Ge!$A$2:$P$26450,12,FALSE) -> 0 | AD74: =VLOOKUP(A74,[1]FullMultExpressionTableReads2Ge!$A$2:$P$26450,13,FALSE) -> 0 | AE74: =VLOOKUP(A74,[1]FullMultExpressionTableReads2Ge!$A$2:$P$26450,14,FALSE) -> 0 | AF74: =VLOOKUP(A74,[1]FullMultExpressionTableReads2Ge!$A$2:$P$26450,15,FALSE) -> 0 | AG74: =VLOOKUP(A74,[1]FullMultExpressionTableReads2Ge!$A$2:$P$26450,16,FALSE) -> 0 | AH74: 0.1567717333 | AI74: -0.3146781624 | AJ74: 0.9974604955 | AK74: 0.06431270922 | AL74: 0.0563791075 | AM74: 0.2974053301 | AN74: 7255.116647 | AO74: 7144.254543 | AP74: 8920.234953 | AQ74: 7810.287113 | AR74: 7287.987645 | AS74: 9418.270655 | AT74: 6383.350582 | AU74: 5695.829687 | AV74: 6678.447625
A75: AAEL023958 | B75: unspecified product | C75: P91660.4 RecName: Full=Probable multidrug resistance-associated protein lethal(2)03659; AltName: Full=Wunen region A protein [Drosophila melanogaster] | D75: NA | E75: NA | F75: NA | G75: NA | H75: NA | I75: NA | J75: 0 | K75: 0 | L75: 0 | M75: 0 | N75: 0 | O75: 0 | P75: 0 | Q75: 0 | R75: 0 | S75: NA | T75: NA | U75: NA | V75: NA | W75: NA | X75: NA | Y75: =VLOOKUP(A75,[1]FullMultExpressionTableReads2Ge!$A$2:$P$26450,8,FALSE) -> 0 | Z75: =VLOOKUP(A75,[1]FullMultExpressionTableReads2Ge!$A$2:$P$26450,9,FALSE) -> 0 | AA75: =VLOOKUP(A75,[1]FullMultExpressionTableReads2Ge!$A$2:$P$26450,10,FALSE) -> 0 | AB75: =VLOOKUP(A75,[1]FullMultExpressionTableReads2Ge!$A$2:$P$26450,11,FALSE) -> 0 | AC75: =VLOOKUP(A75,[1]FullMultExpressionTableReads2Ge!$A$2:$P$26450,12,FALSE) -> 0 | AD75: =VLOOKUP(A75,[1]FullMultExpressionTableReads2Ge!$A$2:$P$26450,13,FALSE) -> 0 | AE75: =VLOOKUP(A75,[1]FullMultExpressionTableReads2Ge!$A$2:$P$26450,14,FALSE) -> 0 | AF75: =VLOOKUP(A75,[1]FullMultExpressionTableReads2Ge!$A$2:$P$26450,15,FALSE) -> 0 | AG75: =VLOOKUP(A75,[1]FullMultExpressionTableReads2Ge!$A$2:$P$26450,16,FALSE) -> 0 | AH75: 0.9042665534 | AI75: -0.05292255197 | AJ75: 0.9974604955 | AK75: -0.1620919687 | AL75: 0.8567274686 | AM75: NA | AN75: 6939.874289 | AO75: 7728.030506 | AP75: 5460.569893 | AQ75: 5717.774918 | AR75: 7219.939207 | AS75: 5142.639408 | AT75: 7176.547991 | AU75: 7015.556874 | AV75: 5205.737686
A76: AAEL008394 | B76: unspecified product | C76: P60602.1 RecName: Full=Reactive oxygen species modulator 1; Short=ROS modulator 1; AltName: Full=Epididymis tissue protein Li 175; AltName: Full=Glyrichin; AltName: Full=Mitochondrial targeting GxxxG motif protein; Short=MTGM; AltName: Full=Protein MGR2 homolog [Homo sapiens] | D76: NA | E76: NA | F76: NA | G76: NA | H76: NA | I76: NA | J76: 0 | K76: 0 | L76: 0 | M76: 0 | N76: 0 | O76: 0 | P76: 0 | Q76: 0 | R76: 0 | S76: NA | T76: NA | U76: NA | V76: NA | W76: NA | X76: NA | Y76: =VLOOKUP(A76,[1]FullMultExpressionTableReads2Ge!$A$2:$P$26450,8,FALSE) -> 0 | Z76: =VLOOKUP(A76,[1]FullMultExpressionTableReads2Ge!$A$2:$P$26450,9,FALSE) -> 0 | AA76: =VLOOKUP(A76,[1]FullMultExpressionTableReads2Ge!$A$2:$P$26450,10,FALSE) -> 0 | AB76: =VLOOKUP(A76,[1]FullMultExpressionTableReads2Ge!$A$2:$P$26450,11,FALSE) -> 0 | AC76: =VLOOKUP(A76,[1]FullMultExpressionTableReads2Ge!$A$2:$P$26450,12,FALSE) -> 0 | AD76: =VLOOKUP(A76,[1]FullMultExpressionTableReads2Ge!$A$2:$P$26450,13,FALSE) -> 0 | AE76: =VLOOKUP(A76,[1]FullMultExpressionTableReads2Ge!$A$2:$P$26450,14,FALSE) -> 0 | AF76: =VLOOKUP(A76,[1]FullMultExpressionTableReads2Ge!$A$2:$P$26450,15,FALSE) -> 0 | AG76: =VLOOKUP(A76,[1]FullMultExpressionTableReads2Ge!$A$2:$P$26450,16,FALSE) -> 0 | AH76: 0.3328101928 | AI76: -0.1633603054 | AJ76: 0.9974604955 | AK76: 0.03282693642 | AL76: 0.2383066394 | AM76: -0.09368386138 | AN76: 2229.408496 | AO76: 2326.487232 | AP76: 2355.255018 | AQ76: 2239.046662 | AR76: 2470.158277 | AS76: 2396.804143 | AT76: 2119.127603 | AU76: 2155.658896 | AV76: 1890.518397
A77: AAEL002578 | B77: unspecified product | D77: NA | E77: NA | F77: NA | G77: NA | H77: NA | I77: NA | J77: 0 | K77: 0 | L77: 0 | M77: 0 | N77: 0 | O77: 0 | P77: 0 | Q77: 0 | R77: 0 | S77: NA | T77: NA | U77: NA | V77: NA | W77: NA | X77: NA | Y77: =VLOOKUP(A77,[1]FullMultExpressionTableReads2Ge!$A$2:$P$26450,8,FALSE) -> 0 | Z77: =VLOOKUP(A77,[1]FullMultExpressionTableReads2Ge!$A$2:$P$26450,9,FALSE) -> 0 | AA77: =VLOOKUP(A77,[1]FullMultExpressionTableReads2Ge!$A$2:$P$26450,10,FALSE) -> 0 | AB77: =VLOOKUP(A77,[1]FullMultExpressionTableReads2Ge!$A$2:$P$26450,11,FALSE) -> 0 | AC77: =VLOOKUP(A77,[1]FullMultExpressionTableReads2Ge!$A$2:$P$26450,12,FALSE) -> 0 | AD77: =VLOOKUP(A77,[1]FullMultExpressionTableReads2Ge!$A$2:$P$26450,13,FALSE) -> 0 | AE77: =VLOOKUP(A77,[1]FullMultExpressionTableReads2Ge!$A$2:$P$26450,14,FALSE) -> 0 | AF77: =VLOOKUP(A77,[1]FullMultExpressionTableReads2Ge!$A$2:$P$26450,15,FALSE) -> 0 | AG77: =VLOOKUP(A77,[1]FullMultExpressionTableReads2Ge!$A$2:$P$26450,16,FALSE) -> 0 | AH77: 0.7180157199 | AI77: -0.0904663462 | AJ77: 0.9974604955 | AK77: -0.03305273761 | AL77: 0.8434018722 | AM77: 0.2974053301 | AN77: 5236.475376 | AO77: 5429.547286 | AP77: 4920.660935 | AQ77: 4987.056374 | AR77: 5462.345282 | AS77: 4866.013678 | AT77: 5313.1636 | AU77: 5173.372368 | AV77: 4146.94358
A78: AAEL010476 | B78: sil1 | D78: NA | E78: NA | F78: NA | G78: NA | H78: NA | I78: NA | J78: 0 | K78: 0 | L78: 0 | M78: 0 | N78: 0 | O78: 0 | P78: 0 | Q78: 0 | R78: 0 | S78: NA | T78: NA | U78: NA | V78: NA | W78: NA | X78: NA | Y78: =VLOOKUP(A78,[1]FullMultExpressionTableReads2Ge!$A$2:$P$26450,8,FALSE) -> 0 | Z78: =VLOOKUP(A78,[1]FullMultExpressionTableReads2Ge!$A$2:$P$26450,9,FALSE) -> 0 | AA78: =VLOOKUP(A78,[1]FullMultExpressionTableReads2Ge!$A$2:$P$26450,10,FALSE) -> 0 | AB78: =VLOOKUP(A78,[1]FullMultExpressionTableReads2Ge!$A$2:$P$26450,11,FALSE) -> 0 | AC78: =VLOOKUP(A78,[1]FullMultExpressionTableReads2Ge!$A$2:$P$26450,12,FALSE) -> 0 | AD78: =VLOOKUP(A78,[1]FullMultExpressionTableReads2Ge!$A$2:$P$26450,13,FALSE) -> 0 | AE78: =VLOOKUP(A78,[1]FullMultExpressionTableReads2Ge!$A$2:$P$26450,14,FALSE) -> 0 | AF78: =VLOOKUP(A78,[1]FullMultExpressionTableReads2Ge!$A$2:$P$26450,15,FALSE) -> 0 | AG78: =VLOOKUP(A78,[1]FullMultExpressionTableReads2Ge!$A$2:$P$26450,16,FALSE) -> 0 | AH78: 0.7825563892 | AI78: -0.06447235053 | AJ78: 0.9974604955 | AK78: -0.05226137532 | AL78: 0.9383639797 | AM78: NA | AN78: 2436.541804 | AO78: 2401.882652 | AP78: 2920.873926 | AQ78: 2425.633884 | AR78: 2294.204461 | AS78: 2802.459995 | AT78: 2485.037122 | AU78: 2407.483324 | AV78: 2528.908961
A79: AAEL019506 | B79: unspecified product | D79: NA | E79: NA | F79: NA | G79: NA | H79: NA | I79: NA | J79: 0 | K79: 0 | L79: 0 | M79: 0 | N79: 0 | O79: 0 | P79: 0 | Q79: 0 | R79: 0 | S79: NA | T79: NA | U79: NA | V79: NA | W79: NA | X79: NA | Y79: =VLOOKUP(A79,[1]FullMultExpressionTableReads2Ge!$A$2:$P$26450,8,FALSE) -> 0 | Z79: =VLOOKUP(A79,[1]FullMultExpressionTableReads2Ge!$A$2:$P$26450,9,FALSE) -> 0 | AA79: =VLOOKUP(A79,[1]FullMultExpressionTableReads2Ge!$A$2:$P$26450,10,FALSE) -> 0 | AB79: =VLOOKUP(A79,[1]FullMultExpressionTableReads2Ge!$A$2:$P$26450,11,FALSE) -> 0 | AC79: =VLOOKUP(A79,[1]FullMultExpressionTableReads2Ge!$A$2:$P$26450,12,FALSE) -> 0 | AD79: =VLOOKUP(A79,[1]FullMultExpressionTableReads2Ge!$A$2:$P$26450,13,FALSE) -> 0 | AE79: =VLOOKUP(A79,[1]FullMultExpressionTableReads2Ge!$A$2:$P$26450,14,FALSE) -> 0 | AF79: =VLOOKUP(A79,[1]FullMultExpressionTableReads2Ge!$A$2:$P$26450,15,FALSE) -> 0 | AG79: =VLOOKUP(A79,[1]FullMultExpressionTableReads2Ge!$A$2:$P$26450,16,FALSE) -> 0 | AH79: 0.5564648024 | AI79: 0.08801449661 | AJ79: 0.9974604955 | AK79: -0.01755001364 | AL79: 0.5960044679 | AM79: -0.5092246538 | AN79: 6168.575261 | AO79: 6370.912953 | AP79: 5563.409694 | AQ79: 5778.342498 | AR79: 6406.27432 | AS79: 5795.216213 | AT79: 6318.0377 | AU79: 6582.962214 | AV79: 6346.276925
A80: AAEL012227 | B80: unspecified product | C80: O16053.1 RecName: Full=Protein CDV3 homolog; AltName: Full=Protein anon-2C9 [Drosophila yakuba] | D80: NA | E80: NA | F80: NA | G80: NA | H80: NA | I80: NA | J80: 0 | K80: 0 | L80: 0 | M80: 0 | N80: 0 | O80: 0 | P80: 0 | Q80: 0 | R80: 0 | S80: NA | T80: NA | U80: NA | V80: NA | W80: NA | X80: NA | Y80: =VLOOKUP(A80,[1]FullMultExpressionTableReads2Ge!$A$2:$P$26450,8,FALSE) -> 0 | Z80: =VLOOKUP(A80,[1]FullMultExpressionTableReads2Ge!$A$2:$P$26450,9,FALSE) -> 0 | AA80: =VLOOKUP(A80,[1]FullMultExpressionTableReads2Ge!$A$2:$P$26450,10,FALSE) -> 0 | AB80: =VLOOKUP(A80,[1]FullMultExpressionTableReads2Ge!$A$2:$P$26450,11,FALSE) -> 0 | AC80: =VLOOKUP(A80,[1]FullMultExpressionTableReads2Ge!$A$2:$P$26450,12,FALSE) -> 0 | AD80: =VLOOKUP(A80,[1]FullMultExpressionTableReads2Ge!$A$2:$P$26450,13,FALSE) -> 0 | AE80: =VLOOKUP(A80,[1]FullMultExpressionTableReads2Ge!$A$2:$P$26450,14,FALSE) -> 0 | AF80: =VLOOKUP(A80,[1]FullMultExpressionTableReads2Ge!$A$2:$P$26450,15,FALSE) -> 0 | AG80: =VLOOKUP(A80,[1]FullMultExpressionTableReads2Ge!$A$2:$P$26450,16,FALSE) -> 0 | AH80: 0.7010049882 | AI80: -0.08642771173 | AJ80: 0.9974604955 | AK80: -0.02527446877 | AL80: 0.8076839444 | AM80: NA | AN80: 13575.40797 | AO80: 14522.23489 | AP80: 12362.01483 | AQ80: 13392.27342 | AR80: 14348.49908 | AS80: 12224.44375 | AT80: 12955.55769 | AU80: 13820.04099 | AV80: 11330.13496
A81: AAEL018061 | B81: unspecified product | D81: NA | E81: NA | F81: NA | G81: NA | H81: NA | I81: NA | J81: 0 | K81: 0 | L81: 0 | M81: 0 | N81: 0 | O81: 0 | P81: 0 | Q81: 0 | R81: 0 | S81: NA | T81: NA | U81: NA | V81: NA | W81: NA | X81: NA | Y81: =VLOOKUP(A81,[1]FullMultExpressionTableReads2Ge!$A$2:$P$26450,8,FALSE) -> 0 | Z81: =VLOOKUP(A81,[1]FullMultExpressionTableReads2Ge!$A$2:$P$26450,9,FALSE) -> 0 | AA81: =VLOOKUP(A81,[1]FullMultExpressionTableReads2Ge!$A$2:$P$26450,10,FALSE) -> 0 | AB81: =VLOOKUP(A81,[1]FullMultExpressionTableReads2Ge!$A$2:$P$26450,11,FALSE) -> 0 | AC81: =VLOOKUP(A81,[1]FullMultExpressionTableReads2Ge!$A$2:$P$26450,12,FALSE) -> 0 | AD81: =VLOOKUP(A81,[1]FullMultExpressionTableReads2Ge!$A$2:$P$26450,13,FALSE) -> 0 | AE81: =VLOOKUP(A81,[1]FullMultExpressionTableReads2Ge!$A$2:$P$26450,14,FALSE) -> 0 | AF81: =VLOOKUP(A81,[1]FullMultExpressionTableReads2Ge!$A$2:$P$26450,15,FALSE) -> 0 | AG81: =VLOOKUP(A81,[1]FullMultExpressionTableReads2Ge!$A$2:$P$26450,16,FALSE) -> 0 | AH81: 0.9898212257 | AI81: -0.004342483337 | AJ81: 0.9974604955 | AK81: -0.1327428543 | AL81: 0.7228697993 | AM81: -0.5092246538 | AN81: 5618.945212 | AO81: 5344.45817 | AP81: 6414.073704 | AQ81: 4752.601226 | AR81: 5255.283608 | AS81: 5927.959433 | AT81: 5253.359034 | AU81: 5532.823003 | AV81: 6552.58607
A82: AAEL006645 | B82: unspecified product | C82: Q04836.1 RecName: Full=31 kDa ribonucleoprotein, chloroplastic; AltName: Full=RNA-binding protein 1/2/3; Short=AtRBP33; AltName: Full=RNA-binding protein CP31A; AltName: Full=RNA-binding protein RNP-T; AltName: Full=RNA-binding protein cp31; Flags: Precursor [Arabidopsis thaliana] | D82: NA | E82: NA | F82: NA | G82: NA | H82: NA | I82: NA | J82: 0 | K82: 0 | L82: 0 | M82: 0 | N82: 0 | O82: 0 | P82: 0 | Q82: 0 | R82: 0 | S82: NA | T82: NA | U82: NA | V82: NA | W82: NA | X82: NA | Y82: =VLOOKUP(A82,[1]FullMultExpressionTableReads2Ge!$A$2:$P$26450,8,FALSE) -> 0 | Z82: =VLOOKUP(A82,[1]FullMultExpressionTableReads2Ge!$A$2:$P$26450,9,FALSE) -> 0 | AA82: =VLOOKUP(A82,[1]FullMultExpressionTableReads2Ge!$A$2:$P$26450,10,FALSE) -> 0 | AB82: =VLOOKUP(A82,[1]FullMultExpressionTableReads2Ge!$A$2:$P$26450,11,FALSE) -> 0 | AC82: =VLOOKUP(A82,[1]FullMultExpressionTableReads2Ge!$A$2:$P$26450,12,FALSE) -> 0 | AD82: =VLOOKUP(A82,[1]FullMultExpressionTableReads2Ge!$A$2:$P$26450,13,FALSE) -> 0 | AE82: =VLOOKUP(A82,[1]FullMultExpressionTableReads2Ge!$A$2:$P$26450,14,FALSE) -> 0 | AF82: =VLOOKUP(A82,[1]FullMultExpressionTableReads2Ge!$A$2:$P$26450,15,FALSE) -> 0 | AG82: =VLOOKUP(A82,[1]FullMultExpressionTableReads2Ge!$A$2:$P$26450,16,FALSE) -> 0 | AH82: 0.5529859366 | AI82: -0.1005065956 | AJ82: 0.9974604955 | AK82: 0.01422497212 | AL82: 0.5342018444 | AM82: 0.2974053301 | AN82: 2482.874255 | AO82: 2480.509304 | AP82: 2478.21565 | AQ82: 2588.775591 | AR82: 2523.624907 | AS82: 2444.14613 | AT82: 2400.051686 | AU82: 2425.246873 | AV82: 2109.80296
A83: AAEL005213 | B83: Putative amino acid transporter [Source:UniProtKB/TrEMBL%3BAcc:A0A0P6J1D0] | D83: NA | E83: NA | F83: NA | G83: NA | H83: NA | I83: NA | J83: 0 | K83: 0 | L83: 0 | M83: 0 | N83: 0 | O83: 0 | P83: 0 | Q83: 0 | R83: 0 | S83: NA | T83: NA | U83: NA | V83: NA | W83: NA | X83: NA | Y83: =VLOOKUP(A83,[1]FullMultExpressionTableReads2Ge!$A$2:$P$26450,8,FALSE) -> 0 | Z83: =VLOOKUP(A83,[1]FullMultExpressionTableReads2Ge!$A$2:$P$26450,9,FALSE) -> 0 | AA83: =VLOOKUP(A83,[1]FullMultExpressionTableReads2Ge!$A$2:$P$26450,10,FALSE) -> 0 | AB83: =VLOOKUP(A83,[1]FullMultExpressionTableReads2Ge!$A$2:$P$26450,11,FALSE) -> 0 | AC83: =VLOOKUP(A83,[1]FullMultExpressionTableReads2Ge!$A$2:$P$26450,12,FALSE) -> 0 | AD83: =VLOOKUP(A83,[1]FullMultExpressionTableReads2Ge!$A$2:$P$26450,13,FALSE) -> 0 | AE83: =VLOOKUP(A83,[1]FullMultExpressionTableReads2Ge!$A$2:$P$26450,14,FALSE) -> 0 | AF83: =VLOOKUP(A83,[1]FullMultExpressionTableReads2Ge!$A$2:$P$26450,15,FALSE) -> 0 | AG83: =VLOOKUP(A83,[1]FullMultExpressionTableReads2Ge!$A$2:$P$26450,16,FALSE) -> 0 | AH83: 0.5821936132 | AI83: -0.1286468519 | AJ83: 0.9974604955 | AK83: 0.0123293913 | AL83: 0.5071025742 | AM83: 0.2974053301 | AN83: 8565.143971 | AO83: 10409.95329 | AP83: 9330.476335 | AQ83: 9258.047651 | AR83: 10126.5796 | AS83: 9307.806018 | AT83: 8828.255692 | AU83: 9417.815624 | AV83: 7642.521179
A84: AAEL012395 | B84: ATP-binding cassette transporter | C84: E9Q236.1 RecName: Full=ATP-binding cassette sub-family C member 4; AltName: Full=Multidrug resistance-associated protein 4 [Mus musculus] | D84: NA | E84: NA | F84: NA | G84: NA | H84: NA | I84: NA | J84: 0 | K84: 0 | L84: 0 | M84: 0 | N84: 0 | O84: 0 | P84: 0 | Q84: 0 | R84: 0 | S84: NA | T84: NA | U84: NA | V84: NA | W84: NA | X84: NA | Y84: =VLOOKUP(A84,[1]FullMultExpressionTableReads2Ge!$A$2:$P$26450,8,FALSE) -> 0 | Z84: =VLOOKUP(A84,[1]FullMultExpressionTableReads2Ge!$A$2:$P$26450,9,FALSE) -> 0 | AA84: =VLOOKUP(A84,[1]FullMultExpressionTableReads2Ge!$A$2:$P$26450,10,FALSE) -> 0 | AB84: =VLOOKUP(A84,[1]FullMultExpressionTableReads2Ge!$A$2:$P$26450,11,FALSE) -> 0 | AC84: =VLOOKUP(A84,[1]FullMultExpressionTableReads2Ge!$A$2:$P$26450,12,FALSE) -> 0 | AD84: =VLOOKUP(A84,[1]FullMultExpressionTableReads2Ge!$A$2:$P$26450,13,FALSE) -> 0 | AE84: =VLOOKUP(A84,[1]FullMultExpressionTableReads2Ge!$A$2:$P$26450,14,FALSE) -> 0 | AF84: =VLOOKUP(A84,[1]FullMultExpressionTableReads2Ge!$A$2:$P$26450,15,FALSE) -> 0 | AG84: =VLOOKUP(A84,[1]FullMultExpressionTableReads2Ge!$A$2:$P$26450,16,FALSE) -> 0 | AH84: 0.8158307219 | AI84: -0.07512095857 | AJ84: 0.9974604955 | AK84: -0.07161203046 | AL84: 0.9735098819 | AM84: NA | AN84: 14160.46872 | AO84: 17152.45795 | AP84: 12671.65206 | AQ84: 13175.40241 | AR84: 16737.97136 | AS84: 12148.32526 | AT84: 13982.46505 | AU84: 15476.23069 | AV84: 12292.91098
A85: AAEL020466 | B85: unspecified product | C85: O08841.2 RecName: Full=Sulfhydryl oxidase 1; AltName: Full=FAD-dependent sulfhydryl oxidase-3; Short=SOx-3; AltName: Full=Glandular epithelial cells protein 3; AltName: Full=Quiescin Q6; Flags: Precursor [Cavia porcellus] | D85: NA | E85: NA | F85: NA | G85: NA | H85: NA | I85: NA | J85: 0 | K85: 0 | L85: 0 | M85: 0 | N85: 0 | O85: 0 | P85: 0 | Q85: 0 | R85: 0 | S85: NA | T85: NA | U85: NA | V85: NA | W85: NA | X85: NA | Y85: =VLOOKUP(A85,[1]FullMultExpressionTableReads2Ge!$A$2:$P$26450,8,FALSE) -> 0 | Z85: =VLOOKUP(A85,[1]FullMultExpressionTableReads2Ge!$A$2:$P$26450,9,FALSE) -> 0 | AA85: =VLOOKUP(A85,[1]FullMultExpressionTableReads2Ge!$A$2:$P$26450,10,FALSE) -> 0 | AB85: =VLOOKUP(A85,[1]FullMultExpressionTableReads2Ge!$A$2:$P$26450,11,FALSE) -> 0 | AC85: =VLOOKUP(A85,[1]FullMultExpressionTableReads2Ge!$A$2:$P$26450,12,FALSE) -> 0 | AD85: =VLOOKUP(A85,[1]FullMultExpressionTableReads2Ge!$A$2:$P$26450,13,FALSE) -> 0 | AE85: =VLOOKUP(A85,[1]FullMultExpressionTableReads2Ge!$A$2:$P$26450,14,FALSE) -> 0 | AF85: =VLOOKUP(A85,[1]FullMultExpressionTableReads2Ge!$A$2:$P$26450,15,FALSE) -> 0 | AG85: =VLOOKUP(A85,[1]FullMultExpressionTableReads2Ge!$A$2:$P$26450,16,FALSE) -> 0 | AH85: 0.7416237423 | AI85: -0.05316687759 | AJ85: 0.9974604955 | AK85: -0.01317423326 | AL85: 0.7938834404 | AM85: -0.5092246538 | AN85: 2322.073397 | AO85: 2342.643394 | AP85: 2531.871199 | AQ85: 2419.772505 | AR85: 2278.650532 | AS85: 2469.209535 | AT85: 2385.100544 | AU85: 2309.261348 | AV85: 2236.962056
A86: AAEL008942 | B86: unspecified product | C86: Q9V9Z9.1 RecName: Full=Probable rRNA-processing protein EBP2 homolog [Drosophila melanogaster] | D86: NA | E86: NA | F86: NA | G86: NA | H86: NA | I86: NA | J86: 0 | K86: 0 | L86: 0 | M86: 0 | N86: 0 | O86: 0 | P86: 0 | Q86: 0 | R86: 0 | S86: NA | T86: NA | U86: NA | V86: NA | W86: NA | X86: NA | Y86: =VLOOKUP(A86,[1]FullMultExpressionTableReads2Ge!$A$2:$P$26450,8,FALSE) -> 0 | Z86: =VLOOKUP(A86,[1]FullMultExpressionTableReads2Ge!$A$2:$P$26450,9,FALSE) -> 0 | AA86: =VLOOKUP(A86,[1]FullMultExpressionTableReads2Ge!$A$2:$P$26450,10,FALSE) -> 0 | AB86: =VLOOKUP(A86,[1]FullMultExpressionTableReads2Ge!$A$2:$P$26450,11,FALSE) -> 0 | AC86: =VLOOKUP(A86,[1]FullMultExpressionTableReads2Ge!$A$2:$P$26450,12,FALSE) -> 0 | AD86: =VLOOKUP(A86,[1]FullMultExpressionTableReads2Ge!$A$2:$P$26450,13,FALSE) -> 0 | AE86: =VLOOKUP(A86,[1]FullMultExpressionTableReads2Ge!$A$2:$P$26450,14,FALSE) -> 0 | AF86: =VLOOKUP(A86,[1]FullMultExpressionTableReads2Ge!$A$2:$P$26450,15,FALSE) -> 0 | AG86: =VLOOKUP(A86,[1]FullMultExpressionTableReads2Ge!$A$2:$P$26450,16,FALSE) -> 0 | AH86: 0.8424574588 | AI86: -0.04828591696 | AJ86: 0.9974604955 | AK86: -0.03393328432 | AL86: 0.9394642674 | AM86: -0.1105668335 | AN86: 2115.848569 | AO86: 2223.0878 | AP86: 2130.572409 | AQ86: 2120.842192 | AR86: 2240.737831 | AS86: 1991.148291 | AT86: 2149.029886 | AU86: 2260.15036 | AV86: 1842.50935
A87: AAEL025591 | B87: unspecified product | C87: Q8BH65.1 RecName: Full=Protein DENND6A; AltName: Full=DENN domain-containing protein 6A [Mus musculus] | D87: NA | E87: NA | F87: NA | G87: NA | H87: NA | I87: NA | J87: 0 | K87: 0 | L87: 0 | M87: 0 | N87: 0 | O87: 0 | P87: 0 | Q87: 0 | R87: 0 | S87: NA | T87: NA | U87: NA | V87: NA | W87: NA | X87: NA | Y87: =VLOOKUP(A87,[1]FullMultExpressionTableReads2Ge!$A$2:$P$26450,8,FALSE) -> 0 | Z87: =VLOOKUP(A87,[1]FullMultExpressionTableReads2Ge!$A$2:$P$26450,9,FALSE) -> 0 | AA87: =VLOOKUP(A87,[1]FullMultExpressionTableReads2Ge!$A$2:$P$26450,10,FALSE) -> 0 | AB87: =VLOOKUP(A87,[1]FullMultExpressionTableReads2Ge!$A$2:$P$26450,11,FALSE) -> 0 | AC87: =VLOOKUP(A87,[1]FullMultExpressionTableReads2Ge!$A$2:$P$26450,12,FALSE) -> 0 | AD87: =VLOOKUP(A87,[1]FullMultExpressionTableReads2Ge!$A$2:$P$26450,13,FALSE) -> 0 | AE87: =VLOOKUP(A87,[1]FullMultExpressionTableReads2Ge!$A$2:$P$26450,14,FALSE) -> 0 | AF87: =VLOOKUP(A87,[1]FullMultExpressionTableReads2Ge!$A$2:$P$26450,15,FALSE) -> 0 | AG87: =VLOOKUP(A87,[1]FullMultExpressionTableReads2Ge!$A$2:$P$26450,16,FALSE) -> 0 | AH87: 0.7582032388 | AI87: 0.03830779906 | AJ87: 0.9974604955 | AK87: -0.01041918964 | AL87: 0.8514443884 | AM87: NA | AN87: 2893.506952 | AO87: 2927.496434 | AP87: 2873.925321 | AQ87: 2842.768668 | AR87: 2918.305844 | AS87: 2917.566003 | AT87: 3037.442461 | AU87: 2882.919484 | AV87: 3008.999425
A88: AAEL005187 | B88: laminin gamma 1 chain | D88: NA | E88: NA | F88: NA | G88: NA | H88: NA | I88: NA | J88: 0 | K88: 0 | L88: 0 | M88: 0 | N88: 0 | O88: 0 | P88: 0 | Q88: 0 | R88: 0 | S88: NA | T88: NA | U88: NA | V88: NA | W88: NA | X88: NA | Y88: =VLOOKUP(A88,[1]FullMultExpressionTableReads2Ge!$A$2:$P$26450,8,FALSE) -> 0 | Z88: =VLOOKUP(A88,[1]FullMultExpressionTableReads2Ge!$A$2:$P$26450,9,FALSE) -> 0 | AA88: =VLOOKUP(A88,[1]FullMultExpressionTableReads2Ge!$A$2:$P$26450,10,FALSE) -> 0 | AB88: =VLOOKUP(A88,[1]FullMultExpressionTableReads2Ge!$A$2:$P$26450,11,FALSE) -> 0 | AC88: =VLOOKUP(A88,[1]FullMultExpressionTableReads2Ge!$A$2:$P$26450,12,FALSE) -> 0 | AD88: =VLOOKUP(A88,[1]FullMultExpressionTableReads2Ge!$A$2:$P$26450,13,FALSE) -> 0 | AE88: =VLOOKUP(A88,[1]FullMultExpressionTableReads2Ge!$A$2:$P$26450,14,FALSE) -> 0 | AF88: =VLOOKUP(A88,[1]FullMultExpressionTableReads2Ge!$A$2:$P$26450,15,FALSE) -> 0 | AG88: =VLOOKUP(A88,[1]FullMultExpressionTableReads2Ge!$A$2:$P$26450,16,FALSE) -> 0 | AH88: 0.4327517434 | AI88: -0.1196316527 | AJ88: 0.2594913529 | AK88: 0.2009103666 | AL88: 0.01887846469 | AM88: 0.2974053301 | AN88: 25191.22583 | AO88: 25136.83288 | AP88: 25272.88121 | AQ88: 30480.14612 | AR88: 28899.19924 | AS88: 27988.39725 | AT88: 25081.72047 | AU88: 23211.73375 | AV88: 21291.36333
A89: AAEL004124 | B89: mitochondrial glutamate carrier%2C putative | C89: Q8BGF9.1 RecName: Full=Solute carrier family 25 member 44 [Mus musculus] | D89: NA | E89: NA | F89: NA | G89: NA | H89: NA | I89: NA | J89: 0 | K89: 0 | L89: 0 | M89: 0 | N89: 0 | O89: 0 | P89: 0 | Q89: 0 | R89: 0 | S89: NA | T89: NA | U89: NA | V89: NA | W89: NA | X89: NA | Y89: =VLOOKUP(A89,[1]FullMultExpressionTableReads2Ge!$A$2:$P$26450,8,FALSE) -> 0 | Z89: =VLOOKUP(A89,[1]FullMultExpressionTableReads2Ge!$A$2:$P$26450,9,FALSE) -> 0 | AA89: =VLOOKUP(A89,[1]FullMultExpressionTableReads2Ge!$A$2:$P$26450,10,FALSE) -> 0 | AB89: =VLOOKUP(A89,[1]FullMultExpressionTableReads2Ge!$A$2:$P$26450,11,FALSE) -> 0 | AC89: =VLOOKUP(A89,[1]FullMultExpressionTableReads2Ge!$A$2:$P$26450,12,FALSE) -> 0 | AD89: =VLOOKUP(A89,[1]FullMultExpressionTableReads2Ge!$A$2:$P$26450,13,FALSE) -> 0 | AE89: =VLOOKUP(A89,[1]FullMultExpressionTableReads2Ge!$A$2:$P$26450,14,FALSE) -> 0 | AF89: =VLOOKUP(A89,[1]FullMultExpressionTableReads2Ge!$A$2:$P$26450,15,FALSE) -> 0 | AG89: =VLOOKUP(A89,[1]FullMultExpressionTableReads2Ge!$A$2:$P$26450,16,FALSE) -> 0 | AH89: 0.8742458296 | AI89: -0.02608519997 | AJ89: 0.9974604955 | AK89: -0.02459046954 | AL89: 0.9419651659 | AM89: 0.2974053301 | AN89: 2650.942947 | AO89: 2875.796718 | AP89: 2882.867913 | AQ89: 2660.089032 | AR89: 2809.428344 | AS89: 2838.662691 | AT89: 2788.781368 | AU89: 2704.239081 | AV89: 2763.764026
A90: AAEL023734 | B90: unspecified product | D90: NA | E90: NA | F90: NA | G90: NA | H90: NA | I90: NA | J90: 0 | K90: 0 | L90: 0 | M90: 0 | N90: 0 | O90: 0 | P90: 0 | Q90: 0 | R90: 0 | S90: 0.7130158544 | T90: 0.2113116689 | U90: 0.8655196071 | V90: -0.07163332813 | W90: 0.6274294398 | X90: 0.2675933981 | Y90: =VLOOKUP(A90,[1]FullMultExpressionTableReads2Ge!$A$2:$P$26450,8,FALSE) -> 2025.320223 | Z90: =VLOOKUP(A90,[1]FullMultExpressionTableReads2Ge!$A$2:$P$26450,9,FALSE) -> 2169.46561 | AA90: =VLOOKUP(A90,[1]FullMultExpressionTableReads2Ge!$A$2:$P$26450,10,FALSE) -> 2168.592586 | AB90: =VLOOKUP(A90,[1]FullMultExpressionTableReads2Ge!$A$2:$P$26450,11,FALSE) -> 1930.475184 | AC90: =VLOOKUP(A90,[1]FullMultExpressionTableReads2Ge!$A$2:$P$26450,12,FALSE) -> 1974.662809 | AD90: =VLOOKUP(A90,[1]FullMultExpressionTableReads2Ge!$A$2:$P$26450,13,FALSE) -> 2183.035298 | AE90: =VLOOKUP(A90,[1]FullMultExpressionTableReads2Ge!$A$2:$P$26450,14,FALSE) -> 1877.724022 | AF90: =VLOOKUP(A90,[1]FullMultExpressionTableReads2Ge!$A$2:$P$26450,15,FALSE) -> 2018.762881 | AG90: =VLOOKUP(A90,[1]FullMultExpressionTableReads2Ge!$A$2:$P$26450,16,FALSE) -> 3478.995081 | AH90: 0.6647209792 | AI90: 0.2147050373 | AJ90: 0.9974604955 | AK90: -0.07209520043 | AL90: 0.6281639362 | AM90: NA | AN90: 2023.183668 | AO90: 2169.233929 | AP90: 2166.342774 | AQ90: 1924.486005 | AR90: 1973.404684 | AS90: 2180.51624 | AT90: 1876.761728 | AU90: 2021.909823 | AV90: 3490.387432
A91: AAEL006535 | B91: unspecified product | C91: P09478.2 RecName: Full=Acetylcholine receptor subunit alpha-like 1; AltName: Full=Nicotinic acetylcholine receptor alpha 1; Flags: Precursor [Drosophila melanogaster] | D91: NA | E91: NA | F91: NA | G91: NA | H91: NA | I91: NA | J91: 0 | K91: 0 | L91: 0 | M91: 0 | N91: 0 | O91: 0 | P91: 0 | Q91: 0 | R91: 0 | S91: NA | T91: NA | U91: NA | V91: NA | W91: NA | X91: NA | Y91: =VLOOKUP(A91,[1]FullMultExpressionTableReads2Ge!$A$2:$P$26450,8,FALSE) -> 0 | Z91: =VLOOKUP(A91,[1]FullMultExpressionTableReads2Ge!$A$2:$P$26450,9,FALSE) -> 0 | AA91: =VLOOKUP(A91,[1]FullMultExpressionTableReads2Ge!$A$2:$P$26450,10,FALSE) -> 0 | AB91: =VLOOKUP(A91,[1]FullMultExpressionTableReads2Ge!$A$2:$P$26450,11,FALSE) -> 0 | AC91: =VLOOKUP(A91,[1]FullMultExpressionTableReads2Ge!$A$2:$P$26450,12,FALSE) -> 0 | AD91: =VLOOKUP(A91,[1]FullMultExpressionTableReads2Ge!$A$2:$P$26450,13,FALSE) -> 0 | AE91: =VLOOKUP(A91,[1]FullMultExpressionTableReads2Ge!$A$2:$P$26450,14,FALSE) -> 0 | AF91: =VLOOKUP(A91,[1]FullMultExpressionTableReads2Ge!$A$2:$P$26450,15,FALSE) -> 0 | AG91: =VLOOKUP(A91,[1]FullMultExpressionTableReads2Ge!$A$2:$P$26450,16,FALSE) -> 0 | AH91: 0.8435831668 | AI91: -0.08286778152 | AJ91: 0.9974604955 | AK91: -0.02782046293 | AL91: 0.908252498 | AM91: 0.2974053301 | AN91: 2474.69794 | AO91: 2383.572336 | AP91: 2107.098106 | AQ91: 2494.993532 | AR91: 2366.14138 | AS91: 2010.64205 | AT91: 2588.908212 | AU91: 2328.069811 | AV91: 1654.36579
A92: AAEL004022 | B92: unspecified product | C92: Q91WU0.1 RecName: Full=Carboxylesterase 1F; AltName: Full=Carboxylic ester hydrolase; AltName: Full=Triacylglycerol hydrolase 2; Short=TGH-2; Flags: Precursor [Mus musculus] | D92: NA | E92: NA | F92: NA | G92: NA | H92: NA | I92: NA | J92: 0 | K92: 0 | L92: 0 | M92: 0 | N92: 0 | O92: 0 | P92: 0 | Q92: 0 | R92: 0 | S92: NA | T92: NA | U92: NA | V92: NA | W92: NA | X92: NA | Y92: =VLOOKUP(A92,[1]FullMultExpressionTableReads2Ge!$A$2:$P$26450,8,FALSE) -> 0 | Z92: =VLOOKUP(A92,[1]FullMultExpressionTableReads2Ge!$A$2:$P$26450,9,FALSE) -> 0 | AA92: =VLOOKUP(A92,[1]FullMultExpressionTableReads2Ge!$A$2:$P$26450,10,FALSE) -> 0 | AB92: =VLOOKUP(A92,[1]FullMultExpressionTableReads2Ge!$A$2:$P$26450,11,FALSE) -> 0 | AC92: =VLOOKUP(A92,[1]FullMultExpressionTableReads2Ge!$A$2:$P$26450,12,FALSE) -> 0 | AD92: =VLOOKUP(A92,[1]FullMultExpressionTableReads2Ge!$A$2:$P$26450,13,FALSE) -> 0 | AE92: =VLOOKUP(A92,[1]FullMultExpressionTableReads2Ge!$A$2:$P$26450,14,FALSE) -> 0 | AF92: =VLOOKUP(A92,[1]FullMultExpressionTableReads2Ge!$A$2:$P$26450,15,FALSE) -> 0 | AG92: =VLOOKUP(A92,[1]FullMultExpressionTableReads2Ge!$A$2:$P$26450,16,FALSE) -> 0 | AH92: 0.3651398244 | AI92: -0.2179778728 | AJ92: 0.9974604955 | AK92: 0.09569956408 | AL92: 0.187999725 | AM92: 0.2974053301 | AN92: 8798.623182 | AO92: 8820.187012 | AP92: 8537.939169 | AQ92: 10254.48203 | AR92: 8961.979205 | AS92: 8886.369504 | AT92: 8400.967802 | AU92: 7866.117388 | AV92: 6215.225203
A93: AAEL009129 | D93: NA | E93: NA | F93: NA | G93: NA | H93: NA | I93: NA | J93: 0 | K93: 0 | L93: 0 | M93: 0 | N93: 0 | O93: 0 | P93: 0 | Q93: 0 | R93: 0 | S93: NA | T93: NA | U93: NA | V93: NA | W93: NA | X93: NA | Y93: =VLOOKUP(A93,[1]FullMultExpressionTableReads2Ge!$A$2:$P$26450,8,FALSE) -> 0 | Z93: =VLOOKUP(A93,[1]FullMultExpressionTableReads2Ge!$A$2:$P$26450,9,FALSE) -> 0 | AA93: =VLOOKUP(A93,[1]FullMultExpressionTableReads2Ge!$A$2:$P$26450,10,FALSE) -> 0 | AB93: =VLOOKUP(A93,[1]FullMultExpressionTableReads2Ge!$A$2:$P$26450,11,FALSE) -> 0 | AC93: =VLOOKUP(A93,[1]FullMultExpressionTableReads2Ge!$A$2:$P$26450,12,FALSE) -> 0 | AD93: =VLOOKUP(A93,[1]FullMultExpressionTableReads2Ge!$A$2:$P$26450,13,FALSE) -> 0 | AE93: =VLOOKUP(A93,[1]FullMultExpressionTableReads2Ge!$A$2:$P$26450,14,FALSE) -> 0 | AF93: =VLOOKUP(A93,[1]FullMultExpressionTableReads2Ge!$A$2:$P$26450,15,FALSE) -> 0 | AG93: =VLOOKUP(A93,[1]FullMultExpressionTableReads2Ge!$A$2:$P$26450,16,FALSE) -> 0 | AH93: 0.609809196 | AI93: -0.1219745054 | AJ93: 0.9974604955 | AK93: 0.02817256455 | AL93: 0.5475217486 | AM93: -0.1105668335 | AN93: 3524.900149 | AO93: 3006.123086 | AP93: 3841.960844 | AQ93: 3570.556522 | AR93: 3082.594214 | AS93: 3984.15313 | AT93: 3338.826001 | AU93: 2947.704191 | AV93: 3247.747116
A94: AAEL019973 | B94: unspecified product | D94: NA | E94: NA | F94: NA | G94: NA | H94: NA | I94: NA | J94: 0 | K94: 0 | L94: 0 | M94: 0 | N94: 0 | O94: 0 | P94: 0 | Q94: 0 | R94: 0 | S94: NA | T94: NA | U94: NA | V94: NA | W94: NA | X94: NA | Y94: =VLOOKUP(A94,[1]FullMultExpressionTableReads2Ge!$A$2:$P$26450,8,FALSE) -> 0 | Z94: =VLOOKUP(A94,[1]FullMultExpressionTableReads2Ge!$A$2:$P$26450,9,FALSE) -> 0 | AA94: =VLOOKUP(A94,[1]FullMultExpressionTableReads2Ge!$A$2:$P$26450,10,FALSE) -> 0 | AB94: =VLOOKUP(A94,[1]FullMultExpressionTableReads2Ge!$A$2:$P$26450,11,FALSE) -> 0 | AC94: =VLOOKUP(A94,[1]FullMultExpressionTableReads2Ge!$A$2:$P$26450,12,FALSE) -> 0 | AD94: =VLOOKUP(A94,[1]FullMultExpressionTableReads2Ge!$A$2:$P$26450,13,FALSE) -> 0 | AE94: =VLOOKUP(A94,[1]FullMultExpressionTableReads2Ge!$A$2:$P$26450,14,FALSE) -> 0 | AF94: =VLOOKUP(A94,[1]FullMultExpressionTableReads2Ge!$A$2:$P$26450,15,FALSE) -> 0 | AG94: =VLOOKUP(A94,[1]FullMultExpressionTableReads2Ge!$A$2:$P$26450,16,FALSE) -> 0 | AH94: 0.2500023639 | AI94: 0.3934249059 | AJ94: 0.09952563767 | AK94: -0.3165181805 | AL94: 0.01730780482 | AM94: -0.5092246538 | AN94: 2364.77193 | AO94: 2427.73251 | AP94: 2186.463605 | AQ94: 1765.251884 | AR94: 2027.843434 | AS94: 1841.696134 | AT94: 2452.774132 | AU94: 2866.20085 | AV94: 3858.889302
A95: AAEL010456 | B95: unspecified product | D95: 0.9784124372 | E95: 1.910660732 | F95: NA | G95: NA | H95: NA | I95: 2.002491126 | J95: 0 | K95: 0 | L95: 0 | M95: 0 | N95: 0 | O95: 0 | P95: 0 | Q95: 2.107739914 | R95: 0 | S95: NA | T95: 1.874087808 | U95: NA | V95: NA | W95: NA | X95: 1.972613017 | Y95: =VLOOKUP(A95,[1]FullMultExpressionTableReads2Ge!$A$2:$P$26450,8,FALSE) -> 0 | Z95: =VLOOKUP(A95,[1]FullMultExpressionTableReads2Ge!$A$2:$P$26450,9,FALSE) -> 0 | AA95: =VLOOKUP(A95,[1]FullMultExpressionTableReads2Ge!$A$2:$P$26450,10,FALSE) -> 0 | AB95: =VLOOKUP(A95,[1]FullMultExpressionTableReads2Ge!$A$2:$P$26450,11,FALSE) -> 0 | AC95: =VLOOKUP(A95,[1]FullMultExpressionTableReads2Ge!$A$2:$P$26450,12,FALSE) -> 0 | AD95: =VLOOKUP(A95,[1]FullMultExpressionTableReads2Ge!$A$2:$P$26450,13,FALSE) -> 0 | AE95: =VLOOKUP(A95,[1]FullMultExpressionTableReads2Ge!$A$2:$P$26450,14,FALSE) -> 0 | AF95: =VLOOKUP(A95,[1]FullMultExpressionTableReads2Ge!$A$2:$P$26450,15,FALSE) -> 2.086576621 | AG95: =VLOOKUP(A95,[1]FullMultExpressionTableReads2Ge!$A$2:$P$26450,16,FALSE) -> 0 | AH95: 0.5382181952 | AI95: -0.1307859467 | AJ95: 0.9974604955 | AK95: 0.05185845624 | AL95: 0.3563122531 | AM95: NA | AN95: 2878.062802 | AO95: 3191.380403 | AP95: 2923.109574 | AQ95: 3167.098289 | AR95: 3204.109281 | AS95: 2998.325864 | AT95: 2787.207564 | AU95: 2986.366033 | AV95: 2435.485951
A96: AAEL010450 | C96: Q9W2D6.1 RecName: Full=Mitochondrial import inner membrane translocase subunit Tim10 [Drosophila melanogaster] | D96: NA | E96: NA | F96: NA | G96: NA | H96: NA | I96: NA | J96: 0 | K96: 0 | L96: 0 | M96: 0 | N96: 0 | O96: 0 | P96: 0 | Q96: 0 | R96: 0 | S96: NA | T96: NA | U96: NA | V96: NA | W96: NA | X96: NA | Y96: =VLOOKUP(A96,[1]FullMultExpressionTableReads2Ge!$A$2:$P$26450,8,FALSE) -> 0 | Z96: =VLOOKUP(A96,[1]FullMultExpressionTableReads2Ge!$A$2:$P$26450,9,FALSE) -> 0 | AA96: =VLOOKUP(A96,[1]FullMultExpressionTableReads2Ge!$A$2:$P$26450,10,FALSE) -> 0 | AB96: =VLOOKUP(A96,[1]FullMultExpressionTableReads2Ge!$A$2:$P$26450,11,FALSE) -> 0 | AC96: =VLOOKUP(A96,[1]FullMultExpressionTableReads2Ge!$A$2:$P$26450,12,FALSE) -> 0 | AD96: =VLOOKUP(A96,[1]FullMultExpressionTableReads2Ge!$A$2:$P$26450,13,FALSE) -> 0 | AE96: =VLOOKUP(A96,[1]FullMultExpressionTableReads2Ge!$A$2:$P$26450,14,FALSE) -> 0 | AF96: =VLOOKUP(A96,[1]FullMultExpressionTableReads2Ge!$A$2:$P$26450,15,FALSE) -> 0 | AG96: =VLOOKUP(A96,[1]FullMultExpressionTableReads2Ge!$A$2:$P$26450,16,FALSE) -> 0 | AH96: 0.5350460522 | AI96: -0.1311504545 | AJ96: 0.9974604955 | AK96: 0.05185845624 | AL96: 0.3540349305 | AM96: NA | AN96: 2878.062802 | AO96: 3191.380403 | AP96: 2923.109574 | AQ96: 3167.098289 | AR96: 3204.109281 | AS96: 2998.325864 | AT96: 2787.207564 | AU96: 2984.276204 | AV96: 2435.485951
A97: AAEL002428 | B97: BTB domain-containing protein [Source:UniProtKB/TrEMBL%3BAcc:A0A1S4F1N4] | D97: NA | E97: NA | F97: NA | G97: NA | H97: NA | I97: NA | J97: 0 | K97: 0 | L97: 0 | M97: 0 | N97: 0 | O97: 0 | P97: 0 | Q97: 0 | R97: 0 | S97: NA | T97: NA | U97: NA | V97: NA | W97: NA | X97: NA | Y97: =VLOOKUP(A97,[1]FullMultExpressionTableReads2Ge!$A$2:$P$26450,8,FALSE) -> 0 | Z97: =VLOOKUP(A97,[1]FullMultExpressionTableReads2Ge!$A$2:$P$26450,9,FALSE) -> 0 | AA97: =VLOOKUP(A97,[1]FullMultExpressionTableReads2Ge!$A$2:$P$26450,10,FALSE) -> 0 | AB97: =VLOOKUP(A97,[1]FullMultExpressionTableReads2Ge!$A$2:$P$26450,11,FALSE) -> 0 | AC97: =VLOOKUP(A97,[1]FullMultExpressionTableReads2Ge!$A$2:$P$26450,12,FALSE) -> 0 | AD97: =VLOOKUP(A97,[1]FullMultExpressionTableReads2Ge!$A$2:$P$26450,13,FALSE) -> 0 | AE97: =VLOOKUP(A97,[1]FullMultExpressionTableReads2Ge!$A$2:$P$26450,14,FALSE) -> 0 | AF97: =VLOOKUP(A97,[1]FullMultExpressionTableReads2Ge!$A$2:$P$26450,15,FALSE) -> 0 | AG97: =VLOOKUP(A97,[1]FullMultExpressionTableReads2Ge!$A$2:$P$26450,16,FALSE) -> 0 | AH97: 0.9936754211 | AI97: 0.001661745499 | AJ97: 0.9974604955 | AK97: 0.02226356398 | AL97: 0.8809509119 | AM97: 0.2974053301 | AN97: 2660.936221 | AO97: 2685.154014 | AP97: 2591.115867 | AQ97: 2730.425576 | AR97: 2689.857518 | AS97: 2684.569164 | AT97: 2784.846858 | AU97: 2661.397581 | AV97: 2493.875332
A98: AAEL026218 | B98: unspecified product | D98: NA | E98: NA | F98: NA | G98: NA | H98: NA | I98: NA | J98: 0 | K98: 0 | L98: 0 | M98: 0 | N98: 0 | O98: 0 | P98: 0 | Q98: 0 | R98: 0 | S98: NA | T98: NA | U98: NA | V98: NA | W98: NA | X98: NA | Y98: =VLOOKUP(A98,[1]FullMultExpressionTableReads2Ge!$A$2:$P$26450,8,FALSE) -> 0 | Z98: =VLOOKUP(A98,[1]FullMultExpressionTableReads2Ge!$A$2:$P$26450,9,FALSE) -> 0 | AA98: =VLOOKUP(A98,[1]FullMultExpressionTableReads2Ge!$A$2:$P$26450,10,FALSE) -> 0 | AB98: =VLOOKUP(A98,[1]FullMultExpressionTableReads2Ge!$A$2:$P$26450,11,FALSE) -> 0 | AC98: =VLOOKUP(A98,[1]FullMultExpressionTableReads2Ge!$A$2:$P$26450,12,FALSE) -> 0 | AD98: =VLOOKUP(A98,[1]FullMultExpressionTableReads2Ge!$A$2:$P$26450,13,FALSE) -> 0 | AE98: =VLOOKUP(A98,[1]FullMultExpressionTableReads2Ge!$A$2:$P$26450,14,FALSE) -> 0 | AF98: =VLOOKUP(A98,[1]FullMultExpressionTableReads2Ge!$A$2:$P$26450,15,FALSE) -> 0 | AG98: =VLOOKUP(A98,[1]FullMultExpressionTableReads2Ge!$A$2:$P$26450,16,FALSE) -> 0 | AH98: 0.9716174529 | AI98: 0.007843418924 | AJ98: 0.9974604955 | AK98: -0.05417956866 | AL98: 0.8419761478 | AM98: NA | AN98: 2169.448855 | AO98: 2366.339097 | AP98: 2236.765682 | AQ98: 2134.518742 | AR98: 2213.518456 | AS98: 2207.436193 | AT98: 2310.344836 | AU98: 2374.046056 | AV98: 2120.183295
A99: AAEL003190 | B99: unspecified product | D99: NA | E99: NA | F99: NA | G99: NA | H99: NA | I99: NA | J99: 0 | K99: 0 | L99: 0 | M99: 0 | N99: 0 | O99: 0 | P99: 0 | Q99: 0 | R99: 0 | S99: NA | T99: NA | U99: NA | V99: NA | W99: NA | X99: NA | Y99: =VLOOKUP(A99,[1]FullMultExpressionTableReads2Ge!$A$2:$P$26450,8,FALSE) -> 0 | Z99: =VLOOKUP(A99,[1]FullMultExpressionTableReads2Ge!$A$2:$P$26450,9,FALSE) -> 0 | AA99: =VLOOKUP(A99,[1]FullMultExpressionTableReads2Ge!$A$2:$P$26450,10,FALSE) -> 0 | AB99: =VLOOKUP(A99,[1]FullMultExpressionTableReads2Ge!$A$2:$P$26450,11,FALSE) -> 0 | AC99: =VLOOKUP(A99,[1]FullMultExpressionTableReads2Ge!$A$2:$P$26450,12,FALSE) -> 0 | AD99: =VLOOKUP(A99,[1]FullMultExpressionTableReads2Ge!$A$2:$P$26450,13,FALSE) -> 0 | AE99: =VLOOKUP(A99,[1]FullMultExpressionTableReads2Ge!$A$2:$P$26450,14,FALSE) -> 0 | AF99: =VLOOKUP(A99,[1]FullMultExpressionTableReads2Ge!$A$2:$P$26450,15,FALSE) -> 0 | AG99: =VLOOKUP(A99,[1]FullMultExpressionTableReads2Ge!$A$2:$P$26450,16,FALSE) -> 0 | AH99: 0.3545109223 | AI99: -0.1779693158 | AJ99: 0.9974604955 | AK99: 0.08692765528 | AL99: 0.13887105 | AM99: 0.2974053301 | AN99: 2454.711393 | AO99: 2563.444265 | AP99: 2536.342495 | AQ99: 2837.884185 | AR99: 2679.164192 | AS99: 2549.041122 | AT99: 2445.692013 | AU99: 2212.084287 | AV99: 2012.487326
A100: AAEL001650 | B100: ML domain-containing protein [Source:UniProtKB/TrEMBL%3BAcc:A0A1S4EZF1] | C100: O02380.1 RecName: Full=Mite group 2 allergen Tyr p 2; AltName: Allergen=Tyr p 2.0101; Flags: Precursor [Tyrophagus putrescentiae] | D100: NA | E100: NA | F100: NA | G100: NA | H100: NA | I100: NA | J100: 0 | K100: 0 | L100: 0 | M100: 0 | N100: 0 | O100: 0 | P100: 0 | Q100: 0 | R100: 0 | S100: NA | T100: NA | U100: NA | V100: NA | W100: NA | X100: NA | Y100: =VLOOKUP(A100,[1]FullMultExpressionTableReads2Ge!$A$2:$P$26450,8,FALSE) -> 0 | Z100: =VLOOKUP(A100,[1]FullMultExpressionTableReads2Ge!$A$2:$P$26450,9,FALSE) -> 0 | AA100: =VLOOKUP(A100,[1]FullMultExpressionTableReads2Ge!$A$2:$P$26450,10,FALSE) -> 0 | AB100: =VLOOKUP(A100,[1]FullMultExpressionTableReads2Ge!$A$2:$P$26450,11,FALSE) -> 0 | AC100: =VLOOKUP(A100,[1]FullMultExpressionTableReads2Ge!$A$2:$P$26450,12,FALSE) -> 0 | AD100: =VLOOKUP(A100,[1]FullMultExpressionTableReads2Ge!$A$2:$P$26450,13,FALSE) -> 0 | AE100: =VLOOKUP(A100,[1]FullMultExpressionTableReads2Ge!$A$2:$P$26450,14,FALSE) -> 0 | AF100: =VLOOKUP(A100,[1]FullMultExpressionTableReads2Ge!$A$2:$P$26450,15,FALSE) -> 0 | AG100: =VLOOKUP(A100,[1]FullMultExpressionTableReads2Ge!$A$2:$P$26450,16,FALSE) -> 0 | AH100: 0.2077650943 | AI100: -0.4045929213 | AJ100: 0.9974604955 | AK100: 0.2055880787 | AL100: 0.01362901773 | AM100: 0.2974053301 | AN100: 12702.35925 | AO100: 10108.37161 | AP100: 13625.15587 | AQ100: 14800.9581 | AR100: 12147.6182 | AS100: 15311.88394 | AT100: 10777.41242 | AU100: 7576.676034 | AV100: 9177.513124
A101: AAEL020525 | B101: unspecified product | C101: Q04637.4 RecName: Full=Eukaryotic translation initiation factor 4 gamma 1; Short=eIF-4-gamma 1; Short=eIF-4G 1; Short=eIF-4G1; AltName: Full=p220 [Homo sapiens] | D101: NA | E101: NA | F101: NA | G101: NA | H101: NA | I101: NA | J101: 0 | K101: 0 | L101: 0 | M101: 0 | N101: 0 | O101: 0 | P101: 0 | Q101: 0 | R101: 0 | S101: NA | T101: NA | U101: NA | V101: NA | W101: NA | X101: NA | Y101: =VLOOKUP(A101,[1]FullMultExpressionTableReads2Ge!$A$2:$P$26450,8,FALSE) -> 0 | Z101: =VLOOKUP(A101,[1]FullMultExpressionTableReads2Ge!$A$2:$P$26450,9,FALSE) -> 0 | AA101: =VLOOKUP(A101,[1]FullMultExpressionTableReads2Ge!$A$2:$P$26450,10,FALSE) -> 0 | AB101: =VLOOKUP(A101,[1]FullMultExpressionTableReads2Ge!$A$2:$P$26450,11,FALSE) -> 0 | AC101: =VLOOKUP(A101,[1]FullMultExpressionTableReads2Ge!$A$2:$P$26450,12,FALSE) -> 0 | AD101: =VLOOKUP(A101,[1]FullMultExpressionTableReads2Ge!$A$2:$P$26450,13,FALSE) -> 0 | AE101: =VLOOKUP(A101,[1]FullMultExpressionTableReads2Ge!$A$2:$P$26450,14,FALSE) -> 0 | AF101: =VLOOKUP(A101,[1]FullMultExpressionTableReads2Ge!$A$2:$P$26450,15,FALSE) -> 0 | AG101: =VLOOKUP(A101,[1]FullMultExpressionTableReads2Ge!$A$2:$P$26450,16,FALSE) -> 0 | AH101: 0.5965483682 | AI101: 0.05124740188 | AJ101: 0.9974604955 | AK101: -0.03430588247 | AL101: 0.6272373399 | AM101: -0.5092246538 | AN101: 27057.24256 | AO101: 27827.37228 | AP101: 27188.83142 | AQ101: 26003.02969 | AR101: 28074.84103 | AS101: 26493.87569 | AT101: 27387.34389 | AU101: 28365.25274 | AV101: 29323.14705
A102: AAEL009712 | B102: unspecified product | C102: D2TUZ4.1 RecName: Full=3'-5' ssDNA/RNA exonuclease TatD; AltName: Full=DNase TatD [Citrobacter rodentium ICC168] | D102: NA | E102: NA | F102: NA | G102: NA | H102: NA | I102: NA | J102: 0 | K102: 0 | L102: 0 | M102: 0 | N102: 0 | O102: 0 | P102: 0 | Q102: 0 | R102: 0 | S102: NA | T102: NA | U102: NA | V102: NA | W102: NA | X102: NA | Y102: =VLOOKUP(A102,[1]FullMultExpressionTableReads2Ge!$A$2:$P$26450,8,FALSE) -> 0 | Z102: =VLOOKUP(A102,[1]FullMultExpressionTableReads2Ge!$A$2:$P$26450,9,FALSE) -> 0 | AA102: =VLOOKUP(A102,[1]FullMultExpressionTableReads2Ge!$A$2:$P$26450,10,FALSE) -> 0 | AB102: =VLOOKUP(A102,[1]FullMultExpressionTableReads2Ge!$A$2:$P$26450,11,FALSE) -> 0 | AC102: =VLOOKUP(A102,[1]FullMultExpressionTableReads2Ge!$A$2:$P$26450,12,FALSE) -> 0 | AD102: =VLOOKUP(A102,[1]FullMultExpressionTableReads2Ge!$A$2:$P$26450,13,FALSE) -> 0 | AE102: =VLOOKUP(A102,[1]FullMultExpressionTableReads2Ge!$A$2:$P$26450,14,FALSE) -> 0 | AF102: =VLOOKUP(A102,[1]FullMultExpressionTableReads2Ge!$A$2:$P$26450,15,FALSE) -> 0 | AG102: =VLOOKUP(A102,[1]FullMultExpressionTableReads2Ge!$A$2:$P$26450,16,FALSE) -> 0 | AH102: 0.4774212195 | AI102: 0.1240587773 | AJ102: 0.9974604955 | AK102: -0.08346089764 | AL102: 0.3780580177 | AM102: 0.01036190053 | AN102: 2256.662879 | AO102: 2533.286097 | AP102: 2290.42123 | AQ102: 2143.31081 | AR102: 2482.795844 | AS102: 2090.473637 | AT102: 2630.614028 | AU102: 2672.891642 | AV102: 2408.237574
A103: AAEL014972 | B103: unspecified product | D103: NA | E103: NA | F103: NA | G103: NA | H103: NA | I103: NA | J103: 0 | K103: 0 | L103: 0 | M103: 0 | N103: 0 | O103: 0 | P103: 0 | Q103: 0 | R103: 0 | S103: NA | T103: NA | U103: NA | V103: NA | W103: NA | X103: NA | Y103: =VLOOKUP(A103,[1]FullMultExpressionTableReads2Ge!$A$2:$P$26450,8,FALSE) -> 0 | Z103: =VLOOKUP(A103,[1]FullMultExpressionTableReads2Ge!$A$2:$P$26450,9,FALSE) -> 0 | AA103: =VLOOKUP(A103,[1]FullMultExpressionTableReads2Ge!$A$2:$P$26450,10,FALSE) -> 0 | AB103: =VLOOKUP(A103,[1]FullMultExpressionTableReads2Ge!$A$2:$P$26450,11,FALSE) -> 0 | AC103: =VLOOKUP(A103,[1]FullMultExpressionTableReads2Ge!$A$2:$P$26450,12,FALSE) -> 0 | AD103: =VLOOKUP(A103,[1]FullMultExpressionTableReads2Ge!$A$2:$P$26450,13,FALSE) -> 0 | AE103: =VLOOKUP(A103,[1]FullMultExpressionTableReads2Ge!$A$2:$P$26450,14,FALSE) -> 0 | AF103: =VLOOKUP(A103,[1]FullMultExpressionTableReads2Ge!$A$2:$P$26450,15,FALSE) -> 0 | AG103: =VLOOKUP(A103,[1]FullMultExpressionTableReads2Ge!$A$2:$P$26450,16,FALSE) -> 0 | AH103: 0.4082223163 | AI103: -0.155562039 | AJ103: 0.9974604955 | AK103: 0.08453023436 | AL103: 0.1353388986 | AM103: 2.032880399 | AN103: 4246.232809 | AO103: 3932.409669 | AP103: 4390.812393 | AQ103: 4511.307803 | AR103: 4684.648854 | AS103: 4206.010678 | AT103: 3911.690796 | AU103: 3382.38868 | AV103: 3995.13119
A104: AAEL007830 | C104: P33269.2 RecName: Full=Cytochrome P450 4d1; AltName: Full=CYPIVD1 [Drosophila melanogaster] | D104: NA | E104: NA | F104: NA | G104: NA | H104: NA | I104: NA | J104: 0 | K104: 0 | L104: 0 | M104: 0 | N104: 0 | O104: 0 | P104: 0 | Q104: 0 | R104: 0 | S104: NA | T104: NA | U104: NA | V104: NA | W104: NA | X104: NA | Y104: =VLOOKUP(A104,[1]FullMultExpressionTableReads2Ge!$A$2:$P$26450,8,FALSE) -> 0 | Z104: =VLOOKUP(A104,[1]FullMultExpressionTableReads2Ge!$A$2:$P$26450,9,FALSE) -> 0 | AA104: =VLOOKUP(A104,[1]FullMultExpressionTableReads2Ge!$A$2:$P$26450,10,FALSE) -> 0 | AB104: =VLOOKUP(A104,[1]FullMultExpressionTableReads2Ge!$A$2:$P$26450,11,FALSE) -> 0 | AC104: =VLOOKUP(A104,[1]FullMultExpressionTableReads2Ge!$A$2:$P$26450,12,FALSE) -> 0 | AD104: =VLOOKUP(A104,[1]FullMultExpressionTableReads2Ge!$A$2:$P$26450,13,FALSE) -> 0 | AE104: =VLOOKUP(A104,[1]FullMultExpressionTableReads2Ge!$A$2:$P$26450,14,FALSE) -> 0 | AF104: =VLOOKUP(A104,[1]FullMultExpressionTableReads2Ge!$A$2:$P$26450,15,FALSE) -> 0 | AG104: =VLOOKUP(A104,[1]FullMultExpressionTableReads2Ge!$A$2:$P$26450,16,FALSE) -> 0 | AH104: 0.7282866605 | AI104: -0.284016434 | AJ104: 0.9974604955 | AK104: 0.0877495115 | AL104: 0.6756425868 | AM104: 0.2974053301 | AN104: 5948.723241 | AO104: 5060.10973 | AP104: 9497.0321 | AQ104: 6459.239323 | AR104: 5525.533116 | AS104: 9938.104242 | AT104: 5184.898543 | AU104: 4211.005988 | AV104: 7462.162869
A105: AAEL009123 | C105: Q964Q7.1 RecName: Full=Cytochrome P450 6d3; AltName: Full=CYPVID3; AltName: Full=Pyrethroid resistance cytochrome P450 [Musca domestica] | D105: NA | E105: NA | F105: NA | G105: NA | H105: NA | I105: NA | J105: 0 | K105: 0 | L105: 0 | M105: 0 | N105: 0 | O105: 0 | P105: 0 | Q105: 0 | R105: 0 | S105: NA | T105: NA | U105: NA | V105: NA | W105: NA | X105: NA | Y105: =VLOOKUP(A105,[1]FullMultExpressionTableReads2Ge!$A$2:$P$26450,8,FALSE) -> 0 | Z105: =VLOOKUP(A105,[1]FullMultExpressionTableReads2Ge!$A$2:$P$26450,9,FALSE) -> 0 | AA105: =VLOOKUP(A105,[1]FullMultExpressionTableReads2Ge!$A$2:$P$26450,10,FALSE) -> 0 | AB105: =VLOOKUP(A105,[1]FullMultExpressionTableReads2Ge!$A$2:$P$26450,11,FALSE) -> 0 | AC105: =VLOOKUP(A105,[1]FullMultExpressionTableReads2Ge!$A$2:$P$26450,12,FALSE) -> 0 | AD105: =VLOOKUP(A105,[1]FullMultExpressionTableReads2Ge!$A$2:$P$26450,13,FALSE) -> 0 | AE105: =VLOOKUP(A105,[1]FullMultExpressionTableReads2Ge!$A$2:$P$26450,14,FALSE) -> 0 | AF105: =VLOOKUP(A105,[1]FullMultExpressionTableReads2Ge!$A$2:$P$26450,15,FALSE) -> 0 | AG105: =VLOOKUP(A105,[1]FullMultExpressionTableReads2Ge!$A$2:$P$26450,16,FALSE) -> 0 | AH105: 0.8719763097 | AI105: -0.06898724328 | AJ105: 0.9974604955 | AK105: 0.1273517533 | AL105: 0.5471661727 | AM105: -0.1105668335 | AN105: 2392.934792 | AO105: 2271.556284 | AP105: 3272.988464 | AQ105: 2667.904203 | AR105: 2643.195732 | AS105: 3405.838265 | AT105: 2463.003861 | AU105: 2196.410567 | AV105: 2912.981332
A106: AAEL005956 | C106: P55866.1 RecName: Full=Caspase-3; Short=CASP-3; AltName: Full=Apopain; AltName: Full=Cysteine protease CPP32; Short=xCPP32; Contains: RecName: Full=Caspase-3 subunit p17; Contains: RecName: Full=Caspase-3 subunit p12; Flags: Precursor [Xenopus laevis] | D106: NA | E106: NA | F106: NA | G106: NA | H106: NA | I106: NA | J106: 0 | K106: 0 | L106: 0 | M106: 0 | N106: 0 | O106: 0 | P106: 0 | Q106: 0 | R106: 0 | S106: NA | T106: NA | U106: NA | V106: NA | W106: NA | X106: NA | Y106: =VLOOKUP(A106,[1]FullMultExpressionTableReads2Ge!$A$2:$P$26450,8,FALSE) -> 0 | Z106: =VLOOKUP(A106,[1]FullMultExpressionTableReads2Ge!$A$2:$P$26450,9,FALSE) -> 0 | AA106: =VLOOKUP(A106,[1]FullMultExpressionTableReads2Ge!$A$2:$P$26450,10,FALSE) -> 0 | AB106: =VLOOKUP(A106,[1]FullMultExpressionTableReads2Ge!$A$2:$P$26450,11,FALSE) -> 0 | AC106: =VLOOKUP(A106,[1]FullMultExpressionTableReads2Ge!$A$2:$P$26450,12,FALSE) -> 0 | AD106: =VLOOKUP(A106,[1]FullMultExpressionTableReads2Ge!$A$2:$P$26450,13,FALSE) -> 0 | AE106: =VLOOKUP(A106,[1]FullMultExpressionTableReads2Ge!$A$2:$P$26450,14,FALSE) -> 0 | AF106: =VLOOKUP(A106,[1]FullMultExpressionTableReads2Ge!$A$2:$P$26450,15,FALSE) -> 0 | AG106: =VLOOKUP(A106,[1]FullMultExpressionTableReads2Ge!$A$2:$P$26450,16,FALSE) -> 0 | AH106: 0.6065478766 | AI106: -0.1121816857 | AJ106: 0.9974604955 | AK106: 0.05600253842 | AL106: 0.4832160768 | AM106: 0.2974053301 | AN106: 4148.117031 | AO106: 4065.96727 | AP106: 4268.969585 | AQ106: 4637.327445 | AR106: 4338.573944 | AS106: 4072.339184 | AT106: 4210.713629 | AU106: 3994.708658 | AV106: 3337.2775
A107: AAEL012417 | B107: unspecified product | C107: Q0VCR6.1 RecName: Full=Transmembrane protein 68 [Bos taurus] | D107: NA | E107: NA | F107: NA | G107: NA | H107: NA | I107: NA | J107: 0 | K107: 0 | L107: 0 | M107: 0 | N107: 0 | O107: 0 | P107: 0 | Q107: 0 | R107: 0 | S107: NA | T107: NA | U107: NA | V107: NA | W107: NA | X107: NA | Y107: =VLOOKUP(A107,[1]FullMultExpressionTableReads2Ge!$A$2:$P$26450,8,FALSE) -> 0 | Z107: =VLOOKUP(A107,[1]FullMultExpressionTableReads2Ge!$A$2:$P$26450,9,FALSE) -> 0 | AA107: =VLOOKUP(A107,[1]FullMultExpressionTableReads2Ge!$A$2:$P$26450,10,FALSE) -> 0 | AB107: =VLOOKUP(A107,[1]FullMultExpressionTableReads2Ge!$A$2:$P$26450,11,FALSE) -> 0 | AC107: =VLOOKUP(A107,[1]FullMultExpressionTableReads2Ge!$A$2:$P$26450,12,FALSE) -> 0 | AD107: =VLOOKUP(A107,[1]FullMultExpressionTableReads2Ge!$A$2:$P$26450,13,FALSE) -> 0 | AE107: =VLOOKUP(A107,[1]FullMultExpressionTableReads2Ge!$A$2:$P$26450,14,FALSE) -> 0 | AF107: =VLOOKUP(A107,[1]FullMultExpressionTableReads2Ge!$A$2:$P$26450,15,FALSE) -> 0 | AG107: =VLOOKUP(A107,[1]FullMultExpressionTableReads2Ge!$A$2:$P$26450,16,FALSE) -> 0 | AH107: 0.9274642895 | AI107: -0.01504974418 | AJ107: 0.9974604955 | AK107: 0.03078230454 | AL107: 0.7864446848 | AM107: NA | AN107: 2890.781514 | AO107: 2886.567492 | AP107: 2979.000771 | AQ107: 3070.38554 | AR107: 2796.790777 | AS107: 3125.499438 | AT107: 3001.24496 | AU107: 2766.933959 | AV107: 2894.815747
A108: AAEL019603 | B108: unspecified product | C108: Q964T2.1 RecName: Full=Cytochrome P450 9e2; AltName: Full=CYPIXE2 [Blattella germanica] | D108: NA | E108: NA | F108: NA | G108: NA | H108: NA | I108: NA | J108: 0 | K108: 0 | L108: 0 | M108: 0 | N108: 0 | O108: 0 | P108: 0 | Q108: 0 | R108: 0 | S108: NA | T108: NA | U108: NA | V108: NA | W108: NA | X108: NA | Y108: =VLOOKUP(A108,[1]FullMultExpressionTableReads2Ge!$A$2:$P$26450,8,FALSE) -> 0 | Z108: =VLOOKUP(A108,[1]FullMultExpressionTableReads2Ge!$A$2:$P$26450,9,FALSE) -> 0 | AA108: =VLOOKUP(A108,[1]FullMultExpressionTableReads2Ge!$A$2:$P$26450,10,FALSE) -> 0 | AB108: =VLOOKUP(A108,[1]FullMultExpressionTableReads2Ge!$A$2:$P$26450,11,FALSE) -> 0 | AC108: =VLOOKUP(A108,[1]FullMultExpressionTableReads2Ge!$A$2:$P$26450,12,FALSE) -> 0 | AD108: =VLOOKUP(A108,[1]FullMultExpressionTableReads2Ge!$A$2:$P$26450,13,FALSE) -> 0 | AE108: =VLOOKUP(A108,[1]FullMultExpressionTableReads2Ge!$A$2:$P$26450,14,FALSE) -> 0 | AF108: =VLOOKUP(A108,[1]FullMultExpressionTableReads2Ge!$A$2:$P$26450,15,FALSE) -> 0 | AG108: =VLOOKUP(A108,[1]FullMultExpressionTableReads2Ge!$A$2:$P$26450,16,FALSE) -> 0 | AH108: 0.6065766544 | AI108: -0.1334196834 | AJ108: 0.9974604955 | AK108: 0.1638143446 | AL108: 0.04318419107 | AM108: -0.5092246538 | AN108: 4464.267869 | AO108: 4177.983321 | AP108: 5439.331238 | AQ108: 5117.960498 | AR108: 5125.019456 | AS108: 5617.91583 | AT108: 4532.556626 | AU108: 3890.217194 | AV108: 4418.129816
A109: AAEL012701 | B109: ATP-binding cassette sub-family A member 3%2C putative | C109: Q99758.2 RecName: Full=Phospholipid-transporting ATPase ABCA3; AltName: Full=ABC-C transporter; AltName: Full=ATP-binding cassette sub-family A member 3; AltName: Full=ATP-binding cassette transporter 3; Short=ATP-binding cassette 3; AltName: Full=Xenobiotic-transporting ATPase ABCA3; Contains: RecName: Full=150 Kda mature form [Homo sapiens] | D109: NA | E109: NA | F109: NA | G109: NA | H109: NA | I109: NA | J109: 0 | K109: 0 | L109: 0 | M109: 0 | N109: 0 | O109: 0 | P109: 0 | Q109: 0 | R109: 0 | S109: NA | T109: NA | U109: NA | V109: NA | W109: NA | X109: NA | Y109: =VLOOKUP(A109,[1]FullMultExpressionTableReads2Ge!$A$2:$P$26450,8,FALSE) -> 0 | Z109: =VLOOKUP(A109,[1]FullMultExpressionTableReads2Ge!$A$2:$P$26450,9,FALSE) -> 0 | AA109: =VLOOKUP(A109,[1]FullMultExpressionTableReads2Ge!$A$2:$P$26450,10,FALSE) -> 0 | AB109: =VLOOKUP(A109,[1]FullMultExpressionTableReads2Ge!$A$2:$P$26450,11,FALSE) -> 0 | AC109: =VLOOKUP(A109,[1]FullMultExpressionTableReads2Ge!$A$2:$P$26450,12,FALSE) -> 0 | AD109: =VLOOKUP(A109,[1]FullMultExpressionTableReads2Ge!$A$2:$P$26450,13,FALSE) -> 0 | AE109: =VLOOKUP(A109,[1]FullMultExpressionTableReads2Ge!$A$2:$P$26450,14,FALSE) -> 0 | AF109: =VLOOKUP(A109,[1]FullMultExpressionTableReads2Ge!$A$2:$P$26450,15,FALSE) -> 0 | AG109: =VLOOKUP(A109,[1]FullMultExpressionTableReads2Ge!$A$2:$P$26450,16,FALSE) -> 0 | AH109: 0.8922205752 | AI109: -0.02666980386 | AJ109: 0.9974604955 | AK109: -0.007069496131 | AL109: 0.8950615315 | AM109: NA | AN109: 13228.36883 | AO109: 12270.066 | AP109: 13667.63318 | AQ109: 13520.24686 | AR109: 12141.78547 | AS109: 13528.66908 | AT109: 13760.55863 | AU109: 12279.83682 | AV109: 12410.98728
A110: AAEL004074 | B110: unspecified product | D110: NA | E110: NA | F110: NA | G110: NA | H110: NA | I110: NA | J110: 0 | K110: 0 | L110: 0 | M110: 0 | N110: 0 | O110: 0 | P110: 0 | Q110: 0 | R110: 0 | S110: NA | T110: NA | U110: NA | V110: NA | W110: NA | X110: NA | Y110: =VLOOKUP(A110,[1]FullMultExpressionTableReads2Ge!$A$2:$P$26450,8,FALSE) -> 0 | Z110: =VLOOKUP(A110,[1]FullMultExpressionTableReads2Ge!$A$2:$P$26450,9,FALSE) -> 0 | AA110: =VLOOKUP(A110,[1]FullMultExpressionTableReads2Ge!$A$2:$P$26450,10,FALSE) -> 0 | AB110: =VLOOKUP(A110,[1]FullMultExpressionTableReads2Ge!$A$2:$P$26450,11,FALSE) -> 0 | AC110: =VLOOKUP(A110,[1]FullMultExpressionTableReads2Ge!$A$2:$P$26450,12,FALSE) -> 0 | AD110: =VLOOKUP(A110,[1]FullMultExpressionTableReads2Ge!$A$2:$P$26450,13,FALSE) -> 0 | AE110: =VLOOKUP(A110,[1]FullMultExpressionTableReads2Ge!$A$2:$P$26450,14,FALSE) -> 0 | AF110: =VLOOKUP(A110,[1]FullMultExpressionTableReads2Ge!$A$2:$P$26450,15,FALSE) -> 0 | AG110: =VLOOKUP(A110,[1]FullMultExpressionTableReads2Ge!$A$2:$P$26450,16,FALSE) -> 0 | AH110: 0.9718493907 | AI110: -0.005279975571 | AJ110: 0.9974604955 | AK110: 0.008506953303 | AL110: 0.8692159375 | AM110: 0.2974053301 | AN110: 11077.08957 | AO110: 10892.48397 | AP110: 11525.88253 | AQ110: 11148.34228 | AR110: 11198.82855 | AS110: 11528.23805 | AT110: 11464.37804 | AU110: 11187.90102 | AV110: 10718.99278
A111: AAEL022676 | B111: unspecified product | D111: NA | E111: NA | F111: NA | G111: NA | H111: NA | I111: NA | J111: 0 | K111: 0 | L111: 0 | M111: 0 | N111: 0 | O111: 0 | P111: 0 | Q111: 0 | R111: 0 | S111: NA | T111: NA | U111: NA | V111: NA | W111: NA | X111: NA | Y111: =VLOOKUP(A111,[1]FullMultExpressionTableReads2Ge!$A$2:$P$26450,8,FALSE) -> 0 | Z111: =VLOOKUP(A111,[1]FullMultExpressionTableReads2Ge!$A$2:$P$26450,9,FALSE) -> 0 | AA111: =VLOOKUP(A111,[1]FullMultExpressionTableReads2Ge!$A$2:$P$26450,10,FALSE) -> 0 | AB111: =VLOOKUP(A111,[1]FullMultExpressionTableReads2Ge!$A$2:$P$26450,11,FALSE) -> 0 | AC111: =VLOOKUP(A111,[1]FullMultExpressionTableReads2Ge!$A$2:$P$26450,12,FALSE) -> 0 | AD111: =VLOOKUP(A111,[1]FullMultExpressionTableReads2Ge!$A$2:$P$26450,13,FALSE) -> 0 | AE111: =VLOOKUP(A111,[1]FullMultExpressionTableReads2Ge!$A$2:$P$26450,14,FALSE) -> 0 | AF111: =VLOOKUP(A111,[1]FullMultExpressionTableReads2Ge!$A$2:$P$26450,15,FALSE) -> 0 | AG111: =VLOOKUP(A111,[1]FullMultExpressionTableReads2Ge!$A$2:$P$26450,16,FALSE) -> 0 | AH111: 0.6767876718 | AI111: -0.1881270435 | AJ111: 0.9974604955 | AK111: 0.2218542014 | AL111: 0.3475584677 | AM111: NA | AN111: 6957.135397 | AO111: 6700.498645 | AP111: 9268.996019 | AQ111: 8294.827752 | AR111: 7346.314877 | AS111: 11248.8275 | AT111: 6011.145845 | AU111: 5287.268064 | AV111: 8844.044882
A112: AAEL001401 | C112: P51884.2 RecName: Full=Lumican; AltName: Full=Keratan sulfate proteoglycan lumican; Short=KSPG lumican; Flags: Precursor [Homo sapiens] | D112: NA | E112: NA | F112: NA | G112: NA | H112: NA | I112: NA | J112: 0 | K112: 0 | L112: 0 | M112: 0 | N112: 0 | O112: 0 | P112: 0 | Q112: 0 | R112: 0 | S112: NA | T112: NA | U112: NA | V112: NA | W112: NA | X112: NA | Y112: =VLOOKUP(A112,[1]FullMultExpressionTableReads2Ge!$A$2:$P$26450,8,FALSE) -> 0 | Z112: =VLOOKUP(A112,[1]FullMultExpressionTableReads2Ge!$A$2:$P$26450,9,FALSE) -> 0 | AA112: =VLOOKUP(A112,[1]FullMultExpressionTableReads2Ge!$A$2:$P$26450,10,FALSE) -> 0 | AB112: =VLOOKUP(A112,[1]FullMultExpressionTableReads2Ge!$A$2:$P$26450,11,FALSE) -> 0 | AC112: =VLOOKUP(A112,[1]FullMultExpressionTableReads2Ge!$A$2:$P$26450,12,FALSE) -> 0 | AD112: =VLOOKUP(A112,[1]FullMultExpressionTableReads2Ge!$A$2:$P$26450,13,FALSE) -> 0 | AE112: =VLOOKUP(A112,[1]FullMultExpressionTableReads2Ge!$A$2:$P$26450,14,FALSE) -> 0 | AF112: =VLOOKUP(A112,[1]FullMultExpressionTableReads2Ge!$A$2:$P$26450,15,FALSE) -> 0 | AG112: =VLOOKUP(A112,[1]FullMultExpressionTableReads2Ge!$A$2:$P$26450,16,FALSE) -> 0 | AH112: 0.9570085901 | AI112: -0.02454868497 | AJ112: 0.9974604955 | AK112: 0.061394718 | AL112: 0.8584810573 | AM112: 0.2974053301 | AN112: 3304.13965 | AO112: 3341.094164 | AP112: 2878.396617 | AQ112: 3550.041697 | AR112: 3621.14899 | AS112: 2821.02548 | AT112: 3591.421604 | AU112: 3420.005607 | AV112: 2345.955567
A113: AAEL019419 | B113: unspecified product | D113: NA | E113: NA | F113: NA | G113: NA | H113: NA | I113: NA | J113: 0 | K113: 0 | L113: 0 | M113: 0 | N113: 0 | O113: 0 | P113: 0 | Q113: 0 | R113: 0 | S113: NA | T113: NA | U113: NA | V113: NA | W113: NA | X113: NA | Y113: =VLOOKUP(A113,[1]FullMultExpressionTableReads2Ge!$A$2:$P$26450,8,FALSE) -> 0 | Z113: =VLOOKUP(A113,[1]FullMultExpressionTableReads2Ge!$A$2:$P$26450,9,FALSE) -> 0 | AA113: =VLOOKUP(A113,[1]FullMultExpressionTableReads2Ge!$A$2:$P$26450,10,FALSE) -> 0 | AB113: =VLOOKUP(A113,[1]FullMultExpressionTableReads2Ge!$A$2:$P$26450,11,FALSE) -> 0 | AC113: =VLOOKUP(A113,[1]FullMultExpressionTableReads2Ge!$A$2:$P$26450,12,FALSE) -> 0 | AD113: =VLOOKUP(A113,[1]FullMultExpressionTableReads2Ge!$A$2:$P$26450,13,FALSE) -> 0 | AE113: =VLOOKUP(A113,[1]FullMultExpressionTableReads2Ge!$A$2:$P$26450,14,FALSE) -> 0 | AF113: =VLOOKUP(A113,[1]FullMultExpressionTableReads2Ge!$A$2:$P$26450,15,FALSE) -> 0 | AG113: =VLOOKUP(A113,[1]FullMultExpressionTableReads2Ge!$A$2:$P$26450,16,FALSE) -> 0 | AH113: 0.7161697051 | AI113: 0.08086630672 | AJ113: 0.9974604955 | AK113: -0.1250023969 | AL113: 0.3976841625 | AM113: -0.5092246538 | AN113: 3086.104589 | AO113: 3509.118242 | AP113: 3186.916021 | AQ113: 2753.871091 | AR113: 3191.471714 | AS113: 3069.802982 | AT113: 3196.396704 | AU113: 3315.514144 | AV113: 3843.3188
A114: AAEL006754 | B114: unspecified product | D114: NA | E114: NA | F114: NA | G114: NA | H114: NA | I114: NA | J114: 0 | K114: 0 | L114: 0 | M114: 0 | N114: 0 | O114: 0 | P114: 0 | Q114: 0 | R114: 0 | S114: NA | T114: NA | U114: NA | V114: NA | W114: NA | X114: NA | Y114: =VLOOKUP(A114,[1]FullMultExpressionTableReads2Ge!$A$2:$P$26450,8,FALSE) -> 0 | Z114: =VLOOKUP(A114,[1]FullMultExpressionTableReads2Ge!$A$2:$P$26450,9,FALSE) -> 0 | AA114: =VLOOKUP(A114,[1]FullMultExpressionTableReads2Ge!$A$2:$P$26450,10,FALSE) -> 0 | AB114: =VLOOKUP(A114,[1]FullMultExpressionTableReads2Ge!$A$2:$P$26450,11,FALSE) -> 0 | AC114: =VLOOKUP(A114,[1]FullMultExpressionTableReads2Ge!$A$2:$P$26450,12,FALSE) -> 0 | AD114: =VLOOKUP(A114,[1]FullMultExpressionTableReads2Ge!$A$2:$P$26450,13,FALSE) -> 0 | AE114: =VLOOKUP(A114,[1]FullMultExpressionTableReads2Ge!$A$2:$P$26450,14,FALSE) -> 0 | AF114: =VLOOKUP(A114,[1]FullMultExpressionTableReads2Ge!$A$2:$P$26450,15,FALSE) -> 0 | AG114: =VLOOKUP(A114,[1]FullMultExpressionTableReads2Ge!$A$2:$P$26450,16,FALSE) -> 0 | AH114: 0.5192060583 | AI114: -0.1816430356 | AJ114: 0.9974604955 | AK114: 0.1930506501 | AL114: 0.07816569487 | AM114: 0.2974053301 | AN114: 2445.626598 | AO114: 2215.548258 | AP114: 2773.321168 | AQ114: 2937.527623 | AR114: 2577.091536 | AS114: 3030.815463 | AT114: 2307.197227 | AU114: 1856.81331 | AV114: 2393.964614
A115: AAEL023746 | B115: unspecified product | D115: NA | E115: NA | F115: NA | G115: NA | H115: NA | I115: NA | J115: 0 | K115: 0 | L115: 0 | M115: 0 | N115: 0 | O115: 0 | P115: 0 | Q115: 0 | R115: 0 | S115: NA | T115: NA | U115: NA | V115: NA | W115: NA | X115: NA | Y115: =VLOOKUP(A115,[1]FullMultExpressionTableReads2Ge!$A$2:$P$26450,8,FALSE) -> 0 | Z115: =VLOOKUP(A115,[1]FullMultExpressionTableReads2Ge!$A$2:$P$26450,9,FALSE) -> 0 | AA115: =VLOOKUP(A115,[1]FullMultExpressionTableReads2Ge!$A$2:$P$26450,10,FALSE) -> 0 | AB115: =VLOOKUP(A115,[1]FullMultExpressionTableReads2Ge!$A$2:$P$26450,11,FALSE) -> 0 | AC115: =VLOOKUP(A115,[1]FullMultExpressionTableReads2Ge!$A$2:$P$26450,12,FALSE) -> 0 | AD115: =VLOOKUP(A115,[1]FullMultExpressionTableReads2Ge!$A$2:$P$26450,13,FALSE) -> 0 | AE115: =VLOOKUP(A115,[1]FullMultExpressionTableReads2Ge!$A$2:$P$26450,14,FALSE) -> 0 | AF115: =VLOOKUP(A115,[1]FullMultExpressionTableReads2Ge!$A$2:$P$26450,15,FALSE) -> 0 | AG115: =VLOOKUP(A115,[1]FullMultExpressionTableReads2Ge!$A$2:$P$26450,16,FALSE) -> 0 | AH115: 0.6199561115 | AI115: -0.06901984513 | AJ115: 0.9974604955 | AK115: 0.04230657157 | AL115: 0.2961065809 | AM115: NA | AN115: 2892.598473 | AO115: 3085.826815 | AP115: 3115.37529 | AQ115: 3110.438295 | AR115: 3141.893566 | AS115: 3158.917311 | AT115: 2858.028761 | AU115: 2810.820374 | AV115: 3003.809258
A116: AAEL010404 | B116: unspecified product | C116: X1WEM4.1 RecName: Full=Calcium permeable stress-gated cation channel 1; AltName: Full=Transmembrane protein 63c [Danio rerio] | D116: NA | E116: NA | F116: NA | G116: NA | H116: NA | I116: NA | J116: 0 | K116: 0 | L116: 0 | M116: 0 | N116: 0 | O116: 0 | P116: 0 | Q116: 0 | R116: 0 | S116: NA | T116: NA | U116: NA | V116: NA | W116: NA | X116: NA | Y116: =VLOOKUP(A116,[1]FullMultExpressionTableReads2Ge!$A$2:$P$26450,8,FALSE) -> 0 | Z116: =VLOOKUP(A116,[1]FullMultExpressionTableReads2Ge!$A$2:$P$26450,9,FALSE) -> 0 | AA116: =VLOOKUP(A116,[1]FullMultExpressionTableReads2Ge!$A$2:$P$26450,10,FALSE) -> 0 | AB116: =VLOOKUP(A116,[1]FullMultExpressionTableReads2Ge!$A$2:$P$26450,11,FALSE) -> 0 | AC116: =VLOOKUP(A116,[1]FullMultExpressionTableReads2Ge!$A$2:$P$26450,12,FALSE) -> 0 | AD116: =VLOOKUP(A116,[1]FullMultExpressionTableReads2Ge!$A$2:$P$26450,13,FALSE) -> 0 | AE116: =VLOOKUP(A116,[1]FullMultExpressionTableReads2Ge!$A$2:$P$26450,14,FALSE) -> 0 | AF116: =VLOOKUP(A116,[1]FullMultExpressionTableReads2Ge!$A$2:$P$26450,15,FALSE) -> 0 | AG116: =VLOOKUP(A116,[1]FullMultExpressionTableReads2Ge!$A$2:$P$26450,16,FALSE) -> 0 | AH116: 0.8334570982 | AI116: 0.0396454684 | AJ116: 0.9974604955 | AK116: -0.06651260731 | AL116: 0.6680296534 | AM116: NA | AN116: 3555.788449 | AO116: 3439.10821 | AP116: 3730.178451 | AQ116: 3450.398259 | AR116: 3239.10562 | AS116: 3607.27378 | AT116: 3844.80411 | AU116: 3391.792912 | AV116: 3788.822045
A117: AAEL025609 | B117: unspecified product | D117: NA | E117: NA | F117: NA | G117: NA | H117: NA | I117: NA | J117: 0 | K117: 0 | L117: 0 | M117: 0 | N117: 0 | O117: 0 | P117: 0 | Q117: 0 | R117: 0 | S117: NA | T117: NA | U117: NA | V117: NA | W117: NA | X117: NA | Y117: =VLOOKUP(A117,[1]FullMultExpressionTableReads2Ge!$A$2:$P$26450,8,FALSE) -> 0 | Z117: =VLOOKUP(A117,[1]FullMultExpressionTableReads2Ge!$A$2:$P$26450,9,FALSE) -> 0 | AA117: =VLOOKUP(A117,[1]FullMultExpressionTableReads2Ge!$A$2:$P$26450,10,FALSE) -> 0 | AB117: =VLOOKUP(A117,[1]FullMultExpressionTableReads2Ge!$A$2:$P$26450,11,FALSE) -> 0 | AC117: =VLOOKUP(A117,[1]FullMultExpressionTableReads2Ge!$A$2:$P$26450,12,FALSE) -> 0 | AD117: =VLOOKUP(A117,[1]FullMultExpressionTableReads2Ge!$A$2:$P$26450,13,FALSE) -> 0 | AE117: =VLOOKUP(A117,[1]FullMultExpressionTableReads2Ge!$A$2:$P$26450,14,FALSE) -> 0 | AF117: =VLOOKUP(A117,[1]FullMultExpressionTableReads2Ge!$A$2:$P$26450,15,FALSE) -> 0 | AG117: =VLOOKUP(A117,[1]FullMultExpressionTableReads2Ge!$A$2:$P$26450,16,FALSE) -> 0 | AH117: 0.6974990784 | AI117: -0.1761608712 | AJ117: 0.9974604955 | AK117: 0.188673417 | AL117: 0.4408941377 | AM117: NA | AN117: 6442.936046 | AO117: 6196.426411 | AP117: 8656.428506 | AQ117: 7861.085728 | AR117: 6290.591977 | AS117: 10258.35886 | AT117: 5807.338177 | AU117: 4876.616611 | AV117: 8181.001024
A118: AAEL001959 | B118: unspecified product | D118: NA | E118: NA | F118: NA | G118: NA | H118: NA | I118: NA | J118: 0 | K118: 0 | L118: 0 | M118: 0 | N118: 0 | O118: 0 | P118: 0 | Q118: 0 | R118: 0 | S118: NA | T118: NA | U118: NA | V118: NA | W118: NA | X118: NA | Y118: =VLOOKUP(A118,[1]FullMultExpressionTableReads2Ge!$A$2:$P$26450,8,FALSE) -> 0 | Z118: =VLOOKUP(A118,[1]FullMultExpressionTableReads2Ge!$A$2:$P$26450,9,FALSE) -> 0 | AA118: =VLOOKUP(A118,[1]FullMultExpressionTableReads2Ge!$A$2:$P$26450,10,FALSE) -> 0 | AB118: =VLOOKUP(A118,[1]FullMultExpressionTableReads2Ge!$A$2:$P$26450,11,FALSE) -> 0 | AC118: =VLOOKUP(A118,[1]FullMultExpressionTableReads2Ge!$A$2:$P$26450,12,FALSE) -> 0 | AD118: =VLOOKUP(A118,[1]FullMultExpressionTableReads2Ge!$A$2:$P$26450,13,FALSE) -> 0 | AE118: =VLOOKUP(A118,[1]FullMultExpressionTableReads2Ge!$A$2:$P$26450,14,FALSE) -> 0 | AF118: =VLOOKUP(A118,[1]FullMultExpressionTableReads2Ge!$A$2:$P$26450,15,FALSE) -> 0 | AG118: =VLOOKUP(A118,[1]FullMultExpressionTableReads2Ge!$A$2:$P$26450,16,FALSE) -> 0 | AH118: 0.9518492768 | AI118: 0.02713255604 | AJ118: 0.9974604955 | AK118: -0.004088917143 | AL118: 0.979792507 | AM118: 0.2974053301 | AN118: 10636.47705 | AO118: 11390.09374 | AP118: 9042.077761 | AQ118: 11040.88367 | AR118: 11286.3194 | AS118: 8814.892386 | AT118: 11657.16907 | AU118: 12040.55136 | AV118: 7952.633668
A119: AAEL021473 | B119: unspecified product | C119: Q6P2Y3.2 RecName: Full=DnaJ homolog subfamily C member 2 [Xenopus tropicalis] | D119: NA | E119: NA | F119: NA | G119: NA | H119: NA | I119: NA | J119: 0 | K119: 0 | L119: 0 | M119: 0 | N119: 0 | O119: 0 | P119: 0 | Q119: 0 | R119: 0 | S119: NA | T119: NA | U119: NA | V119: NA | W119: NA | X119: NA | Y119: =VLOOKUP(A119,[1]FullMultExpressionTableReads2Ge!$A$2:$P$26450,8,FALSE) -> 0 | Z119: =VLOOKUP(A119,[1]FullMultExpressionTableReads2Ge!$A$2:$P$26450,9,FALSE) -> 0 | AA119: =VLOOKUP(A119,[1]FullMultExpressionTableReads2Ge!$A$2:$P$26450,10,FALSE) -> 0 | AB119: =VLOOKUP(A119,[1]FullMultExpressionTableReads2Ge!$A$2:$P$26450,11,FALSE) -> 0 | AC119: =VLOOKUP(A119,[1]FullMultExpressionTableReads2Ge!$A$2:$P$26450,12,FALSE) -> 0 | AD119: =VLOOKUP(A119,[1]FullMultExpressionTableReads2Ge!$A$2:$P$26450,13,FALSE) -> 0 | AE119: =VLOOKUP(A119,[1]FullMultExpressionTableReads2Ge!$A$2:$P$26450,14,FALSE) -> 0 | AF119: =VLOOKUP(A119,[1]FullMultExpressionTableReads2Ge!$A$2:$P$26450,15,FALSE) -> 0 | AG119: =VLOOKUP(A119,[1]FullMultExpressionTableReads2Ge!$A$2:$P$26450,16,FALSE) -> 0 | AH119: 0.9904757416 | AI119: -0.005218567408 | AJ119: 0.9974604955 | AK119: 0.02304519647 | AL119: 0.9393982873 | AM119: -0.5092246538 | AN119: 7698.454604 | AO119: 9177.776716 | AP119: 6892.502346 | AQ119: 7848.386074 | AR119: 9586.080588 | AS119: 6837.668209 | AT119: 7977.614423 | AU119: 9072.993794 | AV119: 6629.141036
A120: AAEL012845 | B120: Mitochondrial import inner membrane translocase subunit TIM44 [Source:UniProtKB/TrEMBL%3BAcc:Q16KX3] | C120: O35857.2 RecName: Full=Mitochondrial import inner membrane translocase subunit TIM44; Flags: Precursor [Mus musculus] | D120: NA | E120: NA | F120: NA | G120: NA | H120: NA | I120: NA | J120: 0 | K120: 0 | L120: 0 | M120: 0 | N120: 0 | O120: 0 | P120: 0 | Q120: 0 | R120: 0 | S120: NA | T120: NA | U120: NA | V120: NA | W120: NA | X120: NA | Y120: =VLOOKUP(A120,[1]FullMultExpressionTableReads2Ge!$A$2:$P$26450,8,FALSE) -> 0 | Z120: =VLOOKUP(A120,[1]FullMultExpressionTableReads2Ge!$A$2:$P$26450,9,FALSE) -> 0 | AA120: =VLOOKUP(A120,[1]FullMultExpressionTableReads2Ge!$A$2:$P$26450,10,FALSE) -> 0 | AB120: =VLOOKUP(A120,[1]FullMultExpressionTableReads2Ge!$A$2:$P$26450,11,FALSE) -> 0 | AC120: =VLOOKUP(A120,[1]FullMultExpressionTableReads2Ge!$A$2:$P$26450,12,FALSE) -> 0 | AD120: =VLOOKUP(A120,[1]FullMultExpressionTableReads2Ge!$A$2:$P$26450,13,FALSE) -> 0 | AE120: =VLOOKUP(A120,[1]FullMultExpressionTableReads2Ge!$A$2:$P$26450,14,FALSE) -> 0 | AF120: =VLOOKUP(A120,[1]FullMultExpressionTableReads2Ge!$A$2:$P$26450,15,FALSE) -> 0 | AG120: =VLOOKUP(A120,[1]FullMultExpressionTableReads2Ge!$A$2:$P$26450,16,FALSE) -> 0 | AH120: 0.9667332588 | AI120: -0.02241009028 | AJ120: 0.9974604955 | AK120: 0.04412807991 | AL120: 0.9060374648 | AM120: NA | AN120: 3762.013278 | AO120: 4923.320898 | AP120: 3494.317602 | AQ120: 4169.394046 | AR120: 5031.695885 | AS120: 3417.90583 | AT120: 4098.186616 | AU120: 4892.290331 | AV120: 2997.321549
A121: AAEL005175 | B121: lipin | D121: NA | E121: NA | F121: NA | G121: NA | H121: NA | I121: NA | J121: 0 | K121: 0 | L121: 0 | M121: 0 | N121: 0 | O121: 0 | P121: 0 | Q121: 0 | R121: 0 | S121: NA | T121: NA | U121: NA | V121: NA | W121: NA | X121: NA | Y121: =VLOOKUP(A121,[1]FullMultExpressionTableReads2Ge!$A$2:$P$26450,8,FALSE) -> 0 | Z121: =VLOOKUP(A121,[1]FullMultExpressionTableReads2Ge!$A$2:$P$26450,9,FALSE) -> 0 | AA121: =VLOOKUP(A121,[1]FullMultExpressionTableReads2Ge!$A$2:$P$26450,10,FALSE) -> 0 | AB121: =VLOOKUP(A121,[1]FullMultExpressionTableReads2Ge!$A$2:$P$26450,11,FALSE) -> 0 | AC121: =VLOOKUP(A121,[1]FullMultExpressionTableReads2Ge!$A$2:$P$26450,12,FALSE) -> 0 | AD121: =VLOOKUP(A121,[1]FullMultExpressionTableReads2Ge!$A$2:$P$26450,13,FALSE) -> 0 | AE121: =VLOOKUP(A121,[1]FullMultExpressionTableReads2Ge!$A$2:$P$26450,14,FALSE) -> 0 | AF121: =VLOOKUP(A121,[1]FullMultExpressionTableReads2Ge!$A$2:$P$26450,15,FALSE) -> 0 | AG121: =VLOOKUP(A121,[1]FullMultExpressionTableReads2Ge!$A$2:$P$26450,16,FALSE) -> 0 | AH121: 0.8361294748 | AI121: -0.05575688171 | AJ121: 0.9974604955 | AK121: 0.05981564726 | AL121: 0.6708863847 | AM121: 0.2974053301 | AN121: 8745.022896 | AO121: 9483.666704 | AP121: 8112.048252 | AQ121: 9663.459677 | AR121: 9703.707172 | AS121: 8232.864424 | AT121: 8762.155908 | AU121: 9272.57249 | AV121: 7303.86277
A122: AAEL015271 | B122: rac GTPase | C122: P62998.1 RecName: Full=Ras-related C3 botulinum toxin substrate 1; AltName: Full=p21-Rac1; Flags: Precursor [Bos taurus] | D122: NA | E122: NA | F122: NA | G122: NA | H122: NA | I122: NA | J122: 0 | K122: 0 | L122: 0 | M122: 0 | N122: 0 | O122: 0 | P122: 0 | Q122: 0 | R122: 0 | S122: NA | T122: NA | U122: NA | V122: NA | W122: NA | X122: NA | Y122: =VLOOKUP(A122,[1]FullMultExpressionTableReads2Ge!$A$2:$P$26450,8,FALSE) -> 0 | Z122: =VLOOKUP(A122,[1]FullMultExpressionTableReads2Ge!$A$2:$P$26450,9,FALSE) -> 0 | AA122: =VLOOKUP(A122,[1]FullMultExpressionTableReads2Ge!$A$2:$P$26450,10,FALSE) -> 0 | AB122: =VLOOKUP(A122,[1]FullMultExpressionTableReads2Ge!$A$2:$P$26450,11,FALSE) -> 0 | AC122: =VLOOKUP(A122,[1]FullMultExpressionTableReads2Ge!$A$2:$P$26450,12,FALSE) -> 0 | AD122: =VLOOKUP(A122,[1]FullMultExpressionTableReads2Ge!$A$2:$P$26450,13,FALSE) -> 0 | AE122: =VLOOKUP(A122,[1]FullMultExpressionTableReads2Ge!$A$2:$P$26450,14,FALSE) -> 0 | AF122: =VLOOKUP(A122,[1]FullMultExpressionTableReads2Ge!$A$2:$P$26450,15,FALSE) -> 0 | AG122: =VLOOKUP(A122,[1]FullMultExpressionTableReads2Ge!$A$2:$P$26450,16,FALSE) -> 0 | AH122: 0.6668413861 | AI122: -0.1154325288 | AJ122: 0.9974604955 | AK122: 0.1120003894 | AL122: 0.3357516501 | AM122: 2.032880399 | AN122: 2403.836545 | AO122: 2104.609283 | AP122: 2486.040418 | AQ122: 2691.349718 | AR122: 2306.842028 | AS122: 2603.809303 | AT122: 2454.347937 | AU122: 2009.370847 | AV122: 1989.131573
A123: AAEL024838 | B123: unspecified product | C123: Q04861.2 RecName: Full=Nuclear factor NF-kappa-B p105 subunit; AltName: Full=Nuclear factor of kappa light polypeptide gene enhancer in B-cells 1; Contains: RecName: Full=Nuclear factor NF-kappa-B p50 subunit [Gallus gallus] | D123: NA | E123: NA | F123: NA | G123: NA | H123: NA | I123: NA | J123: 0 | K123: 0 | L123: 0 | M123: 0 | N123: 0 | O123: 0 | P123: 0 | Q123: 0 | R123: 0 | S123: NA | T123: NA | U123: NA | V123: NA | W123: NA | X123: NA | Y123: =VLOOKUP(A123,[1]FullMultExpressionTableReads2Ge!$A$2:$P$26450,8,FALSE) -> 0 | Z123: =VLOOKUP(A123,[1]FullMultExpressionTableReads2Ge!$A$2:$P$26450,9,FALSE) -> 0 | AA123: =VLOOKUP(A123,[1]FullMultExpressionTableReads2Ge!$A$2:$P$26450,10,FALSE) -> 0 | AB123: =VLOOKUP(A123,[1]FullMultExpressionTableReads2Ge!$A$2:$P$26450,11,FALSE) -> 0 | AC123: =VLOOKUP(A123,[1]FullMultExpressionTableReads2Ge!$A$2:$P$26450,12,FALSE) -> 0 | AD123: =VLOOKUP(A123,[1]FullMultExpressionTableReads2Ge!$A$2:$P$26450,13,FALSE) -> 0 | AE123: =VLOOKUP(A123,[1]FullMultExpressionTableReads2Ge!$A$2:$P$26450,14,FALSE) -> 0 | AF123: =VLOOKUP(A123,[1]FullMultExpressionTableReads2Ge!$A$2:$P$26450,15,FALSE) -> 0 | AG123: =VLOOKUP(A123,[1]FullMultExpressionTableReads2Ge!$A$2:$P$26450,16,FALSE) -> 0 | AH123: 0.8044478046 | AI123: -0.04121657887 | AJ123: 0.9974604955 | AK123: 0.03787764219 | AL123: 0.6465474666 | AM123: NA | AN123: 2837.181228 | AO123: 2952.269215 | AP123: 3015.88896 | AQ123: 3095.784848 | AR123: 2841.508321 | AS123: 3148.706294 | AT123: 3011.474689 | AU123: 2815.000032 | AV123: 2723.54023
A124: AAEL020359 | B124: unspecified product | D124: NA | E124: NA | F124: NA | G124: NA | H124: NA | I124: NA | J124: 0 | K124: 0 | L124: 0 | M124: 0 | N124: 0 | O124: 0 | P124: 0 | Q124: 0 | R124: 0 | S124: NA | T124: NA | U124: NA | V124: NA | W124: NA | X124: NA | Y124: =VLOOKUP(A124,[1]FullMultExpressionTableReads2Ge!$A$2:$P$26450,8,FALSE) -> 0 | Z124: =VLOOKUP(A124,[1]FullMultExpressionTableReads2Ge!$A$2:$P$26450,9,FALSE) -> 0 | AA124: =VLOOKUP(A124,[1]FullMultExpressionTableReads2Ge!$A$2:$P$26450,10,FALSE) -> 0 | AB124: =VLOOKUP(A124,[1]FullMultExpressionTableReads2Ge!$A$2:$P$26450,11,FALSE) -> 0 | AC124: =VLOOKUP(A124,[1]FullMultExpressionTableReads2Ge!$A$2:$P$26450,12,FALSE) -> 0 | AD124: =VLOOKUP(A124,[1]FullMultExpressionTableReads2Ge!$A$2:$P$26450,13,FALSE) -> 0 | AE124: =VLOOKUP(A124,[1]FullMultExpressionTableReads2Ge!$A$2:$P$26450,14,FALSE) -> 0 | AF124: =VLOOKUP(A124,[1]FullMultExpressionTableReads2Ge!$A$2:$P$26450,15,FALSE) -> 0 | AG124: =VLOOKUP(A124,[1]FullMultExpressionTableReads2Ge!$A$2:$P$26450,16,FALSE) -> 0 | AH124: 0.3511653963 | AI124: 0.08473502492 | AJ124: 0.9974604955 | AK124: -0.08954263085 | AL124: 0.1245725166 | AM124: -0.5092246538 | AN124: 8675.06998 | AO124: 9105.612529 | AP124: 8939.23796 | AQ124: 8103.356047 | AR124: 8812.272642 | AS124: 8328.476673 | AT124: 9447.547717 | AU124: 9335.267368 | AV124: 9558.990412
A125: AAEL011395 | B125: glutaminyl-tRNA synthetase | C125: Q9Y105.1 RecName: Full=Probable glutamine--tRNA ligase; AltName: Full=Glutaminyl-tRNA synthetase [Drosophila melanogaster] | D125: NA | E125: NA | F125: NA | G125: NA | H125: NA | I125: NA | J125: 0 | K125: 0 | L125: 0 | M125: 0 | N125: 0 | O125: 0 | P125: 0 | Q125: 0 | R125: 0 | S125: NA | T125: NA | U125: NA | V125: NA | W125: NA | X125: NA | Y125: =VLOOKUP(A125,[1]FullMultExpressionTableReads2Ge!$A$2:$P$26450,8,FALSE) -> 0 | Z125: =VLOOKUP(A125,[1]FullMultExpressionTableReads2Ge!$A$2:$P$26450,9,FALSE) -> 0 | AA125: =VLOOKUP(A125,[1]FullMultExpressionTableReads2Ge!$A$2:$P$26450,10,FALSE) -> 0 | AB125: =VLOOKUP(A125,[1]FullMultExpressionTableReads2Ge!$A$2:$P$26450,11,FALSE) -> 0 | AC125: =VLOOKUP(A125,[1]FullMultExpressionTableReads2Ge!$A$2:$P$26450,12,FALSE) -> 0 | AD125: =VLOOKUP(A125,[1]FullMultExpressionTableReads2Ge!$A$2:$P$26450,13,FALSE) -> 0 | AE125: =VLOOKUP(A125,[1]FullMultExpressionTableReads2Ge!$A$2:$P$26450,14,FALSE) -> 0 | AF125: =VLOOKUP(A125,[1]FullMultExpressionTableReads2Ge!$A$2:$P$26450,15,FALSE) -> 0 | AG125: =VLOOKUP(A125,[1]FullMultExpressionTableReads2Ge!$A$2:$P$26450,16,FALSE) -> 0 | AH125: 0.497756668 | AI125: -0.1039042613 | AJ125: 0.9974604955 | AK125: 0.08081821057 | AL125: 0.1398146403 | AM125: NA | AN125: 9161.10647 | AO125: 9722.777892 | AP125: 9677.001753 | AQ125: 10086.45584 | AR125: 10208.23773 | AS125: 10069.91919 | AT125: 9299.610105 | AU125: 9114.790379 | AV125: 8156.34773
A126: AAEL008658 | D126: NA | E126: NA | F126: NA | G126: NA | H126: NA | I126: NA | J126: 0 | K126: 0 | L126: 0 | M126: 0 | N126: 0 | O126: 0 | P126: 0 | Q126: 0 | R126: 0 | S126: NA | T126: NA | U126: NA | V126: NA | W126: NA | X126: NA | Y126: =VLOOKUP(A126,[1]FullMultExpressionTableReads2Ge!$A$2:$P$26450,8,FALSE) -> 0 | Z126: =VLOOKUP(A126,[1]FullMultExpressionTableReads2Ge!$A$2:$P$26450,9,FALSE) -> 0 | AA126: =VLOOKUP(A126,[1]FullMultExpressionTableReads2Ge!$A$2:$P$26450,10,FALSE) -> 0 | AB126: =VLOOKUP(A126,[1]FullMultExpressionTableReads2Ge!$A$2:$P$26450,11,FALSE) -> 0 | AC126: =VLOOKUP(A126,[1]FullMultExpressionTableReads2Ge!$A$2:$P$26450,12,FALSE) -> 0 | AD126: =VLOOKUP(A126,[1]FullMultExpressionTableReads2Ge!$A$2:$P$26450,13,FALSE) -> 0 | AE126: =VLOOKUP(A126,[1]FullMultExpressionTableReads2Ge!$A$2:$P$26450,14,FALSE) -> 0 | AF126: =VLOOKUP(A126,[1]FullMultExpressionTableReads2Ge!$A$2:$P$26450,15,FALSE) -> 0 | AG126: =VLOOKUP(A126,[1]FullMultExpressionTableReads2Ge!$A$2:$P$26450,16,FALSE) -> 0 | AH126: 0.8225424162 | AI126: -0.06393144536 | AJ126: 0.9974604955 | AK126: 0.05694714753 | AL126: 0.6708387599 | AM126: -0.1105668335 | AN126: 72483.939 | AO126: 70410.70526 | AP126: 66608.89228 | AQ126: 77712.11255 | AR126: 72638.79055 | AS126: 68763.77246 | AT126: 74149.79355 | AU126: 71098.08174 | AV126: 55168.88209
A127: AAEL000750 | B127: PAP-associated domain-containing protein [Source:UniProtKB/TrEMBL%3BAcc:A0A1S4EWR4] | C127: Q5TAX3.3 RecName: Full=Terminal uridylyltransferase 4; Short=TUTase 4; AltName: Full=Zinc finger CCHC domain-containing protein 11 [Homo sapiens] | D127: NA | E127: NA | F127: NA | G127: NA | H127: NA | I127: NA | J127: 0 | K127: 0 | L127: 0 | M127: 0 | N127: 0 | O127: 0 | P127: 0 | Q127: 0 | R127: 0 | S127: NA | T127: NA | U127: NA | V127: NA | W127: NA | X127: NA | Y127: =VLOOKUP(A127,[1]FullMultExpressionTableReads2Ge!$A$2:$P$26450,8,FALSE) -> 0 | Z127: =VLOOKUP(A127,[1]FullMultExpressionTableReads2Ge!$A$2:$P$26450,9,FALSE) -> 0 | AA127: =VLOOKUP(A127,[1]FullMultExpressionTableReads2Ge!$A$2:$P$26450,10,FALSE) -> 0 | AB127: =VLOOKUP(A127,[1]FullMultExpressionTableReads2Ge!$A$2:$P$26450,11,FALSE) -> 0 | AC127: =VLOOKUP(A127,[1]FullMultExpressionTableReads2Ge!$A$2:$P$26450,12,FALSE) -> 0 | AD127: =VLOOKUP(A127,[1]FullMultExpressionTableReads2Ge!$A$2:$P$26450,13,FALSE) -> 0 | AE127: =VLOOKUP(A127,[1]FullMultExpressionTableReads2Ge!$A$2:$P$26450,14,FALSE) -> 0 | AF127: =VLOOKUP(A127,[1]FullMultExpressionTableReads2Ge!$A$2:$P$26450,15,FALSE) -> 0 | AG127: =VLOOKUP(A127,[1]FullMultExpressionTableReads2Ge!$A$2:$P$26450,16,FALSE) -> 0 | AH127: 0.9131249318 | AI127: -0.02729806034 | AJ127: 0.9974604955 | AK127: 0.01981113678 | AL127: 0.8504798542 | AN127: 3007.06688 | AO127: 3224.769803 | AP127: 2859.39361 | AQ127: 3063.547265 | AR127: 3349.927361 | AS127: 2852.586805 | AT127: 3002.031863 | AU127: 3218.337082 | AV127: 2697.589394
A128: AAEL023755 | B128: unspecified product | C128: O19179.1 RecName: Full=Retinal guanylyl cyclase 1; Short=RETGC-1; AltName: Full=Guanylate cyclase 2D, retinal; AltName: Full=Guanylate cyclase E; Short=GC-E; AltName: Full=Rod outer segment membrane guanylate cyclase; Short=ROS-GC; Flags: Precursor [Canis lupus familiaris] | D128: NA | E128: NA | F128: NA | G128: NA | H128: NA | I128: NA | J128: 0 | K128: 0 | L128: 0 | M128: 0 | N128: 0 | O128: 0 | P128: 0 | Q128: 0 | R128: 0 | S128: NA | T128: -0.01526777666 | U128: NA | V128: -0.1110434474 | W128: NA | X128: 0.08039404686 | Y128: =VLOOKUP(A128,[1]FullMultExpressionTableReads2Ge!$A$2:$P$26450,8,FALSE) -> 0.909438807 | Z128: =VLOOKUP(A128,[1]FullMultExpressionTableReads2Ge!$A$2:$P$26450,9,FALSE) -> 0 | AA128: =VLOOKUP(A128,[1]FullMultExpressionTableReads2Ge!$A$2:$P$26450,10,FALSE) -> 0 | AB128: =VLOOKUP(A128,[1]FullMultExpressionTableReads2Ge!$A$2:$P$26450,11,FALSE) -> 0 | AC128: =VLOOKUP(A128,[1]FullMultExpressionTableReads2Ge!$A$2:$P$26450,12,FALSE) -> 0.9727403002 | AD128: =VLOOKUP(A128,[1]FullMultExpressionTableReads2Ge!$A$2:$P$26450,13,FALSE) -> 0 | AE128: =VLOOKUP(A128,[1]FullMultExpressionTableReads2Ge!$A$2:$P$26450,14,FALSE) -> 0.7873056698 | AF128: =VLOOKUP(A128,[1]FullMultExpressionTableReads2Ge!$A$2:$P$26450,15,FALSE) -> 0 | AG128: =VLOOKUP(A128,[1]FullMultExpressionTableReads2Ge!$A$2:$P$26450,16,FALSE) -> 0 | AH128: NA | AI128: -0.01235277849 | AJ128: 0.9974604955 | AK128: -0.1114998011 | AL128: NA | AM128: NA | AN128: 0.9084794199 | AO128: 0 | AP128: 0 | AQ128: 0 | AR128: 0.9721205342 | AS128: 0 | AT128: 0.786902192 | AU128: 0 | AV128: 0
A129: AAEL029018 | B129: unspecified product | D129: NA | E129: NA | F129: NA | G129: NA | H129: NA | I129: NA | J129: 0 | K129: 0 | L129: 0 | M129: 0 | N129: 0 | O129: 0 | P129: 0 | Q129: 0 | R129: 0 | S129: NA | T129: NA | U129: NA | V129: NA | W129: NA | X129: NA | Y129: =VLOOKUP(A129,[1]FullMultExpressionTableReads2Ge!$A$2:$P$26450,8,FALSE) -> 0 | Z129: =VLOOKUP(A129,[1]FullMultExpressionTableReads2Ge!$A$2:$P$26450,9,FALSE) -> 0 | AA129: =VLOOKUP(A129,[1]FullMultExpressionTableReads2Ge!$A$2:$P$26450,10,FALSE) -> 0 | AB129: =VLOOKUP(A129,[1]FullMultExpressionTableReads2Ge!$A$2:$P$26450,11,FALSE) -> 0 | AC129: =VLOOKUP(A129,[1]FullMultExpressionTableReads2Ge!$A$2:$P$26450,12,FALSE) -> 0 | AD129: =VLOOKUP(A129,[1]FullMultExpressionTableReads2Ge!$A$2:$P$26450,13,FALSE) -> 0 | AE129: =VLOOKUP(A129,[1]FullMultExpressionTableReads2Ge!$A$2:$P$26450,14,FALSE) -> 0 | AF129: =VLOOKUP(A129,[1]FullMultExpressionTableReads2Ge!$A$2:$P$26450,15,FALSE) -> 0 | AG129: =VLOOKUP(A129,[1]FullMultExpressionTableReads2Ge!$A$2:$P$26450,16,FALSE) -> 0 | AH129: 0.9056131667 | AI129: 0.155440548 | AJ129: 0.9974604955 | AK129: 0.3993645189 | AL129: 0.8719876112 | AM129: 1.046341302 | AN129: 21.80350608 | AO129: 33.38940009 | AP129: 21.23865465 | AQ129: 39.07585797 | AR129: 40.82906244 | AS129: 21.35030801 | AT129: 27.54157672 | AU129: 37.61692694 | AV129: 19.46312694
A130: AAEL000268 | B130: lipase | D130: NA | E130: NA | F130: NA | G130: NA | H130: NA | I130: NA | J130: 0 | K130: 0 | L130: 0 | M130: 0 | N130: 0 | O130: 0 | P130: 0 | Q130: 0 | R130: 0 | S130: NA | T130: NA | U130: NA | V130: NA | W130: NA | X130: NA | Y130: =VLOOKUP(A130,[1]FullMultExpressionTableReads2Ge!$A$2:$P$26450,8,FALSE) -> 0 | Z130: =VLOOKUP(A130,[1]FullMultExpressionTableReads2Ge!$A$2:$P$26450,9,FALSE) -> 0 | AA130: =VLOOKUP(A130,[1]FullMultExpressionTableReads2Ge!$A$2:$P$26450,10,FALSE) -> 0 | AB130: =VLOOKUP(A130,[1]FullMultExpressionTableReads2Ge!$A$2:$P$26450,11,FALSE) -> 0 | AC130: =VLOOKUP(A130,[1]FullMultExpressionTableReads2Ge!$A$2:$P$26450,12,FALSE) -> 0 | AD130: =VLOOKUP(A130,[1]FullMultExpressionTableReads2Ge!$A$2:$P$26450,13,FALSE) -> 0 | AE130: =VLOOKUP(A130,[1]FullMultExpressionTableReads2Ge!$A$2:$P$26450,14,FALSE) -> 0 | AF130: =VLOOKUP(A130,[1]FullMultExpressionTableReads2Ge!$A$2:$P$26450,15,FALSE) -> 0 | AG130: =VLOOKUP(A130,[1]FullMultExpressionTableReads2Ge!$A$2:$P$26450,16,FALSE) -> 0 | AH130: 0.530294483 | AI130: 0.2897676637 | AJ130: 0.9974604955 | AK130: -0.08524523977 | AL130: 0.4720409295 | AN130: 521.467187 | AO130: 477.1452981 | AP130: 535.437662 | AQ130: 463.048917 | AR130: 481.1996644 | AS130: 509.6225695 | AT130: 522.5030555 | AU130: 513.0530868 | AV130: 844.6997093
A131: AAEL022409 | B131: unspecified product | D131: NA | E131: NA | F131: NA | G131: NA | H131: NA | I131: NA | J131: 0 | K131: 0 | L131: 0 | M131: 0 | N131: 0 | O131: 0 | P131: 0 | Q131: 0 | R131: 0 | S131: NA | T131: NA | U131: NA | V131: NA | W131: NA | X131: NA | Y131: =VLOOKUP(A131,[1]FullMultExpressionTableReads2Ge!$A$2:$P$26450,8,FALSE) -> 0 | Z131: =VLOOKUP(A131,[1]FullMultExpressionTableReads2Ge!$A$2:$P$26450,9,FALSE) -> 0 | AA131: =VLOOKUP(A131,[1]FullMultExpressionTableReads2Ge!$A$2:$P$26450,10,FALSE) -> 0 | AB131: =VLOOKUP(A131,[1]FullMultExpressionTableReads2Ge!$A$2:$P$26450,11,FALSE) -> 0 | AC131: =VLOOKUP(A131,[1]FullMultExpressionTableReads2Ge!$A$2:$P$26450,12,FALSE) -> 0 | AD131: =VLOOKUP(A131,[1]FullMultExpressionTableReads2Ge!$A$2:$P$26450,13,FALSE) -> 0 | AE131: =VLOOKUP(A131,[1]FullMultExpressionTableReads2Ge!$A$2:$P$26450,14,FALSE) -> 0 | AF131: =VLOOKUP(A131,[1]FullMultExpressionTableReads2Ge!$A$2:$P$26450,15,FALSE) -> 0 | AG131: =VLOOKUP(A131,[1]FullMultExpressionTableReads2Ge!$A$2:$P$26450,16,FALSE) -> 0 | AH131: NA | AI131: NA | AJ131: NA | AK131: NA | AL131: NA | AM131: -0.5092246538 | AN131: 0 | AO131: 0 | AP131: 0 | AQ131: 0 | AR131: 0 | AS131: 0 | AT131: 0 | AU131: 0 | AV131: 0
A132: AAEL021699 | B132: unspecified product | C132: Q9HK58.2 RecName: Full=L-rhamnose 1-dehydrogenase (NADP(+)); Short=RHAD [Thermoplasma acidophilum DSM 1728] | D132: NA | E132: NA | F132: NA | G132: NA | H132: NA | I132: NA | J132: 0 | K132: 0 | L132: 0 | M132: 0 | N132: 0 | O132: 0 | P132: 0 | Q132: 0 | R132: 0 | S132: NA | T132: NA | U132: NA | V132: NA | W132: NA | X132: NA | Y132: =VLOOKUP(A132,[1]FullMultExpressionTableReads2Ge!$A$2:$P$26450,8,FALSE) -> 0 | Z132: =VLOOKUP(A132,[1]FullMultExpressionTableReads2Ge!$A$2:$P$26450,9,FALSE) -> 0 | AA132: =VLOOKUP(A132,[1]FullMultExpressionTableReads2Ge!$A$2:$P$26450,10,FALSE) -> 0 | AB132: =VLOOKUP(A132,[1]FullMultExpressionTableReads2Ge!$A$2:$P$26450,11,FALSE) -> 0 | AC132: =VLOOKUP(A132,[1]FullMultExpressionTableReads2Ge!$A$2:$P$26450,12,FALSE) -> 0 | AD132: =VLOOKUP(A132,[1]FullMultExpressionTableReads2Ge!$A$2:$P$26450,13,FALSE) -> 0 | AE132: =VLOOKUP(A132,[1]FullMultExpressionTableReads2Ge!$A$2:$P$26450,14,FALSE) -> 0 | AF132: =VLOOKUP(A132,[1]FullMultExpressionTableReads2Ge!$A$2:$P$26450,15,FALSE) -> 0 | AG132: =VLOOKUP(A132,[1]FullMultExpressionTableReads2Ge!$A$2:$P$26450,16,FALSE) -> 0 | AH132: NA | AI132: NA | AJ132: NA | AK132: NA | AL132: NA | AM132: -0.5092246538 | AN132: 0 | AO132: 0 | AP132: 0 | AQ132: 0 | AR132: 0 | AS132: 0 | AT132: 0 | AU132: 0 | AV132: 0
A133: AAEL006327 | B133: sulfotransferase (sult) | C133: A0A173GP47.1 RecName: Full=Luciferin sulfotransferase [Photinus pyralis] | D133: NA | E133: NA | F133: NA | G133: NA | H133: NA | I133: NA | J133: 0 | K133: 0 | L133: 0 | M133: 0 | N133: 0 | O133: 0 | P133: 0 | Q133: 0 | R133: 0 | S133: NA | T133: NA | U133: NA | V133: NA | W133: NA | X133: NA | Y133: =VLOOKUP(A133,[1]FullMultExpressionTableReads2Ge!$A$2:$P$26450,8,FALSE) -> 0 | Z133: =VLOOKUP(A133,[1]FullMultExpressionTableReads2Ge!$A$2:$P$26450,9,FALSE) -> 0 | AA133: =VLOOKUP(A133,[1]FullMultExpressionTableReads2Ge!$A$2:$P$26450,10,FALSE) -> 0 | AB133: =VLOOKUP(A133,[1]FullMultExpressionTableReads2Ge!$A$2:$P$26450,11,FALSE) -> 0 | AC133: =VLOOKUP(A133,[1]FullMultExpressionTableReads2Ge!$A$2:$P$26450,12,FALSE) -> 0 | AD133: =VLOOKUP(A133,[1]FullMultExpressionTableReads2Ge!$A$2:$P$26450,13,FALSE) -> 0 | AE133: =VLOOKUP(A133,[1]FullMultExpressionTableReads2Ge!$A$2:$P$26450,14,FALSE) -> 0 | AF133: =VLOOKUP(A133,[1]FullMultExpressionTableReads2Ge!$A$2:$P$26450,15,FALSE) -> 0 | AG133: =VLOOKUP(A133,[1]FullMultExpressionTableReads2Ge!$A$2:$P$26450,16,FALSE) -> 0 | AH133: 0.7209508533 | AI133: 0.9430917642 | AJ133: 0.9974604955 | AK133: 0.4368142654 | AL133: 0.8879090242 | AM133: 0.2974053301 | AN133: 2.72543826 | AO133: 5.385387112 | AP133: 11.17823929 | AQ133: 9.768964494 | AR133: 4.860602671 | AS133: 11.13929114 | AT133: 5.508315344 | AU133: 2.089829274 | AV133: 29.84346131
A134: AAEL028055 | B134: Histone H2B [Source:UniProtKB/TrEMBL%3BAcc:Q17EF1] | C134: Q8I1N0.3 RecName: Full=Histone H2B [Drosophila yakuba] | D134: NA | E134: NA | F134: NA | G134: NA | H134: NA | I134: NA | J134: 0 | K134: 0 | L134: 0 | M134: 0 | N134: 0 | O134: 0 | P134: 0 | Q134: 0 | R134: 0 | S134: 0.05106226963 | T134: 5.800260429 | U134: NA | V134: 1.514186757 | W134: 0.07689012942 | X134: 4.248054659 | Y134: =VLOOKUP(A134,[1]FullMultExpressionTableReads2Ge!$A$2:$P$26450,8,FALSE) -> 1.818877614 | Z134: =VLOOKUP(A134,[1]FullMultExpressionTableReads2Ge!$A$2:$P$26450,9,FALSE) -> 1.077192458 | AA134: =VLOOKUP(A134,[1]FullMultExpressionTableReads2Ge!$A$2:$P$26450,10,FALSE) -> 0 | AB134: =VLOOKUP(A134,[1]FullMultExpressionTableReads2Ge!$A$2:$P$26450,11,FALSE) -> 2.939809926 | AC134: =VLOOKUP(A134,[1]FullMultExpressionTableReads2Ge!$A$2:$P$26450,12,FALSE) -> 2.918220901 | AD134: =VLOOKUP(A134,[1]FullMultExpressionTableReads2Ge!$A$2:$P$26450,13,FALSE) -> 2.788039972 | AE134: =VLOOKUP(A134,[1]FullMultExpressionTableReads2Ge!$A$2:$P$26450,14,FALSE) -> 0.7873056698 | AF134: =VLOOKUP(A134,[1]FullMultExpressionTableReads2Ge!$A$2:$P$26450,15,FALSE) -> 21.90905452 | AG134: =VLOOKUP(A134,[1]FullMultExpressionTableReads2Ge!$A$2:$P$26450,16,FALSE) -> 143.5570461 | AH134: 0.04421315139 | AI134: 5.80424592 | AJ134: 0.9974604955 | AK134: 1.666569426 | AL134: 0.08219168404 | AM134: NA | AN134: 1.81695884 | AO134: 1.077077422 | AP134: 0 | AQ134: 3.907585797 | AR134: 2.916361603 | AS134: 2.784822784 | AT134: 0.786902192 | AU134: 21.94320738 | AV134: 144.0271394
A135: AAEL024173 | B135: Histone H4 [Source:UniProtKB/TrEMBL%3BAcc:Q16IE4] | C135: P84040.2 RecName: Full=Histone H4 [Drosophila melanogaster] | D135: NA | E135: NA | F135: NA | G135: NA | H135: NA | I135: NA | J135: 0 | K135: 0 | L135: 0 | M135: 0 | N135: 0 | O135: 0 | P135: 0 | Q135: 0 | R135: 0 | S135: 0.3080702555 | T135: 3.810164772 | U135: NA | V135: -0.5436550189 | W135: 0.2596750694 | X135: 4.340611671 | Y135: =VLOOKUP(A135,[1]FullMultExpressionTableReads2Ge!$A$2:$P$26450,8,FALSE) -> 0.909438807 | Z135: =VLOOKUP(A135,[1]FullMultExpressionTableReads2Ge!$A$2:$P$26450,9,FALSE) -> 1.077192458 | AA135: =VLOOKUP(A135,[1]FullMultExpressionTableReads2Ge!$A$2:$P$26450,10,FALSE) -> 2.237969645 | AB135: =VLOOKUP(A135,[1]FullMultExpressionTableReads2Ge!$A$2:$P$26450,11,FALSE) -> 1.959873284 | AC135: =VLOOKUP(A135,[1]FullMultExpressionTableReads2Ge!$A$2:$P$26450,12,FALSE) -> 0 | AD135: =VLOOKUP(A135,[1]FullMultExpressionTableReads2Ge!$A$2:$P$26450,13,FALSE) -> 0.9293466572 | AE135: =VLOOKUP(A135,[1]FullMultExpressionTableReads2Ge!$A$2:$P$26450,14,FALSE) -> 0 | AF135: =VLOOKUP(A135,[1]FullMultExpressionTableReads2Ge!$A$2:$P$26450,15,FALSE) -> 6.259729863 | AG135: =VLOOKUP(A135,[1]FullMultExpressionTableReads2Ge!$A$2:$P$26450,16,FALSE) -> 53.02557559 | AH135: 0.2826942255 | AI135: 3.815165245 | AJ135: 0.9974604955 | AK135: -0.5446014906 | AL135: 0.2504282283 | AM135: NA | AN135: 0.9084794199 | AO135: 1.077077422 | AP135: 2.235647858 | AQ135: 1.953792899 | AR135: 0 | AS135: 0.9282742613 | AT135: 0 | AU135: 6.269487823 | AV135: 53.19921364
A136: AAEL027468 | B136: unspecified product | D136: NA | E136: NA | F136: NA | G136: NA | H136: NA | I136: NA | J136: 0 | K136: 0 | L136: 0 | M136: 0 | N136: 0 | O136: 0 | P136: 0 | Q136: 0 | R136: 0 | S136: NA | T136: NA | U136: NA | V136: NA | W136: NA | X136: NA | Y136: =VLOOKUP(A136,[1]FullMultExpressionTableReads2Ge!$A$2:$P$26450,8,FALSE) -> 0 | Z136: =VLOOKUP(A136,[1]FullMultExpressionTableReads2Ge!$A$2:$P$26450,9,FALSE) -> 0 | AA136: =VLOOKUP(A136,[1]FullMultExpressionTableReads2Ge!$A$2:$P$26450,10,FALSE) -> 0 | AB136: =VLOOKUP(A136,[1]FullMultExpressionTableReads2Ge!$A$2:$P$26450,11,FALSE) -> 0 | AC136: =VLOOKUP(A136,[1]FullMultExpressionTableReads2Ge!$A$2:$P$26450,12,FALSE) -> 0 | AD136: =VLOOKUP(A136,[1]FullMultExpressionTableReads2Ge!$A$2:$P$26450,13,FALSE) -> 0 | AE136: =VLOOKUP(A136,[1]FullMultExpressionTableReads2Ge!$A$2:$P$26450,14,FALSE) -> 0 | AF136: =VLOOKUP(A136,[1]FullMultExpressionTableReads2Ge!$A$2:$P$26450,15,FALSE) -> 0 | AG136: =VLOOKUP(A136,[1]FullMultExpressionTableReads2Ge!$A$2:$P$26450,16,FALSE) -> 0 | AH136: NA | AI136: NA | AJ136: 0.9974604955 | AK136: 0.8502693516 | AL136: NA | AM136: NA | AN136: 0 | AO136: 0 | AP136: 0 | AQ136: 0 | AR136: 0 | AS136: 0.9282742613 | AT136: 0 | AU136: 0 | AV136: 0
A137: AAEL008149 | B137: unspecified product | D137: NA | E137: NA | F137: NA | G137: NA | H137: NA | I137: NA | J137: 0 | K137: 0 | L137: 0 | M137: 0 | N137: 0 | O137: 0 | P137: 0 | Q137: 0 | R137: 0 | S137: NA | T137: NA | U137: NA | V137: NA | W137: NA | X137: NA | Y137: =VLOOKUP(A137,[1]FullMultExpressionTableReads2Ge!$A$2:$P$26450,8,FALSE) -> 0 | Z137: =VLOOKUP(A137,[1]FullMultExpressionTableReads2Ge!$A$2:$P$26450,9,FALSE) -> 0 | AA137: =VLOOKUP(A137,[1]FullMultExpressionTableReads2Ge!$A$2:$P$26450,10,FALSE) -> 0 | AB137: =VLOOKUP(A137,[1]FullMultExpressionTableReads2Ge!$A$2:$P$26450,11,FALSE) -> 0 | AC137: =VLOOKUP(A137,[1]FullMultExpressionTableReads2Ge!$A$2:$P$26450,12,FALSE) -> 0 | AD137: =VLOOKUP(A137,[1]FullMultExpressionTableReads2Ge!$A$2:$P$26450,13,FALSE) -> 0 | AE137: =VLOOKUP(A137,[1]FullMultExpressionTableReads2Ge!$A$2:$P$26450,14,FALSE) -> 0 | AF137: =VLOOKUP(A137,[1]FullMultExpressionTableReads2Ge!$A$2:$P$26450,15,FALSE) -> 0 | AG137: =VLOOKUP(A137,[1]FullMultExpressionTableReads2Ge!$A$2:$P$26450,16,FALSE) -> 0 | AH137: 0.5965483682 | AI137: -0.1115220347 | AJ137: 0.9974604955 | AK137: 0.1115120815 | AL137: 0.06591035279 | AM137: -0.09368386138 | AN137: 1681.595406 | AO137: 1721.169721 | AP137: 2025.496959 | AQ137: 1867.826011 | AR137: 1982.153769 | AS137: 2043.131649 | AT137: 1680.823082 | AU137: 1637.381236 | AV137: 1706.267462
A138: AAEL002360 | B138: serine-type enodpeptidase%2C | D138: NA | E138: NA | F138: NA | G138: NA | H138: NA | I138: NA | J138: 0 | K138: 0 | L138: 0 | M138: 0 | N138: 0 | O138: 0 | P138: 0 | Q138: 0 | R138: 0 | S138: NA | T138: NA | U138: NA | V138: NA | W138: NA | X138: NA | Y138: =VLOOKUP(A138,[1]FullMultExpressionTableReads2Ge!$A$2:$P$26450,8,FALSE) -> 0 | Z138: =VLOOKUP(A138,[1]FullMultExpressionTableReads2Ge!$A$2:$P$26450,9,FALSE) -> 0 | AA138: =VLOOKUP(A138,[1]FullMultExpressionTableReads2Ge!$A$2:$P$26450,10,FALSE) -> 0 | AB138: =VLOOKUP(A138,[1]FullMultExpressionTableReads2Ge!$A$2:$P$26450,11,FALSE) -> 0 | AC138: =VLOOKUP(A138,[1]FullMultExpressionTableReads2Ge!$A$2:$P$26450,12,FALSE) -> 0 | AD138: =VLOOKUP(A138,[1]FullMultExpressionTableReads2Ge!$A$2:$P$26450,13,FALSE) -> 0 | AE138: =VLOOKUP(A138,[1]FullMultExpressionTableReads2Ge!$A$2:$P$26450,14,FALSE) -> 0 | AF138: =VLOOKUP(A138,[1]FullMultExpressionTableReads2Ge!$A$2:$P$26450,15,FALSE) -> 0 | AG138: =VLOOKUP(A138,[1]FullMultExpressionTableReads2Ge!$A$2:$P$26450,16,FALSE) -> 0 | AH138: NA | AI138: NA | AJ138: NA | AK138: NA | AL138: NA | AM138: 0.2974053301 | AN138: 0 | AO138: 0 | AP138: 0 | AQ138: 0 | AR138: 0 | AS138: 0 | AT138: 0 | AU138: 0 | AV138: 0
A139: AAEL002593 | B139: serine protease | C139: Q9GRW0.1 RecName: Full=Phenoloxidase-activating factor 2; AltName: Full=45 KDa PPAF; Short=Hd-45; AltName: Full=Prophenoloxidase-activating factor II; AltName: Full=Serine protease-like PPAF-2; Contains: RecName: Full=Phenoloxidase-activating factor 2 light chain; Contains: RecName: Full=Phenoloxidase-activating factor 2 heavy chain; Flags: Precursor [Holotrichia diomphalia] | D139: 0.9784124372 | E139: 2.222667393 | F139: NA | G139: NA | H139: NA | I139: 2.312314949 | J139: 0 | K139: 0 | L139: 0 | M139: 0 | N139: 0 | O139: 0 | P139: 0 | Q139: 0 | R139: 2.702262807 | S139: 0.8612049736 | T139: 0.8190419773 | U139: NA | V139: -0.9565853636 | W139: 0.6209545614 | X139: 1.749254988 | Y139: =VLOOKUP(A139,[1]FullMultExpressionTableReads2Ge!$A$2:$P$26450,8,FALSE) -> 3.637755228 | Z139: =VLOOKUP(A139,[1]FullMultExpressionTableReads2Ge!$A$2:$P$26450,9,FALSE) -> 0 | AA139: =VLOOKUP(A139,[1]FullMultExpressionTableReads2Ge!$A$2:$P$26450,10,FALSE) -> 5.594924112 | AB139: =VLOOKUP(A139,[1]FullMultExpressionTableReads2Ge!$A$2:$P$26450,11,FALSE) -> 0.9799366419 | AC139: =VLOOKUP(A139,[1]FullMultExpressionTableReads2Ge!$A$2:$P$26450,12,FALSE) -> 1.9454806 | AD139: =VLOOKUP(A139,[1]FullMultExpressionTableReads2Ge!$A$2:$P$26450,13,FALSE) -> 1.858693314 | AE139: =VLOOKUP(A139,[1]FullMultExpressionTableReads2Ge!$A$2:$P$26450,14,FALSE) -> 0.7873056698 | AF139: =VLOOKUP(A139,[1]FullMultExpressionTableReads2Ge!$A$2:$P$26450,15,FALSE) -> 4.173153242 | AG139: =VLOOKUP(A139,[1]FullMultExpressionTableReads2Ge!$A$2:$P$26450,16,FALSE) -> 11.63976049 | AH139: 0.8272163706 | AI139: 0.8231687424 | AJ139: 0.9974604955 | AK139: -0.9564649408 | AL139: 0.6296916448 | AM139: 0.2974053301 | AN139: 3.63391768 | AO139: 0 | AP139: 5.589119645 | AQ139: 0.9768964494 | AR139: 1.944241068 | AS139: 1.856548523 | AT139: 0.786902192 | AU139: 4.179658548 | AV139: 11.67787616
A140: AAEL017115 | B140: unspecified product | C140: Q5U901.1 RecName: Full=Carboxypeptidase A6; Flags: Precursor [Mus musculus] | D140: 0.9784124372 | E140: 2.222667393 | F140: NA | G140: NA | H140: NA | I140: 2.312314949 | J140: 0 | K140: 0 | L140: 0 | M140: 0 | N140: 0 | O140: 0 | P140: 0 | Q140: 0 | R140: 2.702262807 | S140: 0.8540455575 | T140: 2.142963399 | U140: NA | V140: NA | W140: NA | X140: 2.235034593 | Y140: =VLOOKUP(A140,[1]FullMultExpressionTableReads2Ge!$A$2:$P$26450,8,FALSE) -> 0 | Z140: =VLOOKUP(A140,[1]FullMultExpressionTableReads2Ge!$A$2:$P$26450,9,FALSE) -> 0 | AA140: =VLOOKUP(A140,[1]FullMultExpressionTableReads2Ge!$A$2:$P$26450,10,FALSE) -> 0 | AB140: =VLOOKUP(A140,[1]FullMultExpressionTableReads2Ge!$A$2:$P$26450,11,FALSE) -> 0 | AC140: =VLOOKUP(A140,[1]FullMultExpressionTableReads2Ge!$A$2:$P$26450,12,FALSE) -> 0 | AD140: =VLOOKUP(A140,[1]FullMultExpressionTableReads2Ge!$A$2:$P$26450,13,FALSE) -> 0 | AE140: =VLOOKUP(A140,[1]FullMultExpressionTableReads2Ge!$A$2:$P$26450,14,FALSE) -> 0 | AF140: =VLOOKUP(A140,[1]FullMultExpressionTableReads2Ge!$A$2:$P$26450,15,FALSE) -> 0 | AG140: =VLOOKUP(A140,[1]FullMultExpressionTableReads2Ge!$A$2:$P$26450,16,FALSE) -> 2.586613443 | AH140: NA | AI140: 2.147932428 | AJ140: NA | AK140: NA | AL140: NA | AM140: -0.5092246538 | AN140: 0 | AO140: 0 | AP140: 0 | AQ140: 0 | AR140: 0 | AS140: 0 | AT140: 0 | AU140: 0 | AV140: 2.595083592
A141: AAEL024573 | B141: unspecified product | C141: P29981.1 RecName: Full=Cytochrome P450 4C1; AltName: Full=CYPIVC1 [Blaberus discoidalis] | D141: NA | E141: NA | F141: NA | G141: NA | H141: NA | I141: NA | J141: 0 | K141: 0 | L141: 0 | M141: 0 | N141: 0 | O141: 0 | P141: 0 | Q141: 0 | R141: 0 | S141: NA | T141: -0.9770484561 | U141: NA | V141: -0.1110430998 | W141: NA | X141: -0.8813866326 | Y141: =VLOOKUP(A141,[1]FullMultExpressionTableReads2Ge!$A$2:$P$26450,8,FALSE) -> 0 | Z141: =VLOOKUP(A141,[1]FullMultExpressionTableReads2Ge!$A$2:$P$26450,9,FALSE) -> 0 | AA141: =VLOOKUP(A141,[1]FullMultExpressionTableReads2Ge!$A$2:$P$26450,10,FALSE) -> 1.118984822 | AB141: =VLOOKUP(A141,[1]FullMultExpressionTableReads2Ge!$A$2:$P$26450,11,FALSE) -> 0 | AC141: =VLOOKUP(A141,[1]FullMultExpressionTableReads2Ge!$A$2:$P$26450,12,FALSE) -> 0 | AD141: =VLOOKUP(A141,[1]FullMultExpressionTableReads2Ge!$A$2:$P$26450,13,FALSE) -> 0.9293466572 | AE141: =VLOOKUP(A141,[1]FullMultExpressionTableReads2Ge!$A$2:$P$26450,14,FALSE) -> 0 | AF141: =VLOOKUP(A141,[1]FullMultExpressionTableReads2Ge!$A$2:$P$26450,15,FALSE) -> 0 | AG141: =VLOOKUP(A141,[1]FullMultExpressionTableReads2Ge!$A$2:$P$26450,16,FALSE) -> 0 | AH141: NA | AI141: -0.9741334579 | AJ141: 0.9974604955 | AK141: -0.1114994506 | AL141: NA | AM141: NA | AN141: 0 | AO141: 0 | AP141: 1.117823929 | AQ141: 0 | AR141: 0 | AS141: 0.9282742613 | AT141: 0 | AU141: 0 | AV141: 0
A142: AAEL000705 | B142: steroid dehydrogenase | C142: Q6P7R8.1 RecName: Full=Very-long-chain 3-oxoacyl-CoA reductase; AltName: Full=17-beta-hydroxysteroid dehydrogenase 12; Short=17-beta-HSD 12; AltName: Full=3-ketoacyl-CoA reductase; Short=KAR; AltName: Full=Estradiol 17-beta-dehydrogenase 12 [Rattus norvegicus] | D142: NA | E142: NA | F142: NA | G142: NA | H142: NA | I142: NA | J142: 0 | K142: 0 | L142: 0 | M142: 0 | N142: 0 | O142: 0 | P142: 0 | Q142: 0 | R142: 0 | S142: NA | T142: NA | U142: NA | V142: NA | W142: NA | X142: NA | Y142: =VLOOKUP(A142,[1]FullMultExpressionTableReads2Ge!$A$2:$P$26450,8,FALSE) -> 0 | Z142: =VLOOKUP(A142,[1]FullMultExpressionTableReads2Ge!$A$2:$P$26450,9,FALSE) -> 0 | AA142: =VLOOKUP(A142,[1]FullMultExpressionTableReads2Ge!$A$2:$P$26450,10,FALSE) -> 0 | AB142: =VLOOKUP(A142,[1]FullMultExpressionTableReads2Ge!$A$2:$P$26450,11,FALSE) -> 0 | AC142: =VLOOKUP(A142,[1]FullMultExpressionTableReads2Ge!$A$2:$P$26450,12,FALSE) -> 0 | AD142: =VLOOKUP(A142,[1]FullMultExpressionTableReads2Ge!$A$2:$P$26450,13,FALSE) -> 0 | AE142: =VLOOKUP(A142,[1]FullMultExpressionTableReads2Ge!$A$2:$P$26450,14,FALSE) -> 0 | AF142: =VLOOKUP(A142,[1]FullMultExpressionTableReads2Ge!$A$2:$P$26450,15,FALSE) -> 0 | AG142: =VLOOKUP(A142,[1]FullMultExpressionTableReads2Ge!$A$2:$P$26450,16,FALSE) -> 0 | AH142: NA | AI142: NA | AJ142: NA | AK142: NA | AL142: NA | AN142: 0 | AO142: 0 | AP142: 0 | AQ142: 0 | AR142: 0 | AS142: 0 | AT142: 0 | AU142: 0 | AV142: 0
A143: AAEL002713 | B143: fibrinogen and fibronectin | C143: Q95LU3.1 RecName: Full=Fibrinogen C domain-containing protein 1 [Macaca fascicularis] | D143: NA | E143: NA | F143: NA | G143: NA | H143: NA | I143: NA | J143: 0 | K143: 0 | L143: 0 | M143: 0 | N143: 0 | O143: 0 | P143: 0 | Q143: 0 | R143: 0 | S143: NA | T143: 0.9465048956 | U143: NA | V143: NA | W143: NA | X143: 1.042166719 | Y143: =VLOOKUP(A143,[1]FullMultExpressionTableReads2Ge!$A$2:$P$26450,8,FALSE) -> 0 | Z143: =VLOOKUP(A143,[1]FullMultExpressionTableReads2Ge!$A$2:$P$26450,9,FALSE) -> 0 | AA143: =VLOOKUP(A143,[1]FullMultExpressionTableReads2Ge!$A$2:$P$26450,10,FALSE) -> 0 | AB143: =VLOOKUP(A143,[1]FullMultExpressionTableReads2Ge!$A$2:$P$26450,11,FALSE) -> 0 | AC143: =VLOOKUP(A143,[1]FullMultExpressionTableReads2Ge!$A$2:$P$26450,12,FALSE) -> 0 | AD143: =VLOOKUP(A143,[1]FullMultExpressionTableReads2Ge!$A$2:$P$26450,13,FALSE) -> 0 | AE143: =VLOOKUP(A143,[1]FullMultExpressionTableReads2Ge!$A$2:$P$26450,14,FALSE) -> 0 | AF143: =VLOOKUP(A143,[1]FullMultExpressionTableReads2Ge!$A$2:$P$26450,15,FALSE) -> 0 | AG143: =VLOOKUP(A143,[1]FullMultExpressionTableReads2Ge!$A$2:$P$26450,16,FALSE) -> 1.293306722 | AH143: NA | AI143: 0.9494198937 | AJ143: NA | AK143: NA | AL143: NA | AM143: 0.2974053301 | AN143: 0 | AO143: 0 | AP143: 0 | AQ143: 0 | AR143: 0 | AS143: 0 | AT143: 0 | AU143: 0 | AV143: 1.297541796
A144: AAEL006601 | B144: 50-kda dystrophin-associated glycoprotein%2C putative | D144: 0.9784124372 | E144: 0.9882447533 | F144: NA | G144: NA | H144: NA | I144: 1.078634413 | J144: 0 | K144: 0 | L144: 0 | M144: 0 | N144: 0 | O144: 0 | P144: 0 | Q144: 0 | R144: 1.351131403 | S144: NA | T144: 0.9465048956 | U144: NA | V144: NA | W144: NA | X144: 1.042166719 | Y144: =VLOOKUP(A144,[1]FullMultExpressionTableReads2Ge!$A$2:$P$26450,8,FALSE) -> 0 | Z144: =VLOOKUP(A144,[1]FullMultExpressionTableReads2Ge!$A$2:$P$26450,9,FALSE) -> 0 | AA144: =VLOOKUP(A144,[1]FullMultExpressionTableReads2Ge!$A$2:$P$26450,10,FALSE) -> 0 | AB144: =VLOOKUP(A144,[1]FullMultExpressionTableReads2Ge!$A$2:$P$26450,11,FALSE) -> 0 | AC144: =VLOOKUP(A144,[1]FullMultExpressionTableReads2Ge!$A$2:$P$26450,12,FALSE) -> 0 | AD144: =VLOOKUP(A144,[1]FullMultExpressionTableReads2Ge!$A$2:$P$26450,13,FALSE) -> 0 | AE144: =VLOOKUP(A144,[1]FullMultExpressionTableReads2Ge!$A$2:$P$26450,14,FALSE) -> 0 | AF144: =VLOOKUP(A144,[1]FullMultExpressionTableReads2Ge!$A$2:$P$26450,15,FALSE) -> 0 | AG144: =VLOOKUP(A144,[1]FullMultExpressionTableReads2Ge!$A$2:$P$26450,16,FALSE) -> 1.293306722 | AH144: NA | AI144: 0.9494198937 | AJ144: NA | AK144: NA | AL144: NA | AM144: 0.2974053301 | AN144: 0 | AO144: 0 | AP144: 0 | AQ144: 0 | AR144: 0 | AS144: 0 | AT144: 0 | AU144: 0 | AV144: 1.297541796
A145: AAEL025262 | B145: unspecified product | C145: P40265.1 RecName: Full=Histone H1-III [Glyptotendipes barbipes] | D145: NA | E145: NA | F145: NA | G145: NA | H145: NA | I145: NA | J145: 0 | K145: 0 | L145: 0 | M145: 0 | N145: 0 | O145: 0 | P145: 0 | Q145: 0 | R145: 0 | S145: 0.1184577273 | T145: 3.978460037 | U145: NA | V145: -0.3315621797 | W145: 0.07777883758 | X145: 4.292407268 | Y145: =VLOOKUP(A145,[1]FullMultExpressionTableReads2Ge!$A$2:$P$26450,8,FALSE) -> 1.818877614 | Z145: =VLOOKUP(A145,[1]FullMultExpressionTableReads2Ge!$A$2:$P$26450,9,FALSE) -> 3.231577374 | AA145: =VLOOKUP(A145,[1]FullMultExpressionTableReads2Ge!$A$2:$P$26450,10,FALSE) -> 2.237969645 | AB145: =VLOOKUP(A145,[1]FullMultExpressionTableReads2Ge!$A$2:$P$26450,11,FALSE) -> 3.919746567 | AC145: =VLOOKUP(A145,[1]FullMultExpressionTableReads2Ge!$A$2:$P$26450,12,FALSE) -> 0.9727403002 | AD145: =VLOOKUP(A145,[1]FullMultExpressionTableReads2Ge!$A$2:$P$26450,13,FALSE) -> 0.9293466572 | AE145: =VLOOKUP(A145,[1]FullMultExpressionTableReads2Ge!$A$2:$P$26450,14,FALSE) -> 2.361917009 | AF145: =VLOOKUP(A145,[1]FullMultExpressionTableReads2Ge!$A$2:$P$26450,15,FALSE) -> 14.60603635 | AG145: =VLOOKUP(A145,[1]FullMultExpressionTableReads2Ge!$A$2:$P$26450,16,FALSE) -> 98.29131084 | AH145: 0.09513635468 | AI145: 3.983150034 | AJ145: 0.9974604955 | AK145: -0.3324962618 | AL145: 0.07197817546 | AM145: NA | AN145: 1.81695884 | AO145: 3.231232267 | AP145: 2.235647858 | AQ145: 3.907585797 | AR145: 0.9721205342 | AS145: 0.9282742613 | AT145: 2.360706576 | AU145: 14.62880492 | AV145: 98.6131765
A146: AAEL004713 | B146: unspecified product | C146: Q9HCM9.2 RecName: Full=E3 ubiquitin-protein ligase TRIM39; AltName: Full=RING finger protein 23; AltName: Full=RING-type E3 ubiquitin transferase TRIM39; AltName: Full=Testis-abundant finger protein; AltName: Full=Tripartite motif-containing protein 39 [Homo sapiens] | D146: NA | E146: NA | F146: NA | G146: NA | H146: NA | I146: NA | J146: 0 | K146: 0 | L146: 0 | M146: 0 | N146: 0 | O146: 0 | P146: 0 | Q146: 0 | R146: 0 | S146: NA | T146: NA | U146: NA | V146: NA | W146: NA | X146: NA | Y146: =VLOOKUP(A146,[1]FullMultExpressionTableReads2Ge!$A$2:$P$26450,8,FALSE) -> 0 | Z146: =VLOOKUP(A146,[1]FullMultExpressionTableReads2Ge!$A$2:$P$26450,9,FALSE) -> 0 | AA146: =VLOOKUP(A146,[1]FullMultExpressionTableReads2Ge!$A$2:$P$26450,10,FALSE) -> 0 | AB146: =VLOOKUP(A146,[1]FullMultExpressionTableReads2Ge!$A$2:$P$26450,11,FALSE) -> 0 | AC146: =VLOOKUP(A146,[1]FullMultExpressionTableReads2Ge!$A$2:$P$26450,12,FALSE) -> 0 | AD146: =VLOOKUP(A146,[1]FullMultExpressionTableReads2Ge!$A$2:$P$26450,13,FALSE) -> 0 | AE146: =VLOOKUP(A146,[1]FullMultExpressionTableReads2Ge!$A$2:$P$26450,14,FALSE) -> 0 | AF146: =VLOOKUP(A146,[1]FullMultExpressionTableReads2Ge!$A$2:$P$26450,15,FALSE) -> 0 | AG146: =VLOOKUP(A146,[1]FullMultExpressionTableReads2Ge!$A$2:$P$26450,16,FALSE) -> 0 | AH146: 0.3765047247 | AI146: 0.8750900929 | AJ146: 0.9974604955 | AK146: -0.03059582606 | AL146: 0.3925537979 | AM146: 0.2974053301 | AN146: 126.2786394 | AO146: 127.0951358 | AP146: 127.4319279 | AQ146: 132.8579171 | AR146: 115.6823436 | AS146: 126.2452995 | AT146: 106.2317959 | AU146: 168.2312566 | AV146: 426.8912509
A147: AAEL025029 | B147: unspecified product | C147: P83130.1 RecName: Full=Tubulin beta-2 chain; AltName: Full=Beta-2-tubulin [Drosophila erecta] | D147: 0.9784124372 | E147: 0.9882447533 | F147: NA | G147: NA | H147: NA | I147: 1.078634413 | J147: 0 | K147: 0 | L147: 0 | M147: 0 | N147: 0 | O147: 0 | P147: 0 | Q147: 0 | R147: 1.351131403 | S147: 0.9052260123 | T147: 0.3733737807 | U147: NA | V147: -0.5645037415 | W147: 0.7356721351 | X147: 0.9262826766 | Y147: =VLOOKUP(A147,[1]FullMultExpressionTableReads2Ge!$A$2:$P$26450,8,FALSE) -> 3.637755228 | Z147: =VLOOKUP(A147,[1]FullMultExpressionTableReads2Ge!$A$2:$P$26450,9,FALSE) -> 8.617539664 | AA147: =VLOOKUP(A147,[1]FullMultExpressionTableReads2Ge!$A$2:$P$26450,10,FALSE) -> 3.356954467 | AB147: =VLOOKUP(A147,[1]FullMultExpressionTableReads2Ge!$A$2:$P$26450,11,FALSE) -> 4.899683209 | AC147: =VLOOKUP(A147,[1]FullMultExpressionTableReads2Ge!$A$2:$P$26450,12,FALSE) -> 1.9454806 | AD147: =VLOOKUP(A147,[1]FullMultExpressionTableReads2Ge!$A$2:$P$26450,13,FALSE) -> 3.717386629 | AE147: =VLOOKUP(A147,[1]FullMultExpressionTableReads2Ge!$A$2:$P$26450,14,FALSE) -> 4.723834019 | AF147: =VLOOKUP(A147,[1]FullMultExpressionTableReads2Ge!$A$2:$P$26450,15,FALSE) -> 4.173153242 | AG147: =VLOOKUP(A147,[1]FullMultExpressionTableReads2Ge!$A$2:$P$26450,16,FALSE) -> 11.63976049 | AH147: 0.8798316629 | AI147: 0.3767365762 | AJ147: 0.9974604955 | AK147: -0.5654769099 | AL147: 0.7444156617 | AM147: NA | AN147: 3.63391768 | AO147: 8.616619379 | AP147: 3.353471787 | AQ147: 4.884482247 | AR147: 1.944241068 | AS147: 3.713097045 | AT147: 4.721413152 | AU147: 4.179658548 | AV147: 11.67787616
A148: AAEL025497 | B148: unspecified product | C148: Q8I1N0.3 RecName: Full=Histone H2B [Drosophila yakuba] | D148: NA | E148: NA | F148: NA | G148: NA | H148: NA | I148: NA | J148: 0 | K148: 0 | L148: 0 | M148: 0 | N148: 0 | O148: 0 | P148: 0 | Q148: 0 | R148: 0 | S148: 0.08049978858 | T148: 5.143487783 | U148: NA | V148: -1.077819721 | W148: 0.03634997217 | X148: 6.203599446 | Y148: =VLOOKUP(A148,[1]FullMultExpressionTableReads2Ge!$A$2:$P$26450,8,FALSE) -> 1.818877614 | Z148: =VLOOKUP(A148,[1]FullMultExpressionTableReads2Ge!$A$2:$P$26450,9,FALSE) -> 2.154384916 | AA148: =VLOOKUP(A148,[1]FullMultExpressionTableReads2Ge!$A$2:$P$26450,10,FALSE) -> 0 | AB148: =VLOOKUP(A148,[1]FullMultExpressionTableReads2Ge!$A$2:$P$26450,11,FALSE) -> 0.9799366419 | AC148: =VLOOKUP(A148,[1]FullMultExpressionTableReads2Ge!$A$2:$P$26450,12,FALSE) -> 0 | AD148: =VLOOKUP(A148,[1]FullMultExpressionTableReads2Ge!$A$2:$P$26450,13,FALSE) -> 0.9293466572 | AE148: =VLOOKUP(A148,[1]FullMultExpressionTableReads2Ge!$A$2:$P$26450,14,FALSE) -> 0.7873056698 | AF148: =VLOOKUP(A148,[1]FullMultExpressionTableReads2Ge!$A$2:$P$26450,15,FALSE) -> 22.95234283 | AG148: =VLOOKUP(A148,[1]FullMultExpressionTableReads2Ge!$A$2:$P$26450,16,FALSE) -> 118.9842184 | AH148: 0.06926499282 | AI148: 5.147697135 | AJ148: 0.9974604955 | AK148: -1.078702521 | AL148: 0.03713876811 | AM148: NA | AN148: 1.81695884 | AO148: 2.154154845 | AP148: 0 | AQ148: 0.9768964494 | AR148: 0 | AS148: 0.9282742613 | AT148: 0.786902192 | AU148: 22.98812202 | AV148: 119.3738452
A149: AAEL011260 | B149: phosphatidylethanolamine-binding protein | D149: NA | E149: NA | F149: NA | G149: NA | H149: NA | I149: NA | J149: 0 | K149: 0 | L149: 0 | M149: 0 | N149: 0 | O149: 0 | P149: 0 | Q149: 0 | R149: 0 | S149: NA | T149: NA | U149: NA | V149: NA | W149: NA | X149: NA | Y149: =VLOOKUP(A149,[1]FullMultExpressionTableReads2Ge!$A$2:$P$26450,8,FALSE) -> 0 | Z149: =VLOOKUP(A149,[1]FullMultExpressionTableReads2Ge!$A$2:$P$26450,9,FALSE) -> 0 | AA149: =VLOOKUP(A149,[1]FullMultExpressionTableReads2Ge!$A$2:$P$26450,10,FALSE) -> 0 | AB149: =VLOOKUP(A149,[1]FullMultExpressionTableReads2Ge!$A$2:$P$26450,11,FALSE) -> 0 | AC149: =VLOOKUP(A149,[1]FullMultExpressionTableReads2Ge!$A$2:$P$26450,12,FALSE) -> 0 | AD149: =VLOOKUP(A149,[1]FullMultExpressionTableReads2Ge!$A$2:$P$26450,13,FALSE) -> 0 | AE149: =VLOOKUP(A149,[1]FullMultExpressionTableReads2Ge!$A$2:$P$26450,14,FALSE) -> 0 | AF149: =VLOOKUP(A149,[1]FullMultExpressionTableReads2Ge!$A$2:$P$26450,15,FALSE) -> 0 | AG149: =VLOOKUP(A149,[1]FullMultExpressionTableReads2Ge!$A$2:$P$26450,16,FALSE) -> 0 | AH149: NA | AI149: NA | AJ149: NA | AK149: NA | AL149: NA | AM149: NA | AN149: 0 | AO149: 0 | AP149: 0 | AQ149: 0 | AR149: 0 | AS149: 0 | AT149: 0 | AU149: 0 | AV149: 0
A150: AAEL019471 | B150: unspecified product | C150: Q17040.2 RecName: Full=Protein G12; AltName: Full=ANG12; Flags: Precursor [Anopheles gambiae] | D150: NA | E150: NA | F150: NA | G150: NA | H150: NA | I150: NA | J150: 0 | K150: 0 | L150: 0 | M150: 0 | N150: 0 | O150: 0 | P150: 0 | Q150: 0 | R150: 0 | S150: NA | T150: 0.9465048956 | U150: NA | V150: NA | W150: NA | X150: 1.042166719 | Y150: =VLOOKUP(A150,[1]FullMultExpressionTableReads2Ge!$A$2:$P$26450,8,FALSE) -> 0 | Z150: =VLOOKUP(A150,[1]FullMultExpressionTableReads2Ge!$A$2:$P$26450,9,FALSE) -> 0 | AA150: =VLOOKUP(A150,[1]FullMultExpressionTableReads2Ge!$A$2:$P$26450,10,FALSE) -> 0 | AB150: =VLOOKUP(A150,[1]FullMultExpressionTableReads2Ge!$A$2:$P$26450,11,FALSE) -> 0 | AC150: =VLOOKUP(A150,[1]FullMultExpressionTableReads2Ge!$A$2:$P$26450,12,FALSE) -> 0 | AD150: =VLOOKUP(A150,[1]FullMultExpressionTableReads2Ge!$A$2:$P$26450,13,FALSE) -> 0 | AE150: =VLOOKUP(A150,[1]FullMultExpressionTableReads2Ge!$A$2:$P$26450,14,FALSE) -> 0 | AF150: =VLOOKUP(A150,[1]FullMultExpressionTableReads2Ge!$A$2:$P$26450,15,FALSE) -> 1.04328831 | AG150: =VLOOKUP(A150,[1]FullMultExpressionTableReads2Ge!$A$2:$P$26450,16,FALSE) -> 0 | AH150: NA | AI150: 0.9494198937 | AJ150: NA | AK150: NA | AL150: NA | AM150: -0.5092246538 | AN150: 0 | AO150: 0 | AP150: 0 | AQ150: 0 | AR150: 0 | AS150: 0 | AT150: 0 | AU150: 1.044914637 | AV150: 0
A151: AAEL022094 | B151: unspecified product | D151: NA | E151: NA | F151: NA | G151: NA | H151: NA | I151: NA | J151: 0 | K151: 0 | L151: 0 | M151: 0 | N151: 0 | O151: 0 | P151: 0 | Q151: 0 | R151: 0 | S151: NA | T151: NA | U151: NA | V151: NA | W151: NA | X151: NA | Y151: =VLOOKUP(A151,[1]FullMultExpressionTableReads2Ge!$A$2:$P$26450,8,FALSE) -> 0 | Z151: =VLOOKUP(A151,[1]FullMultExpressionTableReads2Ge!$A$2:$P$26450,9,FALSE) -> 0 | AA151: =VLOOKUP(A151,[1]FullMultExpressionTableReads2Ge!$A$2:$P$26450,10,FALSE) -> 0 | AB151: =VLOOKUP(A151,[1]FullMultExpressionTableReads2Ge!$A$2:$P$26450,11,FALSE) -> 0 | AC151: =VLOOKUP(A151,[1]FullMultExpressionTableReads2Ge!$A$2:$P$26450,12,FALSE) -> 0 | AD151: =VLOOKUP(A151,[1]FullMultExpressionTableReads2Ge!$A$2:$P$26450,13,FALSE) -> 0 | AE151: =VLOOKUP(A151,[1]FullMultExpressionTableReads2Ge!$A$2:$P$26450,14,FALSE) -> 0 | AF151: =VLOOKUP(A151,[1]FullMultExpressionTableReads2Ge!$A$2:$P$26450,15,FALSE) -> 0 | AG151: =VLOOKUP(A151,[1]FullMultExpressionTableReads2Ge!$A$2:$P$26450,16,FALSE) -> 0 | AH151: 0.1713827904 | AI151: 0.9052108932 | AJ151: 0.9974604955 | AK151: 0.1515461732 | AL151: 0.2844913765 | AM151: -0.5092246538 | AN151: 160.8008573 | AO151: 169.1011553 | AP151: 156.49535 | AQ151: 211.9865295 | AR151: 166.2326113 | AS151: 165.2328185 | AT151: 183.3482107 | AU151: 282.126952 | AV151: 448.9494615
A152: AAEL025699 | B152: unspecified product | D152: NA | E152: NA | F152: NA | G152: NA | H152: NA | I152: NA | J152: 0 | K152: 0 | L152: 0 | M152: 0 | N152: 0 | O152: 0 | P152: 0 | Q152: 0 | R152: 0 | S152: NA | T152: NA | U152: NA | V152: NA | W152: NA | X152: NA | Y152: =VLOOKUP(A152,[1]FullMultExpressionTableReads2Ge!$A$2:$P$26450,8,FALSE) -> 0 | Z152: =VLOOKUP(A152,[1]FullMultExpressionTableReads2Ge!$A$2:$P$26450,9,FALSE) -> 0 | AA152: =VLOOKUP(A152,[1]FullMultExpressionTableReads2Ge!$A$2:$P$26450,10,FALSE) -> 0 | AB152: =VLOOKUP(A152,[1]FullMultExpressionTableReads2Ge!$A$2:$P$26450,11,FALSE) -> 0 | AC152: =VLOOKUP(A152,[1]FullMultExpressionTableReads2Ge!$A$2:$P$26450,12,FALSE) -> 0 | AD152: =VLOOKUP(A152,[1]FullMultExpressionTableReads2Ge!$A$2:$P$26450,13,FALSE) -> 0 | AE152: =VLOOKUP(A152,[1]FullMultExpressionTableReads2Ge!$A$2:$P$26450,14,FALSE) -> 0 | AF152: =VLOOKUP(A152,[1]FullMultExpressionTableReads2Ge!$A$2:$P$26450,15,FALSE) -> 0 | AG152: =VLOOKUP(A152,[1]FullMultExpressionTableReads2Ge!$A$2:$P$26450,16,FALSE) -> 0 | AH152: NA | AI152: NA | AJ152: NA | AK152: NA | AL152: NA | AM152: NA | AN152: 0 | AO152: 0 | AP152: 0 | AQ152: 0 | AR152: 0 | AS152: 0 | AT152: 0 | AU152: 0 | AV152: 0
A153: AAEL002725 | B153: unspecified product | C153: Q94984.1 RecName: Full=Cuticle protein CP14.6; AltName: Full=MSCP14.6; Flags: Precursor [Manduca sexta] | D153: NA | E153: NA | F153: NA | G153: NA | H153: NA | I153: NA | J153: 0 | K153: 0 | L153: 0 | M153: 0 | N153: 0 | O153: 0 | P153: 0 | Q153: 0 | R153: 0 | S153: NA | T153: NA | U153: NA | V153: NA | W153: NA | X153: NA | Y153: =VLOOKUP(A153,[1]FullMultExpressionTableReads2Ge!$A$2:$P$26450,8,FALSE) -> 0 | Z153: =VLOOKUP(A153,[1]FullMultExpressionTableReads2Ge!$A$2:$P$26450,9,FALSE) -> 0 | AA153: =VLOOKUP(A153,[1]FullMultExpressionTableReads2Ge!$A$2:$P$26450,10,FALSE) -> 0 | AB153: =VLOOKUP(A153,[1]FullMultExpressionTableReads2Ge!$A$2:$P$26450,11,FALSE) -> 0 | AC153: =VLOOKUP(A153,[1]FullMultExpressionTableReads2Ge!$A$2:$P$26450,12,FALSE) -> 0 | AD153: =VLOOKUP(A153,[1]FullMultExpressionTableReads2Ge!$A$2:$P$26450,13,FALSE) -> 0 | AE153: =VLOOKUP(A153,[1]FullMultExpressionTableReads2Ge!$A$2:$P$26450,14,FALSE) -> 0 | AF153: =VLOOKUP(A153,[1]FullMultExpressionTableReads2Ge!$A$2:$P$26450,15,FALSE) -> 0 | AG153: =VLOOKUP(A153,[1]FullMultExpressionTableReads2Ge!$A$2:$P$26450,16,FALSE) -> 0 | AH153: NA | AI153: NA | AJ153: NA | AK153: NA | AL153: NA | AM153: 0.2974053301 | AN153: 0 | AO153: 0 | AP153: 0 | AQ153: 0 | AR153: 0 | AS153: 0 | AT153: 0 | AU153: 0 | AV153: 0
A154: AAEL024035 | B154: Histone H4 [Source:UniProtKB/TrEMBL%3BAcc:Q16IE4] | C154: P84040.2 RecName: Full=Histone H4 [Drosophila melanogaster] | D154: NA | E154: NA | F154: NA | G154: NA | H154: NA | I154: NA | J154: 0 | K154: 0 | L154: 0 | M154: 0 | N154: 0 | O154: 0 | P154: 0 | Q154: 0 | R154: 0 | S154: 0.2558739113 | T154: 3.413466535 | U154: NA | V154: -1.121710973 | W154: 0.1663901202 | X154: 4.519878553 | Y154: =VLOOKUP(A154,[1]FullMultExpressionTableReads2Ge!$A$2:$P$26450,8,FALSE) -> 0.909438807 | Z154: =VLOOKUP(A154,[1]FullMultExpressionTableReads2Ge!$A$2:$P$26450,9,FALSE) -> 4.308769832 | AA154: =VLOOKUP(A154,[1]FullMultExpressionTableReads2Ge!$A$2:$P$26450,10,FALSE) -> 1.118984822 | AB154: =VLOOKUP(A154,[1]FullMultExpressionTableReads2Ge!$A$2:$P$26450,11,FALSE) -> 0 | AC154: =VLOOKUP(A154,[1]FullMultExpressionTableReads2Ge!$A$2:$P$26450,12,FALSE) -> 2.918220901 | AD154: =VLOOKUP(A154,[1]FullMultExpressionTableReads2Ge!$A$2:$P$26450,13,FALSE) -> 0 | AE154: =VLOOKUP(A154,[1]FullMultExpressionTableReads2Ge!$A$2:$P$26450,14,FALSE) -> 1.57461134 | AF154: =VLOOKUP(A154,[1]FullMultExpressionTableReads2Ge!$A$2:$P$26450,15,FALSE) -> 10.4328831 | AG154: =VLOOKUP(A154,[1]FullMultExpressionTableReads2Ge!$A$2:$P$26450,16,FALSE) -> 55.61218903 | AH154: 0.2287273193 | AI154: 3.41801122 | AJ154: 0.9974604955 | AK154: -1.122003351 | AL154: 0.1557981424 | AM154: NA | AN154: 0.9084794199 | AO154: 4.30830969 | AP154: 1.117823929 | AQ154: 0 | AR154: 2.916361603 | AS154: 0 | AT154: 1.573804384 | AU154: 10.44914637 | AV154: 55.79429723
A155: AAEL027884 | B155: Histone H2B [Source:UniProtKB/TrEMBL%3BAcc:Q17EF1] | C155: Q8I1N0.3 RecName: Full=Histone H2B [Drosophila yakuba] | D155: NA | E155: NA | F155: NA | G155: NA | H155: NA | I155: NA | J155: 0 | K155: 0 | L155: 0 | M155: 0 | N155: 0 | O155: 0 | P155: 0 | Q155: 0 | R155: 0 | S155: 0.02799270057 | T155: 5.191279157 | U155: NA | V155: -0.3918429791 | W155: 0.07050353875 | X155: 5.576825293 | Y155: =VLOOKUP(A155,[1]FullMultExpressionTableReads2Ge!$A$2:$P$26450,8,FALSE) -> 2.728316421 | Z155: =VLOOKUP(A155,[1]FullMultExpressionTableReads2Ge!$A$2:$P$26450,9,FALSE) -> 4.308769832 | AA155: =VLOOKUP(A155,[1]FullMultExpressionTableReads2Ge!$A$2:$P$26450,10,FALSE) -> 5.594924112 | AB155: =VLOOKUP(A155,[1]FullMultExpressionTableReads2Ge!$A$2:$P$26450,11,FALSE) -> 1.959873284 | AC155: =VLOOKUP(A155,[1]FullMultExpressionTableReads2Ge!$A$2:$P$26450,12,FALSE) -> 3.890961201 | AD155: =VLOOKUP(A155,[1]FullMultExpressionTableReads2Ge!$A$2:$P$26450,13,FALSE) -> 3.717386629 | AE155: =VLOOKUP(A155,[1]FullMultExpressionTableReads2Ge!$A$2:$P$26450,14,FALSE) -> 0.7873056698 | AF155: =VLOOKUP(A155,[1]FullMultExpressionTableReads2Ge!$A$2:$P$26450,15,FALSE) -> 59.4674337 | AG155: =VLOOKUP(A155,[1]FullMultExpressionTableReads2Ge!$A$2:$P$26450,16,FALSE) -> 400.9250837 | AH155: 0.1033502638 | AI155: 5.194786751 | AJ155: 0.9974604955 | AK155: -0.3923585379 | AL155: 0.06937810462 | AM155: NA | AN155: 2.72543826 | AO155: 4.30830969 | AP155: 5.589119645 | AQ155: 1.953792899 | AR155: 3.888482137 | AS155: 3.713097045 | AT155: 0.786902192 | AU155: 59.56013432 | AV155: 402.2379568
A156: AAEL000921 | B156: unspecified product | D156: NA | E156: NA | F156: NA | G156: NA | H156: NA | I156: NA | J156: 0 | K156: 0 | L156: 0 | M156: 0 | N156: 0 | O156: 0 | P156: 0 | Q156: 0 | R156: 0 | S156: NA | T156: NA | U156: NA | V156: NA | W156: NA | X156: NA | Y156: =VLOOKUP(A156,[1]FullMultExpressionTableReads2Ge!$A$2:$P$26450,8,FALSE) -> 0 | Z156: =VLOOKUP(A156,[1]FullMultExpressionTableReads2Ge!$A$2:$P$26450,9,FALSE) -> 0 | AA156: =VLOOKUP(A156,[1]FullMultExpressionTableReads2Ge!$A$2:$P$26450,10,FALSE) -> 0 | AB156: =VLOOKUP(A156,[1]FullMultExpressionTableReads2Ge!$A$2:$P$26450,11,FALSE) -> 0 | AC156: =VLOOKUP(A156,[1]FullMultExpressionTableReads2Ge!$A$2:$P$26450,12,FALSE) -> 0 | AD156: =VLOOKUP(A156,[1]FullMultExpressionTableReads2Ge!$A$2:$P$26450,13,FALSE) -> 0 | AE156: =VLOOKUP(A156,[1]FullMultExpressionTableReads2Ge!$A$2:$P$26450,14,FALSE) -> 0 | AF156: =VLOOKUP(A156,[1]FullMultExpressionTableReads2Ge!$A$2:$P$26450,15,FALSE) -> 0 | AG156: =VLOOKUP(A156,[1]FullMultExpressionTableReads2Ge!$A$2:$P$26450,16,FALSE) -> 0 | AH156: NA | AI156: NA | AJ156: NA | AK156: NA | AL156: NA | AN156: 0 | AO156: 0 | AP156: 0 | AQ156: 0 | AR156: 0 | AS156: 0 | AT156: 0 | AU156: 0 | AV156: 0
A157: AAEL000665 | B157: adult cuticle protein%2C putative | C157: P45583.1 RecName: Full=Cuticle protein 19; AltName: Full=LM-ACP 19; Short=LM-19 [Locusta migratoria] | D157: NA | E157: NA | F157: NA | G157: NA | H157: NA | I157: NA | J157: 0 | K157: 0 | L157: 0 | M157: 0 | N157: 0 | O157: 0 | P157: 0 | Q157: 0 | R157: 0 | S157: NA | T157: NA | U157: NA | V157: NA | W157: NA | X157: NA | Y157: =VLOOKUP(A157,[1]FullMultExpressionTableReads2Ge!$A$2:$P$26450,8,FALSE) -> 0 | Z157: =VLOOKUP(A157,[1]FullMultExpressionTableReads2Ge!$A$2:$P$26450,9,FALSE) -> 0 | AA157: =VLOOKUP(A157,[1]FullMultExpressionTableReads2Ge!$A$2:$P$26450,10,FALSE) -> 0 | AB157: =VLOOKUP(A157,[1]FullMultExpressionTableReads2Ge!$A$2:$P$26450,11,FALSE) -> 0 | AC157: =VLOOKUP(A157,[1]FullMultExpressionTableReads2Ge!$A$2:$P$26450,12,FALSE) -> 0 | AD157: =VLOOKUP(A157,[1]FullMultExpressionTableReads2Ge!$A$2:$P$26450,13,FALSE) -> 0 | AE157: =VLOOKUP(A157,[1]FullMultExpressionTableReads2Ge!$A$2:$P$26450,14,FALSE) -> 0 | AF157: =VLOOKUP(A157,[1]FullMultExpressionTableReads2Ge!$A$2:$P$26450,15,FALSE) -> 0 | AG157: =VLOOKUP(A157,[1]FullMultExpressionTableReads2Ge!$A$2:$P$26450,16,FALSE) -> 0 | AH157: NA | AI157: NA | AJ157: NA | AK157: NA | AL157: NA | AN157: 0 | AO157: 0 | AP157: 0 | AQ157: 0 | AR157: 0 | AS157: 0 | AT157: 0 | AU157: 0 | AV157: 0
A158: AAEL018004 | B158: unspecified product | D158: NA | E158: NA | F158: NA | G158: NA | H158: NA | I158: NA | J158: 0 | K158: 0 | L158: 0 | M158: 0 | N158: 0 | O158: 0 | P158: 0 | Q158: 0 | R158: 0 | S158: NA | T158: NA | U158: NA | V158: NA | W158: NA | X158: NA | Y158: =VLOOKUP(A158,[1]FullMultExpressionTableReads2Ge!$A$2:$P$26450,8,FALSE) -> 0 | Z158: =VLOOKUP(A158,[1]FullMultExpressionTableReads2Ge!$A$2:$P$26450,9,FALSE) -> 0 | AA158: =VLOOKUP(A158,[1]FullMultExpressionTableReads2Ge!$A$2:$P$26450,10,FALSE) -> 0 | AB158: =VLOOKUP(A158,[1]FullMultExpressionTableReads2Ge!$A$2:$P$26450,11,FALSE) -> 0 | AC158: =VLOOKUP(A158,[1]FullMultExpressionTableReads2Ge!$A$2:$P$26450,12,FALSE) -> 0 | AD158: =VLOOKUP(A158,[1]FullMultExpressionTableReads2Ge!$A$2:$P$26450,13,FALSE) -> 0 | AE158: =VLOOKUP(A158,[1]FullMultExpressionTableReads2Ge!$A$2:$P$26450,14,FALSE) -> 0 | AF158: =VLOOKUP(A158,[1]FullMultExpressionTableReads2Ge!$A$2:$P$26450,15,FALSE) -> 0 | AG158: =VLOOKUP(A158,[1]FullMultExpressionTableReads2Ge!$A$2:$P$26450,16,FALSE) -> 0 | AH158: NA | AI158: NA | AJ158: NA | AK158: NA | AL158: NA | AM158: -0.5092246538 | AN158: 0 | AO158: 0 | AP158: 0 | AQ158: 0 | AR158: 0 | AS158: 0 | AT158: 0 | AU158: 0 | AV158: 0
A159: AAEL006907 | B159: unspecified product | C159: Q8IYX4.1 RecName: Full=Dead end protein homolog 1; AltName: Full=RNA-binding motif, single-stranded-interacting protein 4 [Homo sapiens] | D159: NA | E159: NA | F159: NA | G159: NA | H159: NA | I159: NA | J159: 0 | K159: 0 | L159: 0 | M159: 0 | N159: 0 | O159: 0 | P159: 0 | Q159: 0 | R159: 0 | S159: NA | T159: -0.9770484561 | U159: NA | V159: -1.072827723 | W159: NA | X159: NA | Y159: =VLOOKUP(A159,[1]FullMultExpressionTableReads2Ge!$A$2:$P$26450,8,FALSE) -> 0 | Z159: =VLOOKUP(A159,[1]FullMultExpressionTableReads2Ge!$A$2:$P$26450,9,FALSE) -> 0 | AA159: =VLOOKUP(A159,[1]FullMultExpressionTableReads2Ge!$A$2:$P$26450,10,FALSE) -> 1.118984822 | AB159: =VLOOKUP(A159,[1]FullMultExpressionTableReads2Ge!$A$2:$P$26450,11,FALSE) -> 0 | AC159: =VLOOKUP(A159,[1]FullMultExpressionTableReads2Ge!$A$2:$P$26450,12,FALSE) -> 0 | AD159: =VLOOKUP(A159,[1]FullMultExpressionTableReads2Ge!$A$2:$P$26450,13,FALSE) -> 0 | AE159: =VLOOKUP(A159,[1]FullMultExpressionTableReads2Ge!$A$2:$P$26450,14,FALSE) -> 0 | AF159: =VLOOKUP(A159,[1]FullMultExpressionTableReads2Ge!$A$2:$P$26450,15,FALSE) -> 0 | AG159: =VLOOKUP(A159,[1]FullMultExpressionTableReads2Ge!$A$2:$P$26450,16,FALSE) -> 0 | AH159: NA | AI159: -0.9741334579 | AJ159: 0.9974604955 | AK159: -1.073284 | AL159: NA | AM159: 0.2974053301 | AN159: 0 | AO159: 0 | AP159: 1.117823929 | AQ159: 0 | AR159: 0 | AS159: 0 | AT159: 0 | AU159: 0 | AV159: 0
A160: AAEL026299 | B160: unspecified product | D160: 0.9784124372 | E160: 1.604453001 | F160: NA | G160: NA | H160: NA | I160: 1.694120989 | J160: 0 | K160: 0 | L160: 0 | M160: 0 | N160: 0 | O160: 0 | P160: 1.557322971 | Q160: 0 | R160: 0 | S160: 0.710679144 | T160: -0.2929016306 | U160: NA | V160: -0.08489555121 | W160: 0.8056884245 | X160: -0.2198877143 | Y160: =VLOOKUP(A160,[1]FullMultExpressionTableReads2Ge!$A$2:$P$26450,8,FALSE) -> 60.02296126 | Z160: =VLOOKUP(A160,[1]FullMultExpressionTableReads2Ge!$A$2:$P$26450,9,FALSE) -> 72.17189469 | AA160: =VLOOKUP(A160,[1]FullMultExpressionTableReads2Ge!$A$2:$P$26450,10,FALSE) -> 92.87574026 | AB160: =VLOOKUP(A160,[1]FullMultExpressionTableReads2Ge!$A$2:$P$26450,11,FALSE) -> 62.71594508 | AC160: =VLOOKUP(A160,[1]FullMultExpressionTableReads2Ge!$A$2:$P$26450,12,FALSE) -> 61.28263892 | AD160: =VLOOKUP(A160,[1]FullMultExpressionTableReads2Ge!$A$2:$P$26450,13,FALSE) -> 88.28793243 | AE160: =VLOOKUP(A160,[1]FullMultExpressionTableReads2Ge!$A$2:$P$26450,14,FALSE) -> 54.32409121 | AF160: =VLOOKUP(A160,[1]FullMultExpressionTableReads2Ge!$A$2:$P$26450,15,FALSE) -> 63.64058694 | AG160: =VLOOKUP(A160,[1]FullMultExpressionTableReads2Ge!$A$2:$P$26450,16,FALSE) -> 65.9586428 | AH160: 0.6745858958 | AI160: -0.2899251702 | AJ160: 0.9974604955 | AK160: -0.08537128032 | AL160: 0.8193543205 | AM160: NA | AN160: 59.95964171 | AO160: 72.1641873 | AP160: 92.7793861 | AQ160: 62.52137276 | AR160: 61.24359365 | AS160: 88.18605483 | AT160: 54.29625125 | AU160: 63.73979286 | AV160: 66.1746316
A161: AAEL024836 | B161: unspecified product | D161: NA | E161: NA | F161: NA | G161: NA | H161: NA | I161: NA | J161: 0 | K161: 0 | L161: 0 | M161: 0 | N161: 0 | O161: 0 | P161: 0 | Q161: 0 | R161: 0 | S161: NA | T161: NA | U161: NA | V161: NA | W161: NA | X161: NA | Y161: =VLOOKUP(A161,[1]FullMultExpressionTableReads2Ge!$A$2:$P$26450,8,FALSE) -> 0 | Z161: =VLOOKUP(A161,[1]FullMultExpressionTableReads2Ge!$A$2:$P$26450,9,FALSE) -> 0 | AA161: =VLOOKUP(A161,[1]FullMultExpressionTableReads2Ge!$A$2:$P$26450,10,FALSE) -> 0 | AB161: =VLOOKUP(A161,[1]FullMultExpressionTableReads2Ge!$A$2:$P$26450,11,FALSE) -> 0 | AC161: =VLOOKUP(A161,[1]FullMultExpressionTableReads2Ge!$A$2:$P$26450,12,FALSE) -> 0 | AD161: =VLOOKUP(A161,[1]FullMultExpressionTableReads2Ge!$A$2:$P$26450,13,FALSE) -> 0 | AE161: =VLOOKUP(A161,[1]FullMultExpressionTableReads2Ge!$A$2:$P$26450,14,FALSE) -> 0 | AF161: =VLOOKUP(A161,[1]FullMultExpressionTableReads2Ge!$A$2:$P$26450,15,FALSE) -> 0 | AG161: =VLOOKUP(A161,[1]FullMultExpressionTableReads2Ge!$A$2:$P$26450,16,FALSE) -> 0 | AH161: 0.5190231272 | AI161: -1.660021929 | AJ161: 0.9974604955 | AK161: -1.196123324 | AL161: NA | AM161: NA | AN161: 5.450876519 | AO161: 6.462464534 | AP161: 3.353471787 | AQ161: 0.9768964494 | AR161: 3.888482137 | AS161: 1.856548523 | AT161: 2.360706576 | AU161: 1.044914637 | AV161: 1.297541796
A162: AAEL024832 | B162: unspecified product | C162: P40265.1 RecName: Full=Histone H1-III [Glyptotendipes barbipes] | D162: NA | E162: NA | F162: NA | G162: NA | H162: NA | I162: NA | J162: 0 | K162: 0 | L162: 0 | M162: 0 | N162: 0 | O162: 0 | P162: 0 | Q162: 0 | R162: 0 | S162: 0.2487013463 | T162: 2.837864785 | U162: NA | V162: -0.5552581993 | W162: 0.1315619048 | X162: 3.360778911 | Y162: =VLOOKUP(A162,[1]FullMultExpressionTableReads2Ge!$A$2:$P$26450,8,FALSE) -> 9.09438807 | Z162: =VLOOKUP(A162,[1]FullMultExpressionTableReads2Ge!$A$2:$P$26450,9,FALSE) -> 5.38596229 | AA162: =VLOOKUP(A162,[1]FullMultExpressionTableReads2Ge!$A$2:$P$26450,10,FALSE) -> 2.237969645 | AB162: =VLOOKUP(A162,[1]FullMultExpressionTableReads2Ge!$A$2:$P$26450,11,FALSE) -> 3.919746567 | AC162: =VLOOKUP(A162,[1]FullMultExpressionTableReads2Ge!$A$2:$P$26450,12,FALSE) -> 6.809182102 | AD162: =VLOOKUP(A162,[1]FullMultExpressionTableReads2Ge!$A$2:$P$26450,13,FALSE) -> 0.9293466572 | AE162: =VLOOKUP(A162,[1]FullMultExpressionTableReads2Ge!$A$2:$P$26450,14,FALSE) -> 6.298445358 | AF162: =VLOOKUP(A162,[1]FullMultExpressionTableReads2Ge!$A$2:$P$26450,15,FALSE) -> 11.47617141 | AG162: =VLOOKUP(A162,[1]FullMultExpressionTableReads2Ge!$A$2:$P$26450,16,FALSE) -> 103.4645377 | AH162: 0.2135264073 | AI162: 2.881595414 | AJ162: 0.9974604955 | AK162: -0.5553271949 | AL162: 0.1108695071 | AM162: NA | AN162: 9.084794199 | AO162: 5.385387112 | AP162: 2.235647858 | AQ162: 3.907585797 | AR162: 6.804843739 | AS162: 0.9282742613 | AT162: 6.295217536 | AU162: 13.58389028 | AV162: 105.1008855
A163: AAEL022066 | B163: Histone H3 [Source:UniProtKB/TrEMBL%3BAcc:Q16N56] | C163: P02299.4 RecName: Full=Histone H3 [Drosophila melanogaster] | D163: NA | E163: NA | F163: NA | G163: NA | H163: NA | I163: NA | J163: 0 | K163: 0 | L163: 0 | M163: 0 | N163: 0 | O163: 0 | P163: 0 | Q163: 0 | R163: 0 | S163: 0.3052470826 | T163: 3.831158144 | U163: NA | V163: -0.09235598504 | W163: 0.3154347637 | X163: 3.903242651 | Y163: =VLOOKUP(A163,[1]FullMultExpressionTableReads2Ge!$A$2:$P$26450,8,FALSE) -> 1.818877614 | Z163: =VLOOKUP(A163,[1]FullMultExpressionTableReads2Ge!$A$2:$P$26450,9,FALSE) -> 1.077192458 | AA163: =VLOOKUP(A163,[1]FullMultExpressionTableReads2Ge!$A$2:$P$26450,10,FALSE) -> 1.118984822 | AB163: =VLOOKUP(A163,[1]FullMultExpressionTableReads2Ge!$A$2:$P$26450,11,FALSE) -> 1.959873284 | AC163: =VLOOKUP(A163,[1]FullMultExpressionTableReads2Ge!$A$2:$P$26450,12,FALSE) -> 0 | AD163: =VLOOKUP(A163,[1]FullMultExpressionTableReads2Ge!$A$2:$P$26450,13,FALSE) -> 1.858693314 | AE163: =VLOOKUP(A163,[1]FullMultExpressionTableReads2Ge!$A$2:$P$26450,14,FALSE) -> 0 | AF163: =VLOOKUP(A163,[1]FullMultExpressionTableReads2Ge!$A$2:$P$26450,15,FALSE) -> 6.259729863 | AG163: =VLOOKUP(A163,[1]FullMultExpressionTableReads2Ge!$A$2:$P$26450,16,FALSE) -> 51.73226886 | AH163: 0.2788313325 | AI163: 3.835670125 | AJ163: 0.9974604955 | AK163: -0.09298225 | AL163: 0.3053881375 | AM163: -0.5092246538 | AN163: 1.81695884 | AO163: 1.077077422 | AP163: 1.117823929 | AQ163: 1.953792899 | AR163: 0 | AS163: 1.856548523 | AT163: 0 | AU163: 6.269487823 | AV163: 51.90167184
A164: AAEL022211 | B164: unspecified product | C164: P83130.1 RecName: Full=Tubulin beta-2 chain; AltName: Full=Beta-2-tubulin [Drosophila erecta] | D164: NA | E164: NA | F164: NA | G164: NA | H164: NA | I164: NA | J164: 0 | K164: 0 | L164: 0 | M164: 0 | N164: 0 | O164: 0 | P164: 0 | Q164: 0 | R164: 0 | S164: 0.6860443421 | T164: 2.22599554 | U164: NA | V164: 1.498013527 | W164: NA | X164: 0.683653204 | Y164: =VLOOKUP(A164,[1]FullMultExpressionTableReads2Ge!$A$2:$P$26450,8,FALSE) -> 0.909438807 | Z164: =VLOOKUP(A164,[1]FullMultExpressionTableReads2Ge!$A$2:$P$26450,9,FALSE) -> 1.077192458 | AA164: =VLOOKUP(A164,[1]FullMultExpressionTableReads2Ge!$A$2:$P$26450,10,FALSE) -> 0 | AB164: =VLOOKUP(A164,[1]FullMultExpressionTableReads2Ge!$A$2:$P$26450,11,FALSE) -> 1.959873284 | AC164: =VLOOKUP(A164,[1]FullMultExpressionTableReads2Ge!$A$2:$P$26450,12,FALSE) -> 1.9454806 | AD164: =VLOOKUP(A164,[1]FullMultExpressionTableReads2Ge!$A$2:$P$26450,13,FALSE) -> 1.858693314 | AE164: =VLOOKUP(A164,[1]FullMultExpressionTableReads2Ge!$A$2:$P$26450,14,FALSE) -> 0 | AF164: =VLOOKUP(A164,[1]FullMultExpressionTableReads2Ge!$A$2:$P$26450,15,FALSE) -> 3.129864931 | AG164: =VLOOKUP(A164,[1]FullMultExpressionTableReads2Ge!$A$2:$P$26450,16,FALSE) -> 6.466533608 | AH164: NA | AI164: 2.229882264 | AJ164: 0.9974604955 | AK164: 1.497666597 | AL164: 0.8978885648 | AM164: -0.5092246538 | AN164: 0.9084794199 | AO164: 1.077077422 | AP164: 0 | AQ164: 1.953792899 | AR164: 1.944241068 | AS164: 1.856548523 | AT164: 0 | AU164: 3.134743911 | AV164: 6.487708981
A165: AAEL025312 | B165: unspecified product | D165: NA | E165: NA | F165: NA | G165: NA | H165: NA | I165: NA | J165: 0 | K165: 0 | L165: 0 | M165: 0 | N165: 0 | O165: 0 | P165: 0 | Q165: 0 | R165: 0 | S165: NA | T165: NA | U165: NA | V165: NA | W165: NA | X165: NA | Y165: =VLOOKUP(A165,[1]FullMultExpressionTableReads2Ge!$A$2:$P$26450,8,FALSE) -> 0 | Z165: =VLOOKUP(A165,[1]FullMultExpressionTableReads2Ge!$A$2:$P$26450,9,FALSE) -> 0 | AA165: =VLOOKUP(A165,[1]FullMultExpressionTableReads2Ge!$A$2:$P$26450,10,FALSE) -> 0 | AB165: =VLOOKUP(A165,[1]FullMultExpressionTableReads2Ge!$A$2:$P$26450,11,FALSE) -> 0 | AC165: =VLOOKUP(A165,[1]FullMultExpressionTableReads2Ge!$A$2:$P$26450,12,FALSE) -> 0 | AD165: =VLOOKUP(A165,[1]FullMultExpressionTableReads2Ge!$A$2:$P$26450,13,FALSE) -> 0 | AE165: =VLOOKUP(A165,[1]FullMultExpressionTableReads2Ge!$A$2:$P$26450,14,FALSE) -> 0 | AF165: =VLOOKUP(A165,[1]FullMultExpressionTableReads2Ge!$A$2:$P$26450,15,FALSE) -> 0 | AG165: =VLOOKUP(A165,[1]FullMultExpressionTableReads2Ge!$A$2:$P$26450,16,FALSE) -> 0 | AH165: NA | AI165: NA | AJ165: NA | AK165: NA | AL165: NA | AM165: NA | AN165: 0 | AO165: 0 | AP165: 0 | AQ165: 0 | AR165: 0 | AS165: 0 | AT165: 0 | AU165: 0 | AV165: 0
A166: AAEL020107 | B166: Histone H3 [Source:UniProtKB/TrEMBL%3BAcc:Q16N56] | C166: P02299.4 RecName: Full=Histone H3 [Drosophila melanogaster] | D166: NA | E166: NA | F166: NA | G166: NA | H166: NA | I166: NA | J166: 0 | K166: 0 | L166: 0 | M166: 0 | N166: 0 | O166: 0 | P166: 0 | Q166: 0 | R166: 0 | S166: 0.1640786607 | T166: 5.001129577 | U166: NA | V166: 1.714879512 | W166: 0.2541395327 | X166: 3.260202616 | Y166: =VLOOKUP(A166,[1]FullMultExpressionTableReads2Ge!$A$2:$P$26450,8,FALSE) -> 0.909438807 | Z166: =VLOOKUP(A166,[1]FullMultExpressionTableReads2Ge!$A$2:$P$26450,9,FALSE) -> 1.077192458 | AA166: =VLOOKUP(A166,[1]FullMultExpressionTableReads2Ge!$A$2:$P$26450,10,FALSE) -> 0 | AB166: =VLOOKUP(A166,[1]FullMultExpressionTableReads2Ge!$A$2:$P$26450,11,FALSE) -> 0.9799366419 | AC166: =VLOOKUP(A166,[1]FullMultExpressionTableReads2Ge!$A$2:$P$26450,12,FALSE) -> 2.918220901 | AD166: =VLOOKUP(A166,[1]FullMultExpressionTableReads2Ge!$A$2:$P$26450,13,FALSE) -> 2.788039972 | AE166: =VLOOKUP(A166,[1]FullMultExpressionTableReads2Ge!$A$2:$P$26450,14,FALSE) -> 1.57461134 | AF166: =VLOOKUP(A166,[1]FullMultExpressionTableReads2Ge!$A$2:$P$26450,15,FALSE) -> 4.173153242 | AG166: =VLOOKUP(A166,[1]FullMultExpressionTableReads2Ge!$A$2:$P$26450,16,FALSE) -> 59.49210919 | AH166: 0.1437137492 | AI166: 5.005397297 | AJ166: 0.9974604955 | AK166: 1.714722267 | AL166: 0.2475436384 | AM166: -0.5092246538 | AN166: 0.9084794199 | AO166: 1.077077422 | AP166: 0 | AQ166: 0.9768964494 | AR166: 2.916361603 | AS166: 2.784822784 | AT166: 1.573804384 | AU166: 4.179658548 | AV166: 59.68692262
A167: AAEL000517 | B167: Histone H4 [Source:UniProtKB/TrEMBL%3BAcc:Q16IE4] | D167: 0.9784124372 | E167: 1.910415448 | F167: NA | G167: NA | H167: NA | I167: 1.998913455 | J167: 0 | K167: 0 | L167: 0 | M167: 0 | N167: 0 | O167: 0 | P167: 0.7786614854 | Q167: 0 | R167: 1.351131403 | S167: 0.07573742834 | T167: 4.487597494 | U167: NA | V167: 1.159874335 | W167: 0.1059533043 | X167: 3.297114054 | Y167: =VLOOKUP(A167,[1]FullMultExpressionTableReads2Ge!$A$2:$P$26450,8,FALSE) -> 3.637755228 | Z167: =VLOOKUP(A167,[1]FullMultExpressionTableReads2Ge!$A$2:$P$26450,9,FALSE) -> 4.308769832 | AA167: =VLOOKUP(A167,[1]FullMultExpressionTableReads2Ge!$A$2:$P$26450,10,FALSE) -> 0 | AB167: =VLOOKUP(A167,[1]FullMultExpressionTableReads2Ge!$A$2:$P$26450,11,FALSE) -> 4.899683209 | AC167: =VLOOKUP(A167,[1]FullMultExpressionTableReads2Ge!$A$2:$P$26450,12,FALSE) -> 4.863701501 | AD167: =VLOOKUP(A167,[1]FullMultExpressionTableReads2Ge!$A$2:$P$26450,13,FALSE) -> 8.364119915 | AE167: =VLOOKUP(A167,[1]FullMultExpressionTableReads2Ge!$A$2:$P$26450,14,FALSE) -> 3.936528349 | AF167: =VLOOKUP(A167,[1]FullMultExpressionTableReads2Ge!$A$2:$P$26450,15,FALSE) -> 23.99563114 | AG167: =VLOOKUP(A167,[1]FullMultExpressionTableReads2Ge!$A$2:$P$26450,16,FALSE) -> 152.6101931 | AH167: 0.0439765274 | AI167: 4.744378863 | AJ167: 0.9974604955 | AK167: 1.437111771 | AL167: 0.09456680588 | AN167: 3.63391768 | AO167: 4.30830969 | AP167: 0 | AQ167: 4.884482247 | AR167: 8.749084808 | AS167: 8.354468352 | AT167: 3.93451096 | AU167: 31.34743911 | AV167: 180.3583097
A168: AAEL023191 | B168: Histone H2A [Source:UniProtKB/TrEMBL%3BAcc:Q173V2] | C168: P84051.2 RecName: Full=Histone H2A [Drosophila melanogaster] | D168: NA | E168: NA | F168: NA | G168: NA | H168: NA | I168: NA | J168: 0 | K168: 0 | L168: 0 | M168: 0 | N168: 0 | O168: 0 | P168: 0 | Q168: 0 | R168: 0 | S168: 0.2038043263 | T168: 3.78987021 | U168: NA | V168: 0.8679991542 | W168: 0.2817646207 | X168: 2.913333747 | Y168: =VLOOKUP(A168,[1]FullMultExpressionTableReads2Ge!$A$2:$P$26450,8,FALSE) -> 0.909438807 | Z168: =VLOOKUP(A168,[1]FullMultExpressionTableReads2Ge!$A$2:$P$26450,9,FALSE) -> 5.38596229 | AA168: =VLOOKUP(A168,[1]FullMultExpressionTableReads2Ge!$A$2:$P$26450,10,FALSE) -> 1.118984822 | AB168: =VLOOKUP(A168,[1]FullMultExpressionTableReads2Ge!$A$2:$P$26450,11,FALSE) -> 0.9799366419 | AC168: =VLOOKUP(A168,[1]FullMultExpressionTableReads2Ge!$A$2:$P$26450,12,FALSE) -> 7.781922402 | AD168: =VLOOKUP(A168,[1]FullMultExpressionTableReads2Ge!$A$2:$P$26450,13,FALSE) -> 4.646733286 | AE168: =VLOOKUP(A168,[1]FullMultExpressionTableReads2Ge!$A$2:$P$26450,14,FALSE) -> 2.361917009 | AF168: =VLOOKUP(A168,[1]FullMultExpressionTableReads2Ge!$A$2:$P$26450,15,FALSE) -> 8.346306484 | AG168: =VLOOKUP(A168,[1]FullMultExpressionTableReads2Ge!$A$2:$P$26450,16,FALSE) -> 91.82477723 | AH168: 0.1760394081 | AI168: 3.794615694 | AJ168: 0.9974604955 | AK168: 0.867435631 | AL168: 0.2744219641 | AM168: NA | AN168: 0.9084794199 | AO168: 5.385387112 | AP168: 1.117823929 | AQ168: 0.9768964494 | AR168: 7.776964273 | AS168: 4.641371307 | AT168: 2.360706576 | AU168: 8.359317097 | AV168: 92.12546752
A169: AAEL006985 | B169: dopachrome-conversion enzyme (DCE)%2C putative | C169: Q9BI17.1 RecName: Full=Protein yellow; Flags: Precursor [Drosophila yakuba] | D169: NA | E169: NA | F169: NA | G169: NA | H169: NA | I169: NA | J169: 0 | K169: 0 | L169: 0 | M169: 0 | N169: 0 | O169: 0 | P169: 0 | Q169: 0 | R169: 0 | S169: NA | T169: NA | U169: NA | V169: NA | W169: NA | X169: NA | Y169: =VLOOKUP(A169,[1]FullMultExpressionTableReads2Ge!$A$2:$P$26450,8,FALSE) -> 0 | Z169: =VLOOKUP(A169,[1]FullMultExpressionTableReads2Ge!$A$2:$P$26450,9,FALSE) -> 0 | AA169: =VLOOKUP(A169,[1]FullMultExpressionTableReads2Ge!$A$2:$P$26450,10,FALSE) -> 0 | AB169: =VLOOKUP(A169,[1]FullMultExpressionTableReads2Ge!$A$2:$P$26450,11,FALSE) -> 0 | AC169: =VLOOKUP(A169,[1]FullMultExpressionTableReads2Ge!$A$2:$P$26450,12,FALSE) -> 0 | AD169: =VLOOKUP(A169,[1]FullMultExpressionTableReads2Ge!$A$2:$P$26450,13,FALSE) -> 0 | AE169: =VLOOKUP(A169,[1]FullMultExpressionTableReads2Ge!$A$2:$P$26450,14,FALSE) -> 0 | AF169: =VLOOKUP(A169,[1]FullMultExpressionTableReads2Ge!$A$2:$P$26450,15,FALSE) -> 0 | AG169: =VLOOKUP(A169,[1]FullMultExpressionTableReads2Ge!$A$2:$P$26450,16,FALSE) -> 0 | AH169: 0.3392330949 | AI169: 1.929793904 | AJ169: 0.9974604955 | AK169: 0.06310337839 | AL169: 0.3911138223 | AM169: 0.2974053301 | AN169: 3.63391768 | AO169: 3.231232267 | AP169: 2.235647858 | AQ169: 2.930689348 | AR169: 4.860602671 | AS169: 1.856548523 | AT169: 4.721413152 | AU169: 12.53897565 | AV169: 18.16558515
A170: AAEL027025 | B170: unspecified product | C170: Q17QR8.1 RecName: Full=Putative nuclease HARBI1; AltName: Full=Harbinger transposase-derived nuclease [Bos taurus] | D170: NA | E170: NA | F170: NA | G170: NA | H170: NA | I170: NA | J170: 0 | K170: 0 | L170: 0 | M170: 0 | N170: 0 | O170: 0 | P170: 0 | Q170: 0 | R170: 0 | S170: NA | T170: NA | U170: NA | V170: NA | W170: NA | X170: NA | Y170: =VLOOKUP(A170,[1]FullMultExpressionTableReads2Ge!$A$2:$P$26450,8,FALSE) -> 0 | Z170: =VLOOKUP(A170,[1]FullMultExpressionTableReads2Ge!$A$2:$P$26450,9,FALSE) -> 0 | AA170: =VLOOKUP(A170,[1]FullMultExpressionTableReads2Ge!$A$2:$P$26450,10,FALSE) -> 0 | AB170: =VLOOKUP(A170,[1]FullMultExpressionTableReads2Ge!$A$2:$P$26450,11,FALSE) -> 0 | AC170: =VLOOKUP(A170,[1]FullMultExpressionTableReads2Ge!$A$2:$P$26450,12,FALSE) -> 0 | AD170: =VLOOKUP(A170,[1]FullMultExpressionTableReads2Ge!$A$2:$P$26450,13,FALSE) -> 0 | AE170: =VLOOKUP(A170,[1]FullMultExpressionTableReads2Ge!$A$2:$P$26450,14,FALSE) -> 0 | AF170: =VLOOKUP(A170,[1]FullMultExpressionTableReads2Ge!$A$2:$P$26450,15,FALSE) -> 0 | AG170: =VLOOKUP(A170,[1]FullMultExpressionTableReads2Ge!$A$2:$P$26450,16,FALSE) -> 0 | AH170: NA | AI170: NA | AJ170: NA | AK170: NA | AL170: NA | AM170: NA | AN170: 0 | AO170: 0 | AP170: 0 | AQ170: 0 | AR170: 0 | AS170: 0 | AT170: 0 | AU170: 0 | AV170: 0
A171: AAEL029078 | B171: unspecified product | C171: Q17015.3 RecName: Full=Cuticle protein [Anopheles gambiae] | D171: NA | E171: NA | F171: NA | G171: NA | H171: NA | I171: NA | J171: 0 | K171: 0 | L171: 0 | M171: 0 | N171: 0 | O171: 0 | P171: 0 | Q171: 0 | R171: 0 | S171: NA | T171: NA | U171: NA | V171: NA | W171: NA | X171: NA | Y171: =VLOOKUP(A171,[1]FullMultExpressionTableReads2Ge!$A$2:$P$26450,8,FALSE) -> 0 | Z171: =VLOOKUP(A171,[1]FullMultExpressionTableReads2Ge!$A$2:$P$26450,9,FALSE) -> 0 | AA171: =VLOOKUP(A171,[1]FullMultExpressionTableReads2Ge!$A$2:$P$26450,10,FALSE) -> 0 | AB171: =VLOOKUP(A171,[1]FullMultExpressionTableReads2Ge!$A$2:$P$26450,11,FALSE) -> 0 | AC171: =VLOOKUP(A171,[1]FullMultExpressionTableReads2Ge!$A$2:$P$26450,12,FALSE) -> 0 | AD171: =VLOOKUP(A171,[1]FullMultExpressionTableReads2Ge!$A$2:$P$26450,13,FALSE) -> 0 | AE171: =VLOOKUP(A171,[1]FullMultExpressionTableReads2Ge!$A$2:$P$26450,14,FALSE) -> 0 | AF171: =VLOOKUP(A171,[1]FullMultExpressionTableReads2Ge!$A$2:$P$26450,15,FALSE) -> 0 | AG171: =VLOOKUP(A171,[1]FullMultExpressionTableReads2Ge!$A$2:$P$26450,16,FALSE) -> 0 | AH171: NA | AI171: NA | AJ171: NA | AK171: NA | AL171: NA | AM171: 1.046341302 | AN171: 0 | AO171: 0 | AP171: 0 | AQ171: 0 | AR171: 0 | AS171: 0 | AT171: 0 | AU171: 0 | AV171: 0
A172: AAEL009130 | C172: Q9VCW1.1 RecName: Full=Probable cytochrome P450 6d4; AltName: Full=CYPVID4 [Drosophila melanogaster] | D172: NA | E172: NA | F172: NA | G172: NA | H172: NA | I172: NA | J172: 0 | K172: 0 | L172: 0 | M172: 0 | N172: 0 | O172: 0 | P172: 0 | Q172: 0 | R172: 0 | S172: NA | T172: NA | U172: NA | V172: NA | W172: NA | X172: NA | Y172: =VLOOKUP(A172,[1]FullMultExpressionTableReads2Ge!$A$2:$P$26450,8,FALSE) -> 0 | Z172: =VLOOKUP(A172,[1]FullMultExpressionTableReads2Ge!$A$2:$P$26450,9,FALSE) -> 0 | AA172: =VLOOKUP(A172,[1]FullMultExpressionTableReads2Ge!$A$2:$P$26450,10,FALSE) -> 0 | AB172: =VLOOKUP(A172,[1]FullMultExpressionTableReads2Ge!$A$2:$P$26450,11,FALSE) -> 0 | AC172: =VLOOKUP(A172,[1]FullMultExpressionTableReads2Ge!$A$2:$P$26450,12,FALSE) -> 0 | AD172: =VLOOKUP(A172,[1]FullMultExpressionTableReads2Ge!$A$2:$P$26450,13,FALSE) -> 0 | AE172: =VLOOKUP(A172,[1]FullMultExpressionTableReads2Ge!$A$2:$P$26450,14,FALSE) -> 0 | AF172: =VLOOKUP(A172,[1]FullMultExpressionTableReads2Ge!$A$2:$P$26450,15,FALSE) -> 0 | AG172: =VLOOKUP(A172,[1]FullMultExpressionTableReads2Ge!$A$2:$P$26450,16,FALSE) -> 0 | AH172: 0.9771447442 | AI172: -0.05051226967 | AJ172: 0.9974604955 | AK172: 0.2510782847 | AL172: 0.8735883627 | AM172: -0.1105668335 | AN172: 12.71871188 | AO172: 20.46447103 | AP172: 16.76735893 | AQ172: 22.46861834 | AR172: 15.55392855 | AS172: 21.35030801 | AT172: 24.39396795 | AU172: 12.53897565 | AV172: 10.38033437
A173: AAEL007055 | B173: lipase | C173: Q02157.1 RecName: Full=Pancreatic triacylglycerol lipase; Short=PL; Short=PTL; Short=Pancreatic lipase; Flags: Precursor [Oryctolagus cuniculus] | D173: NA | E173: NA | F173: NA | G173: NA | H173: NA | I173: NA | J173: 0 | K173: 0 | L173: 0 | M173: 0 | N173: 0 | O173: 0 | P173: 0 | Q173: 0 | R173: 0 | S173: NA | T173: NA | U173: NA | V173: NA | W173: NA | X173: NA | Y173: =VLOOKUP(A173,[1]FullMultExpressionTableReads2Ge!$A$2:$P$26450,8,FALSE) -> 0 | Z173: =VLOOKUP(A173,[1]FullMultExpressionTableReads2Ge!$A$2:$P$26450,9,FALSE) -> 0 | AA173: =VLOOKUP(A173,[1]FullMultExpressionTableReads2Ge!$A$2:$P$26450,10,FALSE) -> 0 | AB173: =VLOOKUP(A173,[1]FullMultExpressionTableReads2Ge!$A$2:$P$26450,11,FALSE) -> 0 | AC173: =VLOOKUP(A173,[1]FullMultExpressionTableReads2Ge!$A$2:$P$26450,12,FALSE) -> 0 | AD173: =VLOOKUP(A173,[1]FullMultExpressionTableReads2Ge!$A$2:$P$26450,13,FALSE) -> 0 | AE173: =VLOOKUP(A173,[1]FullMultExpressionTableReads2Ge!$A$2:$P$26450,14,FALSE) -> 0 | AF173: =VLOOKUP(A173,[1]FullMultExpressionTableReads2Ge!$A$2:$P$26450,15,FALSE) -> 0 | AG173: =VLOOKUP(A173,[1]FullMultExpressionTableReads2Ge!$A$2:$P$26450,16,FALSE) -> 0 | AH173: NA | AI173: 0.9494198937 | AJ173: NA | AK173: NA | AL173: NA | AM173: 0.2974053301 | AN173: 0 | AO173: 0 | AP173: 0 | AQ173: 0 | AR173: 0 | AS173: 0 | AT173: 0.786902192 | AU173: 0 | AV173: 0
A174: AAEL026586 | B174: unspecified product | D174: NA | E174: NA | F174: NA | G174: NA | H174: NA | I174: NA | J174: 0 | K174: 0 | L174: 0 | M174: 0 | N174: 0 | O174: 0 | P174: 0 | Q174: 0 | R174: 0 | S174: NA | T174: NA | U174: NA | V174: NA | W174: NA | X174: NA | Y174: =VLOOKUP(A174,[1]FullMultExpressionTableReads2Ge!$A$2:$P$26450,8,FALSE) -> 0 | Z174: =VLOOKUP(A174,[1]FullMultExpressionTableReads2Ge!$A$2:$P$26450,9,FALSE) -> 0 | AA174: =VLOOKUP(A174,[1]FullMultExpressionTableReads2Ge!$A$2:$P$26450,10,FALSE) -> 0 | AB174: =VLOOKUP(A174,[1]FullMultExpressionTableReads2Ge!$A$2:$P$26450,11,FALSE) -> 0 | AC174: =VLOOKUP(A174,[1]FullMultExpressionTableReads2Ge!$A$2:$P$26450,12,FALSE) -> 0 | AD174: =VLOOKUP(A174,[1]FullMultExpressionTableReads2Ge!$A$2:$P$26450,13,FALSE) -> 0 | AE174: =VLOOKUP(A174,[1]FullMultExpressionTableReads2Ge!$A$2:$P$26450,14,FALSE) -> 0 | AF174: =VLOOKUP(A174,[1]FullMultExpressionTableReads2Ge!$A$2:$P$26450,15,FALSE) -> 0 | AG174: =VLOOKUP(A174,[1]FullMultExpressionTableReads2Ge!$A$2:$P$26450,16,FALSE) -> 0 | AH174: 0.8476248638 | AI174: 0.08051765743 | AJ174: 0.9974604955 | AK174: 0.02873950344 | AL174: 0.9544079488 | AM174: NA | AN174: 327.0525912 | AO174: 315.5836848 | AP174: 347.6432419 | AQ174: 379.0358224 | AR174: 302.3294861 | AS174: 334.1787341 | AT174: 313.1870724 | AU174: 318.6989643 | AV174: 419.1060001
A175: AAEL022362 | B175: Histone H3 [Source:UniProtKB/TrEMBL%3BAcc:Q16N56] | C175: P02299.4 RecName: Full=Histone H3 [Drosophila melanogaster] | D175: NA | E175: NA | F175: NA | G175: NA | H175: NA | I175: NA | J175: 0 | K175: 0 | L175: 0 | M175: 0 | N175: 0 | O175: 0 | P175: 0 | Q175: 0 | R175: 0 | S175: 0.1837471405 | T175: 4.596600259 | U175: NA | V175: 1.139693409 | W175: 0.2815911709 | X175: 3.436051654 | Y175: =VLOOKUP(A175,[1]FullMultExpressionTableReads2Ge!$A$2:$P$26450,8,FALSE) -> 0.909438807 | Z175: =VLOOKUP(A175,[1]FullMultExpressionTableReads2Ge!$A$2:$P$26450,9,FALSE) -> 2.154384916 | AA175: =VLOOKUP(A175,[1]FullMultExpressionTableReads2Ge!$A$2:$P$26450,10,FALSE) -> 0 | AB175: =VLOOKUP(A175,[1]FullMultExpressionTableReads2Ge!$A$2:$P$26450,11,FALSE) -> 3.919746567 | AC175: =VLOOKUP(A175,[1]FullMultExpressionTableReads2Ge!$A$2:$P$26450,12,FALSE) -> 2.918220901 | AD175: =VLOOKUP(A175,[1]FullMultExpressionTableReads2Ge!$A$2:$P$26450,13,FALSE) -> 0 | AE175: =VLOOKUP(A175,[1]FullMultExpressionTableReads2Ge!$A$2:$P$26450,14,FALSE) -> 0.7873056698 | AF175: =VLOOKUP(A175,[1]FullMultExpressionTableReads2Ge!$A$2:$P$26450,15,FALSE) -> 9.389594794 | AG175: =VLOOKUP(A175,[1]FullMultExpressionTableReads2Ge!$A$2:$P$26450,16,FALSE) -> 64.66533608 | AH175: 0.1562134506 | AI175: 4.601032544 | AJ175: 0.9974604955 | AK175: 1.13882523 | AL175: 0.2730743448 | AM175: -0.5092246538 | AN175: 0.9084794199 | AO175: 2.154154845 | AP175: 0 | AQ175: 3.907585797 | AR175: 2.916361603 | AS175: 0 | AT175: 0.786902192 | AU175: 9.404231734 | AV175: 64.87708981
A176: AAEL003317 | B176: alkaline phosphatase | D176: NA | E176: NA | F176: NA | G176: NA | H176: NA | I176: NA | J176: 0 | K176: 0 | L176: 0 | M176: 0 | N176: 0 | O176: 0 | P176: 0 | Q176: 0 | R176: 0 | S176: NA | T176: NA | U176: NA | V176: NA | W176: NA | X176: NA | Y176: =VLOOKUP(A176,[1]FullMultExpressionTableReads2Ge!$A$2:$P$26450,8,FALSE) -> 0 | Z176: =VLOOKUP(A176,[1]FullMultExpressionTableReads2Ge!$A$2:$P$26450,9,FALSE) -> 0 | AA176: =VLOOKUP(A176,[1]FullMultExpressionTableReads2Ge!$A$2:$P$26450,10,FALSE) -> 0 | AB176: =VLOOKUP(A176,[1]FullMultExpressionTableReads2Ge!$A$2:$P$26450,11,FALSE) -> 0 | AC176: =VLOOKUP(A176,[1]FullMultExpressionTableReads2Ge!$A$2:$P$26450,12,FALSE) -> 0 | AD176: =VLOOKUP(A176,[1]FullMultExpressionTableReads2Ge!$A$2:$P$26450,13,FALSE) -> 0 | AE176: =VLOOKUP(A176,[1]FullMultExpressionTableReads2Ge!$A$2:$P$26450,14,FALSE) -> 0 | AF176: =VLOOKUP(A176,[1]FullMultExpressionTableReads2Ge!$A$2:$P$26450,15,FALSE) -> 0 | AG176: =VLOOKUP(A176,[1]FullMultExpressionTableReads2Ge!$A$2:$P$26450,16,FALSE) -> 0 | AH176: NA | AI176: -0.2443012875 | AJ176: 0.9974604955 | AK176: -1.950739626 | AL176: NA | AM176: 0.2974053301 | AN176: 0.9084794199 | AO176: 0 | AP176: 1.117823929 | AQ176: 0 | AR176: 0 | AS176: 0 | AT176: 1.573804384 | AU176: 0 | AV176: 0
A177: AAEL014769 | B177: adult cuticle protein%2C putative | C177: P45583.1 RecName: Full=Cuticle protein 19; AltName: Full=LM-ACP 19; Short=LM-19 [Locusta migratoria] | D177: NA | E177: NA | F177: NA | G177: NA | H177: NA | I177: NA | J177: 0 | K177: 0 | L177: 0 | M177: 0 | N177: 0 | O177: 0 | P177: 0 | Q177: 0 | R177: 0 | S177: NA | T177: NA | U177: NA | V177: NA | W177: NA | X177: NA | Y177: =VLOOKUP(A177,[1]FullMultExpressionTableReads2Ge!$A$2:$P$26450,8,FALSE) -> 0 | Z177: =VLOOKUP(A177,[1]FullMultExpressionTableReads2Ge!$A$2:$P$26450,9,FALSE) -> 0 | AA177: =VLOOKUP(A177,[1]FullMultExpressionTableReads2Ge!$A$2:$P$26450,10,FALSE) -> 0 | AB177: =VLOOKUP(A177,[1]FullMultExpressionTableReads2Ge!$A$2:$P$26450,11,FALSE) -> 0 | AC177: =VLOOKUP(A177,[1]FullMultExpressionTableReads2Ge!$A$2:$P$26450,12,FALSE) -> 0 | AD177: =VLOOKUP(A177,[1]FullMultExpressionTableReads2Ge!$A$2:$P$26450,13,FALSE) -> 0 | AE177: =VLOOKUP(A177,[1]FullMultExpressionTableReads2Ge!$A$2:$P$26450,14,FALSE) -> 0 | AF177: =VLOOKUP(A177,[1]FullMultExpressionTableReads2Ge!$A$2:$P$26450,15,FALSE) -> 0 | AG177: =VLOOKUP(A177,[1]FullMultExpressionTableReads2Ge!$A$2:$P$26450,16,FALSE) -> 0 | AH177: NA | AI177: NA | AJ177: NA | AK177: NA | AL177: NA | AM177: 2.032880399 | AN177: 0 | AO177: 0 | AP177: 0 | AQ177: 0 | AR177: 0 | AS177: 0 | AT177: 0 | AU177: 0 | AV177: 0
A178: AAEL024513 | B178: unspecified product | D178: NA | E178: NA | F178: NA | G178: NA | H178: NA | I178: NA | J178: 0 | K178: 0 | L178: 0 | M178: 0 | N178: 0 | O178: 0 | P178: 0 | Q178: 0 | R178: 0 | S178: NA | T178: NA | U178: NA | V178: NA | W178: NA | X178: NA | Y178: =VLOOKUP(A178,[1]FullMultExpressionTableReads2Ge!$A$2:$P$26450,8,FALSE) -> 0 | Z178: =VLOOKUP(A178,[1]FullMultExpressionTableReads2Ge!$A$2:$P$26450,9,FALSE) -> 0 | AA178: =VLOOKUP(A178,[1]FullMultExpressionTableReads2Ge!$A$2:$P$26450,10,FALSE) -> 0 | AB178: =VLOOKUP(A178,[1]FullMultExpressionTableReads2Ge!$A$2:$P$26450,11,FALSE) -> 0 | AC178: =VLOOKUP(A178,[1]FullMultExpressionTableReads2Ge!$A$2:$P$26450,12,FALSE) -> 0 | AD178: =VLOOKUP(A178,[1]FullMultExpressionTableReads2Ge!$A$2:$P$26450,13,FALSE) -> 0 | AE178: =VLOOKUP(A178,[1]FullMultExpressionTableReads2Ge!$A$2:$P$26450,14,FALSE) -> 0 | AF178: =VLOOKUP(A178,[1]FullMultExpressionTableReads2Ge!$A$2:$P$26450,15,FALSE) -> 0 | AG178: =VLOOKUP(A178,[1]FullMultExpressionTableReads2Ge!$A$2:$P$26450,16,FALSE) -> 0 | AH178: NA | AI178: NA | AJ178: NA | AK178: NA | AL178: NA | AM178: NA | AN178: 0 | AO178: 0 | AP178: 0 | AQ178: 0 | AR178: 0 | AS178: 0 | AT178: 0 | AU178: 0 | AV178: 0
A179: AAEL014684 | C179: Q9VFP1.1 RecName: Full=Probable cytochrome P450 6d5; AltName: Full=CYPVID5 [Drosophila melanogaster] | D179: NA | E179: NA | F179: NA | G179: NA | H179: NA | I179: NA | J179: 0 | K179: 0 | L179: 0 | M179: 0 | N179: 0 | O179: 0 | P179: 0 | Q179: 0 | R179: 0 | S179: NA | T179: NA | U179: NA | V179: NA | W179: NA | X179: NA | Y179: =VLOOKUP(A179,[1]FullMultExpressionTableReads2Ge!$A$2:$P$26450,8,FALSE) -> 0 | Z179: =VLOOKUP(A179,[1]FullMultExpressionTableReads2Ge!$A$2:$P$26450,9,FALSE) -> 0 | AA179: =VLOOKUP(A179,[1]FullMultExpressionTableReads2Ge!$A$2:$P$26450,10,FALSE) -> 0 | AB179: =VLOOKUP(A179,[1]FullMultExpressionTableReads2Ge!$A$2:$P$26450,11,FALSE) -> 0 | AC179: =VLOOKUP(A179,[1]FullMultExpressionTableReads2Ge!$A$2:$P$26450,12,FALSE) -> 0 | AD179: =VLOOKUP(A179,[1]FullMultExpressionTableReads2Ge!$A$2:$P$26450,13,FALSE) -> 0 | AE179: =VLOOKUP(A179,[1]FullMultExpressionTableReads2Ge!$A$2:$P$26450,14,FALSE) -> 0 | AF179: =VLOOKUP(A179,[1]FullMultExpressionTableReads2Ge!$A$2:$P$26450,15,FALSE) -> 0 | AG179: =VLOOKUP(A179,[1]FullMultExpressionTableReads2Ge!$A$2:$P$26450,16,FALSE) -> 0 | AH179: 0.4652658242 | AI179: 2.455375857 | AJ179: 0.9974604955 | AK179: 0.3475163347 | AL179: 0.6615843363 | AM179: 2.032880399 | AN179: 2.72543826 | AO179: 2.154154845 | AP179: 1.117823929 | AQ179: 1.953792899 | AR179: 5.832723205 | AS179: 0 | AT179: 0 | AU179: 6.269487823 | AV179: 27.24837772
A180: AAEL001999 | B180: protein serine/threonine kinase%2C putative | D180: NA | E180: NA | F180: NA | G180: NA | H180: NA | I180: NA | J180: 0 | K180: 0 | L180: 0 | M180: 0 | N180: 0 | O180: 0 | P180: 0 | Q180: 0 | R180: 0 | S180: NA | T180: NA | U180: NA | V180: NA | W180: NA | X180: NA | Y180: =VLOOKUP(A180,[1]FullMultExpressionTableReads2Ge!$A$2:$P$26450,8,FALSE) -> 0 | Z180: =VLOOKUP(A180,[1]FullMultExpressionTableReads2Ge!$A$2:$P$26450,9,FALSE) -> 0 | AA180: =VLOOKUP(A180,[1]FullMultExpressionTableReads2Ge!$A$2:$P$26450,10,FALSE) -> 0 | AB180: =VLOOKUP(A180,[1]FullMultExpressionTableReads2Ge!$A$2:$P$26450,11,FALSE) -> 0 | AC180: =VLOOKUP(A180,[1]FullMultExpressionTableReads2Ge!$A$2:$P$26450,12,FALSE) -> 0 | AD180: =VLOOKUP(A180,[1]FullMultExpressionTableReads2Ge!$A$2:$P$26450,13,FALSE) -> 0 | AE180: =VLOOKUP(A180,[1]FullMultExpressionTableReads2Ge!$A$2:$P$26450,14,FALSE) -> 0 | AF180: =VLOOKUP(A180,[1]FullMultExpressionTableReads2Ge!$A$2:$P$26450,15,FALSE) -> 0 | AG180: =VLOOKUP(A180,[1]FullMultExpressionTableReads2Ge!$A$2:$P$26450,16,FALSE) -> 0 | AH180: NA | AI180: NA | AJ180: NA | AK180: NA | AL180: NA | AM180: 0.2974053301 | AN180: 0 | AO180: 0 | AP180: 0 | AQ180: 0 | AR180: 0 | AS180: 0 | AT180: 0 | AU180: 0 | AV180: 0
A181: AAEL027262 | B181: unspecified product | D181: NA | E181: NA | F181: NA | G181: NA | H181: NA | I181: NA | J181: 0 | K181: 0 | L181: 0 | M181: 0 | N181: 0 | O181: 0 | P181: 0 | Q181: 0 | R181: 0 | S181: NA | T181: NA | U181: NA | V181: NA | W181: NA | X181: NA | Y181: =VLOOKUP(A181,[1]FullMultExpressionTableReads2Ge!$A$2:$P$26450,8,FALSE) -> 0 | Z181: =VLOOKUP(A181,[1]FullMultExpressionTableReads2Ge!$A$2:$P$26450,9,FALSE) -> 0 | AA181: =VLOOKUP(A181,[1]FullMultExpressionTableReads2Ge!$A$2:$P$26450,10,FALSE) -> 0 | AB181: =VLOOKUP(A181,[1]FullMultExpressionTableReads2Ge!$A$2:$P$26450,11,FALSE) -> 0 | AC181: =VLOOKUP(A181,[1]FullMultExpressionTableReads2Ge!$A$2:$P$26450,12,FALSE) -> 0 | AD181: =VLOOKUP(A181,[1]FullMultExpressionTableReads2Ge!$A$2:$P$26450,13,FALSE) -> 0 | AE181: =VLOOKUP(A181,[1]FullMultExpressionTableReads2Ge!$A$2:$P$26450,14,FALSE) -> 0 | AF181: =VLOOKUP(A181,[1]FullMultExpressionTableReads2Ge!$A$2:$P$26450,15,FALSE) -> 0 | AG181: =VLOOKUP(A181,[1]FullMultExpressionTableReads2Ge!$A$2:$P$26450,16,FALSE) -> 0 | AH181: NA | AI181: -0.02296006538 | AJ181: 0.9974604955 | AK181: -2.103580325 | AL181: NA | AM181: NA | AN181: 0 | AO181: 0 | AP181: 4.471295716 | AQ181: 0.9768964494 | AR181: 0 | AS181: 0 | AT181: 0.786902192 | AU181: 1.044914637 | AV181: 2.595083592
A182: AAEL025577 | B182: unspecified product | C182: P45583.1 RecName: Full=Cuticle protein 19; AltName: Full=LM-ACP 19; Short=LM-19 [Locusta migratoria] | D182: NA | E182: NA | F182: NA | G182: NA | H182: NA | I182: NA | J182: 0 | K182: 0 | L182: 0 | M182: 0 | N182: 0 | O182: 0 | P182: 0 | Q182: 0 | R182: 0 | S182: NA | T182: NA | U182: NA | V182: NA | W182: NA | X182: NA | Y182: =VLOOKUP(A182,[1]FullMultExpressionTableReads2Ge!$A$2:$P$26450,8,FALSE) -> 0 | Z182: =VLOOKUP(A182,[1]FullMultExpressionTableReads2Ge!$A$2:$P$26450,9,FALSE) -> 0 | AA182: =VLOOKUP(A182,[1]FullMultExpressionTableReads2Ge!$A$2:$P$26450,10,FALSE) -> 0 | AB182: =VLOOKUP(A182,[1]FullMultExpressionTableReads2Ge!$A$2:$P$26450,11,FALSE) -> 0 | AC182: =VLOOKUP(A182,[1]FullMultExpressionTableReads2Ge!$A$2:$P$26450,12,FALSE) -> 0 | AD182: =VLOOKUP(A182,[1]FullMultExpressionTableReads2Ge!$A$2:$P$26450,13,FALSE) -> 0 | AE182: =VLOOKUP(A182,[1]FullMultExpressionTableReads2Ge!$A$2:$P$26450,14,FALSE) -> 0 | AF182: =VLOOKUP(A182,[1]FullMultExpressionTableReads2Ge!$A$2:$P$26450,15,FALSE) -> 0 | AG182: =VLOOKUP(A182,[1]FullMultExpressionTableReads2Ge!$A$2:$P$26450,16,FALSE) -> 0 | AH182: NA | AI182: NA | AJ182: 0.9974604955 | AK182: 0.8502693516 | AL182: NA | AM182: NA | AN182: 0 | AO182: 0 | AP182: 0 | AQ182: 0 | AR182: 0.9721205342 | AS182: 0 | AT182: 0 | AU182: 0 | AV182: 0
A183: AAEL001634 | B183: ML domain-containing protein [Source:UniProtKB/TrEMBL%3BAcc:A0A1S4EZB9] | D183: NA | E183: NA | F183: NA | G183: NA | H183: NA | I183: NA | J183: 0 | K183: 0 | L183: 0 | M183: 0 | N183: 0 | O183: 0 | P183: 0 | Q183: 0 | R183: 0 | S183: NA | T183: NA | U183: NA | V183: NA | W183: NA | X183: NA | Y183: =VLOOKUP(A183,[1]FullMultExpressionTableReads2Ge!$A$2:$P$26450,8,FALSE) -> 0 | Z183: =VLOOKUP(A183,[1]FullMultExpressionTableReads2Ge!$A$2:$P$26450,9,FALSE) -> 0 | AA183: =VLOOKUP(A183,[1]FullMultExpressionTableReads2Ge!$A$2:$P$26450,10,FALSE) -> 0 | AB183: =VLOOKUP(A183,[1]FullMultExpressionTableReads2Ge!$A$2:$P$26450,11,FALSE) -> 0 | AC183: =VLOOKUP(A183,[1]FullMultExpressionTableReads2Ge!$A$2:$P$26450,12,FALSE) -> 0 | AD183: =VLOOKUP(A183,[1]FullMultExpressionTableReads2Ge!$A$2:$P$26450,13,FALSE) -> 0 | AE183: =VLOOKUP(A183,[1]FullMultExpressionTableReads2Ge!$A$2:$P$26450,14,FALSE) -> 0 | AF183: =VLOOKUP(A183,[1]FullMultExpressionTableReads2Ge!$A$2:$P$26450,15,FALSE) -> 0 | AG183: =VLOOKUP(A183,[1]FullMultExpressionTableReads2Ge!$A$2:$P$26450,16,FALSE) -> 0 | AH183: 0.4867539654 | AI183: 1.352186811 | AJ183: 0.9974604955 | AK183: 0.8207847917 | AL183: 0.8408441684 | AM183: 0.2974053301 | AN183: 3.63391768 | AO183: 3.231232267 | AP183: 2.235647858 | AQ183: 4.884482247 | AR183: 5.832723205 | AS183: 5.569645568 | AT183: 6.295217536 | AU183: 9.404231734 | AV183: 7.785250777
A184: AAEL002263 | B184: unspecified product | D184: NA | E184: NA | F184: NA | G184: NA | H184: NA | I184: NA | J184: 0 | K184: 0 | L184: 0 | M184: 0 | N184: 0 | O184: 0 | P184: 0 | Q184: 0 | R184: 0 | S184: NA | T184: NA | U184: NA | V184: NA | W184: NA | X184: NA | Y184: =VLOOKUP(A184,[1]FullMultExpressionTableReads2Ge!$A$2:$P$26450,8,FALSE) -> 0 | Z184: =VLOOKUP(A184,[1]FullMultExpressionTableReads2Ge!$A$2:$P$26450,9,FALSE) -> 0 | AA184: =VLOOKUP(A184,[1]FullMultExpressionTableReads2Ge!$A$2:$P$26450,10,FALSE) -> 0 | AB184: =VLOOKUP(A184,[1]FullMultExpressionTableReads2Ge!$A$2:$P$26450,11,FALSE) -> 0 | AC184: =VLOOKUP(A184,[1]FullMultExpressionTableReads2Ge!$A$2:$P$26450,12,FALSE) -> 0 | AD184: =VLOOKUP(A184,[1]FullMultExpressionTableReads2Ge!$A$2:$P$26450,13,FALSE) -> 0 | AE184: =VLOOKUP(A184,[1]FullMultExpressionTableReads2Ge!$A$2:$P$26450,14,FALSE) -> 0 | AF184: =VLOOKUP(A184,[1]FullMultExpressionTableReads2Ge!$A$2:$P$26450,15,FALSE) -> 0 | AG184: =VLOOKUP(A184,[1]FullMultExpressionTableReads2Ge!$A$2:$P$26450,16,FALSE) -> 0 | AH184: 0.7680766123 | AI184: -0.2619696459 | AJ184: 0.9974604955 | AK184: -0.3850604617 | AL184: 0.943735179 | AM184: 0.2974053301 | AN184: 49.05788867 | AO184: 38.77478721 | AP184: 35.77036573 | AQ184: 28.32999703 | AR184: 26.24725442 | AS184: 40.8440675 | AT184: 40.91891398 | AU184: 28.2126952 | AV184: 33.7360867
A185: AAEL021854 | B185: unspecified product | C185: Q3TLH4.3 RecName: Full=Protein PRRC2C; AltName: Full=BAT2 domain-containing protein 1; AltName: Full=HLA-B-associated transcript 2-like 2; AltName: Full=Proline-rich and coiled-coil-containing protein 2C [Mus musculus] | D185: NA | E185: NA | F185: NA | G185: NA | H185: NA | I185: NA | J185: 0 | K185: 0 | L185: 0 | M185: 0 | N185: 0 | O185: 0 | P185: 0 | Q185: 0 | R185: 0 | S185: NA | T185: NA | U185: NA | V185: NA | W185: NA | X185: NA | Y185: =VLOOKUP(A185,[1]FullMultExpressionTableReads2Ge!$A$2:$P$26450,8,FALSE) -> 0 | Z185: =VLOOKUP(A185,[1]FullMultExpressionTableReads2Ge!$A$2:$P$26450,9,FALSE) -> 0 | AA185: =VLOOKUP(A185,[1]FullMultExpressionTableReads2Ge!$A$2:$P$26450,10,FALSE) -> 0 | AB185: =VLOOKUP(A185,[1]FullMultExpressionTableReads2Ge!$A$2:$P$26450,11,FALSE) -> 0 | AC185: =VLOOKUP(A185,[1]FullMultExpressionTableReads2Ge!$A$2:$P$26450,12,FALSE) -> 0 | AD185: =VLOOKUP(A185,[1]FullMultExpressionTableReads2Ge!$A$2:$P$26450,13,FALSE) -> 0 | AE185: =VLOOKUP(A185,[1]FullMultExpressionTableReads2Ge!$A$2:$P$26450,14,FALSE) -> 0 | AF185: =VLOOKUP(A185,[1]FullMultExpressionTableReads2Ge!$A$2:$P$26450,15,FALSE) -> 0 | AG185: =VLOOKUP(A185,[1]FullMultExpressionTableReads2Ge!$A$2:$P$26450,16,FALSE) -> 0 | AH185: 0.5118897908 | AI185: 0.1437549027 | AJ185: 0.9974604955 | AK185: 0.009083117526 | AL185: 0.6363266212 | AM185: -0.5092246538 | AN185: 1709.758268 | AO185: 1944.124747 | AP185: 1762.808336 | AQ185: 1853.172564 | AR185: 1895.635042 | AS185: 1729.374949 | AT185: 1793.350096 | AU185: 2021.909823 | AV185: 2175.977592
A186: AAEL023018 | B186: unspecified product | C186: Q8CCG1.1 RecName: Full=Zinc finger C2HC domain-containing protein 1C [Mus musculus] | D186: NA | E186: NA | F186: NA | G186: NA | H186: NA | I186: NA | J186: 0 | K186: 0 | L186: 0 | M186: 0 | N186: 0 | O186: 0 | P186: 0 | Q186: 0 | R186: 0 | S186: NA | T186: NA | U186: NA | V186: NA | W186: NA | X186: NA | Y186: =VLOOKUP(A186,[1]FullMultExpressionTableReads2Ge!$A$2:$P$26450,8,FALSE) -> 0 | Z186: =VLOOKUP(A186,[1]FullMultExpressionTableReads2Ge!$A$2:$P$26450,9,FALSE) -> 0 | AA186: =VLOOKUP(A186,[1]FullMultExpressionTableReads2Ge!$A$2:$P$26450,10,FALSE) -> 0 | AB186: =VLOOKUP(A186,[1]FullMultExpressionTableReads2Ge!$A$2:$P$26450,11,FALSE) -> 0 | AC186: =VLOOKUP(A186,[1]FullMultExpressionTableReads2Ge!$A$2:$P$26450,12,FALSE) -> 0 | AD186: =VLOOKUP(A186,[1]FullMultExpressionTableReads2Ge!$A$2:$P$26450,13,FALSE) -> 0 | AE186: =VLOOKUP(A186,[1]FullMultExpressionTableReads2Ge!$A$2:$P$26450,14,FALSE) -> 0 | AF186: =VLOOKUP(A186,[1]FullMultExpressionTableReads2Ge!$A$2:$P$26450,15,FALSE) -> 0 | AG186: =VLOOKUP(A186,[1]FullMultExpressionTableReads2Ge!$A$2:$P$26450,16,FALSE) -> 0 | AH186: 0.965807696 | AI186: -0.01876808185 | AJ186: 0.9974604955 | AK186: -0.198296878 | AL186: 0.8112887732 | AM186: NA | AN186: 213.4926637 | AO186: 210.0300974 | AP186: 198.9726593 | AQ186: 175.8413609 | AR186: 143.8738391 | AS186: 225.5706455 | AT186: 221.119516 | AU186: 198.5337811 | AV186: 193.3337276
A187: AAEL020618 | B187: unspecified product | D187: NA | E187: NA | F187: NA | G187: NA | H187: NA | I187: NA | J187: 0 | K187: 0 | L187: 0 | M187: 0 | N187: 0 | O187: 0 | P187: 0 | Q187: 0 | R187: 0 | S187: NA | T187: NA | U187: NA | V187: NA | W187: NA | X187: NA | Y187: =VLOOKUP(A187,[1]FullMultExpressionTableReads2Ge!$A$2:$P$26450,8,FALSE) -> 0 | Z187: =VLOOKUP(A187,[1]FullMultExpressionTableReads2Ge!$A$2:$P$26450,9,FALSE) -> 0 | AA187: =VLOOKUP(A187,[1]FullMultExpressionTableReads2Ge!$A$2:$P$26450,10,FALSE) -> 0 | AB187: =VLOOKUP(A187,[1]FullMultExpressionTableReads2Ge!$A$2:$P$26450,11,FALSE) -> 0 | AC187: =VLOOKUP(A187,[1]FullMultExpressionTableReads2Ge!$A$2:$P$26450,12,FALSE) -> 0 | AD187: =VLOOKUP(A187,[1]FullMultExpressionTableReads2Ge!$A$2:$P$26450,13,FALSE) -> 0 | AE187: =VLOOKUP(A187,[1]FullMultExpressionTableReads2Ge!$A$2:$P$26450,14,FALSE) -> 0 | AF187: =VLOOKUP(A187,[1]FullMultExpressionTableReads2Ge!$A$2:$P$26450,15,FALSE) -> 0 | AG187: =VLOOKUP(A187,[1]FullMultExpressionTableReads2Ge!$A$2:$P$26450,16,FALSE) -> 0 | AH187: NA | AI187: NA | AJ187: NA | AK187: NA | AL187: NA | AM187: -0.5092246538 | AN187: 0 | AO187: 0 | AP187: 0 | AQ187: 0 | AR187: 0 | AS187: 0 | AT187: 0 | AU187: 0 | AV187: 0
A188: AAEL022998 | B188: unspecified product | D188: NA | E188: NA | F188: NA | G188: NA | H188: NA | I188: NA | J188: 0 | K188: 0 | L188: 0 | M188: 0 | N188: 0 | O188: 0 | P188: 0 | Q188: 0 | R188: 0 | S188: NA | T188: NA | U188: NA | V188: NA | W188: NA | X188: NA | Y188: =VLOOKUP(A188,[1]FullMultExpressionTableReads2Ge!$A$2:$P$26450,8,FALSE) -> 0 | Z188: =VLOOKUP(A188,[1]FullMultExpressionTableReads2Ge!$A$2:$P$26450,9,FALSE) -> 0 | AA188: =VLOOKUP(A188,[1]FullMultExpressionTableReads2Ge!$A$2:$P$26450,10,FALSE) -> 0 | AB188: =VLOOKUP(A188,[1]FullMultExpressionTableReads2Ge!$A$2:$P$26450,11,FALSE) -> 0 | AC188: =VLOOKUP(A188,[1]FullMultExpressionTableReads2Ge!$A$2:$P$26450,12,FALSE) -> 0 | AD188: =VLOOKUP(A188,[1]FullMultExpressionTableReads2Ge!$A$2:$P$26450,13,FALSE) -> 0 | AE188: =VLOOKUP(A188,[1]FullMultExpressionTableReads2Ge!$A$2:$P$26450,14,FALSE) -> 0 | AF188: =VLOOKUP(A188,[1]FullMultExpressionTableReads2Ge!$A$2:$P$26450,15,FALSE) -> 0 | AG188: =VLOOKUP(A188,[1]FullMultExpressionTableReads2Ge!$A$2:$P$26450,16,FALSE) -> 0 | AH188: 0.4764274318 | AI188: 0.679739508 | AJ188: 0.9974604955 | AK188: 0.1814393357 | AL188: 0.6921384398 | AM188: NA | AN188: 77.22075069 | AO188: 71.08710988 | AP188: 67.06943574 | AQ188: 92.80516269 | AR188: 90.40720968 | AS188: 63.12264977 | AT188: 78.6902192 | AU188: 70.00928069 | AV188: 198.5238948
A189: AAEL022968 | B189: unspecified product | D189: NA | E189: NA | F189: NA | G189: NA | H189: NA | I189: NA | J189: 0 | K189: 0 | L189: 0 | M189: 0 | N189: 0 | O189: 0 | P189: 0 | Q189: 0 | R189: 0 | S189: 0.9399123944 | T189: 0.6240828861 | U189: NA | V189: -0.06719736303 | W189: NA | X189: 0.6653033514 | Y189: =VLOOKUP(A189,[1]FullMultExpressionTableReads2Ge!$A$2:$P$26450,8,FALSE) -> 1.818877614 | Z189: =VLOOKUP(A189,[1]FullMultExpressionTableReads2Ge!$A$2:$P$26450,9,FALSE) -> 1.077192458 | AA189: =VLOOKUP(A189,[1]FullMultExpressionTableReads2Ge!$A$2:$P$26450,10,FALSE) -> 0 | AB189: =VLOOKUP(A189,[1]FullMultExpressionTableReads2Ge!$A$2:$P$26450,11,FALSE) -> 0 | AC189: =VLOOKUP(A189,[1]FullMultExpressionTableReads2Ge!$A$2:$P$26450,12,FALSE) -> 0.9727403002 | AD189: =VLOOKUP(A189,[1]FullMultExpressionTableReads2Ge!$A$2:$P$26450,13,FALSE) -> 1.858693314 | AE189: =VLOOKUP(A189,[1]FullMultExpressionTableReads2Ge!$A$2:$P$26450,14,FALSE) -> 3.149222679 | AF189: =VLOOKUP(A189,[1]FullMultExpressionTableReads2Ge!$A$2:$P$26450,15,FALSE) -> 0 | AG189: =VLOOKUP(A189,[1]FullMultExpressionTableReads2Ge!$A$2:$P$26450,16,FALSE) -> 1.293306722 | AH189: NA | AI189: 0.6257962483 | AJ189: 0.9974604955 | AK189: -0.06719189792 | AL189: NA | AM189: NA | AN189: 1.81695884 | AO189: 1.077077422 | AP189: 0 | AQ189: 0 | AR189: 0.9721205342 | AS189: 1.856548523 | AT189: 3.147608768 | AU189: 0 | AV189: 1.297541796
A190: AAEL013245 | D190: 0.9784124372 | E190: 2.07061552 | F190: NA | G190: NA | H190: NA | I190: 2.15853888 | J190: 0 | K190: 0 | L190: 0 | M190: 0 | N190: 0 | O190: 0 | P190: 0 | Q190: 1.053869957 | R190: 1.351131403 | S190: 0.551306541 | T190: 0.7956799737 | U190: NA | V190: 0.4105884554 | W190: 0.8205971219 | X190: 0.3722805863 | Y190: =VLOOKUP(A190,[1]FullMultExpressionTableReads2Ge!$A$2:$P$26450,8,FALSE) -> 9.09438807 | Z190: =VLOOKUP(A190,[1]FullMultExpressionTableReads2Ge!$A$2:$P$26450,9,FALSE) -> 12.9263095 | AA190: =VLOOKUP(A190,[1]FullMultExpressionTableReads2Ge!$A$2:$P$26450,10,FALSE) -> 13.42781787 | AB190: =VLOOKUP(A190,[1]FullMultExpressionTableReads2Ge!$A$2:$P$26450,11,FALSE) -> 12.73917634 | AC190: =VLOOKUP(A190,[1]FullMultExpressionTableReads2Ge!$A$2:$P$26450,12,FALSE) -> 19.454806 | AD190: =VLOOKUP(A190,[1]FullMultExpressionTableReads2Ge!$A$2:$P$26450,13,FALSE) -> 14.86954651 | AE190: =VLOOKUP(A190,[1]FullMultExpressionTableReads2Ge!$A$2:$P$26450,14,FALSE) -> 15.7461134 | AF190: =VLOOKUP(A190,[1]FullMultExpressionTableReads2Ge!$A$2:$P$26450,15,FALSE) -> 17.73590128 | AG190: =VLOOKUP(A190,[1]FullMultExpressionTableReads2Ge!$A$2:$P$26450,16,FALSE) -> 28.45274788 | AH190: 0.518459692 | AI190: 0.7989336344 | AJ190: 0.9974604955 | AK190: 0.4101137158 | AL190: 0.8275497438 | AM190: NA | AN190: 9.084794199 | AO190: 12.92492907 | AP190: 13.41388715 | AQ190: 12.69965384 | AR190: 19.44241068 | AS190: 14.85238818 | AT190: 15.73804384 | AU190: 17.76354883 | AV190: 28.54591951
A191: AAEL007371 | B191: unspecified product | D191: NA | E191: NA | F191: NA | G191: NA | H191: NA | I191: NA | J191: 0 | K191: 0 | L191: 0 | M191: 0 | N191: 0 | O191: 0 | P191: 0 | Q191: 0 | R191: 0 | S191: NA | T191: NA | U191: NA | V191: NA | W191: NA | X191: NA | Y191: =VLOOKUP(A191,[1]FullMultExpressionTableReads2Ge!$A$2:$P$26450,8,FALSE) -> 0 | Z191: =VLOOKUP(A191,[1]FullMultExpressionTableReads2Ge!$A$2:$P$26450,9,FALSE) -> 0 | AA191: =VLOOKUP(A191,[1]FullMultExpressionTableReads2Ge!$A$2:$P$26450,10,FALSE) -> 0 | AB191: =VLOOKUP(A191,[1]FullMultExpressionTableReads2Ge!$A$2:$P$26450,11,FALSE) -> 0 | AC191: =VLOOKUP(A191,[1]FullMultExpressionTableReads2Ge!$A$2:$P$26450,12,FALSE) -> 0 | AD191: =VLOOKUP(A191,[1]FullMultExpressionTableReads2Ge!$A$2:$P$26450,13,FALSE) -> 0 | AE191: =VLOOKUP(A191,[1]FullMultExpressionTableReads2Ge!$A$2:$P$26450,14,FALSE) -> 0 | AF191: =VLOOKUP(A191,[1]FullMultExpressionTableReads2Ge!$A$2:$P$26450,15,FALSE) -> 0 | AG191: =VLOOKUP(A191,[1]FullMultExpressionTableReads2Ge!$A$2:$P$26450,16,FALSE) -> 0 | AH191: 0.9582323528 | AI191: -0.1336740206 | AJ191: 0.9974604955 | AK191: -0.09820792518 | AL191: 0.9862351278 | AM191: 0.2974053301 | AN191: 7.267835359 | AO191: 12.92492907 | AP191: 2.235647858 | AQ191: 5.861378696 | AR191: 8.749084808 | AS191: 6.497919829 | AT191: 5.508315344 | AU191: 7.31440246 | AV191: 7.785250777
A192: AAEL022544 | B192: unspecified product | C192: Q03238.1 RecName: Full=Granzyme M; AltName: Full=Met-ase; AltName: Full=Natural killer cell granular protease; AltName: Full=RNK-Met-1; Flags: Precursor [Rattus norvegicus] | D192: NA | E192: NA | F192: NA | G192: NA | H192: NA | I192: NA | J192: 0 | K192: 0 | L192: 0 | M192: 0 | N192: 0 | O192: 0 | P192: 0 | Q192: 0 | R192: 0 | S192: NA | T192: NA | U192: NA | V192: NA | W192: NA | X192: NA | Y192: =VLOOKUP(A192,[1]FullMultExpressionTableReads2Ge!$A$2:$P$26450,8,FALSE) -> 0 | Z192: =VLOOKUP(A192,[1]FullMultExpressionTableReads2Ge!$A$2:$P$26450,9,FALSE) -> 0 | AA192: =VLOOKUP(A192,[1]FullMultExpressionTableReads2Ge!$A$2:$P$26450,10,FALSE) -> 0 | AB192: =VLOOKUP(A192,[1]FullMultExpressionTableReads2Ge!$A$2:$P$26450,11,FALSE) -> 0 | AC192: =VLOOKUP(A192,[1]FullMultExpressionTableReads2Ge!$A$2:$P$26450,12,FALSE) -> 0 | AD192: =VLOOKUP(A192,[1]FullMultExpressionTableReads2Ge!$A$2:$P$26450,13,FALSE) -> 0 | AE192: =VLOOKUP(A192,[1]FullMultExpressionTableReads2Ge!$A$2:$P$26450,14,FALSE) -> 0 | AF192: =VLOOKUP(A192,[1]FullMultExpressionTableReads2Ge!$A$2:$P$26450,15,FALSE) -> 0 | AG192: =VLOOKUP(A192,[1]FullMultExpressionTableReads2Ge!$A$2:$P$26450,16,FALSE) -> 0 | AH192: NA | AI192: NA | AJ192: NA | AK192: NA | AL192: NA | AM192: -0.5092246538 | AN192: 0 | AO192: 0 | AP192: 0 | AQ192: 0 | AR192: 0 | AS192: 0 | AT192: 0 | AU192: 0 | AV192: 0
A193: AAEL019456 | B193: unspecified product | C193: Q16NS8.1 RecName: Full=Protein arginine N-methyltransferase 7 [Aedes aegypti] | D193: NA | E193: NA | F193: NA | G193: NA | H193: NA | I193: NA | J193: 0 | K193: 0 | L193: 0 | M193: 0 | N193: 0 | O193: 0 | P193: 0 | Q193: 0 | R193: 0 | S193: NA | T193: NA | U193: NA | V193: NA | W193: NA | X193: NA | Y193: =VLOOKUP(A193,[1]FullMultExpressionTableReads2Ge!$A$2:$P$26450,8,FALSE) -> 0 | Z193: =VLOOKUP(A193,[1]FullMultExpressionTableReads2Ge!$A$2:$P$26450,9,FALSE) -> 0 | AA193: =VLOOKUP(A193,[1]FullMultExpressionTableReads2Ge!$A$2:$P$26450,10,FALSE) -> 0 | AB193: =VLOOKUP(A193,[1]FullMultExpressionTableReads2Ge!$A$2:$P$26450,11,FALSE) -> 0 | AC193: =VLOOKUP(A193,[1]FullMultExpressionTableReads2Ge!$A$2:$P$26450,12,FALSE) -> 0 | AD193: =VLOOKUP(A193,[1]FullMultExpressionTableReads2Ge!$A$2:$P$26450,13,FALSE) -> 0 | AE193: =VLOOKUP(A193,[1]FullMultExpressionTableReads2Ge!$A$2:$P$26450,14,FALSE) -> 0 | AF193: =VLOOKUP(A193,[1]FullMultExpressionTableReads2Ge!$A$2:$P$26450,15,FALSE) -> 0 | AG193: =VLOOKUP(A193,[1]FullMultExpressionTableReads2Ge!$A$2:$P$26450,16,FALSE) -> 0 | AH193: 0.9605321543 | AI193: -0.021704938 | AJ193: 0.9974604955 | AK193: 0.08843442304 | AL193: 0.7841849918 | AM193: -0.5092246538 | AN193: 258.9166347 | AO193: 225.1091813 | AP193: 232.5073772 | AQ193: 261.8082484 | AR193: 265.3889058 | AS193: 240.4230337 | AT193: 235.2837554 | AU193: 254.9591715 | AV193: 215.3919382
A194: AAEL028200 | B194: unspecified product | D194: 0.9784124372 | E194: 0.9882447533 | F194: NA | G194: NA | H194: NA | I194: 1.078634413 | J194: 0 | K194: 0 | L194: 0 | M194: 0 | N194: 0 | O194: 0 | P194: 0 | Q194: 1.053869957 | R194: 0 | S194: 0.06698852832 | T194: 3.853587693 | U194: NA | V194: 0.4282896918 | W194: 0.09636599258 | X194: 3.403357835 | Y194: =VLOOKUP(A194,[1]FullMultExpressionTableReads2Ge!$A$2:$P$26450,8,FALSE) -> 47.29081797 | Z194: =VLOOKUP(A194,[1]FullMultExpressionTableReads2Ge!$A$2:$P$26450,9,FALSE) -> 58.16839273 | AA194: =VLOOKUP(A194,[1]FullMultExpressionTableReads2Ge!$A$2:$P$26450,10,FALSE) -> 30.2125902 | AB194: =VLOOKUP(A194,[1]FullMultExpressionTableReads2Ge!$A$2:$P$26450,11,FALSE) -> 83.29461456 | AC194: =VLOOKUP(A194,[1]FullMultExpressionTableReads2Ge!$A$2:$P$26450,12,FALSE) -> 53.50071651 | AD194: =VLOOKUP(A194,[1]FullMultExpressionTableReads2Ge!$A$2:$P$26450,13,FALSE) -> 47.39667952 | AE194: =VLOOKUP(A194,[1]FullMultExpressionTableReads2Ge!$A$2:$P$26450,14,FALSE) -> 49.6002572 | AF194: =VLOOKUP(A194,[1]FullMultExpressionTableReads2Ge!$A$2:$P$26450,15,FALSE) -> 454.8737034 | AG194: =VLOOKUP(A194,[1]FullMultExpressionTableReads2Ge!$A$2:$P$26450,16,FALSE) -> 1460.143289 | AH194: 0.06403257464 | AI194: 3.858145908 | AJ194: 0.9974604955 | AK194: 0.427564583 | AL194: 0.09453680714 | AM194: NA | AN194: 47.24092983 | AO194: 58.16218081 | AP194: 30.18124608 | AQ194: 83.0361982 | AR194: 53.46662938 | AS194: 47.34198733 | AT194: 49.5748381 | AU194: 455.5827818 | AV194: 1464.924688
A195: AAEL021835 | B195: Odorant receptor [Source:UniProtKB/TrEMBL%3BAcc:A0A1S4G6K8] | D195: NA | E195: NA | F195: NA | G195: NA | H195: NA | I195: NA | J195: 0 | K195: 0 | L195: 0 | M195: 0 | N195: 0 | O195: 0 | P195: 0 | Q195: 0 | R195: 0 | S195: NA | T195: -0.9770484561 | U195: NA | V195: -1.072827723 | W195: NA | X195: NA | Y195: =VLOOKUP(A195,[1]FullMultExpressionTableReads2Ge!$A$2:$P$26450,8,FALSE) -> 0 | Z195: =VLOOKUP(A195,[1]FullMultExpressionTableReads2Ge!$A$2:$P$26450,9,FALSE) -> 0 | AA195: =VLOOKUP(A195,[1]FullMultExpressionTableReads2Ge!$A$2:$P$26450,10,FALSE) -> 1.118984822 | AB195: =VLOOKUP(A195,[1]FullMultExpressionTableReads2Ge!$A$2:$P$26450,11,FALSE) -> 0 | AC195: =VLOOKUP(A195,[1]FullMultExpressionTableReads2Ge!$A$2:$P$26450,12,FALSE) -> 0 | AD195: =VLOOKUP(A195,[1]FullMultExpressionTableReads2Ge!$A$2:$P$26450,13,FALSE) -> 0 | AE195: =VLOOKUP(A195,[1]FullMultExpressionTableReads2Ge!$A$2:$P$26450,14,FALSE) -> 0 | AF195: =VLOOKUP(A195,[1]FullMultExpressionTableReads2Ge!$A$2:$P$26450,15,FALSE) -> 0 | AG195: =VLOOKUP(A195,[1]FullMultExpressionTableReads2Ge!$A$2:$P$26450,16,FALSE) -> 0 | AH195: NA | AI195: -0.9741334579 | AJ195: 0.9974604955 | AK195: -1.073284 | AL195: NA | AM195: -0.5092246538 | AN195: 0 | AO195: 0 | AP195: 1.117823929 | AQ195: 0 | AR195: 0 | AS195: 0 | AT195: 0 | AU195: 0 | AV195: 0
A196: AAEL013691 | B196: unspecified product | D196: NA | E196: NA | F196: NA | G196: NA | H196: NA | I196: NA | J196: 0 | K196: 0 | L196: 0 | M196: 0 | N196: 0 | O196: 0 | P196: 0 | Q196: 0 | R196: 0 | S196: 0.8569178485 | T196: 0.4708119984 | U196: NA | V196: 0.4622809123 | W196: 0.9997416925 | X196: -0.001442964394 | Y196: =VLOOKUP(A196,[1]FullMultExpressionTableReads2Ge!$A$2:$P$26450,8,FALSE) -> 6.366071649 | Z196: =VLOOKUP(A196,[1]FullMultExpressionTableReads2Ge!$A$2:$P$26450,9,FALSE) -> 2.154384916 | AA196: =VLOOKUP(A196,[1]FullMultExpressionTableReads2Ge!$A$2:$P$26450,10,FALSE) -> 14.54680269 | AB196: =VLOOKUP(A196,[1]FullMultExpressionTableReads2Ge!$A$2:$P$26450,11,FALSE) -> 12.73917634 | AC196: =VLOOKUP(A196,[1]FullMultExpressionTableReads2Ge!$A$2:$P$26450,12,FALSE) -> 9.727403002 | AD196: =VLOOKUP(A196,[1]FullMultExpressionTableReads2Ge!$A$2:$P$26450,13,FALSE) -> 9.293466572 | AE196: =VLOOKUP(A196,[1]FullMultExpressionTableReads2Ge!$A$2:$P$26450,14,FALSE) -> 11.02227938 | AF196: =VLOOKUP(A196,[1]FullMultExpressionTableReads2Ge!$A$2:$P$26450,15,FALSE) -> 10.4328831 | AG196: =VLOOKUP(A196,[1]FullMultExpressionTableReads2Ge!$A$2:$P$26450,16,FALSE) -> 10.34645377 | AH196: 0.8244534317 | AI196: 0.4737959161 | AJ196: 0.9974604955 | AK196: 0.4619827732 | AL196: 0.9997409349 | AM196: 2.032880399 | AN196: 6.359355939 | AO196: 2.154154845 | AP196: 14.53171108 | AQ196: 12.69965384 | AR196: 9.721205342 | AS196: 9.282742613 | AT196: 11.01663069 | AU196: 10.44914637 | AV196: 10.38033437
A197: AAEL025825 | B197: unspecified product | C197: P40265.1 RecName: Full=Histone H1-III [Glyptotendipes barbipes] | D197: NA | E197: NA | F197: NA | G197: NA | H197: NA | I197: NA | J197: 0 | K197: 0 | L197: 0 | M197: 0 | N197: 0 | O197: 0 | P197: 0 | Q197: 0 | R197: 0 | S197: 0.06926967841 | T197: 4.720127895 | U197: NA | V197: 0.07302776523 | W197: 0.06376540535 | X197: 4.627176065 | Y197: =VLOOKUP(A197,[1]FullMultExpressionTableReads2Ge!$A$2:$P$26450,8,FALSE) -> 16.36989853 | Z197: =VLOOKUP(A197,[1]FullMultExpressionTableReads2Ge!$A$2:$P$26450,9,FALSE) -> 15.08069441 | AA197: =VLOOKUP(A197,[1]FullMultExpressionTableReads2Ge!$A$2:$P$26450,10,FALSE) -> 15.66578751 | AB197: =VLOOKUP(A197,[1]FullMultExpressionTableReads2Ge!$A$2:$P$26450,11,FALSE) -> 14.69904963 | AC197: =VLOOKUP(A197,[1]FullMultExpressionTableReads2Ge!$A$2:$P$26450,12,FALSE) -> 18.4820657 | AD197: =VLOOKUP(A197,[1]FullMultExpressionTableReads2Ge!$A$2:$P$26450,13,FALSE) -> 16.72823983 | AE197: =VLOOKUP(A197,[1]FullMultExpressionTableReads2Ge!$A$2:$P$26450,14,FALSE) -> 12.59689072 | AF197: =VLOOKUP(A197,[1]FullMultExpressionTableReads2Ge!$A$2:$P$26450,15,FALSE) -> 141.8872102 | AG197: =VLOOKUP(A197,[1]FullMultExpressionTableReads2Ge!$A$2:$P$26450,16,FALSE) -> 1090.257566 | AH197: 0.06695903252 | AI197: 4.725055761 | AJ197: 0.9974604955 | AK197: 0.07266356538 | AL197: 0.06321361741 | AM197: NA | AN197: 16.35262956 | AO197: 15.07908391 | AP197: 15.649535 | AQ197: 14.65344674 | AR197: 18.47029015 | AS197: 16.7089367 | AT197: 12.59043507 | AU197: 142.1083906 | AV197: 1093.827734
A198: AAEL006440 | B198: serine/threonine-protein kinase pk61c | C198: Q9W0V1.4 RecName: Full=3-phosphoinositide-dependent protein kinase 1; Short=dPDK-1; AltName: Full=Serine/threonine-protein kinase 61C; AltName: Full=dSTPK61 [Drosophila melanogaster] | D198: NA | E198: NA | F198: NA | G198: NA | H198: NA | I198: NA | J198: 0 | K198: 0 | L198: 0 | M198: 0 | N198: 0 | O198: 0 | P198: 0 | Q198: 0 | R198: 0 | S198: NA | T198: NA | U198: NA | V198: NA | W198: NA | X198: NA | Y198: =VLOOKUP(A198,[1]FullMultExpressionTableReads2Ge!$A$2:$P$26450,8,FALSE) -> 0 | Z198: =VLOOKUP(A198,[1]FullMultExpressionTableReads2Ge!$A$2:$P$26450,9,FALSE) -> 0 | AA198: =VLOOKUP(A198,[1]FullMultExpressionTableReads2Ge!$A$2:$P$26450,10,FALSE) -> 0 | AB198: =VLOOKUP(A198,[1]FullMultExpressionTableReads2Ge!$A$2:$P$26450,11,FALSE) -> 0 | AC198: =VLOOKUP(A198,[1]FullMultExpressionTableReads2Ge!$A$2:$P$26450,12,FALSE) -> 0 | AD198: =VLOOKUP(A198,[1]FullMultExpressionTableReads2Ge!$A$2:$P$26450,13,FALSE) -> 0 | AE198: =VLOOKUP(A198,[1]FullMultExpressionTableReads2Ge!$A$2:$P$26450,14,FALSE) -> 0 | AF198: =VLOOKUP(A198,[1]FullMultExpressionTableReads2Ge!$A$2:$P$26450,15,FALSE) -> 0 | AG198: =VLOOKUP(A198,[1]FullMultExpressionTableReads2Ge!$A$2:$P$26450,16,FALSE) -> 0 | AH198: 0.5242983482 | AI198: 0.2624624049 | AJ198: 0.9974604955 | AK198: 0.03128341479 | AL198: 0.6033157367 | AM198: 0.2974053301 | AN198: 199.8654724 | AO198: 145.405452 | AP198: 175.4983568 | AQ198: 182.679636 | AR198: 169.1489729 | AS198: 184.726578 | AT198: 221.9064181 | AU198: 200.6236103 | AV198: 202.4165202
A199: AAEL017123 | D199: NA | E199: NA | F199: NA | G199: NA | H199: NA | I199: NA | J199: 0 | K199: 0 | L199: 0 | M199: 0 | N199: 0 | O199: 0 | P199: 0 | Q199: 0 | R199: 0 | S199: NA | T199: NA | U199: NA | V199: NA | W199: NA | X199: NA | Y199: =VLOOKUP(A199,[1]FullMultExpressionTableReads2Ge!$A$2:$P$26450,8,FALSE) -> 0 | Z199: =VLOOKUP(A199,[1]FullMultExpressionTableReads2Ge!$A$2:$P$26450,9,FALSE) -> 0 | AA199: =VLOOKUP(A199,[1]FullMultExpressionTableReads2Ge!$A$2:$P$26450,10,FALSE) -> 0 | AB199: =VLOOKUP(A199,[1]FullMultExpressionTableReads2Ge!$A$2:$P$26450,11,FALSE) -> 0 | AC199: =VLOOKUP(A199,[1]FullMultExpressionTableReads2Ge!$A$2:$P$26450,12,FALSE) -> 0 | AD199: =VLOOKUP(A199,[1]FullMultExpressionTableReads2Ge!$A$2:$P$26450,13,FALSE) -> 0 | AE199: =VLOOKUP(A199,[1]FullMultExpressionTableReads2Ge!$A$2:$P$26450,14,FALSE) -> 0 | AF199: =VLOOKUP(A199,[1]FullMultExpressionTableReads2Ge!$A$2:$P$26450,15,FALSE) -> 0 | AG199: =VLOOKUP(A199,[1]FullMultExpressionTableReads2Ge!$A$2:$P$26450,16,FALSE) -> 0 | AH199: NA | AI199: -0.5191483712 | AJ199: 0.9974604955 | AK199: -0.06621181955 | AL199: NA | AM199: -0.5092246538 | AN199: 1.81695884 | AO199: 1.077077422 | AP199: 0 | AQ199: 0.9768964494 | AR199: 0 | AS199: 1.856548523 | AT199: 0.786902192 | AU199: 0 | AV199: 1.297541796
A200: AAEL026601 | B200: unspecified product | C200: Q5WRN1.2 RecName: Full=Tetraspanin-21 [Caenorhabditis elegans] | D200: NA | E200: NA | F200: NA | G200: NA | H200: NA | I200: NA | J200: 0 | K200: 0 | L200: 0 | M200: 0 | N200: 0 | O200: 0 | P200: 0 | Q200: 0 | R200: 0 | S200: NA | T200: NA | U200: NA | V200: NA | W200: NA | X200: NA | Y200: =VLOOKUP(A200,[1]FullMultExpressionTableReads2Ge!$A$2:$P$26450,8,FALSE) -> 0 | Z200: =VLOOKUP(A200,[1]FullMultExpressionTableReads2Ge!$A$2:$P$26450,9,FALSE) -> 0 | AA200: =VLOOKUP(A200,[1]FullMultExpressionTableReads2Ge!$A$2:$P$26450,10,FALSE) -> 0 | AB200: =VLOOKUP(A200,[1]FullMultExpressionTableReads2Ge!$A$2:$P$26450,11,FALSE) -> 0 | AC200: =VLOOKUP(A200,[1]FullMultExpressionTableReads2Ge!$A$2:$P$26450,12,FALSE) -> 0 | AD200: =VLOOKUP(A200,[1]FullMultExpressionTableReads2Ge!$A$2:$P$26450,13,FALSE) -> 0 | AE200: =VLOOKUP(A200,[1]FullMultExpressionTableReads2Ge!$A$2:$P$26450,14,FALSE) -> 0 | AF200: =VLOOKUP(A200,[1]FullMultExpressionTableReads2Ge!$A$2:$P$26450,15,FALSE) -> 0 | AG200: =VLOOKUP(A200,[1]FullMultExpressionTableReads2Ge!$A$2:$P$26450,16,FALSE) -> 0 | AH200: NA | AI200: NA | AJ200: NA | AK200: NA | AL200: NA | AM200: NA | AN200: 0 | AO200: 0 | AP200: 0 | AQ200: 0 | AR200: 0 | AS200: 0 | AT200: 0 | AU200: 0 | AV200: 0
... 925 more rows

Sheet Full EV v LPS Analysis
A1: Gene | B1: baseMean | C1: log2FoldChange | D1: lfcSE | E1: stat | F1: pvalue | G1: padj | H1: EV.1_S7_L002 | I1: EV.2_S8_L002 | J1: EV.3_S9_L002 | K1: LPS.1_S4_L002 | L1: LPS.2_S5_L002 | M1: LPS.3_S6_L002
A2: Gene:WBGene00226082 | B2: 71.40787812 | C2: 7.031231495 | D2: 2.424768914 | E2: 2.899753232 | F2: NA | G2: NA | H2: 0 | I2: 2.157675204 | J2: 1.128501822 | K2: 0.9787221771 | L2: 2.921094824 | M2: 421.2612747
A3: AAEL025733 | B3: 1.449309452 | C3: 3.923033454 | D3: 1.745559496 | E3: 2.247436116 | F3: 0.02461216903 | G3: NA | H3: 0 | I3: 0 | J3: 0 | K3: 3.914888708 | L3: 2.921094824 | M3: 1.859873177
A4: AAEL002716 | B4: 0.9624603143 | C4: 3.333992249 | D4: 2.202774504 | E4: 1.513542236 | F4: 0.1301419811 | G4: NA | H4: 0 | I4: 0 | J4: 0 | K4: 3.914888708 | L4: 0 | M4: 1.859873177
A5: AAEL010098 | B5: 0.9445238174 | C5: 3.311798157 | D5: 2.210801691 | E5: 1.498007791 | F5: 0.1341312263 | G5: NA | H5: 0 | I5: 0 | J5: 0 | K5: 0 | L5: 1.94739655 | M5: 3.719746355
A6: AAEL024672 | B6: 1.799529696 | C6: 3.119374859 | D6: 1.667364725 | E6: 1.870841341 | F6: 0.06136707553 | G6: NA | H6: 0 | I6: 1.078837602 | J6: 0 | K6: 4.893610885 | L6: 3.894793099 | M6: 0.9299365887
A7: AAEL000463 | B7: 1.799529696 | C7: 3.119374859 | D7: 1.667364725 | E7: 1.870841341 | F7: 0.06136707553 | G7: NA | H7: 0 | I7: 1.078837602 | J7: 0 | K7: 4.893610885 | L7: 3.894793099 | M7: 0.9299365887
A8: AAEL008159 | B8: 1.76700597 | C8: 3.097615393 | D8: 1.668139919 | E8: 1.856927802 | F8: 0.06332142646 | G8: NA | H8: 0 | I8: 1.078837602 | J8: 0 | K8: 0.9787221771 | L8: 3.894793099 | M8: 4.649682943
A9: Gene:WBGene00226053 | B9: 1.736994196 | C9: 3.073806457 | D9: 1.905062242 | E9: 1.613493979 | F9: 0.1066372304 | G9: NA | H9: 0 | I9: 1.078837602 | J9: 0 | K9: 0 | L9: 0.9736982748 | M9: 8.369429298
A10: AAEL008990 | B10: 0.7993399514 | C10: 3.066962429 | D10: 2.318727292 | E10: 1.322692168 | F10: 0.1859377692 | G10: NA | H10: 0 | I10: 0 | J10: 0 | K10: 2.936166531 | L10: 0 | M10: 1.859873177
A11: AAEL004923 | B11: 0.7985026344 | C11: 3.06592241 | D11: 2.089220841 | E11: 1.467495609 | F11: 0.1422412829 | G11: NA | H11: 0 | I11: 0 | J11: 0 | K11: 1.957444354 | L11: 0.9736982748 | M11: 1.859873177
A12: AAEL017490 | B12: 0.7968280003 | C12: 3.063305739 | D12: 2.320331993 | E12: 1.320201483 | F12: 0.1867677569 | G12: NA | H12: 0 | I12: 0 | J12: 0 | K12: 0 | L12: 2.921094824 | M12: 1.859873177
A13: AAEL008675 | B13: 3.227528784 | C13: 3.034050953 | D13: 1.316038117 | E13: 2.305443067 | F13: 0.02114177186 | G13: NA | H13: 0 | I13: 1.078837602 | J13: 1.128501822 | K13: 4.893610885 | L13: 3.894793099 | M13: 8.369429298
A14: AAEL026969 | B14: 1.636555772 | C14: 2.960255043 | D14: 1.658738429 | E14: 1.784642468 | F14: 0.07431932837 | G14: NA | H14: 0 | I14: 0 | J14: 1.128501822 | K14: 2.936166531 | L14: 3.894793099 | M14: 1.859873177
A15: AAEL003574 | B15: 1.5841788 | C15: 2.947329801 | D15: 1.831629493 | E15: 1.60912991 | F15: 0.1075879383 | G15: NA | H15: 0.9168350713 | I15: 0 | J15: 0 | K15: 0 | L15: 4.868491374 | M15: 3.719746355
A16: AAEL014978 | B16: 1.613837612 | C16: 2.943843234 | D16: 1.678670582 | E16: 1.753675358 | F16: 0.07948615024 | G16: NA | H16: 0 | I16: 0 | J16: 1.128501822 | K16: 1.957444354 | L16: 1.94739655 | M16: 4.649682943
A17: AAEL001965 | B17: 1.481419902 | C17: 2.803181935 | D17: 1.861089585 | E17: 1.506204729 | F17: 0.1320146257 | G17: NA | H17: 0 | I17: 1.078837602 | J17: 0 | K17: 3.914888708 | L17: 3.894793099 | M17: 0
A18: AAEL023728 | B18: 1.466141794 | C18: 2.78274229 | D18: 1.695110792 | E18: 1.641628561 | F18: 0.100667005 | G18: NA | H18: 0 | I18: 0 | J18: 1.128501822 | K18: 1.957444354 | L18: 2.921094824 | M18: 2.789809766
A19: AAEL021425 | B19: 0.6516441343 | C19: 2.767206237 | D19: 2.512838119 | E19: 1.101227419 | F19: 0.270797691 | G19: NA | H19: 0 | I19: 0 | J19: 0 | K19: 2.936166531 | L19: 0.9736982748 | M19: 0
A20: AAEL015307 | B20: 0.64435052 | C20: 2.7539513 | D20: 2.519772875 | E20: 1.092936323 | F20: 0.2744217589 | G20: NA | H20: 0 | I20: 0 | J20: 0 | K20: 2.936166531 | L20: 0 | M20: 0.9299365887
A21: AAEL026691 | B21: 0.6435132029 | C21: 2.752017931 | D21: 2.254048394 | E21: 1.220922292 | F21: 0.2221154433 | G21: NA | H21: 0 | I21: 0 | J21: 0 | K21: 1.957444354 | L21: 0.9736982748 | M21: 0.9299365887
A22: AAEL022390 | B22: 0.6435132029 | C22: 2.752017931 | D22: 2.254048394 | E22: 1.220922292 | F22: 0.2221154433 | G22: NA | H22: 0 | I22: 0 | J22: 0 | K22: 1.957444354 | L22: 0.9736982748 | M22: 0.9299365887
A23: AAEL006964 | B23: 0.6426758859 | C23: 2.750611338 | D23: 2.254651517 | E23: 1.21997183 | F23: 0.2224755538 | G23: NA | H23: 0 | I23: 0 | J23: 0 | K23: 0.9787221771 | L23: 1.94739655 | M23: 0.9299365887
A24: AAEL024678 | B24: 0.6362195886 | C24: 2.739116818 | D24: 2.490885056 | E24: 1.099656049 | F24: 0.2714820113 | G24: NA | H24: 0 | I24: 0 | J24: 0 | K24: 1.957444354 | L24: 0 | M24: 1.859873177
A25: AAEL027486 | B25: 0.6353822715 | C25: 2.738153534 | D25: 2.259954003 | E25: 1.211597019 | F25: 0.2256666761 | G25: NA | H25: 0 | I25: 0 | J25: 0 | K25: 0.9787221771 | L25: 0.9736982748 | M25: 1.859873177
A26: AAEL011419 | B26: 0.6353822715 | C26: 2.738153534 | D26: 2.259954003 | E26: 1.211597019 | F26: 0.2256666761 | G26: NA | H26: 0 | I26: 0 | J26: 0 | K26: 0.9787221771 | L26: 0.9736982748 | M26: 1.859873177
A27: AAEL002383 | B27: 0.6345449545 | C27: 2.736084038 | D27: 2.492514246 | E27: 1.097720522 | F27: 0.2723265459 | G27: NA | H27: 0 | I27: 0 | J27: 0 | K27: 0 | L27: 1.94739655 | M27: 1.859873177
A28: AAEL014840 | B28: 0.6345449545 | C28: 2.736084038 | D28: 2.492514246 | E28: 1.097720522 | F28: 0.2723265459 | G28: NA | H28: 0 | I28: 0 | J28: 0 | K28: 0 | L28: 1.94739655 | M28: 1.859873177
A29: AAEL026913 | B29: 0.6272513401 | C29: 2.722480437 | D29: 2.536618935 | E29: 1.073271353 | F29: 0.2831493844 | G29: NA | H29: 0 | I29: 0 | J29: 0 | K29: 0 | L29: 0.9736982748 | M29: 2.789809766
A30: AAEL002731 | B30: 1.318299539 | C30: 2.609910847 | D30: 1.911197137 | E30: 1.365589555 | F30: 0.1720678268 | G30: NA | H30: 0 | I30: 1.078837602 | J30: 0 | K30: 2.936166531 | L30: 3.894793099 | M30: 0
A31: AAEL020579 | B31: 1.311005924 | C31: 2.601916106 | D31: 1.773558826 | E31: 1.467059377 | F31: 0.1423599037 | G31: NA | H31: 0 | I31: 1.078837602 | J31: 0 | K31: 2.936166531 | L31: 2.921094824 | M31: 0.9299365887
A32: AAEL015430 | B32: 1.310168607 | C32: 2.601237296 | D32: 1.786205191 | E32: 1.456292541 | F32: 0.1453117667 | G32: NA | H32: 0 | I32: 1.078837602 | J32: 0 | K32: 1.957444354 | L32: 3.894793099 | M32: 0.9299365887
A33: Gene:WBGene00222858 | B33: 1.275874571 | C33: 2.594426224 | D33: 1.755999321 | E33: 1.477464252 | F33: 0.1395512339 | G33: NA | H33: 0.9168350713 | I33: 0 | J33: 0 | K33: 1.957444354 | L33: 2.921094824 | M33: 1.859873177
A34: AAEL023417 | B34: 1.268580957 | C34: 2.587796983 | D34: 1.756736491 | E34: 1.47307066 | F34: 0.1407319838 | G34: NA | H34: 0.9168350713 | I34: 0 | J34: 0 | K34: 1.957444354 | L34: 1.94739655 | M34: 2.789809766
A35: AAEL015128 | B35: 1.268580957 | C35: 2.587796983 | D35: 1.756736491 | E35: 1.47307066 | F35: 0.1407319838 | G35: NA | H35: 0.9168350713 | I35: 0 | J35: 0 | K35: 1.957444354 | L35: 1.94739655 | M35: 2.789809766
A36: AAEL024213 | B36: 3.527339568 | C36: 2.531429463 | D36: 1.211679088 | E36: 2.089191345 | F36: 0.03669050223 | G36: NA | H36: 0.9168350713 | I36: 0 | J36: 2.257003644 | K36: 2.936166531 | L36: 3.894793099 | M36: 11.15923906
A37: AAEL026792 | B37: 1.165968497 | C37: 2.390024159 | D37: 2.032160537 | E37: 1.176100075 | F37: 0.2395548881 | G37: NA | H37: 0 | I37: 0 | J37: 1.128501822 | K37: 4.893610885 | L37: 0.9736982748 | M37: 0
A38: AAEL024482 | B38: 1.150397513 | C38: 2.381562868 | D38: 2.0371795 | E38: 1.169049103 | F38: 0.2423838484 | G38: NA | H38: 0 | I38: 1.078837602 | J38: 0 | K38: 4.893610885 | L38: 0 | M38: 0.9299365887
A39: AAEL026263 | B39: 1.157000249 | C39: 2.378647271 | D39: 1.830727028 | E39: 1.299291066 | F39: 0.1938440594 | G39: NA | H39: 0 | I39: 0 | J39: 1.128501822 | K39: 2.936166531 | L39: 1.94739655 | M39: 0.9299365887
A40: AAEL012153 | B40: 1.113591525 | C40: 2.3700689 | D40: 1.816528256 | E40: 1.304724489 | F40: 0.1919866797 | G40: NA | H40: 0.9168350713 | I40: 0 | J40: 0 | K40: 1.957444354 | L40: 1.94739655 | M40: 1.859873177
A41: AAEL008290 | B41: 1.148032 | C41: 2.369201974 | D41: 1.832049255 | E41: 1.29319775 | F41: 0.1959426737 | G41: NA | H41: 0 | I41: 0 | J41: 1.128501822 | K41: 0.9787221771 | L41: 2.921094824 | M41: 1.859873177
A42: AAEL025106 | B42: 1.13975463 | C42: 2.369201304 | D42: 1.834673144 | E42: 1.291347896 | F42: 0.1965830695 | G42: NA | H42: 0 | I42: 1.078837602 | J42: 0 | K42: 0.9787221771 | L42: 2.921094824 | M42: 1.859873177
A43: AAEL001130 | B43: 1.138917313 | C43: 2.368218286 | D43: 1.986336946 | E43: 1.192254059 | F43: 0.2331616424 | G43: NA | H43: 0 | I43: 1.078837602 | J43: 0 | K43: 0 | L43: 3.894793099 | M43: 1.859873177
A44: AAEL009097 | B44: 1.13413565 | C44: 2.362721374 | D44: 1.973860646 | E44: 1.197005158 | F44: 0.2313045445 | G44: NA | H44: 0 | I44: 1.078837602 | J44: 0 | K44: 2.936166531 | L44: 0 | M44: 2.789809766
A45: AAEL004030 | B45: 1.141575703 | C45: 2.362348245 | D45: 1.833016763 | E45: 1.288776127 | F45: 0.1974759277 | G45: NA | H45: 0 | I45: 0 | J45: 1.128501822 | K45: 1.957444354 | L45: 0.9736982748 | M45: 2.789809766
A46: AAEL001461 | B46: 0.4893610885 | C46: 2.354795801 | D46: 3.165142943 | E46: 0.7439777108 | F46: 0.4568899597 | G46: NA | H46: 0 | I46: 0 | J46: 0 | K46: 2.936166531 | L46: 0 | M46: 0
A47: AAEL021131 | B47: 0.4893610885 | C47: 2.354795801 | D47: 3.165142943 | E47: 0.7439777108 | F47: 0.4568899597 | G47: NA | H47: 0 | I47: 0 | J47: 0 | K47: 2.936166531 | L47: 0 | M47: 0
A48: AAEL026172 | B48: 0.4876864544 | C48: 2.349424248 | D48: 2.751804953 | E48: 0.8537757174 | F48: 0.3932292714 | G48: NA | H48: 0 | I48: 0 | J48: 0 | K48: 0.9787221771 | L48: 1.94739655 | M48: 0
A49: AAEL026573 | B49: 0.4876864544 | C49: 2.349424248 | D49: 2.751804953 | E49: 0.8537757174 | F49: 0.3932292714 | G49: NA | H49: 0 | I49: 0 | J49: 0 | K49: 0.9787221771 | L49: 1.94739655 | M49: 0
A50: AAEL015140 | B50: 0.4876864544 | C50: 2.349424248 | D50: 2.751804953 | E50: 0.8537757174 | F50: 0.3932292714 | G50: NA | H50: 0 | I50: 0 | J50: 0 | K50: 0.9787221771 | L50: 1.94739655 | M50: 0
A51: AAEL001286 | B51: 0.4876864544 | C51: 2.349424248 | D51: 2.751804953 | E51: 0.8537757174 | F51: 0.3932292714 | G51: NA | H51: 0 | I51: 0 | J51: 0 | K51: 0.9787221771 | L51: 1.94739655 | M51: 0
A52: AAEL006999 | B52: 0.4868491374 | C52: 2.348473232 | D52: 3.170284103 | E52: 0.7407769007 | F52: 0.4588287232 | G52: NA | H52: 0 | I52: 0 | J52: 0 | K52: 0 | L52: 2.921094824 | M52: 0
A53: AAEL026966 | B53: 0.4868491374 | C53: 2.348473232 | D53: 3.170284103 | E53: 0.7407769007 | F53: 0.4588287232 | G53: NA | H53: 0 | I53: 0 | J53: 0 | K53: 0 | L53: 2.921094824 | M53: 0
A54: AAEL026956 | B54: 0.4812301571 | C54: 2.333927249 | D54: 2.760706594 | E54: 0.8454093796 | F54: 0.3978823094 | G54: NA | H54: 0 | I54: 0 | J54: 0 | K54: 1.957444354 | L54: 0 | M54: 0.9299365887
A55: AAEL023482 | B55: 0.4812301571 | C55: 2.333927249 | D55: 2.760706594 | E55: 0.8454093796 | F55: 0.3978823094 | G55: NA | H55: 0 | I55: 0 | J55: 0 | K55: 1.957444354 | L55: 0 | M55: 0.9299365887
A56: AAEL023481 | B56: 0.4803928401 | C56: 2.331894211 | D56: 2.481469286 | E56: 0.9397231808 | F56: 0.3473595715 | G56: NA | H56: 0 | I56: 0 | J56: 0 | K56: 0.9787221771 | L56: 0.9736982748 | M56: 0.9299365887
A57: AAEL002117 | B57: 0.4803928401 | C57: 2.331894211 | D57: 2.481469286 | E57: 0.9397231808 | F57: 0.3473595715 | G57: NA | H57: 0 | I57: 0 | J57: 0 | K57: 0.9787221771 | L57: 0.9736982748 | M57: 0.9299365887
A58: AAEL006003 | B58: 0.4803928401 | C58: 2.331894211 | D58: 2.481469286 | E58: 0.9397231808 | F58: 0.3473595715 | G58: NA | H58: 0 | I58: 0 | J58: 0 | K58: 0.9787221771 | L58: 0.9736982748 | M58: 0.9299365887
A59: AAEL015139 | B59: 0.4803928401 | C59: 2.331894211 | D59: 2.481469286 | E59: 0.9397231808 | F59: 0.3473595715 | G59: NA | H59: 0 | I59: 0 | J59: 0 | K59: 0.9787221771 | L59: 0.9736982748 | M59: 0.9299365887
A60: AAEL001855 | B60: 0.4803928401 | C60: 2.331894211 | D60: 2.481469286 | E60: 0.9397231808 | F60: 0.3473595715 | G60: NA | H60: 0 | I60: 0 | J60: 0 | K60: 0.9787221771 | L60: 0.9736982748 | M60: 0.9299365887
A61: AAEL021887 | B61: 0.479555523 | C61: 2.329929635 | D61: 2.763431037 | E61: 0.8431292852 | F61: 0.3991561419 | G61: NA | H61: 0 | I61: 0 | J61: 0 | K61: 0 | L61: 1.94739655 | M61: 0.9299365887
A62: AAEL022865 | B62: 0.479555523 | C62: 2.329929635 | D62: 2.763431037 | E62: 0.8431292852 | F62: 0.3991561419 | G62: NA | H62: 0 | I62: 0 | J62: 0 | K62: 0 | L62: 1.94739655 | M62: 0.9299365887
A63: AAEL023215 | B63: 0.479555523 | C63: 2.329929635 | D63: 2.763431037 | E63: 0.8431292852 | F63: 0.3991561419 | G63: NA | H63: 0 | I63: 0 | J63: 0 | K63: 0 | L63: 1.94739655 | M63: 0.9299365887
A64: AAEL026396 | B64: 0.4730992257 | C64: 2.314239289 | D64: 2.774075217 | E64: 0.8342381183 | F64: 0.404146815 | G64: NA | H64: 0 | I64: 0 | J64: 0 | K64: 0.9787221771 | L64: 0 | M64: 1.859873177
A65: AAEL029029 | B65: 0.4722619087 | C65: 2.312215961 | D65: 2.775475721 | E65: 0.8330881599 | F65: 0.4047950107 | G65: NA | H65: 0 | I65: 0 | J65: 0 | K65: 0 | L65: 0.9736982748 | M65: 1.859873177
A66: Gene:WBGene00225499 | B66: 0.4722619087 | C66: 2.312215961 | D66: 2.775475721 | E66: 0.8330881599 | F66: 0.4047950107 | G66: NA | H66: 0 | I66: 0 | J66: 0 | K66: 0 | L66: 0.9736982748 | M66: 1.859873177
A67: Gene:WBGene00230047 | B67: 0.4722619087 | C67: 2.312215961 | D67: 2.775475721 | E67: 0.8330881599 | F67: 0.4047950107 | G67: NA | H67: 0 | I67: 0 | J67: 0 | K67: 0 | L67: 0.9736982748 | M67: 1.859873177
A68: Gene:WBGene00221366 | B68: 0.4649682943 | C68: 2.291820121 | D68: 3.216993735 | E68: 0.7124105019 | F68: 0.4762106142 | G68: NA | H68: 0 | I68: 0 | J68: 0 | K68: 0 | L68: 0 | M68: 2.789809766
A69: AAEL007233 | B69: 1.936910995 | C69: 2.233045043 | D69: 1.456670679 | E69: 1.532978645 | F69: 0.1252811167 | G69: NA | H69: 0.9168350713 | I69: 1.078837602 | J69: 0 | K69: 3.914888708 | L69: 2.921094824 | M69: 2.789809766
A70: AAEL022192 | B70: 60.95775807 | C70: 2.217032606 | D70: 0.9329551786 | E70: 2.376354896 | F70: 0.01748463683 | G70: 0.5368879904 | H70: 11.00202086 | I70: 31.28629045 | J70: 22.57003644 | K70: 86.12755158 | L70: 19.4739655 | M70: 195.2866836
A71: AAEL014241 | B71: 1.906061904 | C71: 2.215597284 | D71: 1.542449407 | E71: 1.436414882 | F71: 0.1508843209 | G71: NA | H71: 0.9168350713 | I71: 1.078837602 | J71: 0 | K71: 1.957444354 | L71: 0.9736982748 | M71: 6.509556121
A72: AAEL022210 | B72: 2.906398087 | C72: 2.20673688 | D72: 1.191391883 | E72: 1.852234275 | F72: 0.063992189 | G72: NA | H72: 0.9168350713 | I72: 1.078837602 | J72: 1.128501822 | K72: 2.936166531 | L72: 4.868491374 | M72: 6.509556121
